Workbook

Sheet Title
M6: The Dividend Champions List
M8: A Resource For Dividend Growth Investors
M18: A monthly publication tracking companies with a history of consistently increasing their dividends
M20: To be included on the list, a company must be consistently increasing its calendar year dividend payout for at least the past 5 years
M36: Created by David Fish
M38: Updated by Justin Law
M40: ©2019 All Rights Reserved. This listing is intended for personal, non-commercial use only.

Sheet Champions
A1: U.S. Dividend Champions | C1: End-of-month update at: | J1: Dividend Information | Z1: Fundamental Data | AC1: Numbers in Blue directly from Finviz | AO1: Special | AR1: Dividend Growth Model | AY1: Technical Data | BD1: Other
A2: (and American Depository Receipts) | C2: http://dripinvesting.org/Tools/Tools.asp | J2: DEG=Dividend to Earnings Growth; A/D=Acceleration/Deceleration; DGR=Dividend Growth Rate | Z2: EPS=Earnings Per Share; P/E=Price/Earnings Per Share; TTM=Trailing Twelve Months; FYE=Fiscal Year End; MRQ=Most Recent Quarter; ROE = Return on Equity | AO2: (see Notes tab) | AR2: (based on Earnings Estimates, if available) | AY2: MMA=Moving Market Average
A3: As of 2/28/19 | J3: Dates in Red (right-aligned) indicate last increase more than a year ago (Ex-Div Date) | Q3: Dates in Green (centered) indicate increase (by Ex-Div. Date) expected in next 2 months | AR3: Past Performance is No Guarantee of Future Results
J4: Numbers in Gray last updated 1/31/2019 | Z4: Disclaimer: Although all figures are thought to be correct, no guarantee is expressed or implied. | AR4: Last updated 1/31/2019 | AW4: 5-year Total | AZ4: Current Price as % from:
A5: Company | B5: Ticker | E5: No. | F5: CCC | G5: DRIP Fees | I5: 2019-02-28 | J5: Div. | K5: Current | L5: Payouts/ | N5: Qtly | O5: Previous | P5: Last Increased on: | R5: MR% | S5: DGR | T5: DGR | U5: DGR | V5: DGR | W5: 5/10 | X5: Past 5yr | Y5: &=MultiIncThisYr | Z5: EPS% | AA5: TTM | AB5: FYE | AC5: TTM | AE5: TTM | AF5: MRQ | AG5: TTM | AH5: TTM | AI5: NY | AJ5: Past 5yr | AK5: Est-5yr | AL5: MktCap | AM5: Inside | AN5: Debt/ | AO5: Tweed | AP5: Chowder | AQ5: +/-% vs. | AR5: Estimated Dividends to be Paid in Year: | AW5: Est. Payback | AY5: 5-yr | AZ5: 52-wk | BA5: 52-wk | BB5: 50-day | BC5: 200-day | BE5: Streak | BF5: Recessions | BG5: TTM
A6: Name | B6: Symbol | C6: Sector | D6: Industry | E6: Yrs | F6: Seq | G6: DR | H6: SP | I6: Price | J6: Yield | K6: Dividend | L6: Year | M6: Annualized | N6: Sch | O6: Payout | P6: Ex-Div | Q6: Pay | R6: Inc. | S6: 1-yr | T6: 3-yr | U6: 5-yr | V6: 10-yr | W6: A/D* | X6: DEG | Y6: Notes | Z6: Payout | AA6: P/E | AB6: Month | AC6: EPS | AD6: PEG | AE6: P/Sales | AF6: P/Book | AG6: ROE | AH6: Growth | AI6: Growth | AJ6: Growth | AK6: Growth | AL6: ($Mil) | AM6: Own. | AN6: Equity | AO6: Factor | AP6: Rule | AQ6: Graham | AR6: 2019 | AS6: 2020 | AT6: 2021 | AU6: 2022 | AV6: 2023 | AW6: $ | AX6: % | AY6: Beta | AZ6: Low | BA6: High | BB6: MMA | BC6: MMA | BD6: OTC | BE6: Began | BF6: Survived | BG6: ROA
A7: 1st Source Corp. | B7: SRCE | C7: Financials | D7: Banks | E7: 32 | F7: 89 | G7: - | H7: - | I7: 47.55 | J7: =(M7/I7)*100 -> 2.27 | K7: 0.2700 | L7: 4 | M7: =K7*L7 -> 1.08 | N7: B15 | O7: 0.2500 | P7: 2019-02-01 | Q7: 2019-02-14 | R7: =(K7-O7)/O7*100 -> 8.00 | S7: =IF(INDEX(Historical!$D$7:$D$1447,MATCH(B7,Historical!$B$7:$B$1454,0))=0,"n/a",(INDEX(Historical!$C$7:$C$1447,MATCH(B7,Historical!$B$7:$B$1454,0))/INDEX(Historical!$D$7:$D$1447,MATCH(B7,Historical!$B$7:$B$1454,0))-1)*100) -> 26.3 | T7: =IF(INDEX(Historical!$F$7:$F$1447,MATCH(B7,Historical!$B$7:$B$1454,0))=0,"n/a",((INDEX(Historical!$C$7:$C$1447,MATCH(B7,Historical!$B$7:$B$1454,0))/INDEX(Historical!$F$7:$F$1447,MATCH(B7,Historical!$B$7:$B$1454,0)))^(1/3)-1)*100) -> 12.7 | U7: =IF(INDEX(Historical!$H$7:$H$1447,MATCH(B7,Historical!$B$7:$B$1454,0))=0,"n/a",((INDEX(Historical!$C$7:$C$1447,MATCH(B7,Historical!$B$7:$B$1454,0))/INDEX(Historical!$H$7:$H$1447,MATCH(B7,Historical!$B$7:$B$1454,0)))^(1/5)-1)*100) -> 9.2 | V7: =IF(INDEX(Historical!$O$7:$O$1447,MATCH(B7,Historical!$B$7:$B$1454,0))=0,"n/a",((INDEX(Historical!$C$7:$C$1447,MATCH(B7,Historical!$B$7:$B$1454,0))/INDEX(Historical!$O$7:$O$1447,MATCH(B7,Historical!$B$7:$B$1454,0)))^(1/10)-1)*100) -> 6.2 | W7: =IF(OR(U7<=0,U7="n/a",V7<=0,V7="n/a"),"n/a",U7/V7) -> 1.490 | X7: =IF(OR(AJ7<=0,AJ7="n/a",U7<=0,U7="n/a"),"n/a",U7/AJ7) -> 1.438 | Z7: =IF(OR(AC7<0.01,AC7="n/a"),"n/a",M7/AC7*100) -> 38.30 | AA7: =IF(OR(AC7<0.01,AC7="n/a"),"n/a",I7/AC7) -> 16.86 | AB7: 12 | AC7: 2.82 | AD7: 1.69 | AE7: 5.24 | AF7: 1.65 | AG7: 10.30 | AH7: 12.90 | AI7: 6.75 | AJ7: 6.40 | AK7: 10.00 | AL7: 1,220 | AM7: 3.6 | AN7: 0.17 | AO7: =IF(U7="n/a","n/a",IF(AA7<0,"n/a",IF(AA7="n/a","n/a",J7+U7-AA7))) -> (5.4) | AP7: =IF(U7="n/a","n/a",J7+U7) -> 11.5 | AQ7: =IF(OR(AC7<0.01,AF7="n/a"),"n/a",(I7/SQRT(22.5*AC7*(I7/AF7))-1)*100) -> 11.2 | AR7: =INDEX(Historical!$C$7:$C$1447,MATCH(B7,Historical!$B$7:$B$1454,0))*IF(AH7="n/a",1.03,IF(AH7<0,1.01,IF(AH7>10,1.1,(1+AH7/100)))) -> 1.06 | AS7: =IF($AI7="n/a",1.03*AR7,IF($AI7<0,1.01*AR7,IF($AI7>10,1.1*AR7,(1+$AI7/100)*AR7))) -> 1.13 | AT7: =IF($AK7="n/a",1.03*AS7,IF($AK7<0,1.01*AS7,IF($AK7>10,1.1*AS7,(1+$AK7/100)*AS7))) -> 1.24 | AU7: 1.36 | AV7: 1.50 | AW7: =SUM(AR7:AV7) -> 6.29 | AX7: =AW7/I7*100 -> 13.2 | AY7: 1.12 | AZ7: 23.7 | BA7: -19.9 | BB7: 7.8 | BC7: -6.0 | BE7: 1988 | BF7: =#VALUE! ->  | BG7: 1.2
A8: 3M Company | B8: MMM | C8: Industrials | D8: Industrial Conglomerates | E8: 61 | F8: 8 | G8: N | H8: N | I8: 207.39 | J8: 2.78 | K8: 1.4400 | L8: 4 | M8: 5.76 | N8: C12 | O8: 1.3600 | P8: 2019-02-14 | Q8: 2019-03-12 | R8: 5.88 | S8: =IF(INDEX(Historical!$D$7:$D$1447,MATCH(B8,Historical!$B$7:$B$1454,0))=0,"n/a",(INDEX(Historical!$C$7:$C$1447,MATCH(B8,Historical!$B$7:$B$1454,0))/INDEX(Historical!$D$7:$D$1447,MATCH(B8,Historical!$B$7:$B$1454,0))-1)*100) -> 15.7 | T8: =IF(INDEX(Historical!$F$7:$F$1447,MATCH(B8,Historical!$B$7:$B$1454,0))=0,"n/a",((INDEX(Historical!$C$7:$C$1447,MATCH(B8,Historical!$B$7:$B$1454,0))/INDEX(Historical!$F$7:$F$1447,MATCH(B8,Historical!$B$7:$B$1454,0)))^(1/3)-1)*100) -> 9.9 | U8: =IF(INDEX(Historical!$H$7:$H$1447,MATCH(B8,Historical!$B$7:$B$1454,0))=0,"n/a",((INDEX(Historical!$C$7:$C$1447,MATCH(B8,Historical!$B$7:$B$1454,0))/INDEX(Historical!$H$7:$H$1447,MATCH(B8,Historical!$B$7:$B$1454,0)))^(1/5)-1)*100) -> 16.5 | V8: =IF(INDEX(Historical!$O$7:$O$1447,MATCH(B8,Historical!$B$7:$B$1454,0))=0,"n/a",((INDEX(Historical!$C$7:$C$1447,MATCH(B8,Historical!$B$7:$B$1454,0))/INDEX(Historical!$O$7:$O$1447,MATCH(B8,Historical!$B$7:$B$1454,0)))^(1/10)-1)*100) -> 10.5 | W8: 1.563 | X8: 2.571 | Z8: 62.68 | AA8: 22.57 | AB8: 12 | AC8: 9.19 | AD8: 3.17 | AE8: 3.68 | AF8: 12.29 | AG8: 51.70 | AH8: 0.10 | AI8: 8.58 | AJ8: 6.40 | AK8: 7.12 | AL8: 120,430 | AM8: 0.1 | AN8: 1.49 | AO8: (3.3) | AP8: 19.2 | AQ8: 251.1 | AR8: =INDEX(Historical!$C$7:$C$1447,MATCH(B8,Historical!$B$7:$B$1454,0))*IF(AH8="n/a",1.03,IF(AH8<0,1.01,IF(AH8>10,1.1,(1+AH8/100)))) -> 5.45 | AS8: 5.91 | AT8: 6.33 | AU8: 6.78 | AV8: 7.27 | AW8: 31.74 | AX8: 15.3 | AY8: 1.04 | AZ8: 17.3 | BA8: -14.7 | BB8: 5.6 | BC8: 3.1 | BE8: 1959 | BF8: =#VALUE! ->  | BG8: 14.3
A9: A.O. Smith Corp. | B9: AOS | C9: Industrials | D9: Building Products | E9: 25 | F9: 128 | G9: N | H9: N | I9: 51.93 | J9: 1.69 | K9: 0.2200 | L9: 4 | M9: 0.88 | N9: B15 | O9: 0.1800 | P9: 2018-10-30 | Q9: 2018-11-15 | R9: 22.22 | S9: =IF(INDEX(Historical!$D$7:$D$1447,MATCH(B9,Historical!$B$7:$B$1454,0))=0,"n/a",(INDEX(Historical!$C$7:$C$1447,MATCH(B9,Historical!$B$7:$B$1454,0))/INDEX(Historical!$D$7:$D$1447,MATCH(B9,Historical!$B$7:$B$1454,0))-1)*100) -> 35.7 | T9: =IF(INDEX(Historical!$F$7:$F$1447,MATCH(B9,Historical!$B$7:$B$1454,0))=0,"n/a",((INDEX(Historical!$C$7:$C$1447,MATCH(B9,Historical!$B$7:$B$1454,0))/INDEX(Historical!$F$7:$F$1447,MATCH(B9,Historical!$B$7:$B$1454,0)))^(1/3)-1)*100) -> 26.0 | U9: =IF(INDEX(Historical!$H$7:$H$1447,MATCH(B9,Historical!$B$7:$B$1454,0))=0,"n/a",((INDEX(Historical!$C$7:$C$1447,MATCH(B9,Historical!$B$7:$B$1454,0))/INDEX(Historical!$H$7:$H$1447,MATCH(B9,Historical!$B$7:$B$1454,0)))^(1/5)-1)*100) -> 27.0 | V9: =IF(INDEX(Historical!$O$7:$O$1447,MATCH(B9,Historical!$B$7:$B$1454,0))=0,"n/a",((INDEX(Historical!$C$7:$C$1447,MATCH(B9,Historical!$B$7:$B$1454,0))/INDEX(Historical!$O$7:$O$1447,MATCH(B9,Historical!$B$7:$B$1454,0)))^(1/10)-1)*100) -> 19.9 | W9: 1.354 | X9: 1.174 | Z9: 34.11 | AA9: 20.13 | AB9: 12 | AC9: 2.58 | AD9: 2.15 | AE9: 2.74 | AF9: 5.12 | AG9: 25.70 | AH9: 19.10 | AI9: 9.66 | AJ9: 23.00 | AK9: 9.35 | AL9: 8,730 | AM9: 0.6 | AN9: 0.13 | AO9: 8.6 | AP9: 28.7 | AQ9: 114.0 | AR9: =INDEX(Historical!$C$7:$C$1447,MATCH(B9,Historical!$B$7:$B$1454,0))*IF(AH9="n/a",1.03,IF(AH9<0,1.01,IF(AH9>10,1.1,(1+AH9/100)))) -> 0.84 | AS9: 0.92 | AT9: 1.00 | AU9: 1.10 | AV9: 1.20 | AW9: 5.05 | AX9: 9.7 | AY9: 1.38 | AZ9: 28.7 | BA9: -22.3 | BB9: 10.1 | BC9: -2.8 | BE9: 1994 | BF9: =#VALUE! ->  | BG9: 14.5
A10: ABM Industries Inc. | B10: ABM | C10: Industrials | D10: Commercial Services & Supplies | E10: 52 | F10: 19 | G10: Y | H10: N | I10: 35.66 | J10: 2.02 | K10: 0.1800 | L10: 4 | M10: 0.72 | N10: B05 | O10: 0.1750 | P10: 2019-01-02 | Q10: 2019-02-04 | R10: 2.86 | S10: =IF(INDEX(Historical!$D$7:$D$1447,MATCH(B10,Historical!$B$7:$B$1454,0))=0,"n/a",(INDEX(Historical!$C$7:$C$1447,MATCH(B10,Historical!$B$7:$B$1454,0))/INDEX(Historical!$D$7:$D$1447,MATCH(B10,Historical!$B$7:$B$1454,0))-1)*100) -> 2.9 | T10: =IF(INDEX(Historical!$F$7:$F$1447,MATCH(B10,Historical!$B$7:$B$1454,0))=0,"n/a",((INDEX(Historical!$C$7:$C$1447,MATCH(B10,Historical!$B$7:$B$1454,0))/INDEX(Historical!$F$7:$F$1447,MATCH(B10,Historical!$B$7:$B$1454,0)))^(1/3)-1)*100) -> 3.0 | U10: =IF(INDEX(Historical!$H$7:$H$1447,MATCH(B10,Historical!$B$7:$B$1454,0))=0,"n/a",((INDEX(Historical!$C$7:$C$1447,MATCH(B10,Historical!$B$7:$B$1454,0))/INDEX(Historical!$H$7:$H$1447,MATCH(B10,Historical!$B$7:$B$1454,0)))^(1/5)-1)*100) -> 3.1 | V10: =IF(INDEX(Historical!$O$7:$O$1447,MATCH(B10,Historical!$B$7:$B$1454,0))=0,"n/a",((INDEX(Historical!$C$7:$C$1447,MATCH(B10,Historical!$B$7:$B$1454,0))/INDEX(Historical!$O$7:$O$1447,MATCH(B10,Historical!$B$7:$B$1454,0)))^(1/10)-1)*100) -> 3.4 | W10: 0.915 | X10: n/a | Z10: 67.29 | AA10: 33.33 | AB10: 10 | AC10: 1.07 | AD10: 2.09 | AE10: 0.36 | AF10: 1.63 | AG10: 6.80 | AH10: -20.30 | AI10: 14.23 | AJ10: -0.90 | AK10: 16.00 | AL10: 2,340 | AM10: 0.9 | AN10: 0.65 | AO10: (28.2) | AP10: 5.2 | AQ10: 55.4 | AR10: =INDEX(Historical!$C$7:$C$1447,MATCH(B10,Historical!$B$7:$B$1454,0))*IF(AH10="n/a",1.03,IF(AH10<0,1.01,IF(AH10>10,1.1,(1+AH10/100)))) -> 0.71 | AS10: 0.78 | AT10: 0.86 | AU10: 0.94 | AV10: 1.04 | AW10: 4.32 | AX10: 12.1 | AY10: 0.58 | AZ10: 39.1 | BA10: -7.1 | BB10: 6.0 | BC10: 12.7 | BE10: 1968 | BF10: =#VALUE! ->  | BG10: 2.6
A11: AFLAC Inc. | B11: AFL | C11: Financials | D11: Insurance | E11: 37 | F11: 71 | G11: N | H11: N | I11: 49.14 | J11: 2.20 | K11: 0.2700 | L11: 4 | M11: 1.08 | N11: C01 | O11: 0.2600 | P11: 2019-02-19 | Q11: 2019-03-01 | R11: 3.85 | S11: =IF(INDEX(Historical!$D$7:$D$1447,MATCH(B11,Historical!$B$7:$B$1454,0))=0,"n/a",(INDEX(Historical!$C$7:$C$1447,MATCH(B11,Historical!$B$7:$B$1454,0))/INDEX(Historical!$D$7:$D$1447,MATCH(B11,Historical!$B$7:$B$1454,0))-1)*100) -> 19.5 | T11: =IF(INDEX(Historical!$F$7:$F$1447,MATCH(B11,Historical!$B$7:$B$1454,0))=0,"n/a",((INDEX(Historical!$C$7:$C$1447,MATCH(B11,Historical!$B$7:$B$1454,0))/INDEX(Historical!$F$7:$F$1447,MATCH(B11,Historical!$B$7:$B$1454,0)))^(1/3)-1)*100) -> 9.6 | U11: =IF(INDEX(Historical!$H$7:$H$1447,MATCH(B11,Historical!$B$7:$B$1454,0))=0,"n/a",((INDEX(Historical!$C$7:$C$1447,MATCH(B11,Historical!$B$7:$B$1454,0))/INDEX(Historical!$H$7:$H$1447,MATCH(B11,Historical!$B$7:$B$1454,0)))^(1/5)-1)*100) -> 7.9 | V11: =IF(INDEX(Historical!$O$7:$O$1447,MATCH(B11,Historical!$B$7:$B$1454,0))=0,"n/a",((INDEX(Historical!$C$7:$C$1447,MATCH(B11,Historical!$B$7:$B$1454,0))/INDEX(Historical!$O$7:$O$1447,MATCH(B11,Historical!$B$7:$B$1454,0)))^(1/10)-1)*100) -> 8.0 | W11: 0.987 | X11: 4.175 | Z11: 28.50 | AA11: 12.97 | AB11: 12 | AC11: 3.79 | AD11: 2.10 | AE11: 1.72 | AF11: 1.62 | AG11: 20.20 | AH11: 4.20 | AI11: 4.26 | AJ11: 1.90 | AK11: 6.19 | AL11: 37,520 | AM11: 0.2 | AN11: 0.23 | AO11: (2.8) | AP11: 10.1 | AQ11: (3.4) | AR11: =INDEX(Historical!$C$7:$C$1447,MATCH(B11,Historical!$B$7:$B$1454,0))*IF(AH11="n/a",1.03,IF(AH11<0,1.01,IF(AH11>10,1.1,(1+AH11/100)))) -> 1.08 | AS11: 1.13 | AT11: 1.20 | AU11: 1.27 | AV11: 1.35 | AW11: 6.04 | AX11: 12.3 | AY11: 0.78 | AZ11: 18.6 | BA11: -0.6 | BB11: 5.1 | BC11: 7.8 | BE11: 1983 | BF11: =#VALUE! ->  | BG11: 3.4
A12: Air Products & Chem. | B12: APD | C12: Materials | D12: Chemicals | E12: 37 | F12: 72 | G12: Y | H12: Y | I12: 181.18 | J12: 2.56 | K12: 1.1600 | L12: 4 | M12: 4.64 | N12: B14 | O12: 1.1000 | P12: 2019-03-29 | Q12: 2019-05-13 | R12: 5.45 | S12: =IF(INDEX(Historical!$D$7:$D$1447,MATCH(B12,Historical!$B$7:$B$1454,0))=0,"n/a",(INDEX(Historical!$C$7:$C$1447,MATCH(B12,Historical!$B$7:$B$1454,0))/INDEX(Historical!$D$7:$D$1447,MATCH(B12,Historical!$B$7:$B$1454,0))-1)*100) -> 14.6 | T12: =IF(INDEX(Historical!$F$7:$F$1447,MATCH(B12,Historical!$B$7:$B$1454,0))=0,"n/a",((INDEX(Historical!$C$7:$C$1447,MATCH(B12,Historical!$B$7:$B$1454,0))/INDEX(Historical!$F$7:$F$1447,MATCH(B12,Historical!$B$7:$B$1454,0)))^(1/3)-1)*100) -> 9.9 | U12: =IF(INDEX(Historical!$H$7:$H$1447,MATCH(B12,Historical!$B$7:$B$1454,0))=0,"n/a",((INDEX(Historical!$C$7:$C$1447,MATCH(B12,Historical!$B$7:$B$1454,0))/INDEX(Historical!$H$7:$H$1447,MATCH(B12,Historical!$B$7:$B$1454,0)))^(1/5)-1)*100) -> 8.9 | V12: =IF(INDEX(Historical!$O$7:$O$1447,MATCH(B12,Historical!$B$7:$B$1454,0))=0,"n/a",((INDEX(Historical!$C$7:$C$1447,MATCH(B12,Historical!$B$7:$B$1454,0))/INDEX(Historical!$O$7:$O$1447,MATCH(B12,Historical!$B$7:$B$1454,0)))^(1/10)-1)*100) -> 9.6 | W12: 0.932 | X12: 0.885 | Z12: 61.70 | AA12: 24.09 | AB12: 9 | AC12: 7.52 | AD12: 1.94 | AE12: 4.46 | AF12: 3.66 | AG12: 15.80 | AH12: 48.50 | AI12: 13.42 | AJ12: 10.10 | AK12: 12.44 | AL12: 39,840 | AM12: 0.2 | AN12: 0.35 | AO12: (12.6) | AP12: 11.5 | AQ12: 98.0 | AR12: =INDEX(Historical!$C$7:$C$1447,MATCH(B12,Historical!$B$7:$B$1454,0))*IF(AH12="n/a",1.03,IF(AH12<0,1.01,IF(AH12>10,1.1,(1+AH12/100)))) -> 4.68 | AS12: 5.14 | AT12: 5.66 | AU12: 6.22 | AV12: 6.84 | AW12: 28.54 | AX12: 15.8 | AY12: 0.82 | AZ12: 22.1 | BA12: -0.6 | BB12: 11.1 | BC12: 11.8 | BE12: 1983 | BF12: =#VALUE! ->  | BG12: 8.9
A13: Altria Group Inc. | B13: MO | C13: Consumer Staples | D13: Tobacco | E13: 49 | F13: 29 | G13: Y | H13: Y | I13: 52.41 | J13: 6.11 | K13: 0.8000 | L13: 4 | M13: 3.20 | N13: A10 | O13: 0.7000 | P13: 2018-09-13 | Q13: 2018-10-10 | R13: 14.29 | S13: =IF(INDEX(Historical!$D$7:$D$1447,MATCH(B13,Historical!$B$7:$B$1454,0))=0,"n/a",(INDEX(Historical!$C$7:$C$1447,MATCH(B13,Historical!$B$7:$B$1454,0))/INDEX(Historical!$D$7:$D$1447,MATCH(B13,Historical!$B$7:$B$1454,0))-1)*100) -> 14.9 | T13: =IF(INDEX(Historical!$F$7:$F$1447,MATCH(B13,Historical!$B$7:$B$1454,0))=0,"n/a",((INDEX(Historical!$C$7:$C$1447,MATCH(B13,Historical!$B$7:$B$1454,0))/INDEX(Historical!$F$7:$F$1447,MATCH(B13,Historical!$B$7:$B$1454,0)))^(1/3)-1)*100) -> 10.4 | U13: =IF(INDEX(Historical!$H$7:$H$1447,MATCH(B13,Historical!$B$7:$B$1454,0))=0,"n/a",((INDEX(Historical!$C$7:$C$1447,MATCH(B13,Historical!$B$7:$B$1454,0))/INDEX(Historical!$H$7:$H$1447,MATCH(B13,Historical!$B$7:$B$1454,0)))^(1/5)-1)*100) -> 9.7 | V13: =IF(INDEX(Historical!$O$7:$O$1447,MATCH(B13,Historical!$B$7:$B$1454,0))=0,"n/a",((INDEX(Historical!$C$7:$C$1447,MATCH(B13,Historical!$B$7:$B$1454,0))/INDEX(Historical!$O$7:$O$1447,MATCH(B13,Historical!$B$7:$B$1454,0)))^(1/10)-1)*100) -> 9.5 | W13: 1.026 | X13: 0.836 | Z13: 84.66 | AA13: 13.87 | AB13: 12 | AC13: 3.78 | AD13: 2.00 | AE13: 3.89 | AF13: 6.37 | AG13: 68.20 | AH13: -51.10 | AI13: 6.75 | AJ13: 11.60 | AK13: 6.91 | AL13: 98,690 | AM13: 0.1 | AN13: 0.90 | AO13: 1.9 | AP13: 15.8 | AQ13: 98.1 | AR13: =INDEX(Historical!$C$7:$C$1447,MATCH(B13,Historical!$B$7:$B$1454,0))*IF(AH13="n/a",1.03,IF(AH13<0,1.01,IF(AH13>10,1.1,(1+AH13/100)))) -> 2.89 | AS13: 3.08 | AT13: 3.30 | AU13: 3.52 | AV13: 3.77 | AW13: 16.56 | AX13: 31.6 | AY13: 0.41 | AZ13: 23.6 | BA13: -21.2 | BB13: 7.2 | BC13: -6.9 | BE13: 1970 | BF13: =#VALUE! ->  | BG13: 24.3
A14: American States Water | B14: AWR | C14: Utilities | D14: Water Utilities | E14: 64 | F14: 1 | G14: N | H14: N | I14: 71.13 | J14: 1.55 | K14: 0.2750 | L14: 4 | M14: 1.10 | N14: C01 | O14: 0.2550 | P14: 2018-08-14 | Q14: 2018-08-31 | R14: 7.84 | S14: =IF(INDEX(Historical!$D$7:$D$1447,MATCH(B14,Historical!$B$7:$B$1454,0))=0,"n/a",(INDEX(Historical!$C$7:$C$1447,MATCH(B14,Historical!$B$7:$B$1454,0))/INDEX(Historical!$D$7:$D$1447,MATCH(B14,Historical!$B$7:$B$1454,0))-1)*100) -> 6.6 | T14: =IF(INDEX(Historical!$F$7:$F$1447,MATCH(B14,Historical!$B$7:$B$1454,0))=0,"n/a",((INDEX(Historical!$C$7:$C$1447,MATCH(B14,Historical!$B$7:$B$1454,0))/INDEX(Historical!$F$7:$F$1447,MATCH(B14,Historical!$B$7:$B$1454,0)))^(1/3)-1)*100) -> 6.6 | U14: =IF(INDEX(Historical!$H$7:$H$1447,MATCH(B14,Historical!$B$7:$B$1454,0))=0,"n/a",((INDEX(Historical!$C$7:$C$1447,MATCH(B14,Historical!$B$7:$B$1454,0))/INDEX(Historical!$H$7:$H$1447,MATCH(B14,Historical!$B$7:$B$1454,0)))^(1/5)-1)*100) -> 6.9 | V14: =IF(INDEX(Historical!$O$7:$O$1447,MATCH(B14,Historical!$B$7:$B$1454,0))=0,"n/a",((INDEX(Historical!$C$7:$C$1447,MATCH(B14,Historical!$B$7:$B$1454,0))/INDEX(Historical!$O$7:$O$1447,MATCH(B14,Historical!$B$7:$B$1454,0)))^(1/10)-1)*100) -> 7.8 | W14: 0.882 | X14: 1.186 | Z14: 65.09 | AA14: 42.09 | AB14: 12 | AC14: 1.69 | AD14: 7.00 | AE14: 6.08 | AF14: 4.72 | AG14: 11.60 | AH14: 15.70 | AI14: 12.35 | AJ14: 5.80 | AK14: 6.00 | AL14: 2,610 | AM14: 1.0 | AN14: 0.71 | AO14: (33.7) | AP14: 8.4 | AQ14: 197.1 | AR14: =INDEX(Historical!$C$7:$C$1447,MATCH(B14,Historical!$B$7:$B$1454,0))*IF(AH14="n/a",1.03,IF(AH14<0,1.01,IF(AH14>10,1.1,(1+AH14/100)))) -> 1.17 | AS14: 1.28 | AT14: 1.36 | AU14: 1.44 | AV14: 1.53 | AW14: 6.78 | AX14: 9.5 | AY14: 0.07 | AZ14: 42.1 | BA14: -1.1 | BB14: 6.2 | BC14: 14.6 | BE14: 1955 | BF14: =#VALUE! ->  | BG14: 4.4
A15: AptarGroup Inc. | B15: ATR | C15: Materials | D15: Containers & Packaging | E15: 25 | F15: 123 | G15: - | H15: - | I15: 101.73 | J15: 1.34 | K15: 0.3400 | L15: 4 | M15: 1.36 | N15: B23 | O15: 0.3200 | P15: 2018-07-31 | Q15: 2018-08-22 | R15: 6.25 | S15: =IF(INDEX(Historical!$D$7:$D$1447,MATCH(B15,Historical!$B$7:$B$1454,0))=0,"n/a",(INDEX(Historical!$C$7:$C$1447,MATCH(B15,Historical!$B$7:$B$1454,0))/INDEX(Historical!$D$7:$D$1447,MATCH(B15,Historical!$B$7:$B$1454,0))-1)*100) -> 3.1 | T15: =IF(INDEX(Historical!$F$7:$F$1447,MATCH(B15,Historical!$B$7:$B$1454,0))=0,"n/a",((INDEX(Historical!$C$7:$C$1447,MATCH(B15,Historical!$B$7:$B$1454,0))/INDEX(Historical!$F$7:$F$1447,MATCH(B15,Historical!$B$7:$B$1454,0)))^(1/3)-1)*100) -> 5.0 | U15: =IF(INDEX(Historical!$H$7:$H$1447,MATCH(B15,Historical!$B$7:$B$1454,0))=0,"n/a",((INDEX(Historical!$C$7:$C$1447,MATCH(B15,Historical!$B$7:$B$1454,0))/INDEX(Historical!$H$7:$H$1447,MATCH(B15,Historical!$B$7:$B$1454,0)))^(1/5)-1)*100) -> 5.7 | V15: =IF(INDEX(Historical!$O$7:$O$1447,MATCH(B15,Historical!$B$7:$B$1454,0))=0,"n/a",((INDEX(Historical!$C$7:$C$1447,MATCH(B15,Historical!$B$7:$B$1454,0))/INDEX(Historical!$O$7:$O$1447,MATCH(B15,Historical!$B$7:$B$1454,0)))^(1/10)-1)*100) -> 9.0 | W15: 0.638 | X15: 1.969 | Z15: 45.33 | AA15: 33.91 | AB15: 12 | AC15: 3.00 | AD15: 4.33 | AE15: 2.34 | AF15: 4.49 | AG15: 14.00 | AH15: -23.10 | AI15: 11.62 | AJ15: 2.90 | AK15: 7.82 | AL15: 6,460 | AM15: 0.2 | AN15: 0.91 | AO15: (26.9) | AP15: 7.0 | AQ15: 160.1 | AR15: =INDEX(Historical!$C$7:$C$1447,MATCH(B15,Historical!$B$7:$B$1454,0))*IF(AH15="n/a",1.03,IF(AH15<0,1.01,IF(AH15>10,1.1,(1+AH15/100)))) -> 1.33 | AS15: 1.47 | AT15: 1.58 | AU15: 1.70 | AV15: 1.84 | AW15: 7.92 | AX15: 7.8 | AY15: 0.80 | AZ15: 17.4 | BA15: -9.4 | BB15: 4.5 | BC15: 1.8 | BE15: 1994 | BF15: =#VALUE! ->  | BG15: 5.9
A16: Aqua America Inc. | B16: WTR | C16: Utilities | D16: Water Utilities | E16: 26 | F16: 108 | G16: N | H16: N | I16: 35.94 | J16: 2.44 | K16: 0.2190 | L16: 4 | M16: 0.88 | N16: C01 | O16: 0.2047 | P16: 2018-08-16 | Q16: 2018-09-01 | R16: 6.99 | S16: =IF(INDEX(Historical!$D$7:$D$1447,MATCH(B16,Historical!$B$7:$B$1454,0))=0,"n/a",(INDEX(Historical!$C$7:$C$1447,MATCH(B16,Historical!$B$7:$B$1454,0))/INDEX(Historical!$D$7:$D$1447,MATCH(B16,Historical!$B$7:$B$1454,0))-1)*100) -> 7.1 | T16: =IF(INDEX(Historical!$F$7:$F$1447,MATCH(B16,Historical!$B$7:$B$1454,0))=0,"n/a",((INDEX(Historical!$C$7:$C$1447,MATCH(B16,Historical!$B$7:$B$1454,0))/INDEX(Historical!$F$7:$F$1447,MATCH(B16,Historical!$B$7:$B$1454,0)))^(1/3)-1)*100) -> 7.3 | U16: =IF(INDEX(Historical!$H$7:$H$1447,MATCH(B16,Historical!$B$7:$B$1454,0))=0,"n/a",((INDEX(Historical!$C$7:$C$1447,MATCH(B16,Historical!$B$7:$B$1454,0))/INDEX(Historical!$H$7:$H$1447,MATCH(B16,Historical!$B$7:$B$1454,0)))^(1/5)-1)*100) -> 7.7 | V16: =IF(INDEX(Historical!$O$7:$O$1447,MATCH(B16,Historical!$B$7:$B$1454,0))=0,"n/a",((INDEX(Historical!$C$7:$C$1447,MATCH(B16,Historical!$B$7:$B$1454,0))/INDEX(Historical!$O$7:$O$1447,MATCH(B16,Historical!$B$7:$B$1454,0)))^(1/10)-1)*100) -> 7.6 | W16: 1.020 | X16: 1.383 | Z16: 88.48 | AA16: 36.30 | AB16: 12 | AC16: 0.99 | AD16: 7.25 | AE16: 7.63 | AF16: 3.13 | AG16: 12.40 | AH16: 3.50 | AI16: 6.12 | AJ16: 5.60 | AK16: 5.00 | AL16: 6,390 | AM16: 0.2 | AN16: 1.17 | AO16: (26.1) | AP16: 10.2 | AQ16: 124.7 | AR16: =INDEX(Historical!$C$7:$C$1447,MATCH(B16,Historical!$B$7:$B$1454,0))*IF(AH16="n/a",1.03,IF(AH16<0,1.01,IF(AH16>10,1.1,(1+AH16/100)))) -> 0.88 | AS16: 0.93 | AT16: 0.98 | AU16: 1.03 | AV16: 1.08 | AW16: 4.89 | AX16: 13.6 | AY16: 0.45 | AZ16: 12.0 | BA16: -6.0 | BB16: 4.0 | BC16: 1.7 | BE16: 1993 | BF16: =#VALUE! ->  | BG16: 3.8
A17: Archer Daniels Midland | B17: ADM | C17: Consumer Staples | D17: Food Products | E17: 44 | F17: 56 | G17: N | H17: Y | I17: 42.50 | J17: 3.29 | K17: 0.3500 | L17: 4 | M17: 1.40 | N17: C13 | O17: 0.3350 | P17: 2019-02-15 | Q17: 2019-03-12 | R17: 4.48 | S17: =IF(INDEX(Historical!$D$7:$D$1447,MATCH(B17,Historical!$B$7:$B$1454,0))=0,"n/a",(INDEX(Historical!$C$7:$C$1447,MATCH(B17,Historical!$B$7:$B$1454,0))/INDEX(Historical!$D$7:$D$1447,MATCH(B17,Historical!$B$7:$B$1454,0))-1)*100) -> 4.7 | T17: =IF(INDEX(Historical!$F$7:$F$1447,MATCH(B17,Historical!$B$7:$B$1454,0))=0,"n/a",((INDEX(Historical!$C$7:$C$1447,MATCH(B17,Historical!$B$7:$B$1454,0))/INDEX(Historical!$F$7:$F$1447,MATCH(B17,Historical!$B$7:$B$1454,0)))^(1/3)-1)*100) -> 6.2 | U17: =IF(INDEX(Historical!$H$7:$H$1447,MATCH(B17,Historical!$B$7:$B$1454,0))=0,"n/a",((INDEX(Historical!$C$7:$C$1447,MATCH(B17,Historical!$B$7:$B$1454,0))/INDEX(Historical!$H$7:$H$1447,MATCH(B17,Historical!$B$7:$B$1454,0)))^(1/5)-1)*100) -> 12.0 | V17: =IF(INDEX(Historical!$O$7:$O$1447,MATCH(B17,Historical!$B$7:$B$1454,0))=0,"n/a",((INDEX(Historical!$C$7:$C$1447,MATCH(B17,Historical!$B$7:$B$1454,0))/INDEX(Historical!$O$7:$O$1447,MATCH(B17,Historical!$B$7:$B$1454,0)))^(1/10)-1)*100) -> 9.9 | W17: 1.210 | X17: 1.320 | Z17: 44.59 | AA17: 13.54 | AB17: 6 | AC17: 3.14 | AD17: n/a | AE17: 0.37 | AF17: 1.26 | AG17: 9.60 | AH17: 47.40 | AI17: 5.57 | AJ17: 9.10 | AK17: -8.80 | AL17: 23,850 | AM17: 0.3 | AN17: 0.44 | AO17: 1.8 | AP17: 15.3 | AQ17: (12.9) | AR17: =INDEX(Historical!$C$7:$C$1447,MATCH(B17,Historical!$B$7:$B$1454,0))*IF(AH17="n/a",1.03,IF(AH17<0,1.01,IF(AH17>10,1.1,(1+AH17/100)))) -> 1.47 | AS17: 1.56 | AT17: 1.57 | AU17: 1.59 | AV17: 1.60 | AW17: 7.79 | AX17: 18.3 | AY17: 0.96 | AZ17: 8.5 | BA17: -18.4 | BB17: -0.2 | BC17: -8.4 | BE17: 1976 | BF17: =#VALUE! ->  | BG17: 4.5
A18: Arrow Financial Corp. | B18: AROW | C18: Financials | D18: Banks | E18: 25 | F18: 124 | G18: N | H18: N | I18: 35.42 | J18: 2.94 | K18: 0.2600 | L18: 4 | M18: 1.04 | N18: C15 | O18: 0.2500 | P18: 2018-08-30 | Q18: 2018-09-14 | R18: 4.00 | S18: =IF(INDEX(Historical!$D$7:$D$1447,MATCH(B18,Historical!$B$7:$B$1454,0))=0,"n/a",(INDEX(Historical!$C$7:$C$1447,MATCH(B18,Historical!$B$7:$B$1454,0))/INDEX(Historical!$D$7:$D$1447,MATCH(B18,Historical!$B$7:$B$1454,0))-1)*100) -> 4.3 | T18: =IF(INDEX(Historical!$F$7:$F$1447,MATCH(B18,Historical!$B$7:$B$1454,0))=0,"n/a",((INDEX(Historical!$C$7:$C$1447,MATCH(B18,Historical!$B$7:$B$1454,0))/INDEX(Historical!$F$7:$F$1447,MATCH(B18,Historical!$B$7:$B$1454,0)))^(1/3)-1)*100) -> 3.2 | U18: =IF(INDEX(Historical!$H$7:$H$1447,MATCH(B18,Historical!$B$7:$B$1454,0))=0,"n/a",((INDEX(Historical!$C$7:$C$1447,MATCH(B18,Historical!$B$7:$B$1454,0))/INDEX(Historical!$H$7:$H$1447,MATCH(B18,Historical!$B$7:$B$1454,0)))^(1/5)-1)*100) -> 2.4 | V18: =IF(INDEX(Historical!$O$7:$O$1447,MATCH(B18,Historical!$B$7:$B$1454,0))=0,"n/a",((INDEX(Historical!$C$7:$C$1447,MATCH(B18,Historical!$B$7:$B$1454,0))/INDEX(Historical!$O$7:$O$1447,MATCH(B18,Historical!$B$7:$B$1454,0)))^(1/10)-1)*100) -> 2.9 | W18: 0.826 | X18: 0.571 | Z18: 41.60 | AA18: 14.17 | AB18: 12 | AC18: 2.50 | AD18: 2.05 | AE18: 5.30 | AF18: 1.93 | AG18: 13.10 | AH18: 5.60 | AI18: 7.09 | AJ18: 4.20 | AK18: 6.90 | AL18: 511 | AM18: 3.1 | AN18: 0.08 | AO18: (8.8) | AP18: 5.3 | AQ18: 10.2 | AR18: =INDEX(Historical!$C$7:$C$1447,MATCH(B18,Historical!$B$7:$B$1454,0))*IF(AH18="n/a",1.03,IF(AH18<0,1.01,IF(AH18>10,1.1,(1+AH18/100)))) -> 1.08 | AS18: 1.15 | AT18: 1.23 | AU18: 1.32 | AV18: 1.41 | AW18: 6.19 | AX18: 17.5 | AY18: 0.55 | AZ18: 16.3 | BA18: -9.1 | BB18: 6.6 | BC18: -0.4 | BE18: 1994 | BF18: =#VALUE! ->  | BG18: 1.2
A19: Artesian Resources | B19: ARTNA | C19: Utilities | D19: Water Utilities | E19: 26 | F19: 111 | G19: N | H19: N | I19: 39.24 | J19: 2.47 | K19: 0.2423 | L19: 4 | M19: 0.97 | N19: B22 | O19: 0.2387 | P19: 2018-11-13 | Q19: 2018-11-21 | R19: 1.51 | S19: =IF(INDEX(Historical!$D$7:$D$1447,MATCH(B19,Historical!$B$7:$B$1454,0))=0,"n/a",(INDEX(Historical!$C$7:$C$1447,MATCH(B19,Historical!$B$7:$B$1454,0))/INDEX(Historical!$D$7:$D$1447,MATCH(B19,Historical!$B$7:$B$1454,0))-1)*100) -> 3.0 | T19: =IF(INDEX(Historical!$F$7:$F$1447,MATCH(B19,Historical!$B$7:$B$1454,0))=0,"n/a",((INDEX(Historical!$C$7:$C$1447,MATCH(B19,Historical!$B$7:$B$1454,0))/INDEX(Historical!$F$7:$F$1447,MATCH(B19,Historical!$B$7:$B$1454,0)))^(1/3)-1)*100) -> 3.0 | U19: =IF(INDEX(Historical!$H$7:$H$1447,MATCH(B19,Historical!$B$7:$B$1454,0))=0,"n/a",((INDEX(Historical!$C$7:$C$1447,MATCH(B19,Historical!$B$7:$B$1454,0))/INDEX(Historical!$H$7:$H$1447,MATCH(B19,Historical!$B$7:$B$1454,0)))^(1/5)-1)*100) -> 3.0 | V19: =IF(INDEX(Historical!$O$7:$O$1447,MATCH(B19,Historical!$B$7:$B$1454,0))=0,"n/a",((INDEX(Historical!$C$7:$C$1447,MATCH(B19,Historical!$B$7:$B$1454,0))/INDEX(Historical!$O$7:$O$1447,MATCH(B19,Historical!$B$7:$B$1454,0)))^(1/10)-1)*100) -> 3.0 | W19: 0.992 | X19: 0.104 | Z19: 23.24 | AA19: 9.41 | AB19: 12 | AC19: 4.17 | AD19: 2.35 | AE19: 4.40 | AF19: 2.42 | AG19: 10.10 | AH19: 186.80 | AI19: n/a | AJ19: 29.10 | AK19: 4.00 | AL19: 358 | AM19: 4.0 | AN19: 0.86 | AO19: (3.9) | AP19: 5.5 | AQ19: 0.6 | AR19: =INDEX(Historical!$C$7:$C$1447,MATCH(B19,Historical!$B$7:$B$1454,0))*IF(AH19="n/a",1.03,IF(AH19<0,1.01,IF(AH19>10,1.1,(1+AH19/100)))) -> 1.05 | AS19: 1.08 | AT19: 1.13 | AU19: 1.17 | AV19: 1.22 | AW19: 5.64 | AX19: 14.4 | AY19: 0.09 | AZ19: 22.6 | BA19: -4.2 | BB19: 9.7 | BC19: 6.6 | BE19: 1993 | BF19: =#VALUE! ->  | BG19: 3
A20: AT&T Inc. | B20: T | C20: Communication Services | D20: Diversified Telecommunication Services | E20: 35 | F20: 79 | G20: Y | H20: Y | I20: 31.12 | J20: 6.56 | K20: 0.5100 | L20: 4 | M20: 2.04 | N20: B01 | O20: 0.5000 | P20: 2019-01-09 | Q20: 2019-02-01 | R20: 2.00 | S20: =IF(INDEX(Historical!$D$7:$D$1447,MATCH(B20,Historical!$B$7:$B$1454,0))=0,"n/a",(INDEX(Historical!$C$7:$C$1447,MATCH(B20,Historical!$B$7:$B$1454,0))/INDEX(Historical!$D$7:$D$1447,MATCH(B20,Historical!$B$7:$B$1454,0))-1)*100) -> 2.0 | T20: =IF(INDEX(Historical!$F$7:$F$1447,MATCH(B20,Historical!$B$7:$B$1454,0))=0,"n/a",((INDEX(Historical!$C$7:$C$1447,MATCH(B20,Historical!$B$7:$B$1454,0))/INDEX(Historical!$F$7:$F$1447,MATCH(B20,Historical!$B$7:$B$1454,0)))^(1/3)-1)*100) -> 2.1 | U20: =IF(INDEX(Historical!$H$7:$H$1447,MATCH(B20,Historical!$B$7:$B$1454,0))=0,"n/a",((INDEX(Historical!$C$7:$C$1447,MATCH(B20,Historical!$B$7:$B$1454,0))/INDEX(Historical!$H$7:$H$1447,MATCH(B20,Historical!$B$7:$B$1454,0)))^(1/5)-1)*100) -> 2.1 | V20: =IF(INDEX(Historical!$O$7:$O$1447,MATCH(B20,Historical!$B$7:$B$1454,0))=0,"n/a",((INDEX(Historical!$C$7:$C$1447,MATCH(B20,Historical!$B$7:$B$1454,0))/INDEX(Historical!$O$7:$O$1447,MATCH(B20,Historical!$B$7:$B$1454,0)))^(1/10)-1)*100) -> 2.3 | W20: 0.944 | X20: n/a | Z20: 71.08 | AA20: 10.84 | AB20: 12 | AC20: 2.87 | AD20: 2.26 | AE20: 1.33 | AF20: 1.23 | AG20: 11.10 | AH20: 91.70 | AI20: 1.68 | AJ20: -3.60 | AK20: 4.81 | AL20: 227,270 | AM20: 0.1 | AN20: 0.96 | AO20: (2.2) | AP20: 8.7 | AQ20: (23.0) | AR20: =INDEX(Historical!$C$7:$C$1447,MATCH(B20,Historical!$B$7:$B$1454,0))*IF(AH20="n/a",1.03,IF(AH20<0,1.01,IF(AH20>10,1.1,(1+AH20/100)))) -> 2.20 | AS20: 2.24 | AT20: 2.34 | AU20: 2.46 | AV20: 2.58 | AW20: 11.81 | AX20: 38.0 | AY20: 0.56 | AZ20: 16.1 | BA20: -17.7 | BB20: 3.6 | BC20: -1.3 | BE20: 1985 | BF20: =#VALUE! ->  | BG20: 3.8
A21: Atmos Energy | B21: ATO | C21: Utilities | D21: Gas Utilities | E21: 35 | F21: 77 | G21: N | H21: N | I21: 98.85 | J21: 2.12 | K21: 0.5250 | L21: 4 | M21: 2.10 | N21: C11 | O21: 0.4850 | P21: 2018-11-23 | Q21: 2018-12-10 | R21: 8.25 | S21: =IF(INDEX(Historical!$D$7:$D$1447,MATCH(B21,Historical!$B$7:$B$1454,0))=0,"n/a",(INDEX(Historical!$C$7:$C$1447,MATCH(B21,Historical!$B$7:$B$1454,0))/INDEX(Historical!$D$7:$D$1447,MATCH(B21,Historical!$B$7:$B$1454,0))-1)*100) -> 7.9 | T21: =IF(INDEX(Historical!$F$7:$F$1447,MATCH(B21,Historical!$B$7:$B$1454,0))=0,"n/a",((INDEX(Historical!$C$7:$C$1447,MATCH(B21,Historical!$B$7:$B$1454,0))/INDEX(Historical!$F$7:$F$1447,MATCH(B21,Historical!$B$7:$B$1454,0)))^(1/3)-1)*100) -> 7.6 | U21: =IF(INDEX(Historical!$H$7:$H$1447,MATCH(B21,Historical!$B$7:$B$1454,0))=0,"n/a",((INDEX(Historical!$C$7:$C$1447,MATCH(B21,Historical!$B$7:$B$1454,0))/INDEX(Historical!$H$7:$H$1447,MATCH(B21,Historical!$B$7:$B$1454,0)))^(1/5)-1)*100) -> 6.9 | V21: =IF(INDEX(Historical!$O$7:$O$1447,MATCH(B21,Historical!$B$7:$B$1454,0))=0,"n/a",((INDEX(Historical!$C$7:$C$1447,MATCH(B21,Historical!$B$7:$B$1454,0))/INDEX(Historical!$O$7:$O$1447,MATCH(B21,Historical!$B$7:$B$1454,0)))^(1/10)-1)*100) -> 4.3 | W21: 1.615 | X21: 0.702 | Z21: 53.03 | AA21: 24.96 | AB21: 9 | AC21: 3.96 | AD21: 3.90 | AE21: 3.71 | AF21: 2.10 | AG21: n/a | AH21: 10.90 | AI21: 6.53 | AJ21: 9.80 | AK21: 6.40 | AL21: 11,520 | AM21: 1.0 | AN21: 0.68 | AO21: (16.0) | AP21: 9.0 | AQ21: 52.6 | AR21: =INDEX(Historical!$C$7:$C$1447,MATCH(B21,Historical!$B$7:$B$1454,0))*IF(AH21="n/a",1.03,IF(AH21<0,1.01,IF(AH21>10,1.1,(1+AH21/100)))) -> 2.18 | AS21: 2.32 | AT21: 2.47 | AU21: 2.63 | AV21: 2.79 | AW21: 12.39 | AX21: 12.5 | AY21: 0.26 | AZ21: 25.5 | BA21: -1.9 | BB21: 4.2 | BC21: 6.2 | BE21: 1985 | BF21: =#VALUE! ->  | BG21: n/a
A22: Automatic Data Proc. | B22: ADP | C22: Information Technology | D22: IT Services | E22: 44 | F22: 55 | G22: N | H22: Y | I22: 153.03 | J22: 2.06 | K22: 0.7900 | L22: 4 | M22: 3.16 | N22: A01 | O22: 0.6900 | P22: 2018-12-13 | Q22: 2019-01-01 | R22: 14.49 | S22: =IF(INDEX(Historical!$D$7:$D$1447,MATCH(B22,Historical!$B$7:$B$1454,0))=0,"n/a",(INDEX(Historical!$C$7:$C$1447,MATCH(B22,Historical!$B$7:$B$1454,0))/INDEX(Historical!$D$7:$D$1447,MATCH(B22,Historical!$B$7:$B$1454,0))-1)*100) -> 15.8 | T22: =IF(INDEX(Historical!$F$7:$F$1447,MATCH(B22,Historical!$B$7:$B$1454,0))=0,"n/a",((INDEX(Historical!$C$7:$C$1447,MATCH(B22,Historical!$B$7:$B$1454,0))/INDEX(Historical!$F$7:$F$1447,MATCH(B22,Historical!$B$7:$B$1454,0)))^(1/3)-1)*100) -> 10.4 | U22: =IF(INDEX(Historical!$H$7:$H$1447,MATCH(B22,Historical!$B$7:$B$1454,0))=0,"n/a",((INDEX(Historical!$C$7:$C$1447,MATCH(B22,Historical!$B$7:$B$1454,0))/INDEX(Historical!$H$7:$H$1447,MATCH(B22,Historical!$B$7:$B$1454,0)))^(1/5)-1)*100) -> 11.7 | V22: =IF(INDEX(Historical!$O$7:$O$1447,MATCH(B22,Historical!$B$7:$B$1454,0))=0,"n/a",((INDEX(Historical!$C$7:$C$1447,MATCH(B22,Historical!$B$7:$B$1454,0))/INDEX(Historical!$O$7:$O$1447,MATCH(B22,Historical!$B$7:$B$1454,0)))^(1/10)-1)*100) -> 10.0 | W22: 1.162 | X22: 1.203 | Z22: 74.70 | AA22: 36.18 | AB22: 6 | AC22: 4.23 | AD22: 2.15 | AE22: 4.82 | AF22: 14.00 | AG22: 39.90 | AH22: -4.90 | AI22: 11.96 | AJ22: 9.70 | AK22: 16.81 | AL22: 66,680 | AM22: 0.2 | AN22: 0.67 | AO22: (22.4) | AP22: 13.7 | AQ22: 374.5 | AR22: =INDEX(Historical!$C$7:$C$1447,MATCH(B22,Historical!$B$7:$B$1454,0))*IF(AH22="n/a",1.03,IF(AH22<0,1.01,IF(AH22>10,1.1,(1+AH22/100)))) -> 2.67 | AS22: 2.93 | AT22: 3.23 | AU22: 3.55 | AV22: 3.90 | AW22: 16.28 | AX22: 10.6 | AY22: 0.98 | AZ22: 40.2 | BA22: -1.0 | BB22: 10.9 | BC22: 9.5 | BE22: 1976 | BF22: =#VALUE! ->  | BG22: 4.6
A23: Badger Meter Inc. | B23: BMI | C23: Information Technology | D23: Electronic Equipment, Instruments & Components | E23: 26 | F23: 109 | G23: N | H23: Y | I23: 58.84 | J23: 1.02 | K23: 0.1500 | L23: 4 | M23: 0.60 | N23: C15 | O23: 0.1300 | P23: 2018-08-30 | Q23: 2018-09-14 | R23: 15.38 | S23: =IF(INDEX(Historical!$D$7:$D$1447,MATCH(B23,Historical!$B$7:$B$1454,0))=0,"n/a",(INDEX(Historical!$C$7:$C$1447,MATCH(B23,Historical!$B$7:$B$1454,0))/INDEX(Historical!$D$7:$D$1447,MATCH(B23,Historical!$B$7:$B$1454,0))-1)*100) -> 14.3 | T23: =IF(INDEX(Historical!$F$7:$F$1447,MATCH(B23,Historical!$B$7:$B$1454,0))=0,"n/a",((INDEX(Historical!$C$7:$C$1447,MATCH(B23,Historical!$B$7:$B$1454,0))/INDEX(Historical!$F$7:$F$1447,MATCH(B23,Historical!$B$7:$B$1454,0)))^(1/3)-1)*100) -> 12.8 | U23: =IF(INDEX(Historical!$H$7:$H$1447,MATCH(B23,Historical!$B$7:$B$1454,0))=0,"n/a",((INDEX(Historical!$C$7:$C$1447,MATCH(B23,Historical!$B$7:$B$1454,0))/INDEX(Historical!$H$7:$H$1447,MATCH(B23,Historical!$B$7:$B$1454,0)))^(1/5)-1)*100) -> 9.9 | V23: =IF(INDEX(Historical!$O$7:$O$1447,MATCH(B23,Historical!$B$7:$B$1454,0))=0,"n/a",((INDEX(Historical!$C$7:$C$1447,MATCH(B23,Historical!$B$7:$B$1454,0))/INDEX(Historical!$O$7:$O$1447,MATCH(B23,Historical!$B$7:$B$1454,0)))^(1/10)-1)*100) -> 10.8 | W23: 0.909 | X23: 2.190 | Z23: 63.16 | AA23: 61.94 | AB23: 12 | AC23: 0.95 | AD23: 4.14 | AE23: 3.98 | AF23: 5.78 | AG23: 10.10 | AH23: 9.30 | AI23: 7.24 | AJ23: 4.50 | AK23: 14.90 | AL23: 1,730 | AM23: 0.9 | AN23: 0.12 | AO23: (51.1) | AP23: 10.9 | AQ23: 298.9 | AR23: =INDEX(Historical!$C$7:$C$1447,MATCH(B23,Historical!$B$7:$B$1454,0))*IF(AH23="n/a",1.03,IF(AH23<0,1.01,IF(AH23>10,1.1,(1+AH23/100)))) -> 0.61 | AS23: 0.66 | AT23: 0.72 | AU23: 0.79 | AV23: 0.87 | AW23: 3.66 | AX23: 6.2 | AY23: 0.80 | AZ23: 43.5 | BA23: -4.4 | BB23: 9.7 | BC23: 15.5 | BE23: 1993 | BF23: =#VALUE! ->  | BG23: 7.3
A24: BancFirst Corp. OK | B24: BANF | C24: Financials | D24: Banks | E24: 25 | F24: 125 | G24: - | H24: - | I24: 56.38 | J24: 2.13 | K24: 0.3000 | L24: 4 | M24: 1.20 | N24: A13 | O24: 0.2100 | P24: 2018-09-27 | Q24: 2018-10-15 | R24: 42.86 | S24: =IF(INDEX(Historical!$D$7:$D$1447,MATCH(B24,Historical!$B$7:$B$1454,0))=0,"n/a",(INDEX(Historical!$C$7:$C$1447,MATCH(B24,Historical!$B$7:$B$1454,0))/INDEX(Historical!$D$7:$D$1447,MATCH(B24,Historical!$B$7:$B$1454,0))-1)*100) -> 19.2 | T24: =IF(INDEX(Historical!$F$7:$F$1447,MATCH(B24,Historical!$B$7:$B$1454,0))=0,"n/a",((INDEX(Historical!$C$7:$C$1447,MATCH(B24,Historical!$B$7:$B$1454,0))/INDEX(Historical!$F$7:$F$1447,MATCH(B24,Historical!$B$7:$B$1454,0)))^(1/3)-1)*100) -> 10.5 | U24: =IF(INDEX(Historical!$H$7:$H$1447,MATCH(B24,Historical!$B$7:$B$1454,0))=0,"n/a",((INDEX(Historical!$C$7:$C$1447,MATCH(B24,Historical!$B$7:$B$1454,0))/INDEX(Historical!$H$7:$H$1447,MATCH(B24,Historical!$B$7:$B$1454,0)))^(1/5)-1)*100) -> 9.5 | V24: =IF(INDEX(Historical!$O$7:$O$1447,MATCH(B24,Historical!$B$7:$B$1454,0))=0,"n/a",((INDEX(Historical!$C$7:$C$1447,MATCH(B24,Historical!$B$7:$B$1454,0))/INDEX(Historical!$O$7:$O$1447,MATCH(B24,Historical!$B$7:$B$1454,0)))^(1/10)-1)*100) -> 8.5 | W24: 1.116 | X24: 0.899 | Z24: 31.91 | AA24: 14.99 | AB24: 12 | AC24: 3.76 | AD24: 2.14 | AE24: 6.35 | AF24: 2.09 | AG24: 12.10 | AH24: 25.50 | AI24: 1.37 | AJ24: 10.60 | AK24: 7.00 | AL24: 1,840 | AM24: 0.1 | AN24: 0.04 | AO24: (3.3) | AP24: 11.7 | AQ24: 18.0 | AR24: =INDEX(Historical!$C$7:$C$1447,MATCH(B24,Historical!$B$7:$B$1454,0))*IF(AH24="n/a",1.03,IF(AH24<0,1.01,IF(AH24>10,1.1,(1+AH24/100)))) -> 1.02 | AS24: 1.04 | AT24: 1.11 | AU24: 1.19 | AV24: 1.27 | AW24: 5.63 | AX24: 10.0 | AY24: 0.81 | AZ24: 17.3 | BA24: -14.2 | BB24: 5.6 | BC24: -3.4 | BE24: 1994 | BF24: =#VALUE! ->  | BG24: 1.3
A25: Becton Dickinson & Co. | B25: BDX | C25: Health Care | D25: Health Care Equipment & Supplies | E25: 47 | F25: 40 | G25: N | H25: N | I25: 248.79 | J25: 1.24 | K25: 0.7700 | L25: 4 | M25: 3.08 | N25: C29 | O25: 0.7500 | P25: 2018-12-07 | Q25: 2018-12-31 | R25: 2.67 | S25: =IF(INDEX(Historical!$D$7:$D$1447,MATCH(B25,Historical!$B$7:$B$1454,0))=0,"n/a",(INDEX(Historical!$C$7:$C$1447,MATCH(B25,Historical!$B$7:$B$1454,0))/INDEX(Historical!$D$7:$D$1447,MATCH(B25,Historical!$B$7:$B$1454,0))-1)*100) -> 2.7 | T25: =IF(INDEX(Historical!$F$7:$F$1447,MATCH(B25,Historical!$B$7:$B$1454,0))=0,"n/a",((INDEX(Historical!$C$7:$C$1447,MATCH(B25,Historical!$B$7:$B$1454,0))/INDEX(Historical!$F$7:$F$1447,MATCH(B25,Historical!$B$7:$B$1454,0)))^(1/3)-1)*100) -> 7.1 | U25: =IF(INDEX(Historical!$H$7:$H$1447,MATCH(B25,Historical!$B$7:$B$1454,0))=0,"n/a",((INDEX(Historical!$C$7:$C$1447,MATCH(B25,Historical!$B$7:$B$1454,0))/INDEX(Historical!$H$7:$H$1447,MATCH(B25,Historical!$B$7:$B$1454,0)))^(1/5)-1)*100) -> 8.3 | V25: =IF(INDEX(Historical!$O$7:$O$1447,MATCH(B25,Historical!$B$7:$B$1454,0))=0,"n/a",((INDEX(Historical!$C$7:$C$1447,MATCH(B25,Historical!$B$7:$B$1454,0))/INDEX(Historical!$O$7:$O$1447,MATCH(B25,Historical!$B$7:$B$1454,0)))^(1/10)-1)*100) -> 10.2 | W25: 0.808 | X25: n/a | Y25: FY Streak | Z25: 64.03 | AA25: 51.72 | AB25: 9 | AC25: 4.81 | AD25: 4.43 | AE25: 3.92 | AF25: 3.13 | AG25: 4.20 | AH25: -34.50 | AI25: 12.66 | AJ25: -8.30 | AK25: 11.67 | AL25: 66,930 | AM25: 0.2 | AN25: 0.98 | AO25: (42.2) | AP25: 9.5 | AQ25: 168.2 | AR25: =INDEX(Historical!$C$7:$C$1447,MATCH(B25,Historical!$B$7:$B$1454,0))*IF(AH25="n/a",1.03,IF(AH25<0,1.01,IF(AH25>10,1.1,(1+AH25/100)))) -> 3.05 | AS25: 3.36 | AT25: 3.69 | AU25: 4.06 | AV25: 4.47 | AW25: 18.62 | AX25: 7.5 | AY25: 1.23 | AZ25: 19.3 | BA25: -6.4 | BB25: 5.9 | BC25: 3.1 | BE25: 1973 | BF25: =#VALUE! ->  | BG25: 1.7
A26: Bemis Company | B26: BMS | C26: Materials | D26: Containers & Packaging | E26: 36 | F26: 76 | G26: N | H26: N | I26: 52.90 | J26: 2.42 | K26: 0.3200 | L26: 4 | M26: 1.28 | N26: C01 | O26: 0.3100 | P26: 2019-02-19 | Q26: 2019-03-01 | R26: 3.23 | S26: =IF(INDEX(Historical!$D$7:$D$1447,MATCH(B26,Historical!$B$7:$B$1454,0))=0,"n/a",(INDEX(Historical!$C$7:$C$1447,MATCH(B26,Historical!$B$7:$B$1454,0))/INDEX(Historical!$D$7:$D$1447,MATCH(B26,Historical!$B$7:$B$1454,0))-1)*100) -> 3.3 | T26: =IF(INDEX(Historical!$F$7:$F$1447,MATCH(B26,Historical!$B$7:$B$1454,0))=0,"n/a",((INDEX(Historical!$C$7:$C$1447,MATCH(B26,Historical!$B$7:$B$1454,0))/INDEX(Historical!$F$7:$F$1447,MATCH(B26,Historical!$B$7:$B$1454,0)))^(1/3)-1)*100) -> 3.5 | U26: =IF(INDEX(Historical!$H$7:$H$1447,MATCH(B26,Historical!$B$7:$B$1454,0))=0,"n/a",((INDEX(Historical!$C$7:$C$1447,MATCH(B26,Historical!$B$7:$B$1454,0))/INDEX(Historical!$H$7:$H$1447,MATCH(B26,Historical!$B$7:$B$1454,0)))^(1/5)-1)*100) -> 3.6 | V26: =IF(INDEX(Historical!$O$7:$O$1447,MATCH(B26,Historical!$B$7:$B$1454,0))=0,"n/a",((INDEX(Historical!$C$7:$C$1447,MATCH(B26,Historical!$B$7:$B$1454,0))/INDEX(Historical!$O$7:$O$1447,MATCH(B26,Historical!$B$7:$B$1454,0)))^(1/10)-1)*100) -> 3.5 | W26: 1.026 | X26: 0.702 | Z26: 53.78 | AA26: 22.23 | AB26: 12 | AC26: 2.38 | AD26: 2.65 | AE26: 1.18 | AF26: 3.96 | AG26: 18.80 | AH26: 715.10 | AI26: 5.29 | AJ26: 5.10 | AK26: 8.40 | AL26: 4,830 | AM26: 0.6 | AN26: 1.12 | AO26: (16.2) | AP26: 6.0 | AQ26: 97.8 | AR26: =INDEX(Historical!$C$7:$C$1447,MATCH(B26,Historical!$B$7:$B$1454,0))*IF(AH26="n/a",1.03,IF(AH26<0,1.01,IF(AH26>10,1.1,(1+AH26/100)))) -> 1.36 | AS26: 1.44 | AT26: 1.56 | AU26: 1.69 | AV26: 1.83 | AW26: 7.87 | AX26: 14.9 | AY26: 0.88 | AZ26: 29.5 | BA26: -1.4 | BB26: 9.1 | BC26: 13.4 | BE26: 1984 | BF26: =#VALUE! ->  | BG26: 6.2
A27: Black Hills Corp. | B27: BKH | C27: Utilities | D27: Multi-Utilities | E27: 48 | F27: 32 | G27: N | H27: N | I27: 70.98 | J27: 2.85 | K27: 0.5050 | L27: 4 | M27: 2.02 | N27: C01 | O27: 0.4750 | P27: 2018-11-16 | Q27: 2018-12-01 | R27: 6.32 | S27: =IF(INDEX(Historical!$D$7:$D$1447,MATCH(B27,Historical!$B$7:$B$1454,0))=0,"n/a",(INDEX(Historical!$C$7:$C$1447,MATCH(B27,Historical!$B$7:$B$1454,0))/INDEX(Historical!$D$7:$D$1447,MATCH(B27,Historical!$B$7:$B$1454,0))-1)*100) -> 6.6 | T27: =IF(INDEX(Historical!$F$7:$F$1447,MATCH(B27,Historical!$B$7:$B$1454,0))=0,"n/a",((INDEX(Historical!$C$7:$C$1447,MATCH(B27,Historical!$B$7:$B$1454,0))/INDEX(Historical!$F$7:$F$1447,MATCH(B27,Historical!$B$7:$B$1454,0)))^(1/3)-1)*100) -> 6.0 | U27: =IF(INDEX(Historical!$H$7:$H$1447,MATCH(B27,Historical!$B$7:$B$1454,0))=0,"n/a",((INDEX(Historical!$C$7:$C$1447,MATCH(B27,Historical!$B$7:$B$1454,0))/INDEX(Historical!$H$7:$H$1447,MATCH(B27,Historical!$B$7:$B$1454,0)))^(1/5)-1)*100) -> 4.9 | V27: =IF(INDEX(Historical!$O$7:$O$1447,MATCH(B27,Historical!$B$7:$B$1454,0))=0,"n/a",((INDEX(Historical!$C$7:$C$1447,MATCH(B27,Historical!$B$7:$B$1454,0))/INDEX(Historical!$O$7:$O$1447,MATCH(B27,Historical!$B$7:$B$1454,0)))^(1/10)-1)*100) -> 3.3 | W27: 1.499 | X27: 0.165 | Z27: 42.26 | AA27: 14.85 | AB27: 12 | AC27: 4.78 | AD27: 4.09 | AE27: 2.40 | AF27: 2.09 | AG27: n/a | AH27: 254.60 | AI27: 6.93 | AJ27: 29.70 | AK27: 3.63 | AL27: 4,210 | AM27: 0.8 | AN27: 1.83 | AO27: (7.1) | AP27: 7.7 | AQ27: 17.4 | AR27: =INDEX(Historical!$C$7:$C$1447,MATCH(B27,Historical!$B$7:$B$1454,0))*IF(AH27="n/a",1.03,IF(AH27<0,1.01,IF(AH27>10,1.1,(1+AH27/100)))) -> 2.12 | AS27: 2.27 | AT27: =IF($AK27="n/a",1.03*AS27,IF($AK27<0,1.01*AS27,IF($AK27>10,1.1*AS27,(1+$AK27/100)*AS27))) -> 2.35 | AU27: 2.44 | AV27: 2.53 | AW27: 11.71 | AX27: 16.5 | AY27: 0.44 | AZ27: 40.6 | BA27: -0.4 | BB27: 7.7 | BC27: 14.8 | BE27: 1972 | BF27: =#VALUE! ->  | BG27: n/a
A28: Brady Corp. | B28: BRC | C28: Industrials | D28: Commercial Services & Supplies | E28: 33 | F28: 81 | G28: N | H28: N | I28: 47.31 | J28: 1.80 | K28: 0.2125 | L28: 4 | M28: 0.85 | N28: A31 | O28: 0.2075 | P28: 2018-10-09 | Q28: 2018-10-31 | R28: 2.41 | S28: =IF(INDEX(Historical!$D$7:$D$1447,MATCH(B28,Historical!$B$7:$B$1454,0))=0,"n/a",(INDEX(Historical!$C$7:$C$1447,MATCH(B28,Historical!$B$7:$B$1454,0))/INDEX(Historical!$D$7:$D$1447,MATCH(B28,Historical!$B$7:$B$1454,0))-1)*100) -> 1.4 | T28: =IF(INDEX(Historical!$F$7:$F$1447,MATCH(B28,Historical!$B$7:$B$1454,0))=0,"n/a",((INDEX(Historical!$C$7:$C$1447,MATCH(B28,Historical!$B$7:$B$1454,0))/INDEX(Historical!$F$7:$F$1447,MATCH(B28,Historical!$B$7:$B$1454,0)))^(1/3)-1)*100) -> 1.3 | U28: =IF(INDEX(Historical!$H$7:$H$1447,MATCH(B28,Historical!$B$7:$B$1454,0))=0,"n/a",((INDEX(Historical!$C$7:$C$1447,MATCH(B28,Historical!$B$7:$B$1454,0))/INDEX(Historical!$H$7:$H$1447,MATCH(B28,Historical!$B$7:$B$1454,0)))^(1/5)-1)*100) -> 1.7 | V28: =IF(INDEX(Historical!$O$7:$O$1447,MATCH(B28,Historical!$B$7:$B$1454,0))=0,"n/a",((INDEX(Historical!$C$7:$C$1447,MATCH(B28,Historical!$B$7:$B$1454,0))/INDEX(Historical!$O$7:$O$1447,MATCH(B28,Historical!$B$7:$B$1454,0)))^(1/10)-1)*100) -> 3.0 | W28: 0.579 | X28: 0.077 | Z28: 38.64 | AA28: 21.50 | AB28: 7 | AC28: 2.20 | AD28: 1.87 | AE28: 2.10 | AF28: 3.09 | AG28: 15.70 | AH28: 16.00 | AI28: 6.96 | AJ28: 22.70 | AK28: 11.50 | AL28: 2,470 | AM28: 1.9 | AN28: 0.00 | AO28: (18.0) | AP28: 3.5 | AQ28: 71.9 | AR28: =INDEX(Historical!$C$7:$C$1447,MATCH(B28,Historical!$B$7:$B$1454,0))*IF(AH28="n/a",1.03,IF(AH28<0,1.01,IF(AH28>10,1.1,(1+AH28/100)))) -> 0.92 | AS28: 0.98 | AT28: 1.08 | AU28: 1.19 | AV28: 1.31 | AW28: 5.47 | AX28: 11.6 | AY28: 0.97 | AZ28: 31.6 | BA28: -2.7 | BB28: 5.6 | BC28: 14.1 | BE28: 1986 | BF28: =#VALUE! ->  | BG28: 11.3
A29: Brown & Brown Inc. | B29: BRO | C29: Financials | D29: Insurance | E29: 25 | F29: 126 | G29: - | H29: - | I29: 29.62 | J29: 1.08 | K29: 0.0800 | L29: 4 | M29: 0.32 | N29: B08 | O29: 0.0750 | P29: 2018-10-25 | Q29: 2018-11-07 | R29: 6.67 | S29: =IF(INDEX(Historical!$D$7:$D$1447,MATCH(B29,Historical!$B$7:$B$1454,0))=0,"n/a",(INDEX(Historical!$C$7:$C$1447,MATCH(B29,Historical!$B$7:$B$1454,0))/INDEX(Historical!$D$7:$D$1447,MATCH(B29,Historical!$B$7:$B$1454,0))-1)*100) -> 9.9 | T29: =IF(INDEX(Historical!$F$7:$F$1447,MATCH(B29,Historical!$B$7:$B$1454,0))=0,"n/a",((INDEX(Historical!$C$7:$C$1447,MATCH(B29,Historical!$B$7:$B$1454,0))/INDEX(Historical!$F$7:$F$1447,MATCH(B29,Historical!$B$7:$B$1454,0)))^(1/3)-1)*100) -> 10.5 | U29: =IF(INDEX(Historical!$H$7:$H$1447,MATCH(B29,Historical!$B$7:$B$1454,0))=0,"n/a",((INDEX(Historical!$C$7:$C$1447,MATCH(B29,Historical!$B$7:$B$1454,0))/INDEX(Historical!$H$7:$H$1447,MATCH(B29,Historical!$B$7:$B$1454,0)))^(1/5)-1)*100) -> 10.5 | V29: =IF(INDEX(Historical!$O$7:$O$1447,MATCH(B29,Historical!$B$7:$B$1454,0))=0,"n/a",((INDEX(Historical!$C$7:$C$1447,MATCH(B29,Historical!$B$7:$B$1454,0))/INDEX(Historical!$O$7:$O$1447,MATCH(B29,Historical!$B$7:$B$1454,0)))^(1/10)-1)*100) -> 7.9 | W29: 1.330 | X29: 0.419 | Z29: 26.02 | AA29: 24.08 | AB29: 12 | AC29: 1.23 | AD29: 1.97 | AE29: 4.10 | AF29: 2.73 | AG29: 15.60 | AH29: 5.80 | AI29: 9.05 | AJ29: 25.10 | AK29: 12.24 | AL29: 8,250 | AM29: 0.6 | AN29: 0.29 | AO29: (12.5) | AP29: 11.6 | AQ29: 70.9 | AR29: =INDEX(Historical!$C$7:$C$1447,MATCH(B29,Historical!$B$7:$B$1454,0))*IF(AH29="n/a",1.03,IF(AH29<0,1.01,IF(AH29>10,1.1,(1+AH29/100)))) -> 0.32 | AS29: 0.35 | AT29: 0.39 | AU29: 0.43 | AV29: 0.47 | AW29: 1.96 | AX29: 6.6 | AY29: 0.72 | AZ29: 21.7 | BA29: -6.1 | BB29: 6.1 | BC29: 3.4 | BE29: 1995 | BF29: =#VALUE! ->  | BG29: 7.6
A30: Brown-Forman Class B | B30: BF-B | C30: Consumer Staples | D30: Beverages | E30: 35 | F30: 78 | G30: Y | H30: Y | I30: 49.49 | J30: 1.34 | K30: 0.1660 | L30: 4 | M30: 0.66 | N30: A02 | O30: 0.1580 | P30: 2018-12-05 | Q30: 2019-01-02 | R30: 5.06 | S30: =IF(INDEX(Historical!$D$7:$D$1447,MATCH(B30,Historical!$B$7:$B$1454,0))=0,"n/a",(INDEX(Historical!$C$7:$C$1447,MATCH(B30,Historical!$B$7:$B$1454,0))/INDEX(Historical!$D$7:$D$1447,MATCH(B30,Historical!$B$7:$B$1454,0))-1)*100) -> 8.2 | T30: =IF(INDEX(Historical!$F$7:$F$1447,MATCH(B30,Historical!$B$7:$B$1454,0))=0,"n/a",((INDEX(Historical!$C$7:$C$1447,MATCH(B30,Historical!$B$7:$B$1454,0))/INDEX(Historical!$F$7:$F$1447,MATCH(B30,Historical!$B$7:$B$1454,0)))^(1/3)-1)*100) -> 7.1 | U30: =IF(INDEX(Historical!$H$7:$H$1447,MATCH(B30,Historical!$B$7:$B$1454,0))=0,"n/a",((INDEX(Historical!$C$7:$C$1447,MATCH(B30,Historical!$B$7:$B$1454,0))/INDEX(Historical!$H$7:$H$1447,MATCH(B30,Historical!$B$7:$B$1454,0)))^(1/5)-1)*100) -> 8.4 | V30: =IF(INDEX(Historical!$O$7:$O$1447,MATCH(B30,Historical!$B$7:$B$1454,0))=0,"n/a",((INDEX(Historical!$C$7:$C$1447,MATCH(B30,Historical!$B$7:$B$1454,0))/INDEX(Historical!$O$7:$O$1447,MATCH(B30,Historical!$B$7:$B$1454,0)))^(1/10)-1)*100) -> 8.1 | W30: 1.039 | X30: 1.237 | Z30: 45.17 | AA30: 33.67 | AB30: 4 | AC30: 1.47 | AD30: 3.72 | AE30: 7.13 | AF30: 15.86 | AG30: 55.70 | AH30: 11.60 | AI30: 8.26 | AJ30: 6.80 | AK30: 9.07 | AL30: 23,430 | AM30: n/a | AN30: 1.70 | AO30: (23.9) | AP30: 9.8 | AQ30: 387.1 | AR30: =INDEX(Historical!$C$7:$C$1447,MATCH(B30,Historical!$B$7:$B$1454,0))*IF(AH30="n/a",1.03,IF(AH30<0,1.01,IF(AH30>10,1.1,(1+AH30/100)))) -> 0.70 | AS30: 0.75 | AT30: 0.82 | AU30: 0.90 | AV30: 0.98 | AW30: 4.14 | AX30: 8.4 | AY30: 0.65 | AZ30: 11.0 | BA30: -16.9 | BB30: 5.3 | BC30: -1.1 | BE30: 1985 | BF30: =#VALUE! ->  | BG30: 14.8
A31: California Water Service | B31: CWT | C31: Utilities | D31: Water Utilities | E31: 52 | F31: 20 | G31: N | H31: N | I31: 52.02 | J31: 1.52 | K31: 0.1975 | L31: 4 | M31: 0.79 | N31: B23 | O31: 0.1875 | P31: 2019-02-08 | Q31: 2019-02-22 | R31: 5.33 | S31: =IF(INDEX(Historical!$D$7:$D$1447,MATCH(B31,Historical!$B$7:$B$1454,0))=0,"n/a",(INDEX(Historical!$C$7:$C$1447,MATCH(B31,Historical!$B$7:$B$1454,0))/INDEX(Historical!$D$7:$D$1447,MATCH(B31,Historical!$B$7:$B$1454,0))-1)*100) -> 4.4 | T31: =IF(INDEX(Historical!$F$7:$F$1447,MATCH(B31,Historical!$B$7:$B$1454,0))=0,"n/a",((INDEX(Historical!$C$7:$C$1447,MATCH(B31,Historical!$B$7:$B$1454,0))/INDEX(Historical!$F$7:$F$1447,MATCH(B31,Historical!$B$7:$B$1454,0)))^(1/3)-1)*100) -> 3.9 | U31: =IF(INDEX(Historical!$H$7:$H$1447,MATCH(B31,Historical!$B$7:$B$1454,0))=0,"n/a",((INDEX(Historical!$C$7:$C$1447,MATCH(B31,Historical!$B$7:$B$1454,0))/INDEX(Historical!$H$7:$H$1447,MATCH(B31,Historical!$B$7:$B$1454,0)))^(1/5)-1)*100) -> 3.3 | V31: =IF(INDEX(Historical!$O$7:$O$1447,MATCH(B31,Historical!$B$7:$B$1454,0))=0,"n/a",((INDEX(Historical!$C$7:$C$1447,MATCH(B31,Historical!$B$7:$B$1454,0))/INDEX(Historical!$O$7:$O$1447,MATCH(B31,Historical!$B$7:$B$1454,0)))^(1/10)-1)*100) -> 2.5 | W31: 1.289 | X31: 0.128 | Z31: 22.77 | AA31: 14.99 | AB31: 12 | AC31: 3.47 | AD31: 1.53 | AE31: 3.65 | AF31: 3.51 | AG31: 8.40 | AH31: 259.50 | AI31: 16.42 | AJ31: 25.60 | AK31: 9.80 | AL31: 2,500 | AM31: 0.5 | AN31: 1.26 | AO31: (10.2) | AP31: 4.8 | AQ31: 52.9 | AR31: =INDEX(Historical!$C$7:$C$1447,MATCH(B31,Historical!$B$7:$B$1454,0))*IF(AH31="n/a",1.03,IF(AH31<0,1.01,IF(AH31>10,1.1,(1+AH31/100)))) -> 0.83 | AS31: 0.91 | AT31: 1.00 | AU31: 1.10 | AV31: 1.20 | AW31: 5.04 | AX31: 9.7 | AY31: 0.39 | AZ31: 47.6 | BA31: -1.8 | BB31: 7.9 | BC31: 20.2 | BE31: 1968 | BF31: =#VALUE! ->  | BG31: 2.1
A32: Calvin B. Taylor Bankshares Inc. | B32: TYCB | C32: Financials | D32: Banks | E32: 28 | F32: 96 | G32: - | H32: - | I32: 33.80 | J32: 2.93 | K32: 0.9900 | L32: 1 | M32: 0.99 | N32: Dec | O32: 0.9800 | P32: 2018-10-30 | Q32: 2018-12-31 | R32: 1.02 | S32: =IF(INDEX(Historical!$D$7:$D$1447,MATCH(B32,Historical!$B$7:$B$1454,0))=0,"n/a",(INDEX(Historical!$C$7:$C$1447,MATCH(B32,Historical!$B$7:$B$1454,0))/INDEX(Historical!$D$7:$D$1447,MATCH(B32,Historical!$B$7:$B$1454,0))-1)*100) -> 1.0 | T32: =IF(INDEX(Historical!$F$7:$F$1447,MATCH(B32,Historical!$B$7:$B$1454,0))=0,"n/a",((INDEX(Historical!$C$7:$C$1447,MATCH(B32,Historical!$B$7:$B$1454,0))/INDEX(Historical!$F$7:$F$1447,MATCH(B32,Historical!$B$7:$B$1454,0)))^(1/3)-1)*100) -> 1.0 | U32: =IF(INDEX(Historical!$H$7:$H$1447,MATCH(B32,Historical!$B$7:$B$1454,0))=0,"n/a",((INDEX(Historical!$C$7:$C$1447,MATCH(B32,Historical!$B$7:$B$1454,0))/INDEX(Historical!$H$7:$H$1447,MATCH(B32,Historical!$B$7:$B$1454,0)))^(1/5)-1)*100) -> 1.0 | V32: =IF(INDEX(Historical!$O$7:$O$1447,MATCH(B32,Historical!$B$7:$B$1454,0))=0,"n/a",((INDEX(Historical!$C$7:$C$1447,MATCH(B32,Historical!$B$7:$B$1454,0))/INDEX(Historical!$O$7:$O$1447,MATCH(B32,Historical!$B$7:$B$1454,0)))^(1/10)-1)*100) -> 1.5 | W32: 0.678 | X32: n/a | Z32: n/a | AA32: n/a | AB32: 12 | AC32: n/a | AD32: n/a | AE32: n/a | AF32: n/a | AG32: n/a | AH32: n/a | AI32: n/a | AJ32: n/a | AK32: n/a | AL32: n/a | AM32: n/a | AN32: n/a | AO32: n/a | AP32: 4.0 | AQ32: n/a | AR32: =INDEX(Historical!$C$7:$C$1447,MATCH(B32,Historical!$B$7:$B$1454,0))*IF(AH32="n/a",1.03,IF(AH32<0,1.01,IF(AH32>10,1.1,(1+AH32/100)))) -> 1.02 | AS32: 1.05 | AT32: 1.08 | AU32: 1.11 | AV32: 1.15 | AW32: 5.41 | AX32: 16.0 | AY32: n/a | AZ32: n/a | BA32: n/a | BB32: n/a | BC32: n/a | BD32: OTC | BE32: 1992 | BF32: =#VALUE! ->  | BG32: n/a
A33: Carlisle Companies | B33: CSL | C33: Industrials | D33: Industrial Conglomerates | E33: 42 | F33: 62 | G33: N | H33: N | I33: 123.08 | J33: 1.30 | K33: 0.4000 | L33: 4 | M33: 1.60 | N33: C01 | O33: 0.3700 | P33: 2018-08-17 | Q33: 2018-09-04 | R33: 8.11 | S33: =IF(INDEX(Historical!$D$7:$D$1447,MATCH(B33,Historical!$B$7:$B$1454,0))=0,"n/a",(INDEX(Historical!$C$7:$C$1447,MATCH(B33,Historical!$B$7:$B$1454,0))/INDEX(Historical!$D$7:$D$1447,MATCH(B33,Historical!$B$7:$B$1454,0))-1)*100) -> 6.9 | T33: =IF(INDEX(Historical!$F$7:$F$1447,MATCH(B33,Historical!$B$7:$B$1454,0))=0,"n/a",((INDEX(Historical!$C$7:$C$1447,MATCH(B33,Historical!$B$7:$B$1454,0))/INDEX(Historical!$F$7:$F$1447,MATCH(B33,Historical!$B$7:$B$1454,0)))^(1/3)-1)*100) -> 11.9 | U33: =IF(INDEX(Historical!$H$7:$H$1447,MATCH(B33,Historical!$B$7:$B$1454,0))=0,"n/a",((INDEX(Historical!$C$7:$C$1447,MATCH(B33,Historical!$B$7:$B$1454,0))/INDEX(Historical!$H$7:$H$1447,MATCH(B33,Historical!$B$7:$B$1454,0)))^(1/5)-1)*100) -> 12.9 | V33: =IF(INDEX(Historical!$O$7:$O$1447,MATCH(B33,Historical!$B$7:$B$1454,0))=0,"n/a",((INDEX(Historical!$C$7:$C$1447,MATCH(B33,Historical!$B$7:$B$1454,0))/INDEX(Historical!$O$7:$O$1447,MATCH(B33,Historical!$B$7:$B$1454,0)))^(1/10)-1)*100) -> 9.9 | W33: 1.304 | X33: 1.674 | Z33: 27.40 | AA33: 21.08 | AB33: 12 | AC33: 5.84 | AD33: 1.41 | AE33: 1.56 | AF33: 2.82 | AG33: 22.80 | AH33: 32.00 | AI33: 11.99 | AJ33: 7.70 | AK33: 15.00 | AL33: 6,990 | AM33: 1.0 | AN33: 0.61 | AO33: (6.9) | AP33: 14.2 | AQ33: 62.5 | AR33: =INDEX(Historical!$C$7:$C$1447,MATCH(B33,Historical!$B$7:$B$1454,0))*IF(AH33="n/a",1.03,IF(AH33<0,1.01,IF(AH33>10,1.1,(1+AH33/100)))) -> 1.69 | AS33: 1.86 | AT33: 2.05 | AU33: 2.25 | AV33: 2.48 | AW33: 10.34 | AX33: 8.4 | AY33: 1.00 | AZ33: 33.6 | BA33: -4.9 | BB33: 13.7 | BC33: 10.4 | BE33: 1977 | BF33: =#VALUE! ->  | BG33: 11.3
A34: Caterpillar Inc. | B34: CAT | C34: Industrials | D34: Machinery | E34: 25 | F34: 122 | G34: N | H34: Y | I34: 137.34 | J34: 2.50 | K34: 0.8600 | L34: 4 | M34: 3.44 | N34: B19 | O34: 0.7800 | P34: 2018-07-19 | Q34: 2018-08-20 | R34: 10.26 | S34: =IF(INDEX(Historical!$D$7:$D$1447,MATCH(B34,Historical!$B$7:$B$1454,0))=0,"n/a",(INDEX(Historical!$C$7:$C$1447,MATCH(B34,Historical!$B$7:$B$1454,0))/INDEX(Historical!$D$7:$D$1447,MATCH(B34,Historical!$B$7:$B$1454,0))-1)*100) -> 5.8 | T34: =IF(INDEX(Historical!$F$7:$F$1447,MATCH(B34,Historical!$B$7:$B$1454,0))=0,"n/a",((INDEX(Historical!$C$7:$C$1447,MATCH(B34,Historical!$B$7:$B$1454,0))/INDEX(Historical!$F$7:$F$1447,MATCH(B34,Historical!$B$7:$B$1454,0)))^(1/3)-1)*100) -> 3.7 | U34: =IF(INDEX(Historical!$H$7:$H$1447,MATCH(B34,Historical!$B$7:$B$1454,0))=0,"n/a",((INDEX(Historical!$C$7:$C$1447,MATCH(B34,Historical!$B$7:$B$1454,0))/INDEX(Historical!$H$7:$H$1447,MATCH(B34,Historical!$B$7:$B$1454,0)))^(1/5)-1)*100) -> 7.0 | V34: =IF(INDEX(Historical!$O$7:$O$1447,MATCH(B34,Historical!$B$7:$B$1454,0))=0,"n/a",((INDEX(Historical!$C$7:$C$1447,MATCH(B34,Historical!$B$7:$B$1454,0))/INDEX(Historical!$O$7:$O$1447,MATCH(B34,Historical!$B$7:$B$1454,0)))^(1/10)-1)*100) -> 7.7 | W34: 0.906 | X34: 0.587 | Z34: 34.19 | AA34: 13.65 | AB34: 12 | AC34: 10.06 | AD34: 0.54 | AE34: 1.45 | AF34: 5.67 | AG34: 41.00 | AH34: 93.30 | AI34: 7.87 | AJ34: 11.90 | AK34: 25.22 | AL34: 79,160 | AM34: 0.2 | AN34: 2.60 | AO34: (4.2) | AP34: 9.5 | AQ34: 85.5 | AR34: =INDEX(Historical!$C$7:$C$1447,MATCH(B34,Historical!$B$7:$B$1454,0))*IF(AH34="n/a",1.03,IF(AH34<0,1.01,IF(AH34>10,1.1,(1+AH34/100)))) -> 3.61 | AS34: 3.89 | AT34: 4.28 | AU34: 4.71 | AV34: 5.18 | AW34: 21.67 | AX34: 15.8 | AY34: 1.47 | AZ34: 22.6 | BA34: -15.4 | BB34: 5.3 | BC34: -0.2 | BE34: 1994 | BF34: =#VALUE! ->  | BG34: 7.8
A35: Chesapeake Financial Shares | B35: CPKF | C35: Financials | D35: Banks | E35: 28 | F35: 99 | G35: - | H35: - | I35: 26.80 | J35: 2.16 | K35: 0.1450 | L35: 4 | M35: 0.58 | N35: C15 | O35: 0.1400 | P35: 2019-02-28 | Q35: 2019-03-15 | R35: 3.57 | S35: =IF(INDEX(Historical!$D$7:$D$1447,MATCH(B35,Historical!$B$7:$B$1454,0))=0,"n/a",(INDEX(Historical!$C$7:$C$1447,MATCH(B35,Historical!$B$7:$B$1454,0))/INDEX(Historical!$D$7:$D$1447,MATCH(B35,Historical!$B$7:$B$1454,0))-1)*100) -> 7.8 | T35: =IF(INDEX(Historical!$F$7:$F$1447,MATCH(B35,Historical!$B$7:$B$1454,0))=0,"n/a",((INDEX(Historical!$C$7:$C$1447,MATCH(B35,Historical!$B$7:$B$1454,0))/INDEX(Historical!$F$7:$F$1447,MATCH(B35,Historical!$B$7:$B$1454,0)))^(1/3)-1)*100) -> 5.8 | U35: =IF(INDEX(Historical!$H$7:$H$1447,MATCH(B35,Historical!$B$7:$B$1454,0))=0,"n/a",((INDEX(Historical!$C$7:$C$1447,MATCH(B35,Historical!$B$7:$B$1454,0))/INDEX(Historical!$H$7:$H$1447,MATCH(B35,Historical!$B$7:$B$1454,0)))^(1/5)-1)*100) -> 5.3 | V35: =IF(INDEX(Historical!$O$7:$O$1447,MATCH(B35,Historical!$B$7:$B$1454,0))=0,"n/a",((INDEX(Historical!$C$7:$C$1447,MATCH(B35,Historical!$B$7:$B$1454,0))/INDEX(Historical!$O$7:$O$1447,MATCH(B35,Historical!$B$7:$B$1454,0)))^(1/10)-1)*100) -> 6.9 | W35: 0.763 | X35: n/a | Z35: n/a | AA35: n/a | AB35: 12 | AC35: n/a | AD35: n/a | AE35: n/a | AF35: n/a | AG35: n/a | AH35: n/a | AI35: n/a | AJ35: n/a | AK35: n/a | AL35: n/a | AM35: n/a | AN35: n/a | AO35: n/a | AP35: 7.5 | AQ35: n/a | AR35: =INDEX(Historical!$C$7:$C$1447,MATCH(B35,Historical!$B$7:$B$1454,0))*IF(AH35="n/a",1.03,IF(AH35<0,1.01,IF(AH35>10,1.1,(1+AH35/100)))) -> 0.57 | AS35: 0.58 | AT35: 0.60 | AU35: 0.62 | AV35: 0.64 | AW35: 3.01 | AX35: 11.2 | AY35: n/a | AZ35: n/a | BA35: n/a | BB35: n/a | BC35: n/a | BD35: OTC | BE35: 1992 | BF35: =#VALUE! ->  | BG35: n/a
A36: Chevron Corp. | B36: CVX | C36: Energy | D36: Oil, Gas & Consumable Fuels | E36: 32 | F36: 90 | G36: Y | H36: Y | I36: 119.58 | J36: 3.98 | K36: 1.1900 | L36: 4 | M36: 4.76 | N36: C12 | O36: 1.1200 | P36: 2019-02-14 | Q36: 2019-03-11 | R36: 6.25 | S36: =IF(INDEX(Historical!$D$7:$D$1447,MATCH(B36,Historical!$B$7:$B$1454,0))=0,"n/a",(INDEX(Historical!$C$7:$C$1447,MATCH(B36,Historical!$B$7:$B$1454,0))/INDEX(Historical!$D$7:$D$1447,MATCH(B36,Historical!$B$7:$B$1454,0))-1)*100) -> 3.7 | T36: =IF(INDEX(Historical!$F$7:$F$1447,MATCH(B36,Historical!$B$7:$B$1454,0))=0,"n/a",((INDEX(Historical!$C$7:$C$1447,MATCH(B36,Historical!$B$7:$B$1454,0))/INDEX(Historical!$F$7:$F$1447,MATCH(B36,Historical!$B$7:$B$1454,0)))^(1/3)-1)*100) -> 1.5 | U36: =IF(INDEX(Historical!$H$7:$H$1447,MATCH(B36,Historical!$B$7:$B$1454,0))=0,"n/a",((INDEX(Historical!$C$7:$C$1447,MATCH(B36,Historical!$B$7:$B$1454,0))/INDEX(Historical!$H$7:$H$1447,MATCH(B36,Historical!$B$7:$B$1454,0)))^(1/5)-1)*100) -> 2.8 | V36: =IF(INDEX(Historical!$O$7:$O$1447,MATCH(B36,Historical!$B$7:$B$1454,0))=0,"n/a",((INDEX(Historical!$C$7:$C$1447,MATCH(B36,Historical!$B$7:$B$1454,0))/INDEX(Historical!$O$7:$O$1447,MATCH(B36,Historical!$B$7:$B$1454,0)))^(1/10)-1)*100) -> 5.9 | W36: 0.478 | X36: n/a | Z36: 61.42 | AA36: 15.43 | AB36: 12 | AC36: 7.75 | AD36: 0.38 | AE36: 1.43 | AF36: 1.48 | AG36: 8.00 | AH36: -11.50 | AI36: 16.74 | AJ36: -22.30 | AK36: 40.49 | AL36: 228,010 | AM36: 0.1 | AN36: 0.24 | AO36: (8.6) | AP36: 6.8 | AQ36: 0.7 | AR36: =INDEX(Historical!$C$7:$C$1447,MATCH(B36,Historical!$B$7:$B$1454,0))*IF(AH36="n/a",1.03,IF(AH36<0,1.01,IF(AH36>10,1.1,(1+AH36/100)))) -> 4.52 | AS36: 4.98 | AT36: 5.48 | AU36: 6.02 | AV36: 6.62 | AW36: 27.62 | AX36: 23.1 | AY36: 1.02 | AZ36: 19.3 | BA36: -8.8 | BB36: 5.1 | BC36: 0.3 | BE36: 1988 | BF36: =#VALUE! ->  | BG36: 4.7
A37: Chubb Limited | B37: CB | C37: Financials | D37: Insurance | E37: 25 | F37: 120 | G37: N | H37: N | I37: 133.90 | J37: 2.18 | K37: 0.7300 | L37: 4 | M37: 2.92 | N37: A21 | O37: 0.7100 | P37: 2018-06-21 | Q37: 2018-07-13 | R37: 2.82 | S37: =IF(INDEX(Historical!$D$7:$D$1447,MATCH(B37,Historical!$B$7:$B$1454,0))=0,"n/a",(INDEX(Historical!$C$7:$C$1447,MATCH(B37,Historical!$B$7:$B$1454,0))/INDEX(Historical!$D$7:$D$1447,MATCH(B37,Historical!$B$7:$B$1454,0))-1)*100) -> 2.9 | T37: =IF(INDEX(Historical!$F$7:$F$1447,MATCH(B37,Historical!$B$7:$B$1454,0))=0,"n/a",((INDEX(Historical!$C$7:$C$1447,MATCH(B37,Historical!$B$7:$B$1454,0))/INDEX(Historical!$F$7:$F$1447,MATCH(B37,Historical!$B$7:$B$1454,0)))^(1/3)-1)*100) -> 2.9 | U37: =IF(INDEX(Historical!$H$7:$H$1447,MATCH(B37,Historical!$B$7:$B$1454,0))=0,"n/a",((INDEX(Historical!$C$7:$C$1447,MATCH(B37,Historical!$B$7:$B$1454,0))/INDEX(Historical!$H$7:$H$1447,MATCH(B37,Historical!$B$7:$B$1454,0)))^(1/5)-1)*100) -> 7.6 | V37: =IF(INDEX(Historical!$O$7:$O$1447,MATCH(B37,Historical!$B$7:$B$1454,0))=0,"n/a",((INDEX(Historical!$C$7:$C$1447,MATCH(B37,Historical!$B$7:$B$1454,0))/INDEX(Historical!$O$7:$O$1447,MATCH(B37,Historical!$B$7:$B$1454,0)))^(1/10)-1)*100) -> 10.2 | W37: 0.741 | X37: n/a | Y37: Switz.,US$ | Z37: 34.43 | AA37: 15.79 | AB37: 12 | AC37: 8.48 | AD37: 1.47 | AE37: 1.89 | AF37: 1.22 | AG37: 7.50 | AH37: -18.40 | AI37: 6.09 | AJ37: -1.70 | AK37: 10.73 | AL37: 61,790 | AM37: 0.5 | AN37: 0.25 | AO37: (6.0) | AP37: 9.7 | AQ37: (7.5) | AR37: =INDEX(Historical!$C$7:$C$1447,MATCH(B37,Historical!$B$7:$B$1454,0))*IF(AH37="n/a",1.03,IF(AH37<0,1.01,IF(AH37>10,1.1,(1+AH37/100)))) -> 2.91 | AS37: 3.09 | AT37: 3.39 | AU37: 3.73 | AV37: 4.11 | AW37: 17.23 | AX37: 12.9 | AY37: 0.84 | AZ37: 12.0 | BA37: -8.1 | BB37: 2.7 | BC37: 1.5 | BE37: 1994 | BF37: =#VALUE! ->  | BG37: 2.3
A38: Cincinnati Financial | B38: CINF | C38: Financials | D38: Insurance | E38: 59 | F38: 9 | G38: N | H38: N | I38: 86.82 | J38: 2.58 | K38: 0.5600 | L38: 4 | M38: 2.24 | N38: A16 | O38: 0.5300 | P38: 2019-03-19 | Q38: 2019-04-15 | R38: 5.66 | S38: =IF(INDEX(Historical!$D$7:$D$1447,MATCH(B38,Historical!$B$7:$B$1454,0))=0,"n/a",(INDEX(Historical!$C$7:$C$1447,MATCH(B38,Historical!$B$7:$B$1454,0))/INDEX(Historical!$D$7:$D$1447,MATCH(B38,Historical!$B$7:$B$1454,0))-1)*100) -> 5.6 | T38: =IF(INDEX(Historical!$F$7:$F$1447,MATCH(B38,Historical!$B$7:$B$1454,0))=0,"n/a",((INDEX(Historical!$C$7:$C$1447,MATCH(B38,Historical!$B$7:$B$1454,0))/INDEX(Historical!$F$7:$F$1447,MATCH(B38,Historical!$B$7:$B$1454,0)))^(1/3)-1)*100) -> 4.7 | U38: =IF(INDEX(Historical!$H$7:$H$1447,MATCH(B38,Historical!$B$7:$B$1454,0))=0,"n/a",((INDEX(Historical!$C$7:$C$1447,MATCH(B38,Historical!$B$7:$B$1454,0))/INDEX(Historical!$H$7:$H$1447,MATCH(B38,Historical!$B$7:$B$1454,0)))^(1/5)-1)*100) -> 4.9 | V38: =IF(INDEX(Historical!$O$7:$O$1447,MATCH(B38,Historical!$B$7:$B$1454,0))=0,"n/a",((INDEX(Historical!$C$7:$C$1447,MATCH(B38,Historical!$B$7:$B$1454,0))/INDEX(Historical!$O$7:$O$1447,MATCH(B38,Historical!$B$7:$B$1454,0)))^(1/10)-1)*100) -> 3.2 | W38: 1.542 | X38: 0.949 | Z38: 130.23 | AA38: 50.48 | AB38: 12 | AC38: 1.72 | AD38: 10.22 | AE38: 2.60 | AF38: 1.70 | AG38: 11.50 | AH38: -6.70 | AI38: 3.60 | AJ38: 5.20 | AK38: 4.93 | AL38: 14,030 | AM38: 1.7 | AN38: 0.10 | AO38: (43.0) | AP38: 7.5 | AQ38: 95.3 | AR38: =INDEX(Historical!$C$7:$C$1447,MATCH(B38,Historical!$B$7:$B$1454,0))*IF(AH38="n/a",1.03,IF(AH38<0,1.01,IF(AH38>10,1.1,(1+AH38/100)))) -> 2.11 | AS38: 2.19 | AT38: 2.29 | AU38: 2.41 | AV38: 2.53 | AW38: 11.53 | AX38: 13.3 | AY38: 0.70 | AZ38: 30.9 | BA38: -0.1 | BB38: 8.6 | BC38: 14.3 | BE38: 1961 | BF38: =#VALUE! ->  | BG38: 4.2
A39: Cintas Corp. | B39: CTAS | C39: Industrials | D39: Commercial Services & Supplies | E39: 36 | F39: 75 | G39: - | H39: - | I39: 206.60 | J39: =(M39/I39)*100 -> 0.99 | K39: 2.0500 | L39: 1 | M39: =K39*L39 -> 2.05 | N39: Dec | O39: 1.6200 | P39: 2018-11-08 | Q39: 2018-12-07 | R39: =(K39-O39)/O39*100 -> 26.54 | S39: =IF(INDEX(Historical!$D$7:$D$1447,MATCH(B39,Historical!$B$7:$B$1454,0))=0,"n/a",(INDEX(Historical!$C$7:$C$1447,MATCH(B39,Historical!$B$7:$B$1454,0))/INDEX(Historical!$D$7:$D$1447,MATCH(B39,Historical!$B$7:$B$1454,0))-1)*100) -> 26.5 | T39: =IF(INDEX(Historical!$F$7:$F$1447,MATCH(B39,Historical!$B$7:$B$1454,0))=0,"n/a",((INDEX(Historical!$C$7:$C$1447,MATCH(B39,Historical!$B$7:$B$1454,0))/INDEX(Historical!$F$7:$F$1447,MATCH(B39,Historical!$B$7:$B$1454,0)))^(1/3)-1)*100) -> 25.0 | U39: =IF(INDEX(Historical!$H$7:$H$1447,MATCH(B39,Historical!$B$7:$B$1454,0))=0,"n/a",((INDEX(Historical!$C$7:$C$1447,MATCH(B39,Historical!$B$7:$B$1454,0))/INDEX(Historical!$H$7:$H$1447,MATCH(B39,Historical!$B$7:$B$1454,0)))^(1/5)-1)*100) -> 21.6 | V39: =IF(INDEX(Historical!$O$7:$O$1447,MATCH(B39,Historical!$B$7:$B$1454,0))=0,"n/a",((INDEX(Historical!$C$7:$C$1447,MATCH(B39,Historical!$B$7:$B$1454,0))/INDEX(Historical!$O$7:$O$1447,MATCH(B39,Historical!$B$7:$B$1454,0)))^(1/10)-1)*100) -> 16.1 | W39: =IF(OR(U39<=0,U39="n/a",V39<=0,V39="n/a"),"n/a",U39/V39) -> 1.342 | X39: =IF(OR(AJ39<=0,AJ39="n/a",U39<=0,U39="n/a"),"n/a",U39/AJ39) -> 1.258 | Z39: =IF(OR(AC39<0.01,AC39="n/a"),"n/a",M39/AC39*100) -> 29.37 | AA39: =IF(OR(AC39<0.01,AC39="n/a"),"n/a",I39/AC39) -> 29.60 | AB39: 5 | AC39: 6.98 | AD39: 1.86 | AE39: 3.21 | AF39: 7.27 | AG39: 30.30 | AH39: 33.50 | AI39: 12.64 | AJ39: 17.20 | AK39: 15.90 | AL39: 21,450 | AM39: 0.3 | AN39: 0.90 | AO39: =IF(U39="n/a","n/a",IF(AA39<0,"n/a",IF(AA39="n/a","n/a",J39+U39-AA39))) -> (7.0) | AP39: =IF(U39="n/a","n/a",J39+U39) -> 22.6 | AQ39: =IF(OR(AC39<0.01,AF39="n/a"),"n/a",(I39/SQRT(22.5*AC39*(I39/AF39))-1)*100) -> 209.3 | AR39: =INDEX(Historical!$C$7:$C$1447,MATCH(B39,Historical!$B$7:$B$1454,0))*IF(AH39="n/a",1.03,IF(AH39<0,1.01,IF(AH39>10,1.1,(1+AH39/100)))) -> 2.26 | AS39: =IF($AI39="n/a",1.03*AR39,IF($AI39<0,1.01*AR39,IF($AI39>10,1.1*AR39,(1+$AI39/100)*AR39))) -> 2.48 | AT39: 2.73 | AU39: 3.00 | AV39: 3.30 | AW39: =SUM(AR39:AV39) -> 13.77 | AX39: =AW39/I39*100 -> 6.7 | AY39: 1.06 | AZ39: 32.5 | BA39: -4.9 | BB39: 13.0 | BC39: 8.3 | BE39: 1984 | BF39: =#VALUE! ->  | BG39: 13
A40: Clorox Company | B40: CLX | C40: Consumer Staples | D40: Household Products | E40: 41 | F40: 63 | G40: N | H40: Y | I40: 158.03 | J40: 2.43 | K40: 0.9600 | L40: 4 | M40: 3.84 | N40: B11 | O40: 0.8400 | P40: 2018-04-24 | Q40: 2018-05-11 | R40: 14.29 | S40: =IF(INDEX(Historical!$D$7:$D$1447,MATCH(B40,Historical!$B$7:$B$1454,0))=0,"n/a",(INDEX(Historical!$C$7:$C$1447,MATCH(B40,Historical!$B$7:$B$1454,0))/INDEX(Historical!$D$7:$D$1447,MATCH(B40,Historical!$B$7:$B$1454,0))-1)*100) -> 13.4 | T40: =IF(INDEX(Historical!$F$7:$F$1447,MATCH(B40,Historical!$B$7:$B$1454,0))=0,"n/a",((INDEX(Historical!$C$7:$C$1447,MATCH(B40,Historical!$B$7:$B$1454,0))/INDEX(Historical!$F$7:$F$1447,MATCH(B40,Historical!$B$7:$B$1454,0)))^(1/3)-1)*100) -> 7.2 | U40: =IF(INDEX(Historical!$H$7:$H$1447,MATCH(B40,Historical!$B$7:$B$1454,0))=0,"n/a",((INDEX(Historical!$C$7:$C$1447,MATCH(B40,Historical!$B$7:$B$1454,0))/INDEX(Historical!$H$7:$H$1447,MATCH(B40,Historical!$B$7:$B$1454,0)))^(1/5)-1)*100) -> 6.6 | V40: =IF(INDEX(Historical!$O$7:$O$1447,MATCH(B40,Historical!$B$7:$B$1454,0))=0,"n/a",((INDEX(Historical!$C$7:$C$1447,MATCH(B40,Historical!$B$7:$B$1454,0))/INDEX(Historical!$O$7:$O$1447,MATCH(B40,Historical!$B$7:$B$1454,0)))^(1/10)-1)*100) -> 8.0 | W40: 0.825 | X40: 1.204 | Z40: 63.58 | AA40: 26.16 | AB40: 6 | AC40: 6.04 | AD40: 5.76 | AE40: 3.24 | AF40: 27.29 | AG40: 106.00 | AH40: 5.50 | AI40: 6.46 | AJ40: 5.50 | AK40: 4.55 | AL40: 20,240 | AM40: 0.2 | AN40: 3.40 | AO40: (17.1) | AP40: 9.0 | AQ40: 463.3 | AR40: =INDEX(Historical!$C$7:$C$1447,MATCH(B40,Historical!$B$7:$B$1454,0))*IF(AH40="n/a",1.03,IF(AH40<0,1.01,IF(AH40>10,1.1,(1+AH40/100)))) -> 3.92 | AS40: 4.18 | AT40: 4.37 | AU40: 4.57 | AV40: 4.77 | AW40: 21.81 | AX40: 13.8 | AY40: 0.31 | AZ40: 39.2 | BA40: -5.8 | BB40: 3.0 | BC40: 8.6 | BE40: 1978 | BF40: =#VALUE! ->  | BG40: 15.3
A41: Coca-Cola Company | B41: KO | C41: Consumer Staples | D41: Beverages | E41: 57 | F41: 10 | G41: Y | H41: Y | I41: 45.34 | J41: 3.53 | K41: 0.4000 | L41: 4 | M41: 1.60 | N41: A02 | O41: 0.3900 | P41: 2019-03-14 | Q41: 2019-04-01 | R41: 2.56 | S41: =IF(INDEX(Historical!$D$7:$D$1447,MATCH(B41,Historical!$B$7:$B$1454,0))=0,"n/a",(INDEX(Historical!$C$7:$C$1447,MATCH(B41,Historical!$B$7:$B$1454,0))/INDEX(Historical!$D$7:$D$1447,MATCH(B41,Historical!$B$7:$B$1454,0))-1)*100) -> 5.4 | T41: =IF(INDEX(Historical!$F$7:$F$1447,MATCH(B41,Historical!$B$7:$B$1454,0))=0,"n/a",((INDEX(Historical!$C$7:$C$1447,MATCH(B41,Historical!$B$7:$B$1454,0))/INDEX(Historical!$F$7:$F$1447,MATCH(B41,Historical!$B$7:$B$1454,0)))^(1/3)-1)*100) -> 5.7 | U41: =IF(INDEX(Historical!$H$7:$H$1447,MATCH(B41,Historical!$B$7:$B$1454,0))=0,"n/a",((INDEX(Historical!$C$7:$C$1447,MATCH(B41,Historical!$B$7:$B$1454,0))/INDEX(Historical!$H$7:$H$1447,MATCH(B41,Historical!$B$7:$B$1454,0)))^(1/5)-1)*100) -> 6.9 | V41: =IF(INDEX(Historical!$O$7:$O$1447,MATCH(B41,Historical!$B$7:$B$1454,0))=0,"n/a",((INDEX(Historical!$C$7:$C$1447,MATCH(B41,Historical!$B$7:$B$1454,0))/INDEX(Historical!$O$7:$O$1447,MATCH(B41,Historical!$B$7:$B$1454,0)))^(1/10)-1)*100) -> 7.5 | W41: 0.919 | X41: n/a | Z41: 102.56 | AA41: 29.06 | AB41: 12 | AC41: 1.56 | AD41: 5.49 | AE41: 6.14 | AF41: 11.39 | AG41: 34.90 | AH41: 41.50 | AI41: 7.66 | AJ41: -3.90 | AK41: 5.30 | AL41: 195,460 | AM41: 0.1 | AN41: 2.56 | AO41: (18.7) | AP41: 10.4 | AQ41: 283.6 | AR41: =INDEX(Historical!$C$7:$C$1447,MATCH(B41,Historical!$B$7:$B$1454,0))*IF(AH41="n/a",1.03,IF(AH41<0,1.01,IF(AH41>10,1.1,(1+AH41/100)))) -> 1.72 | AS41: 1.85 | AT41: 1.95 | AU41: 2.05 | AV41: 2.16 | AW41: 9.71 | AX41: 21.4 | AY41: 0.53 | AZ41: 9.4 | BA41: -10.8 | BB41: -4.3 | BC41: -1.9 | BE41: 1963 | BF41: =#VALUE! ->  | BG41: 7.2
A42: Colgate-Palmolive Co. | B42: CL | C42: Consumer Staples | D42: Household Products | E42: 55 | F42: 15 | G42: Y | H42: Y | I42: 65.87 | J42: 2.55 | K42: 0.4200 | L42: 4 | M42: 1.68 | N42: B15 | O42: 0.4000 | P42: 2018-04-19 | Q42: 2018-05-15 | R42: 5.00 | S42: =IF(INDEX(Historical!$D$7:$D$1447,MATCH(B42,Historical!$B$7:$B$1454,0))=0,"n/a",(INDEX(Historical!$C$7:$C$1447,MATCH(B42,Historical!$B$7:$B$1454,0))/INDEX(Historical!$D$7:$D$1447,MATCH(B42,Historical!$B$7:$B$1454,0))-1)*100) -> 4.4 | T42: =IF(INDEX(Historical!$F$7:$F$1447,MATCH(B42,Historical!$B$7:$B$1454,0))=0,"n/a",((INDEX(Historical!$C$7:$C$1447,MATCH(B42,Historical!$B$7:$B$1454,0))/INDEX(Historical!$F$7:$F$1447,MATCH(B42,Historical!$B$7:$B$1454,0)))^(1/3)-1)*100) -> 3.4 | U42: =IF(INDEX(Historical!$H$7:$H$1447,MATCH(B42,Historical!$B$7:$B$1454,0))=0,"n/a",((INDEX(Historical!$C$7:$C$1447,MATCH(B42,Historical!$B$7:$B$1454,0))/INDEX(Historical!$H$7:$H$1447,MATCH(B42,Historical!$B$7:$B$1454,0)))^(1/5)-1)*100) -> 4.5 | V42: =IF(INDEX(Historical!$O$7:$O$1447,MATCH(B42,Historical!$B$7:$B$1454,0))=0,"n/a",((INDEX(Historical!$C$7:$C$1447,MATCH(B42,Historical!$B$7:$B$1454,0))/INDEX(Historical!$O$7:$O$1447,MATCH(B42,Historical!$B$7:$B$1454,0)))^(1/10)-1)*100) -> 7.8 | W42: 0.578 | X42: 1.259 | Z42: 59.15 | AA42: 23.19 | AB42: 12 | AC42: 2.84 | AD42: 6.53 | AE42: 3.66 | AF42: n/a | AG42: -736.20 | AH42: 9.70 | AI42: 6.14 | AJ42: 3.60 | AK42: 3.55 | AL42: 56,960 | AM42: 0.3 | AN42: n/a | AO42: (16.1) | AP42: 7.1 | AQ42: n/a | AR42: =INDEX(Historical!$C$7:$C$1447,MATCH(B42,Historical!$B$7:$B$1454,0))*IF(AH42="n/a",1.03,IF(AH42<0,1.01,IF(AH42>10,1.1,(1+AH42/100)))) -> 1.82 | AS42: 1.93 | AT42: 2.00 | AU42: 2.07 | AV42: 2.15 | AW42: 9.97 | AX42: 15.1 | AY42: 0.78 | AZ42: 14.7 | BA42: -9.3 | BB42: 4.5 | BC42: 2.6 | BE42: 1964 | BF42: =#VALUE! ->  | BG42: 19
A43: Commerce Bancshares | B43: CBSH | C43: Financials | D43: Banks | E43: 51 | F43: 26 | G43: - | H43: - | I43: 62.93 | J43: 1.65 | K43: 0.2600 | L43: 4 | M43: 1.04 | N43: C26 | O43: 0.2238 | P43: 2019-03-07 | Q43: 2019-03-25 | R43: 16.17 | S43: =IF(INDEX(Historical!$D$7:$D$1447,MATCH(B43,Historical!$B$7:$B$1454,0))=0,"n/a",(INDEX(Historical!$C$7:$C$1447,MATCH(B43,Historical!$B$7:$B$1454,0))/INDEX(Historical!$D$7:$D$1447,MATCH(B43,Historical!$B$7:$B$1454,0))-1)*100) -> 9.7 | T43: =IF(INDEX(Historical!$F$7:$F$1447,MATCH(B43,Historical!$B$7:$B$1454,0))=0,"n/a",((INDEX(Historical!$C$7:$C$1447,MATCH(B43,Historical!$B$7:$B$1454,0))/INDEX(Historical!$F$7:$F$1447,MATCH(B43,Historical!$B$7:$B$1454,0)))^(1/3)-1)*100) -> 6.5 | U43: =IF(INDEX(Historical!$H$7:$H$1447,MATCH(B43,Historical!$B$7:$B$1454,0))=0,"n/a",((INDEX(Historical!$C$7:$C$1447,MATCH(B43,Historical!$B$7:$B$1454,0))/INDEX(Historical!$H$7:$H$1447,MATCH(B43,Historical!$B$7:$B$1454,0)))^(1/5)-1)*100) -> 5.9 | V43: =IF(INDEX(Historical!$O$7:$O$1447,MATCH(B43,Historical!$B$7:$B$1454,0))=0,"n/a",((INDEX(Historical!$C$7:$C$1447,MATCH(B43,Historical!$B$7:$B$1454,0))/INDEX(Historical!$O$7:$O$1447,MATCH(B43,Historical!$B$7:$B$1454,0)))^(1/10)-1)*100) -> 4.9 | W43: 1.217 | X43: 0.485 | Y43: Adj/Stk Div | Z43: 27.51 | AA43: 16.65 | AB43: 12 | AC43: 3.78 | AD43: 2.08 | AE43: 7.85 | AF43: 2.50 | AG43: 15.80 | AH43: 40.20 | AI43: 3.97 | AJ43: 12.20 | AK43: 8.00 | AL43: 6,980 | AM43: 2.6 | AN43: 0.00 | AO43: (9.1) | AP43: 7.6 | AQ43: 36.0 | AR43: =INDEX(Historical!$C$7:$C$1447,MATCH(B43,Historical!$B$7:$B$1454,0))*IF(AH43="n/a",1.03,IF(AH43<0,1.01,IF(AH43>10,1.1,(1+AH43/100)))) -> 0.98 | AS43: 1.02 | AT43: 1.11 | AU43: 1.19 | AV43: 1.29 | AW43: 5.60 | AX43: 8.9 | AY43: 0.75 | AZ43: 17.9 | BA43: -8.9 | BB43: 6.0 | BC43: 0.9 | BE43: 1969 | BF43: =#VALUE! ->  | BG43: 1.7
A44: Community Bank System | B44: CBU | C44: Financials | D44: Banks | E44: 26 | F44: 110 | G44: N | H44: N | I44: 64.79 | J44: 2.35 | K44: 0.3800 | L44: 4 | M44: 1.52 | N44: C01 | O44: 0.3400 | P44: 2018-09-13 | Q44: 2018-10-10 | R44: 11.76 | S44: =IF(INDEX(Historical!$D$7:$D$1447,MATCH(B44,Historical!$B$7:$B$1454,0))=0,"n/a",(INDEX(Historical!$C$7:$C$1447,MATCH(B44,Historical!$B$7:$B$1454,0))/INDEX(Historical!$D$7:$D$1447,MATCH(B44,Historical!$B$7:$B$1454,0))-1)*100) -> 7.7 | T44: =IF(INDEX(Historical!$F$7:$F$1447,MATCH(B44,Historical!$B$7:$B$1454,0))=0,"n/a",((INDEX(Historical!$C$7:$C$1447,MATCH(B44,Historical!$B$7:$B$1454,0))/INDEX(Historical!$F$7:$F$1447,MATCH(B44,Historical!$B$7:$B$1454,0)))^(1/3)-1)*100) -> 4.7 | U44: =IF(INDEX(Historical!$H$7:$H$1447,MATCH(B44,Historical!$B$7:$B$1454,0))=0,"n/a",((INDEX(Historical!$C$7:$C$1447,MATCH(B44,Historical!$B$7:$B$1454,0))/INDEX(Historical!$H$7:$H$1447,MATCH(B44,Historical!$B$7:$B$1454,0)))^(1/5)-1)*100) -> 4.9 | V44: =IF(INDEX(Historical!$O$7:$O$1447,MATCH(B44,Historical!$B$7:$B$1454,0))=0,"n/a",((INDEX(Historical!$C$7:$C$1447,MATCH(B44,Historical!$B$7:$B$1454,0))/INDEX(Historical!$O$7:$O$1447,MATCH(B44,Historical!$B$7:$B$1454,0)))^(1/10)-1)*100) -> 5.1 | W44: 0.966 | X44: 1.497 | Z44: 49.67 | AA44: 21.17 | AB44: 12 | AC44: 3.06 | AD44: 2.65 | AE44: 9.21 | AF44: 1.99 | AG44: 11.90 | AH44: -2.40 | AI44: 4.82 | AJ44: 3.30 | AK44: 8.00 | AL44: 3,290 | AM44: 0.8 | AN44: 0.06 | AO44: (13.9) | AP44: 7.3 | AQ44: 36.8 | AR44: =INDEX(Historical!$C$7:$C$1447,MATCH(B44,Historical!$B$7:$B$1454,0))*IF(AH44="n/a",1.03,IF(AH44<0,1.01,IF(AH44>10,1.1,(1+AH44/100)))) -> 1.41 | AS44: 1.48 | AT44: 1.60 | AU44: 1.73 | AV44: 1.87 | AW44: 8.09 | AX44: 12.5 | AY44: 0.96 | AZ44: 24.0 | BA44: -3.4 | BB44: 6.4 | BC44: 4.9 | BE44: 1993 | BF44: =#VALUE! ->  | BG44: 1.8
A45: Community Trust Banc. | B45: CTBI | C45: Financials | D45: Banks | E45: 38 | F45: 67 | G45: N | H45: - | I45: 42.78 | J45: 3.37 | K45: 0.3600 | L45: 4 | M45: 1.44 | N45: A01 | O45: 0.3300 | P45: 2018-09-13 | Q45: 2018-10-01 | R45: 9.09 | S45: =IF(INDEX(Historical!$D$7:$D$1447,MATCH(B45,Historical!$B$7:$B$1454,0))=0,"n/a",(INDEX(Historical!$C$7:$C$1447,MATCH(B45,Historical!$B$7:$B$1454,0))/INDEX(Historical!$D$7:$D$1447,MATCH(B45,Historical!$B$7:$B$1454,0))-1)*100) -> 4.7 | T45: =IF(INDEX(Historical!$F$7:$F$1447,MATCH(B45,Historical!$B$7:$B$1454,0))=0,"n/a",((INDEX(Historical!$C$7:$C$1447,MATCH(B45,Historical!$B$7:$B$1454,0))/INDEX(Historical!$F$7:$F$1447,MATCH(B45,Historical!$B$7:$B$1454,0)))^(1/3)-1)*100) -> 3.7 | U45: =IF(INDEX(Historical!$H$7:$H$1447,MATCH(B45,Historical!$B$7:$B$1454,0))=0,"n/a",((INDEX(Historical!$C$7:$C$1447,MATCH(B45,Historical!$B$7:$B$1454,0))/INDEX(Historical!$H$7:$H$1447,MATCH(B45,Historical!$B$7:$B$1454,0)))^(1/5)-1)*100) -> 3.3 | V45: =IF(INDEX(Historical!$O$7:$O$1447,MATCH(B45,Historical!$B$7:$B$1454,0))=0,"n/a",((INDEX(Historical!$C$7:$C$1447,MATCH(B45,Historical!$B$7:$B$1454,0))/INDEX(Historical!$O$7:$O$1447,MATCH(B45,Historical!$B$7:$B$1454,0)))^(1/10)-1)*100) -> 2.5 | W45: 1.303 | X45: 3.259 | Z45: 42.99 | AA45: 12.77 | AB45: 12 | AC45: 3.35 | AD45: 2.56 | AE45: 4.40 | AF45: 1.38 | AG45: 10.40 | AH45: 2.30 | AI45: 1.81 | AJ45: 1.00 | AK45: 5.00 | AL45: 754.64 | AM45: 1.4 | AN45: 0.11 | AO45: (6.1) | AP45: 6.6 | AQ45: (11.5) | AR45: =INDEX(Historical!$C$7:$C$1447,MATCH(B45,Historical!$B$7:$B$1454,0))*IF(AH45="n/a",1.03,IF(AH45<0,1.01,IF(AH45>10,1.1,(1+AH45/100)))) -> 1.38 | AS45: 1.41 | AT45: 1.48 | AU45: 1.55 | AV45: 1.63 | AW45: 7.44 | AX45: 17.4 | AY45: 0.62 | AZ45: 19.8 | BA45: -19.3 | BB45: 4.1 | BC45: -7.8 | BE45: 1981 | BF45: =#VALUE! ->  | BG45: 1.3
A46: Computer Services Inc. | B46: CSVI | C46: Information Technology | D46: IT Services | E46: 47 | F46: 38 | G46: - | H46: - | I46: 58.00 | J46: 2.48 | K46: 0.3600 | L46: 4 | M46: 1.44 | N46: C25 | O46: 0.3100 | P46: 2018-08-31 | Q46: 2018-09-25 | R46: 16.13 | S46: =IF(INDEX(Historical!$D$7:$D$1447,MATCH(B46,Historical!$B$7:$B$1454,0))=0,"n/a",(INDEX(Historical!$C$7:$C$1447,MATCH(B46,Historical!$B$7:$B$1454,0))/INDEX(Historical!$D$7:$D$1447,MATCH(B46,Historical!$B$7:$B$1454,0))-1)*100) -> 13.6 | T46: =IF(INDEX(Historical!$F$7:$F$1447,MATCH(B46,Historical!$B$7:$B$1454,0))=0,"n/a",((INDEX(Historical!$C$7:$C$1447,MATCH(B46,Historical!$B$7:$B$1454,0))/INDEX(Historical!$F$7:$F$1447,MATCH(B46,Historical!$B$7:$B$1454,0)))^(1/3)-1)*100) -> 12.5 | U46: =IF(INDEX(Historical!$H$7:$H$1447,MATCH(B46,Historical!$B$7:$B$1454,0))=0,"n/a",((INDEX(Historical!$C$7:$C$1447,MATCH(B46,Historical!$B$7:$B$1454,0))/INDEX(Historical!$H$7:$H$1447,MATCH(B46,Historical!$B$7:$B$1454,0)))^(1/5)-1)*100) -> 17.4 | V46: =IF(INDEX(Historical!$O$7:$O$1447,MATCH(B46,Historical!$B$7:$B$1454,0))=0,"n/a",((INDEX(Historical!$C$7:$C$1447,MATCH(B46,Historical!$B$7:$B$1454,0))/INDEX(Historical!$O$7:$O$1447,MATCH(B46,Historical!$B$7:$B$1454,0)))^(1/10)-1)*100) -> 15.0 | W46: 1.159 | X46: n/a | Z46: 41.86 | AA46: 16.86 | AB46: 2 | AC46: 3.44 | AD46: n/a | AE46: 3.16 | AF46: 3.92 | AG46: 25.04 | AH46: n/a | AI46: n/a | AJ46: n/a | AK46: n/a | AL46: 820.23 | AM46: 11.8 | AN46: n/a | AO46: 3.1 | AP46: 19.9 | AQ46: 71.4 | AR46: =INDEX(Historical!$C$7:$C$1447,MATCH(B46,Historical!$B$7:$B$1454,0))*IF(AH46="n/a",1.03,IF(AH46<0,1.01,IF(AH46>10,1.1,(1+AH46/100)))) -> 1.38 | AS46: 1.42 | AT46: 1.46 | AU46: 1.51 | AV46: 1.55 | AW46: 7.33 | AX46: 12.6 | AY46: 0.13 | AZ46: 33.0 | BA46: 0.0 | BB46: 8.0 | BC46: 12.5 | BD46: OTC | BE46: 1972 | BF46: =#VALUE! ->  | BG46: 18.25
A47: Connecticut Water Service | B47: CTWS | C47: Utilities | D47: Water Utilities | E47: 49 | F47: 28 | G47: N | H47: N | I47: 67.08 | J47: 1.86 | K47: 0.3125 | L47: 4 | M47: 1.25 | N47: C15 | O47: 0.2975 | P47: 2018-05-31 | Q47: 2018-06-15 | R47: 5.04 | S47: =IF(INDEX(Historical!$D$7:$D$1447,MATCH(B47,Historical!$B$7:$B$1454,0))=0,"n/a",(INDEX(Historical!$C$7:$C$1447,MATCH(B47,Historical!$B$7:$B$1454,0))/INDEX(Historical!$D$7:$D$1447,MATCH(B47,Historical!$B$7:$B$1454,0))-1)*100) -> 5.1 | T47: =IF(INDEX(Historical!$F$7:$F$1447,MATCH(B47,Historical!$B$7:$B$1454,0))=0,"n/a",((INDEX(Historical!$C$7:$C$1447,MATCH(B47,Historical!$B$7:$B$1454,0))/INDEX(Historical!$F$7:$F$1447,MATCH(B47,Historical!$B$7:$B$1454,0)))^(1/3)-1)*100) -> 5.6 | U47: =IF(INDEX(Historical!$H$7:$H$1447,MATCH(B47,Historical!$B$7:$B$1454,0))=0,"n/a",((INDEX(Historical!$C$7:$C$1447,MATCH(B47,Historical!$B$7:$B$1454,0))/INDEX(Historical!$H$7:$H$1447,MATCH(B47,Historical!$B$7:$B$1454,0)))^(1/5)-1)*100) -> 4.7 | V47: =IF(INDEX(Historical!$O$7:$O$1447,MATCH(B47,Historical!$B$7:$B$1454,0))=0,"n/a",((INDEX(Historical!$C$7:$C$1447,MATCH(B47,Historical!$B$7:$B$1454,0))/INDEX(Historical!$O$7:$O$1447,MATCH(B47,Historical!$B$7:$B$1454,0)))^(1/10)-1)*100) -> 3.4 | W47: 1.373 | X47: 0.584 | Y47: Being Acquired | Z47: 30.79 | AA47: 16.52 | AB47: 12 | AC47: 4.06 | AD47: 2.75 | AE47: 6.98 | AF47: 2.69 | AG47: 6.50 | AH47: 8.60 | AI47: 0.77 | AJ47: 8.10 | AK47: 6.00 | AL47: 808.98 | AM47: 0.2 | AN47: 1.05 | AO47: (9.9) | AP47: 6.6 | AQ47: 40.5 | AR47: =INDEX(Historical!$C$7:$C$1447,MATCH(B47,Historical!$B$7:$B$1454,0))*IF(AH47="n/a",1.03,IF(AH47<0,1.01,IF(AH47>10,1.1,(1+AH47/100)))) -> 1.34 | AS47: 1.35 | AT47: =IF($AK47="n/a",1.03*AS47,IF($AK47<0,1.01*AS47,IF($AK47>10,1.1*AS47,(1+$AK47/100)*AS47))) -> 1.43 | AU47: 1.52 | AV47: 1.61 | AW47: 7.25 | AX47: 10.8 | AY47: (0.01) | AZ47: 37.3 | BA47: -4.6 | BB47: -0.2 | BC47: -0.4 | BE47: 1970 | BF47: =#VALUE! ->  | BG47: 2.1
A48: Consolidated Edison | B48: ED | C48: Utilities | D48: Multi-Utilities | E48: 45 | F48: 51 | G48: N | H48: Y | I48: 82.45 | J48: 3.59 | K48: 0.7400 | L48: 4 | M48: 2.96 | N48: C15 | O48: 0.7150 | P48: 2019-02-12 | Q48: 2019-03-15 | R48: 3.50 | S48: =IF(INDEX(Historical!$D$7:$D$1447,MATCH(B48,Historical!$B$7:$B$1454,0))=0,"n/a",(INDEX(Historical!$C$7:$C$1447,MATCH(B48,Historical!$B$7:$B$1454,0))/INDEX(Historical!$D$7:$D$1447,MATCH(B48,Historical!$B$7:$B$1454,0))-1)*100) -> 3.6 | T48: =IF(INDEX(Historical!$F$7:$F$1447,MATCH(B48,Historical!$B$7:$B$1454,0))=0,"n/a",((INDEX(Historical!$C$7:$C$1447,MATCH(B48,Historical!$B$7:$B$1454,0))/INDEX(Historical!$F$7:$F$1447,MATCH(B48,Historical!$B$7:$B$1454,0)))^(1/3)-1)*100) -> 3.2 | U48: =IF(INDEX(Historical!$H$7:$H$1447,MATCH(B48,Historical!$B$7:$B$1454,0))=0,"n/a",((INDEX(Historical!$C$7:$C$1447,MATCH(B48,Historical!$B$7:$B$1454,0))/INDEX(Historical!$H$7:$H$1447,MATCH(B48,Historical!$B$7:$B$1454,0)))^(1/5)-1)*100) -> 3.1 | V48: =IF(INDEX(Historical!$O$7:$O$1447,MATCH(B48,Historical!$B$7:$B$1454,0))=0,"n/a",((INDEX(Historical!$C$7:$C$1447,MATCH(B48,Historical!$B$7:$B$1454,0))/INDEX(Historical!$O$7:$O$1447,MATCH(B48,Historical!$B$7:$B$1454,0)))^(1/10)-1)*100) -> 2.0 | W48: 1.509 | X48: 2.970 | Z48: 13.45 | AA48: 3.75 | AB48: 12 | AC48: 22.01 | AD48: 1.24 | AE48: 2.10 | AF48: 1.55 | AG48: n/a | AH48: -1.20 | AI48: 5.94 | AJ48: 1.03 | AK48: 3.03 | AL48: 25,920 | AM48: 0.2 | AN48: 1.19 | AO48: 2.9 | AP48: 6.6 | AQ48: (49.2) | AR48: =INDEX(Historical!$C$7:$C$1447,MATCH(B48,Historical!$B$7:$B$1454,0))*IF(AH48="n/a",1.03,IF(AH48<0,1.01,IF(AH48>10,1.1,(1+AH48/100)))) -> 2.89 | AS48: 3.06 | AT48: 3.15 | AU48: 3.25 | AV48: 3.35 | AW48: 15.70 | AX48: 19.0 | AY48: 0.09 | AZ48: 15.9 | BA48: -2.2 | BB48: 6.0 | BC48: 6.1 | BE48: 1975 | BF48: =#VALUE! ->  | BG48: n/a
A49: Cullen/Frost Bankers | B49: CFR | C49: Financials | D49: Banks | E49: 25 | F49: 119 | G49: - | H49: - | I49: 103.68 | J49: 2.58 | K49: 0.6700 | L49: 4 | M49: 2.68 | N49: C15 | O49: 0.5700 | P49: 2018-05-30 | Q49: 2018-06-15 | R49: 17.54 | S49: =IF(INDEX(Historical!$D$7:$D$1447,MATCH(B49,Historical!$B$7:$B$1454,0))=0,"n/a",(INDEX(Historical!$C$7:$C$1447,MATCH(B49,Historical!$B$7:$B$1454,0))/INDEX(Historical!$D$7:$D$1447,MATCH(B49,Historical!$B$7:$B$1454,0))-1)*100) -> 14.7 | T49: =IF(INDEX(Historical!$F$7:$F$1447,MATCH(B49,Historical!$B$7:$B$1454,0))=0,"n/a",((INDEX(Historical!$C$7:$C$1447,MATCH(B49,Historical!$B$7:$B$1454,0))/INDEX(Historical!$F$7:$F$1447,MATCH(B49,Historical!$B$7:$B$1454,0)))^(1/3)-1)*100) -> 7.1 | U49: =IF(INDEX(Historical!$H$7:$H$1447,MATCH(B49,Historical!$B$7:$B$1454,0))=0,"n/a",((INDEX(Historical!$C$7:$C$1447,MATCH(B49,Historical!$B$7:$B$1454,0))/INDEX(Historical!$H$7:$H$1447,MATCH(B49,Historical!$B$7:$B$1454,0)))^(1/5)-1)*100) -> 5.4 | V49: =IF(INDEX(Historical!$O$7:$O$1447,MATCH(B49,Historical!$B$7:$B$1454,0))=0,"n/a",((INDEX(Historical!$C$7:$C$1447,MATCH(B49,Historical!$B$7:$B$1454,0))/INDEX(Historical!$O$7:$O$1447,MATCH(B49,Historical!$B$7:$B$1454,0)))^(1/10)-1)*100) -> 4.5 | W49: 1.206 | X49: 0.428 | Z49: 39.07 | AA49: 15.11 | AB49: 12 | AC49: 6.86 | AD49: 1.51 | AE49: 6.21 | AF49: 2.04 | AG49: 14.00 | AH49: 23.80 | AI49: 3.08 | AJ49: 12.70 | AK49: 10.02 | AL49: 6,530 | AM49: 1.3 | AN49: 0.07 | AO49: (7.1) | AP49: 8.0 | AQ49: 17.1 | AR49: =INDEX(Historical!$C$7:$C$1447,MATCH(B49,Historical!$B$7:$B$1454,0))*IF(AH49="n/a",1.03,IF(AH49<0,1.01,IF(AH49>10,1.1,(1+AH49/100)))) -> 2.84 | AS49: 2.93 | AT49: 3.22 | AU49: 3.54 | AV49: 3.89 | AW49: 16.41 | AX49: 15.8 | AY49: 1.39 | AZ49: 26.6 | BA49: -14.8 | BB49: 7.7 | BC49: -1.3 | BE49: 1994 | BF49: =#VALUE! ->  | BG49: 1.4
A50: Donaldson Company | B50: DCI | C50: Industrials | D50: Machinery | E50: 32 | F50: 85 | G50: N | H50: N | I50: 51.59 | J50: 1.47 | K50: 0.1900 | L50: 4 | M50: 0.76 | N50: B31 | O50: 0.1800 | P50: 2018-06-08 | Q50: 2018-06-28 | R50: 5.56 | S50: =IF(INDEX(Historical!$D$7:$D$1447,MATCH(B50,Historical!$B$7:$B$1454,0))=0,"n/a",(INDEX(Historical!$C$7:$C$1447,MATCH(B50,Historical!$B$7:$B$1454,0))/INDEX(Historical!$D$7:$D$1447,MATCH(B50,Historical!$B$7:$B$1454,0))-1)*100) -> 5.6 | T50: =IF(INDEX(Historical!$F$7:$F$1447,MATCH(B50,Historical!$B$7:$B$1454,0))=0,"n/a",((INDEX(Historical!$C$7:$C$1447,MATCH(B50,Historical!$B$7:$B$1454,0))/INDEX(Historical!$F$7:$F$1447,MATCH(B50,Historical!$B$7:$B$1454,0)))^(1/3)-1)*100) -> 3.8 | U50: =IF(INDEX(Historical!$H$7:$H$1447,MATCH(B50,Historical!$B$7:$B$1454,0))=0,"n/a",((INDEX(Historical!$C$7:$C$1447,MATCH(B50,Historical!$B$7:$B$1454,0))/INDEX(Historical!$H$7:$H$1447,MATCH(B50,Historical!$B$7:$B$1454,0)))^(1/5)-1)*100) -> 8.4 | V50: =IF(INDEX(Historical!$O$7:$O$1447,MATCH(B50,Historical!$B$7:$B$1454,0))=0,"n/a",((INDEX(Historical!$C$7:$C$1447,MATCH(B50,Historical!$B$7:$B$1454,0))/INDEX(Historical!$O$7:$O$1447,MATCH(B50,Historical!$B$7:$B$1454,0)))^(1/10)-1)*100) -> 12.9 | W50: 0.654 | X50: n/a | Z50: 47.80 | AA50: 32.45 | AB50: 7 | AC50: 1.59 | AD50: 3.24 | AE50: 2.38 | AF50: 7.82 | AG50: 23.00 | AH50: -14.30 | AI50: 9.19 | AJ50: -2.00 | AK50: 10.00 | AL50: 6,640 | AM50: 0.3 | AN50: 0.83 | AO50: (22.5) | AP50: 9.9 | AQ50: 235.8 | AR50: =INDEX(Historical!$C$7:$C$1447,MATCH(B50,Historical!$B$7:$B$1454,0))*IF(AH50="n/a",1.03,IF(AH50<0,1.01,IF(AH50>10,1.1,(1+AH50/100)))) -> 0.76 | AS50: 0.83 | AT50: 0.91 | AU50: 1.00 | AV50: 1.10 | AW50: 4.60 | AX50: 8.9 | AY50: 1.45 | AZ50: 28.1 | BA50: -13.2 | BB50: 10.4 | BC50: 3.9 | BE50: 1987 | BF50: =#VALUE! ->  | BG50: 9.3
A51: Dover Corp. | B51: DOV | C51: Industrials | D51: Machinery | E51: 63 | F51: 2 | G51: Y | H51: N | I51: 90.53 | J51: 2.12 | K51: 0.4800 | L51: 4 | M51: 1.92 | N51: C15 | O51: 0.4700 | P51: 2018-08-31 | Q51: 2018-09-17 | R51: 2.13 | S51: =IF(INDEX(Historical!$D$7:$D$1447,MATCH(B51,Historical!$B$7:$B$1454,0))=0,"n/a",(INDEX(Historical!$C$7:$C$1447,MATCH(B51,Historical!$B$7:$B$1454,0))/INDEX(Historical!$D$7:$D$1447,MATCH(B51,Historical!$B$7:$B$1454,0))-1)*100) -> 4.4 | T51: =IF(INDEX(Historical!$F$7:$F$1447,MATCH(B51,Historical!$B$7:$B$1454,0))=0,"n/a",((INDEX(Historical!$C$7:$C$1447,MATCH(B51,Historical!$B$7:$B$1454,0))/INDEX(Historical!$F$7:$F$1447,MATCH(B51,Historical!$B$7:$B$1454,0)))^(1/3)-1)*100) -> 5.0 | U51: =IF(INDEX(Historical!$H$7:$H$1447,MATCH(B51,Historical!$B$7:$B$1454,0))=0,"n/a",((INDEX(Historical!$C$7:$C$1447,MATCH(B51,Historical!$B$7:$B$1454,0))/INDEX(Historical!$H$7:$H$1447,MATCH(B51,Historical!$B$7:$B$1454,0)))^(1/5)-1)*100) -> 9.4 | V51: =IF(INDEX(Historical!$O$7:$O$1447,MATCH(B51,Historical!$B$7:$B$1454,0))=0,"n/a",((INDEX(Historical!$C$7:$C$1447,MATCH(B51,Historical!$B$7:$B$1454,0))/INDEX(Historical!$O$7:$O$1447,MATCH(B51,Historical!$B$7:$B$1454,0)))^(1/10)-1)*100) -> 9.7 | W51: 0.970 | X51: n/a | Z51: 49.48 | AA51: 23.33 | AB51: 12 | AC51: 3.88 | AD51: 1.66 | AE51: 1.86 | AF51: 4.77 | AG51: 17.80 | AH51: -12.50 | AI51: 7.38 | AJ51: -3.40 | AK51: 14.10 | AL51: 13,010 | AM51: 0.5 | AN51: 1.14 | AO51: (11.8) | AP51: 11.5 | AQ51: 122.4 | AR51: =INDEX(Historical!$C$7:$C$1447,MATCH(B51,Historical!$B$7:$B$1454,0))*IF(AH51="n/a",1.03,IF(AH51<0,1.01,IF(AH51>10,1.1,(1+AH51/100)))) -> 1.92 | AS51: 2.06 | AT51: 2.27 | AU51: 2.49 | AV51: 2.74 | AW51: 11.48 | AX51: 12.7 | AY51: 1.49 | AZ51: 37.5 | BA51: -2.9 | BB51: 11.9 | BC51: 11.1 | BE51: 1956 | BF51: =#VALUE! ->  | BG51: 6.4
A52: Eagle Financial Services | B52: EFSI | C52: Financials | D52: Banks | E52: 32 | F52: 86 | G52: - | H52: - | I52: 32.95 | J52: 2.91 | K52: 0.2400 | L52: 4 | M52: 0.96 | N52: B16 | O52: 0.2300 | P52: 2018-07-27 | Q52: 2018-08-13 | R52: 4.35 | S52: =IF(INDEX(Historical!$D$7:$D$1447,MATCH(B52,Historical!$B$7:$B$1454,0))=0,"n/a",(INDEX(Historical!$C$7:$C$1447,MATCH(B52,Historical!$B$7:$B$1454,0))/INDEX(Historical!$D$7:$D$1447,MATCH(B52,Historical!$B$7:$B$1454,0))-1)*100) -> 6.8 | T52: =IF(INDEX(Historical!$F$7:$F$1447,MATCH(B52,Historical!$B$7:$B$1454,0))=0,"n/a",((INDEX(Historical!$C$7:$C$1447,MATCH(B52,Historical!$B$7:$B$1454,0))/INDEX(Historical!$F$7:$F$1447,MATCH(B52,Historical!$B$7:$B$1454,0)))^(1/3)-1)*100) -> 5.5 | U52: =IF(INDEX(Historical!$H$7:$H$1447,MATCH(B52,Historical!$B$7:$B$1454,0))=0,"n/a",((INDEX(Historical!$C$7:$C$1447,MATCH(B52,Historical!$B$7:$B$1454,0))/INDEX(Historical!$H$7:$H$1447,MATCH(B52,Historical!$B$7:$B$1454,0)))^(1/5)-1)*100) -> 4.3 | V52: =IF(INDEX(Historical!$O$7:$O$1447,MATCH(B52,Historical!$B$7:$B$1454,0))=0,"n/a",((INDEX(Historical!$C$7:$C$1447,MATCH(B52,Historical!$B$7:$B$1454,0))/INDEX(Historical!$O$7:$O$1447,MATCH(B52,Historical!$B$7:$B$1454,0)))^(1/10)-1)*100) -> 3.4 | W52: 1.261 | X52: n/a | Z52: n/a | AA52: n/a | AB52: 12 | AC52: n/a | AD52: n/a | AE52: n/a | AF52: n/a | AG52: n/a | AH52: n/a | AI52: n/a | AJ52: n/a | AK52: n/a | AL52: n/a | AM52: n/a | AN52: n/a | AO52: n/a | AP52: 7.3 | AQ52: n/a | AR52: =INDEX(Historical!$C$7:$C$1447,MATCH(B52,Historical!$B$7:$B$1454,0))*IF(AH52="n/a",1.03,IF(AH52<0,1.01,IF(AH52>10,1.1,(1+AH52/100)))) -> 0.97 | AS52: 1.00 | AT52: 1.03 | AU52: 1.06 | AV52: 1.09 | AW52: 5.14 | AX52: 15.6 | AY52: n/a | AZ52: n/a | BA52: n/a | BB52: n/a | BC52: n/a | BD52: OTC | BE52: 1987 | BF52: =#VALUE! ->  | BG52: n/a
A53: Eaton Vance Corp. | B53: EV | C53: Financials | D53: Capital Markets | E53: 38 | F53: 68 | G53: - | H53: - | I53: 41.85 | J53: 3.35 | K53: 0.3500 | L53: 4 | M53: 1.40 | N53: B15 | O53: 0.3100 | P53: 2018-10-30 | Q53: 2018-11-15 | R53: 12.90 | S53: =IF(INDEX(Historical!$D$7:$D$1447,MATCH(B53,Historical!$B$7:$B$1454,0))=0,"n/a",(INDEX(Historical!$C$7:$C$1447,MATCH(B53,Historical!$B$7:$B$1454,0))/INDEX(Historical!$D$7:$D$1447,MATCH(B53,Historical!$B$7:$B$1454,0))-1)*100) -> 11.3 | T53: =IF(INDEX(Historical!$F$7:$F$1447,MATCH(B53,Historical!$B$7:$B$1454,0))=0,"n/a",((INDEX(Historical!$C$7:$C$1447,MATCH(B53,Historical!$B$7:$B$1454,0))/INDEX(Historical!$F$7:$F$1447,MATCH(B53,Historical!$B$7:$B$1454,0)))^(1/3)-1)*100) -> 8.0 | U53: =IF(INDEX(Historical!$H$7:$H$1447,MATCH(B53,Historical!$B$7:$B$1454,0))=0,"n/a",((INDEX(Historical!$C$7:$C$1447,MATCH(B53,Historical!$B$7:$B$1454,0))/INDEX(Historical!$H$7:$H$1447,MATCH(B53,Historical!$B$7:$B$1454,0)))^(1/5)-1)*100) -> 9.3 | V53: =IF(INDEX(Historical!$O$7:$O$1447,MATCH(B53,Historical!$B$7:$B$1454,0))=0,"n/a",((INDEX(Historical!$C$7:$C$1447,MATCH(B53,Historical!$B$7:$B$1454,0))/INDEX(Historical!$O$7:$O$1447,MATCH(B53,Historical!$B$7:$B$1454,0)))^(1/10)-1)*100) -> 7.8 | W53: 1.197 | X53: 0.558 | Z53: 42.30 | AA53: 12.64 | AB53: 10 | AC53: 3.31 | AD53: 1.72 | AE53: 2.85 | AF53: 4.29 | AG53: 34.70 | AH53: 36.30 | AI53: 6.08 | AJ53: 16.70 | AK53: 7.37 | AL53: 4,850 | AM53: 3.3 | AN53: 1.35 | AO53: 0.0 | AP53: 12.7 | AQ53: 55.3 | AR53: =INDEX(Historical!$C$7:$C$1447,MATCH(B53,Historical!$B$7:$B$1454,0))*IF(AH53="n/a",1.03,IF(AH53<0,1.01,IF(AH53>10,1.1,(1+AH53/100)))) -> 1.41 | AS53: 1.49 | AT53: 1.60 | AU53: 1.72 | AV53: 1.85 | AW53: 8.08 | AX53: 19.3 | AY53: 1.59 | AZ53: 29.7 | BA53: -28.6 | BB53: 10.2 | BC53: -11.4 | BE53: 1982 | BF53: =#VALUE! ->  | BG53: 13.2
A54: Ecolab Inc. | B54: ECL | C54: Materials | D54: Chemicals | E54: 27 | F54: 103 | G54: N | H54: N | I54: 168.91 | J54: 1.09 | K54: 0.4600 | L54: 4 | M54: 1.84 | N54: A16 | O54: 0.4100 | P54: 2018-12-17 | Q54: 2019-01-15 | R54: 12.20 | S54: =IF(INDEX(Historical!$D$7:$D$1447,MATCH(B54,Historical!$B$7:$B$1454,0))=0,"n/a",(INDEX(Historical!$C$7:$C$1447,MATCH(B54,Historical!$B$7:$B$1454,0))/INDEX(Historical!$D$7:$D$1447,MATCH(B54,Historical!$B$7:$B$1454,0))-1)*100) -> 10.8 | T54: =IF(INDEX(Historical!$F$7:$F$1447,MATCH(B54,Historical!$B$7:$B$1454,0))=0,"n/a",((INDEX(Historical!$C$7:$C$1447,MATCH(B54,Historical!$B$7:$B$1454,0))/INDEX(Historical!$F$7:$F$1447,MATCH(B54,Historical!$B$7:$B$1454,0)))^(1/3)-1)*100) -> 7.5 | U54: =IF(INDEX(Historical!$H$7:$H$1447,MATCH(B54,Historical!$B$7:$B$1454,0))=0,"n/a",((INDEX(Historical!$C$7:$C$1447,MATCH(B54,Historical!$B$7:$B$1454,0))/INDEX(Historical!$H$7:$H$1447,MATCH(B54,Historical!$B$7:$B$1454,0)))^(1/5)-1)*100) -> 12.3 | V54: =IF(INDEX(Historical!$O$7:$O$1447,MATCH(B54,Historical!$B$7:$B$1454,0))=0,"n/a",((INDEX(Historical!$C$7:$C$1447,MATCH(B54,Historical!$B$7:$B$1454,0))/INDEX(Historical!$O$7:$O$1447,MATCH(B54,Historical!$B$7:$B$1454,0)))^(1/10)-1)*100) -> 12.2 | W54: 1.007 | X54: 0.857 | Z54: 35.94 | AA54: 32.99 | AB54: 12 | AC54: 5.12 | AD54: 2.47 | AE54: 3.33 | AF54: 6.15 | AG54: 20.10 | AH54: 10.60 | AI54: 12.35 | AJ54: 14.30 | AK54: 13.37 | AL54: 48,820 | AM54: 0.4 | AN54: 0.90 | AO54: (19.6) | AP54: 13.3 | AQ54: 200.3 | AR54: =INDEX(Historical!$C$7:$C$1447,MATCH(B54,Historical!$B$7:$B$1454,0))*IF(AH54="n/a",1.03,IF(AH54<0,1.01,IF(AH54>10,1.1,(1+AH54/100)))) -> 1.80 | AS54: 1.98 | AT54: 2.18 | AU54: 2.40 | AV54: 2.64 | AW54: 11.01 | AX54: 6.5 | AY54: 0.89 | AZ54: 32.8 | BA54: -0.3 | BB54: 9.5 | BC54: 12.2 | BE54: 1993 | BF54: =#VALUE! ->  | BG54: 7.8
A55: Emerson Electric | B55: EMR | C55: Industrials | D55: Electrical Equipment | E55: 62 | F55: 7 | G55: N | H55: N | I55: 68.15 | J55: 2.88 | K55: 0.4900 | L55: 4 | M55: 1.96 | N55: C11 | O55: 0.4850 | P55: 2018-11-15 | Q55: 2018-12-10 | R55: 1.03 | S55: =IF(INDEX(Historical!$D$7:$D$1447,MATCH(B55,Historical!$B$7:$B$1454,0))=0,"n/a",(INDEX(Historical!$C$7:$C$1447,MATCH(B55,Historical!$B$7:$B$1454,0))/INDEX(Historical!$D$7:$D$1447,MATCH(B55,Historical!$B$7:$B$1454,0))-1)*100) -> 1.0 | T55: =IF(INDEX(Historical!$F$7:$F$1447,MATCH(B55,Historical!$B$7:$B$1454,0))=0,"n/a",((INDEX(Historical!$C$7:$C$1447,MATCH(B55,Historical!$B$7:$B$1454,0))/INDEX(Historical!$F$7:$F$1447,MATCH(B55,Historical!$B$7:$B$1454,0)))^(1/3)-1)*100) -> 1.0 | U55: =IF(INDEX(Historical!$H$7:$H$1447,MATCH(B55,Historical!$B$7:$B$1454,0))=0,"n/a",((INDEX(Historical!$C$7:$C$1447,MATCH(B55,Historical!$B$7:$B$1454,0))/INDEX(Historical!$H$7:$H$1447,MATCH(B55,Historical!$B$7:$B$1454,0)))^(1/5)-1)*100) -> 3.2 | V55: =IF(INDEX(Historical!$O$7:$O$1447,MATCH(B55,Historical!$B$7:$B$1454,0))=0,"n/a",((INDEX(Historical!$C$7:$C$1447,MATCH(B55,Historical!$B$7:$B$1454,0))/INDEX(Historical!$O$7:$O$1447,MATCH(B55,Historical!$B$7:$B$1454,0)))^(1/10)-1)*100) -> 4.7 | W55: 0.687 | X55: 1.192 | Z55: 61.06 | AA55: 21.23 | AB55: 9 | AC55: 3.21 | AD55: 2.32 | AE55: 2.40 | AF55: 5.16 | AG55: 26.70 | AH55: 24.10 | AI55: 11.06 | AJ55: 2.70 | AK55: 9.17 | AL55: 42,520 | AM55: 0.5 | AN55: 0.72 | AO55: (15.1) | AP55: 6.1 | AQ55: 120.7 | AR55: =INDEX(Historical!$C$7:$C$1447,MATCH(B55,Historical!$B$7:$B$1454,0))*IF(AH55="n/a",1.03,IF(AH55<0,1.01,IF(AH55>10,1.1,(1+AH55/100)))) -> 2.14 | AS55: 2.35 | AT55: 2.57 | AU55: 2.80 | AV55: 3.06 | AW55: 12.93 | AX55: 19.0 | AY55: 1.22 | AZ55: 23.1 | BA55: -14.5 | BB55: 7.7 | BC55: -2.1 | BE55: 1958 | BF55: =#VALUE! ->  | BG55: 11.2
A56: Enterprise Bancorp Inc. | B56: EBTC | C56: Financials | D56: Banks | E56: 25 | F56: 131 | G56: N | H56: - | I56: 31.72 | J56: 2.02 | K56: 0.1600 | L56: 4 | M56: 0.64 | N56: C01 | O56: 0.1450 | P56: 2019-02-08 | Q56: 2019-03-04 | R56: 10.34 | S56: =IF(INDEX(Historical!$D$7:$D$1447,MATCH(B56,Historical!$B$7:$B$1454,0))=0,"n/a",(INDEX(Historical!$C$7:$C$1447,MATCH(B56,Historical!$B$7:$B$1454,0))/INDEX(Historical!$D$7:$D$1447,MATCH(B56,Historical!$B$7:$B$1454,0))-1)*100) -> 7.4 | T56: =IF(INDEX(Historical!$F$7:$F$1447,MATCH(B56,Historical!$B$7:$B$1454,0))=0,"n/a",((INDEX(Historical!$C$7:$C$1447,MATCH(B56,Historical!$B$7:$B$1454,0))/INDEX(Historical!$F$7:$F$1447,MATCH(B56,Historical!$B$7:$B$1454,0)))^(1/3)-1)*100) -> 5.1 | U56: =IF(INDEX(Historical!$H$7:$H$1447,MATCH(B56,Historical!$B$7:$B$1454,0))=0,"n/a",((INDEX(Historical!$C$7:$C$1447,MATCH(B56,Historical!$B$7:$B$1454,0))/INDEX(Historical!$H$7:$H$1447,MATCH(B56,Historical!$B$7:$B$1454,0)))^(1/5)-1)*100) -> 4.7 | V56: =IF(INDEX(Historical!$O$7:$O$1447,MATCH(B56,Historical!$B$7:$B$1454,0))=0,"n/a",((INDEX(Historical!$C$7:$C$1447,MATCH(B56,Historical!$B$7:$B$1454,0))/INDEX(Historical!$O$7:$O$1447,MATCH(B56,Historical!$B$7:$B$1454,0)))^(1/10)-1)*100) -> 4.9 | W56: 0.971 | X56: 0.470 | Z56: 26.02 | AA56: 12.89 | AB56: 12 | AC56: 2.46 | AD56: n/a | AE56: 2.98 | AF56: 1.53 | AG56: 9.60 | AH56: 22.20 | AI56: n/a | AJ56: 10.10 | AK56: n/a | AL56: 366 | AM56: 11.3 | AN56: 0.06 | AO56: (6.1) | AP56: 6.8 | AQ56: (6.4) | AR56: =INDEX(Historical!$C$7:$C$1447,MATCH(B56,Historical!$B$7:$B$1454,0))*IF(AH56="n/a",1.03,IF(AH56<0,1.01,IF(AH56>10,1.1,(1+AH56/100)))) -> 0.64 | AS56: 0.66 | AT56: 0.68 | AU56: 0.70 | AV56: 0.72 | AW56: 3.39 | AX56: 10.7 | AY56: 0.72 | AZ56: 17.7 | BA56: -28.1 | BB56: 0.4 | BC56: -8.6 | BE56: 1995 | BF56: =#VALUE! ->  | BG56: 0.8
A57: Erie Indemnity Company | B57: ERIE | C57: Financials | D57: Insurance | E57: 29 | F57: 94 | G57: - | H57: - | I57: 178.22 | J57: 2.02 | K57: 0.9000 | L57: 4 | M57: 3.60 | N57: A23 | O57: 0.8400 | P57: 2019-01-07 | Q57: 2019-01-23 | R57: 7.14 | S57: =IF(INDEX(Historical!$D$7:$D$1447,MATCH(B57,Historical!$B$7:$B$1454,0))=0,"n/a",(INDEX(Historical!$C$7:$C$1447,MATCH(B57,Historical!$B$7:$B$1454,0))/INDEX(Historical!$D$7:$D$1447,MATCH(B57,Historical!$B$7:$B$1454,0))-1)*100) -> 7.3 | T57: =IF(INDEX(Historical!$F$7:$F$1447,MATCH(B57,Historical!$B$7:$B$1454,0))=0,"n/a",((INDEX(Historical!$C$7:$C$1447,MATCH(B57,Historical!$B$7:$B$1454,0))/INDEX(Historical!$F$7:$F$1447,MATCH(B57,Historical!$B$7:$B$1454,0)))^(1/3)-1)*100) -> 7.2 | U57: =IF(INDEX(Historical!$H$7:$H$1447,MATCH(B57,Historical!$B$7:$B$1454,0))=0,"n/a",((INDEX(Historical!$C$7:$C$1447,MATCH(B57,Historical!$B$7:$B$1454,0))/INDEX(Historical!$H$7:$H$1447,MATCH(B57,Historical!$B$7:$B$1454,0)))^(1/5)-1)*100) -> 7.2 | V57: =IF(INDEX(Historical!$O$7:$O$1447,MATCH(B57,Historical!$B$7:$B$1454,0))=0,"n/a",((INDEX(Historical!$C$7:$C$1447,MATCH(B57,Historical!$B$7:$B$1454,0))/INDEX(Historical!$O$7:$O$1447,MATCH(B57,Historical!$B$7:$B$1454,0)))^(1/10)-1)*100) -> 6.7 | W57: 1.082 | X57: 0.730 | Z57: 81.45 | AA57: 40.32 | AB57: 12 | AC57: 4.42 | AD57: 4.03 | AE57: 4.00 | AF57: 9.57 | AG57: 31.90 | AH57: 39.20 | AI57: 4.97 | AJ57: 9.90 | AK57: 10.00 | AL57: 8,830 | AM57: 0.8 | AN57: 0.10 | AO57: (31.1) | AP57: 9.3 | AQ57: 314.1 | AR57: =INDEX(Historical!$C$7:$C$1447,MATCH(B57,Historical!$B$7:$B$1454,0))*IF(AH57="n/a",1.03,IF(AH57<0,1.01,IF(AH57>10,1.1,(1+AH57/100)))) -> 3.70 | AS57: 3.88 | AT57: 4.27 | AU57: 4.69 | AV57: 5.16 | AW57: 21.70 | AX57: 12.2 | AY57: 0.46 | AZ57: 61.7 | BA57: -4.3 | BB57: 21.9 | BC57: 37.5 | BE57: 1991 | BF57: =#VALUE! ->  | BG57: 17
A58: Essex Property Trust | B58: ESS | C58: Real Estate | D58: Equity Real Estate Investment Trusts (REITs) | E58: 25 | F58: 133 | G58: N | H58: Y | I58: 279.84 | J58: 2.79 | K58: 1.9500 | L58: 4 | M58: 7.80 | N58: A16 | O58: 1.8600 | P58: 2019-03-28 | Q58: 2019-04-12 | R58: 4.84 | S58: =IF(INDEX(Historical!$D$7:$D$1447,MATCH(B58,Historical!$B$7:$B$1454,0))=0,"n/a",(INDEX(Historical!$C$7:$C$1447,MATCH(B58,Historical!$B$7:$B$1454,0))/INDEX(Historical!$D$7:$D$1447,MATCH(B58,Historical!$B$7:$B$1454,0))-1)*100) -> 7.0 | T58: =IF(INDEX(Historical!$F$7:$F$1447,MATCH(B58,Historical!$B$7:$B$1454,0))=0,"n/a",((INDEX(Historical!$C$7:$C$1447,MATCH(B58,Historical!$B$7:$B$1454,0))/INDEX(Historical!$F$7:$F$1447,MATCH(B58,Historical!$B$7:$B$1454,0)))^(1/3)-1)*100) -> 9.3 | U58: =IF(INDEX(Historical!$H$7:$H$1447,MATCH(B58,Historical!$B$7:$B$1454,0))=0,"n/a",((INDEX(Historical!$C$7:$C$1447,MATCH(B58,Historical!$B$7:$B$1454,0))/INDEX(Historical!$H$7:$H$1447,MATCH(B58,Historical!$B$7:$B$1454,0)))^(1/5)-1)*100) -> 9.2 | V58: =IF(INDEX(Historical!$O$7:$O$1447,MATCH(B58,Historical!$B$7:$B$1454,0))=0,"n/a",((INDEX(Historical!$C$7:$C$1447,MATCH(B58,Historical!$B$7:$B$1454,0))/INDEX(Historical!$O$7:$O$1447,MATCH(B58,Historical!$B$7:$B$1454,0)))^(1/10)-1)*100) -> 6.3 | W58: 1.460 | X58: 0.704 | Z58: 132.20 | AA58: 47.43 | AB58: 12 | AC58: 5.90 | AD58: 6.00 | AE58: 13.14 | AF58: 2.95 | AG58: 6.20 | AH58: -9.90 | AI58: 11.31 | AJ58: 13.00 | AK58: 7.90 | AL58: 18,390 | AM58: 0.1 | AN58: 0.89 | AO58: (35.5) | AP58: 11.9 | AQ58: 149.4 | AR58: =INDEX(Historical!$C$7:$C$1447,MATCH(B58,Historical!$B$7:$B$1454,0))*IF(AH58="n/a",1.03,IF(AH58<0,1.01,IF(AH58>10,1.1,(1+AH58/100)))) -> 7.40 | AS58: 8.14 | AT58: 8.79 | AU58: 9.48 | AV58: 10.23 | AW58: 44.05 | AX58: 15.7 | AY58: 0.50 | AZ58: 27.0 | BA58: -1.1 | BB58: 6.8 | BC58: 12.7 | BE58: 1995 | BF58: =#VALUE! ->  | BG58: 3.1
A59: ExxonMobil Corp. | B59: XOM | C59: Energy | D59: Oil, Gas & Consumable Fuels | E59: 36 | F59: 74 | G59: N | H59: N | I59: 79.03 | J59: 4.15 | K59: 0.8200 | L59: 4 | M59: 3.28 | N59: C11 | O59: 0.7700 | P59: 2018-05-11 | Q59: 2018-06-11 | R59: 6.49 | S59: =IF(INDEX(Historical!$D$7:$D$1447,MATCH(B59,Historical!$B$7:$B$1454,0))=0,"n/a",(INDEX(Historical!$C$7:$C$1447,MATCH(B59,Historical!$B$7:$B$1454,0))/INDEX(Historical!$D$7:$D$1447,MATCH(B59,Historical!$B$7:$B$1454,0))-1)*100) -> 5.6 | T59: =IF(INDEX(Historical!$F$7:$F$1447,MATCH(B59,Historical!$B$7:$B$1454,0))=0,"n/a",((INDEX(Historical!$C$7:$C$1447,MATCH(B59,Historical!$B$7:$B$1454,0))/INDEX(Historical!$F$7:$F$1447,MATCH(B59,Historical!$B$7:$B$1454,0)))^(1/3)-1)*100) -> 3.9 | U59: =IF(INDEX(Historical!$H$7:$H$1447,MATCH(B59,Historical!$B$7:$B$1454,0))=0,"n/a",((INDEX(Historical!$C$7:$C$1447,MATCH(B59,Historical!$B$7:$B$1454,0))/INDEX(Historical!$H$7:$H$1447,MATCH(B59,Historical!$B$7:$B$1454,0)))^(1/5)-1)*100) -> 5.6 | V59: =IF(INDEX(Historical!$O$7:$O$1447,MATCH(B59,Historical!$B$7:$B$1454,0))=0,"n/a",((INDEX(Historical!$C$7:$C$1447,MATCH(B59,Historical!$B$7:$B$1454,0))/INDEX(Historical!$O$7:$O$1447,MATCH(B59,Historical!$B$7:$B$1454,0)))^(1/10)-1)*100) -> 7.6 | W59: 0.735 | X59: n/a | Z59: 67.21 | AA59: 16.19 | AB59: 12 | AC59: 4.88 | AD59: 1.08 | AE59: 1.19 | AF59: 1.77 | AG59: 11.10 | AH59: 72.40 | AI59: 26.73 | AJ59: -19.70 | AK59: 15.05 | AL59: 337,540 | AM59: 0.1 | AN59: 0.21 | AO59: (6.4) | AP59: 9.7 | AQ59: 12.9 | AR59: =INDEX(Historical!$C$7:$C$1447,MATCH(B59,Historical!$B$7:$B$1454,0))*IF(AH59="n/a",1.03,IF(AH59<0,1.01,IF(AH59>10,1.1,(1+AH59/100)))) -> 3.55 | AS59: 3.91 | AT59: 4.30 | AU59: 4.73 | AV59: 5.20 | AW59: 21.69 | AX59: 27.4 | AY59: 0.89 | AZ59: 22.2 | BA59: -9.5 | BB59: 8.2 | BC59: -0.1 | BE59: 1983 | BF59: =#VALUE! ->  | BG59: 6
A60: Farmers & Merchants Bancorp | B60: FMCB | C60: Financials | D60: Banks | E60: 56 | F60: 14 | G60: - | H60: - | I60: 740.00 | J60: 1.89 | K60: 7.0000 | L60: 2 | M60: 14.00 | N60: JaJl | O60: 6.9000 | P60: 2018-11-30 | Q60: 2019-01-02 | R60: 1.45 | S60: =IF(INDEX(Historical!$D$7:$D$1447,MATCH(B60,Historical!$B$7:$B$1454,0))=0,"n/a",(INDEX(Historical!$C$7:$C$1447,MATCH(B60,Historical!$B$7:$B$1454,0))/INDEX(Historical!$D$7:$D$1447,MATCH(B60,Historical!$B$7:$B$1454,0))-1)*100) -> 2.6 | T60: =IF(INDEX(Historical!$F$7:$F$1447,MATCH(B60,Historical!$B$7:$B$1454,0))=0,"n/a",((INDEX(Historical!$C$7:$C$1447,MATCH(B60,Historical!$B$7:$B$1454,0))/INDEX(Historical!$F$7:$F$1447,MATCH(B60,Historical!$B$7:$B$1454,0)))^(1/3)-1)*100) -> 2.8 | U60: =IF(INDEX(Historical!$H$7:$H$1447,MATCH(B60,Historical!$B$7:$B$1454,0))=0,"n/a",((INDEX(Historical!$C$7:$C$1447,MATCH(B60,Historical!$B$7:$B$1454,0))/INDEX(Historical!$H$7:$H$1447,MATCH(B60,Historical!$B$7:$B$1454,0)))^(1/5)-1)*100) -> 2.3 | V60: =IF(INDEX(Historical!$O$7:$O$1447,MATCH(B60,Historical!$B$7:$B$1454,0))=0,"n/a",((INDEX(Historical!$C$7:$C$1447,MATCH(B60,Historical!$B$7:$B$1454,0))/INDEX(Historical!$O$7:$O$1447,MATCH(B60,Historical!$B$7:$B$1454,0)))^(1/10)-1)*100) -> 3.1 | W60: 0.735 | X60: n/a | Z60: n/a | AA60: n/a | AB60: 12 | AC60: n/a | AD60: n/a | AE60: n/a | AF60: n/a | AG60: n/a | AH60: n/a | AI60: n/a | AJ60: n/a | AK60: n/a | AL60: n/a | AM60: n/a | AN60: n/a | AO60: n/a | AP60: 4.2 | AQ60: n/a | AR60: =INDEX(Historical!$C$7:$C$1447,MATCH(B60,Historical!$B$7:$B$1454,0))*IF(AH60="n/a",1.03,IF(AH60<0,1.01,IF(AH60>10,1.1,(1+AH60/100)))) -> 14.32 | AS60: 14.75 | AT60: 15.19 | AU60: 15.64 | AV60: 16.11 | AW60: 76.01 | AX60: 10.3 | AY60: n/a | AZ60: n/a | BA60: n/a | BB60: n/a | BC60: n/a | BD60: OTC | BE60: 1964 | BF60: =#VALUE! ->  | BG60: n/a
A61: Federal Realty Inv. Trust | B61: FRT | C61: Real Estate | D61: Equity Real Estate Investment Trusts (REITs) | E61: 51 | F61: 24 | G61: N | H61: N | I61: 133.59 | J61: 3.05 | K61: 1.0200 | L61: 4 | M61: 4.08 | N61: A16 | O61: 1.0000 | P61: 2018-09-20 | Q61: 2018-10-15 | R61: 2.00 | S61: =IF(INDEX(Historical!$D$7:$D$1447,MATCH(B61,Historical!$B$7:$B$1454,0))=0,"n/a",(INDEX(Historical!$C$7:$C$1447,MATCH(B61,Historical!$B$7:$B$1454,0))/INDEX(Historical!$D$7:$D$1447,MATCH(B61,Historical!$B$7:$B$1454,0))-1)*100) -> 2.0 | T61: =IF(INDEX(Historical!$F$7:$F$1447,MATCH(B61,Historical!$B$7:$B$1454,0))=0,"n/a",((INDEX(Historical!$C$7:$C$1447,MATCH(B61,Historical!$B$7:$B$1454,0))/INDEX(Historical!$F$7:$F$1447,MATCH(B61,Historical!$B$7:$B$1454,0)))^(1/3)-1)*100) -> 4.2 | U61: =IF(INDEX(Historical!$H$7:$H$1447,MATCH(B61,Historical!$B$7:$B$1454,0))=0,"n/a",((INDEX(Historical!$C$7:$C$1447,MATCH(B61,Historical!$B$7:$B$1454,0))/INDEX(Historical!$H$7:$H$1447,MATCH(B61,Historical!$B$7:$B$1454,0)))^(1/5)-1)*100) -> 6.2 | V61: =IF(INDEX(Historical!$O$7:$O$1447,MATCH(B61,Historical!$B$7:$B$1454,0))=0,"n/a",((INDEX(Historical!$C$7:$C$1447,MATCH(B61,Historical!$B$7:$B$1454,0))/INDEX(Historical!$O$7:$O$1447,MATCH(B61,Historical!$B$7:$B$1454,0)))^(1/10)-1)*100) -> 4.9 | W61: 1.261 | X61: 0.734 | Z61: 135.10 | AA61: 44.24 | AB61: 12 | AC61: 3.02 | AD61: 6.61 | AE61: 10.80 | AF61: 4.51 | AG61: 10.90 | AH61: 4.30 | AI61: 4.46 | AJ61: 8.50 | AK61: 6.70 | AL61: 9,880 | AM61: 0.8 | AN61: 1.48 | AO61: (34.9) | AP61: 9.3 | AQ61: 197.8 | AR61: =INDEX(Historical!$C$7:$C$1447,MATCH(B61,Historical!$B$7:$B$1454,0))*IF(AH61="n/a",1.03,IF(AH61<0,1.01,IF(AH61>10,1.1,(1+AH61/100)))) -> 4.19 | AS61: 4.38 | AT61: 4.67 | AU61: 4.99 | AV61: 5.32 | AW61: 23.55 | AX61: 17.6 | AY61: 0.55 | AZ61: 20.7 | BA61: -2.4 | BB61: 4.7 | BC61: 6.3 | BE61: 1968 | BF61: =#VALUE! ->  | BG61: 3.7
A62: First Financial Corp. | B62: THFF | C62: Financials | D62: Banks | E62: 30 | F62: 92 | G62: - | H62: - | I62: 44.38 | J62: 2.30 | K62: 0.5100 | L62: 2 | M62: 1.02 | N62: JaJl | O62: 0.5000 | P62: 2018-01-05 | Q62: 2018-01-15 | R62: 2.00 | S62: =IF(INDEX(Historical!$D$7:$D$1447,MATCH(B62,Historical!$B$7:$B$1454,0))=0,"n/a",(INDEX(Historical!$C$7:$C$1447,MATCH(B62,Historical!$B$7:$B$1454,0))/INDEX(Historical!$D$7:$D$1447,MATCH(B62,Historical!$B$7:$B$1454,0))-1)*100) -> 2.0 | T62: =IF(INDEX(Historical!$F$7:$F$1447,MATCH(B62,Historical!$B$7:$B$1454,0))=0,"n/a",((INDEX(Historical!$C$7:$C$1447,MATCH(B62,Historical!$B$7:$B$1454,0))/INDEX(Historical!$F$7:$F$1447,MATCH(B62,Historical!$B$7:$B$1454,0)))^(1/3)-1)*100) -> 1.3 | U62: =IF(INDEX(Historical!$H$7:$H$1447,MATCH(B62,Historical!$B$7:$B$1454,0))=0,"n/a",((INDEX(Historical!$C$7:$C$1447,MATCH(B62,Historical!$B$7:$B$1454,0))/INDEX(Historical!$H$7:$H$1447,MATCH(B62,Historical!$B$7:$B$1454,0)))^(1/5)-1)*100) -> 1.2 | V62: =IF(INDEX(Historical!$O$7:$O$1447,MATCH(B62,Historical!$B$7:$B$1454,0))=0,"n/a",((INDEX(Historical!$C$7:$C$1447,MATCH(B62,Historical!$B$7:$B$1454,0))/INDEX(Historical!$O$7:$O$1447,MATCH(B62,Historical!$B$7:$B$1454,0)))^(1/10)-1)*100) -> 1.5 | W62: 0.820 | X62: 0.381 | Z62: 26.84 | AA62: 11.68 | AB62: 12 | AC62: 3.80 | AD62: n/a | AE62: 4.32 | AF62: 1.27 | AG62: 8.50 | AH62: -7.10 | AI62: 9.63 | AJ62: 3.20 | AK62: n/a | AL62: 544.99 | AM62: 1.5 | AN62: 0.00 | AO62: (8.2) | AP62: 3.5 | AQ62: (18.8) | AR62: =INDEX(Historical!$C$7:$C$1447,MATCH(B62,Historical!$B$7:$B$1454,0))*IF(AH62="n/a",1.03,IF(AH62<0,1.01,IF(AH62>10,1.1,(1+AH62/100)))) -> 1.03 | AS62: 1.13 | AT62: 1.16 | AU62: 1.20 | AV62: 1.23 | AW62: 5.76 | AX62: 13.0 | AY62: 0.93 | AZ62: 18.6 | BA62: -16.3 | BB62: 6.5 | BC62: -3.9 | BE62: 1989 | BF62: =#VALUE! ->  | BG62: 1.2
A63: Franklin Electric Co. | B63: FELE | C63: Industrials | D63: Machinery | E63: 27 | F63: 104 | G63: - | H63: - | I63: 53.21 | J63: 1.09 | K63: 0.1450 | L63: 4 | M63: 0.58 | N63: B17 | O63: 0.1200 | P63: 2019-01-31 | Q63: 2019-02-15 | R63: 20.83 | S63: =IF(INDEX(Historical!$D$7:$D$1447,MATCH(B63,Historical!$B$7:$B$1454,0))=0,"n/a",(INDEX(Historical!$C$7:$C$1447,MATCH(B63,Historical!$B$7:$B$1454,0))/INDEX(Historical!$D$7:$D$1447,MATCH(B63,Historical!$B$7:$B$1454,0))-1)*100) -> 10.7 | T63: =IF(INDEX(Historical!$F$7:$F$1447,MATCH(B63,Historical!$B$7:$B$1454,0))=0,"n/a",((INDEX(Historical!$C$7:$C$1447,MATCH(B63,Historical!$B$7:$B$1454,0))/INDEX(Historical!$F$7:$F$1447,MATCH(B63,Historical!$B$7:$B$1454,0)))^(1/3)-1)*100) -> 6.9 | U63: =IF(INDEX(Historical!$H$7:$H$1447,MATCH(B63,Historical!$B$7:$B$1454,0))=0,"n/a",((INDEX(Historical!$C$7:$C$1447,MATCH(B63,Historical!$B$7:$B$1454,0))/INDEX(Historical!$H$7:$H$1447,MATCH(B63,Historical!$B$7:$B$1454,0)))^(1/5)-1)*100) -> 8.9 | V63: =IF(INDEX(Historical!$O$7:$O$1447,MATCH(B63,Historical!$B$7:$B$1454,0))=0,"n/a",((INDEX(Historical!$C$7:$C$1447,MATCH(B63,Historical!$B$7:$B$1454,0))/INDEX(Historical!$O$7:$O$1447,MATCH(B63,Historical!$B$7:$B$1454,0)))^(1/10)-1)*100) -> 6.6 | W63: 1.358 | X63: 5.573 | Z63: 25.55 | AA63: 23.44 | AB63: 12 | AC63: 2.27 | AD63: 1.75 | AE63: 1.92 | AF63: 3.38 | AG63: 11.60 | AH63: 8.40 | AI63: 8.63 | AJ63: 1.60 | AK63: 13.40 | AL63: 2,490 | AM63: 1.1 | AN63: 0.30 | AO63: (13.4) | AP63: 10.0 | AQ63: 87.7 | AR63: =INDEX(Historical!$C$7:$C$1447,MATCH(B63,Historical!$B$7:$B$1454,0))*IF(AH63="n/a",1.03,IF(AH63<0,1.01,IF(AH63>10,1.1,(1+AH63/100)))) -> 0.51 | AS63: 0.55 | AT63: 0.61 | AU63: 0.67 | AV63: 0.73 | AW63: 3.06 | AX63: 5.8 | AY63: 1.38 | AZ63: 38.4 | BA63: -4.3 | BB63: 14.5 | BC63: 15.1 | BE63: 1993 | BF63: =#VALUE! ->  | BG63: 6.9
A64: Franklin Resources | B64: BEN | C64: Financials | D64: Capital Markets | E64: 39 | F64: 66 | G64: N | H64: Y | I64: 32.61 | J64: 3.19 | K64: 0.2600 | L64: 4 | M64: 1.04 | N64: A10 | O64: 0.2300 | P64: 2018-12-28 | Q64: 2019-01-11 | R64: 13.04 | S64: =IF(INDEX(Historical!$D$7:$D$1447,MATCH(B64,Historical!$B$7:$B$1454,0))=0,"n/a",(INDEX(Historical!$C$7:$C$1447,MATCH(B64,Historical!$B$7:$B$1454,0))/INDEX(Historical!$D$7:$D$1447,MATCH(B64,Historical!$B$7:$B$1454,0))-1)*100) -> 15.0 | T64: =IF(INDEX(Historical!$F$7:$F$1447,MATCH(B64,Historical!$B$7:$B$1454,0))=0,"n/a",((INDEX(Historical!$C$7:$C$1447,MATCH(B64,Historical!$B$7:$B$1454,0))/INDEX(Historical!$F$7:$F$1447,MATCH(B64,Historical!$B$7:$B$1454,0)))^(1/3)-1)*100) -> 15.3 | U64: =IF(INDEX(Historical!$H$7:$H$1447,MATCH(B64,Historical!$B$7:$B$1454,0))=0,"n/a",((INDEX(Historical!$C$7:$C$1447,MATCH(B64,Historical!$B$7:$B$1454,0))/INDEX(Historical!$H$7:$H$1447,MATCH(B64,Historical!$B$7:$B$1454,0)))^(1/5)-1)*100) -> 18.7 | V64: =IF(INDEX(Historical!$O$7:$O$1447,MATCH(B64,Historical!$B$7:$B$1454,0))=0,"n/a",((INDEX(Historical!$C$7:$C$1447,MATCH(B64,Historical!$B$7:$B$1454,0))/INDEX(Historical!$O$7:$O$1447,MATCH(B64,Historical!$B$7:$B$1454,0)))^(1/10)-1)*100) -> 13.2 | W64: 1.420 | X64: n/a | Z64: 36.11 | AA64: 11.32 | AB64: 9 | AC64: 2.88 | AD64: n/a | AE64: 2.68 | AF64: 1.71 | AG64: n/a | AH64: 5.90 | AI64: 7.30 | AJ64: -1.10 | AK64: -4.17 | AL64: 16,370 | AM64: 40.1 | AN64: 0.07 | AO64: 10.6 | AP64: 21.9 | AQ64: (7.2) | AR64: =INDEX(Historical!$C$7:$C$1447,MATCH(B64,Historical!$B$7:$B$1454,0))*IF(AH64="n/a",1.03,IF(AH64<0,1.01,IF(AH64>10,1.1,(1+AH64/100)))) -> 0.97 | AS64: 1.05 | AT64: 1.06 | AU64: 1.07 | AV64: 1.08 | AW64: 5.22 | AX64: 16.0 | AY64: 1.18 | AZ64: 19.3 | BA64: -12.6 | BB64: 6.4 | BC64: 2.7 | BE64: 1981 | BF64: =#VALUE! ->  | BG64: n/a
A65: General Dynamics | B65: GD | C65: Industrials | D65: Aerospace & Defense | E65: 27 | F65: 101 | G65: - | H65: - | I65: 170.22 | J65: 2.19 | K65: 0.9300 | L65: 4 | M65: 3.72 | N65: B11 | O65: 0.8400 | P65: 2018-04-12 | Q65: 2018-05-11 | R65: 10.71 | S65: =IF(INDEX(Historical!$D$7:$D$1447,MATCH(B65,Historical!$B$7:$B$1454,0))=0,"n/a",(INDEX(Historical!$C$7:$C$1447,MATCH(B65,Historical!$B$7:$B$1454,0))/INDEX(Historical!$D$7:$D$1447,MATCH(B65,Historical!$B$7:$B$1454,0))-1)*100) -> 10.7 | T65: =IF(INDEX(Historical!$F$7:$F$1447,MATCH(B65,Historical!$B$7:$B$1454,0))=0,"n/a",((INDEX(Historical!$C$7:$C$1447,MATCH(B65,Historical!$B$7:$B$1454,0))/INDEX(Historical!$F$7:$F$1447,MATCH(B65,Historical!$B$7:$B$1454,0)))^(1/3)-1)*100) -> 10.5 | U65: =IF(INDEX(Historical!$H$7:$H$1447,MATCH(B65,Historical!$B$7:$B$1454,0))=0,"n/a",((INDEX(Historical!$C$7:$C$1447,MATCH(B65,Historical!$B$7:$B$1454,0))/INDEX(Historical!$H$7:$H$1447,MATCH(B65,Historical!$B$7:$B$1454,0)))^(1/5)-1)*100) -> 10.6 | V65: =IF(INDEX(Historical!$O$7:$O$1447,MATCH(B65,Historical!$B$7:$B$1454,0))=0,"n/a",((INDEX(Historical!$C$7:$C$1447,MATCH(B65,Historical!$B$7:$B$1454,0))/INDEX(Historical!$O$7:$O$1447,MATCH(B65,Historical!$B$7:$B$1454,0)))^(1/10)-1)*100) -> 10.5 | W65: 1.015 | X65: 1.085 | Z65: 33.13 | AA65: 15.16 | AB65: 12 | AC65: 11.23 | AD65: 1.83 | AE65: 1.35 | AF65: 4.25 | AG65: 27.70 | AH65: 12.80 | AI65: 11.45 | AJ65: 9.80 | AK65: 8.28 | AL65: 48,810 | AM65: 0.5 | AN65: 1.06 | AO65: (2.3) | AP65: 12.8 | AQ65: 69.2 | AR65: =INDEX(Historical!$C$7:$C$1447,MATCH(B65,Historical!$B$7:$B$1454,0))*IF(AH65="n/a",1.03,IF(AH65<0,1.01,IF(AH65>10,1.1,(1+AH65/100)))) -> 3.99 | AS65: 4.39 | AT65: 4.76 | AU65: 5.15 | AV65: 5.58 | AW65: 23.87 | AX65: 14.0 | AY65: 1.13 | AZ65: 18.3 | BA65: -26.0 | BB65: 2.6 | BC65: -8.3 | BE65: 1992 | BF65: =#VALUE! ->  | BG65: 7.6
A66: Genuine Parts Co. | B66: GPC | C66: Consumer Discretionary | D66: Distributors | E66: 63 | F66: 4 | G66: N | H66: N | I66: 108.78 | J66: 2.80 | K66: 0.7625 | L66: 4 | M66: 3.05 | N66: A02 | O66: 0.7200 | P66: 2019-03-07 | Q66: 2019-04-01 | R66: 5.90 | S66: =IF(INDEX(Historical!$D$7:$D$1447,MATCH(B66,Historical!$B$7:$B$1454,0))=0,"n/a",(INDEX(Historical!$C$7:$C$1447,MATCH(B66,Historical!$B$7:$B$1454,0))/INDEX(Historical!$D$7:$D$1447,MATCH(B66,Historical!$B$7:$B$1454,0))-1)*100) -> 5.7 | T66: =IF(INDEX(Historical!$F$7:$F$1447,MATCH(B66,Historical!$B$7:$B$1454,0))=0,"n/a",((INDEX(Historical!$C$7:$C$1447,MATCH(B66,Historical!$B$7:$B$1454,0))/INDEX(Historical!$F$7:$F$1447,MATCH(B66,Historical!$B$7:$B$1454,0)))^(1/3)-1)*100) -> 5.4 | U66: =IF(INDEX(Historical!$H$7:$H$1447,MATCH(B66,Historical!$B$7:$B$1454,0))=0,"n/a",((INDEX(Historical!$C$7:$C$1447,MATCH(B66,Historical!$B$7:$B$1454,0))/INDEX(Historical!$H$7:$H$1447,MATCH(B66,Historical!$B$7:$B$1454,0)))^(1/5)-1)*100) -> 5.7 | V66: =IF(INDEX(Historical!$O$7:$O$1447,MATCH(B66,Historical!$B$7:$B$1454,0))=0,"n/a",((INDEX(Historical!$C$7:$C$1447,MATCH(B66,Historical!$B$7:$B$1454,0))/INDEX(Historical!$O$7:$O$1447,MATCH(B66,Historical!$B$7:$B$1454,0)))^(1/10)-1)*100) -> 6.3 | W66: 0.899 | X66: 3.160 | Z66: 55.45 | AA66: 19.78 | AB66: 12 | AC66: 5.50 | AD66: 4.49 | AE66: 0.85 | AF66: 4.42 | AG66: 19.10 | AH66: -1.50 | AI66: 5.06 | AJ66: 1.80 | AK66: 4.40 | AL66: 15,830 | AM66: 0.5 | AN66: 0.81 | AO66: (11.3) | AP66: 8.5 | AQ66: 97.1 | AR66: =INDEX(Historical!$C$7:$C$1447,MATCH(B66,Historical!$B$7:$B$1454,0))*IF(AH66="n/a",1.03,IF(AH66<0,1.01,IF(AH66>10,1.1,(1+AH66/100)))) -> 2.86 | AS66: 3.01 | AT66: 3.14 | AU66: 3.28 | AV66: 3.42 | AW66: 15.71 | AX66: 14.4 | AY66: 1.06 | AZ66: 26.8 | BA66: -3.0 | BB66: 9.2 | BC66: 11.1 | BE66: 1957 | BF66: =#VALUE! ->  | BG66: 5.3
A67: Gorman-Rupp Company | B67: GRC | C67: Industrials | D67: Machinery | E67: 46 | F67: 45 | G67: N | H67: N | I67: 33.81 | J67: 1.60 | K67: 0.1350 | L67: 4 | M67: 0.54 | N67: C08 | O67: 0.1250 | P67: 2018-11-14 | Q67: 2018-12-10 | R67: 8.00 | S67: =IF(INDEX(Historical!$D$7:$D$1447,MATCH(B67,Historical!$B$7:$B$1454,0))=0,"n/a",(INDEX(Historical!$C$7:$C$1447,MATCH(B67,Historical!$B$7:$B$1454,0))/INDEX(Historical!$D$7:$D$1447,MATCH(B67,Historical!$B$7:$B$1454,0))-1)*100) -> 8.5 | T67: =IF(INDEX(Historical!$F$7:$F$1447,MATCH(B67,Historical!$B$7:$B$1454,0))=0,"n/a",((INDEX(Historical!$C$7:$C$1447,MATCH(B67,Historical!$B$7:$B$1454,0))/INDEX(Historical!$F$7:$F$1447,MATCH(B67,Historical!$B$7:$B$1454,0)))^(1/3)-1)*100) -> 8.0 | U67: =IF(INDEX(Historical!$H$7:$H$1447,MATCH(B67,Historical!$B$7:$B$1454,0))=0,"n/a",((INDEX(Historical!$C$7:$C$1447,MATCH(B67,Historical!$B$7:$B$1454,0))/INDEX(Historical!$H$7:$H$1447,MATCH(B67,Historical!$B$7:$B$1454,0)))^(1/5)-1)*100) -> 9.1 | V67: =IF(INDEX(Historical!$O$7:$O$1447,MATCH(B67,Historical!$B$7:$B$1454,0))=0,"n/a",((INDEX(Historical!$C$7:$C$1447,MATCH(B67,Historical!$B$7:$B$1454,0))/INDEX(Historical!$O$7:$O$1447,MATCH(B67,Historical!$B$7:$B$1454,0)))^(1/10)-1)*100) -> 7.1 | W67: 1.275 | X67: n/a | Z67: 35.29 | AA67: 22.10 | AB67: 12 | AC67: 1.53 | AD67: 1.47 | AE67: 2.13 | AF67: 2.54 | AG67: 9.90 | AH67: 8.10 | AI67: 8.82 | AJ67: -0.80 | AK67: 15.00 | AL67: 881.09 | AM67: 17.8 | AN67: 0.00 | AO67: (11.4) | AP67: 10.7 | AQ67: 57.9 | AR67: =INDEX(Historical!$C$7:$C$1447,MATCH(B67,Historical!$B$7:$B$1454,0))*IF(AH67="n/a",1.03,IF(AH67<0,1.01,IF(AH67>10,1.1,(1+AH67/100)))) -> 0.55 | AS67: 0.60 | AT67: =IF($AK67="n/a",1.03*AS67,IF($AK67<0,1.01*AS67,IF($AK67>10,1.1*AS67,(1+$AK67/100)*AS67))) -> 0.66 | AU67: 0.73 | AV67: 0.80 | AW67: 3.34 | AX67: 9.9 | AY67: 0.96 | AZ67: 35.0 | BA67: -6.4 | BB67: 1.7 | BC67: 1.5 | BE67: 1974 | BF67: =#VALUE! ->  | BG67: 8.2
A68: H.B. Fuller Company | B68: FUL | C68: Materials | D68: Chemicals | E68: 49 | F68: 27 | G68: Y | H68: Y | I68: 50.48 | J68: 1.23 | K68: 0.1550 | L68: 4 | M68: 0.62 | N68: B10 | O68: 0.1500 | P68: 2018-04-25 | Q68: 2018-05-10 | R68: 3.33 | S68: =IF(INDEX(Historical!$D$7:$D$1447,MATCH(B68,Historical!$B$7:$B$1454,0))=0,"n/a",(INDEX(Historical!$C$7:$C$1447,MATCH(B68,Historical!$B$7:$B$1454,0))/INDEX(Historical!$D$7:$D$1447,MATCH(B68,Historical!$B$7:$B$1454,0))-1)*100) -> 4.2 | T68: =IF(INDEX(Historical!$F$7:$F$1447,MATCH(B68,Historical!$B$7:$B$1454,0))=0,"n/a",((INDEX(Historical!$C$7:$C$1447,MATCH(B68,Historical!$B$7:$B$1454,0))/INDEX(Historical!$F$7:$F$1447,MATCH(B68,Historical!$B$7:$B$1454,0)))^(1/3)-1)*100) -> 6.4 | U68: =IF(INDEX(Historical!$H$7:$H$1447,MATCH(B68,Historical!$B$7:$B$1454,0))=0,"n/a",((INDEX(Historical!$C$7:$C$1447,MATCH(B68,Historical!$B$7:$B$1454,0))/INDEX(Historical!$H$7:$H$1447,MATCH(B68,Historical!$B$7:$B$1454,0)))^(1/5)-1)*100) -> 9.8 | V68: =IF(INDEX(Historical!$O$7:$O$1447,MATCH(B68,Historical!$B$7:$B$1454,0))=0,"n/a",((INDEX(Historical!$C$7:$C$1447,MATCH(B68,Historical!$B$7:$B$1454,0))/INDEX(Historical!$O$7:$O$1447,MATCH(B68,Historical!$B$7:$B$1454,0)))^(1/10)-1)*100) -> 8.9 | W68: 1.105 | X68: 1.488 | Z68: 24.12 | AA68: 19.64 | AB68: 11 | AC68: 2.57 | AD68: 1.14 | AE68: 0.84 | AF68: 2.22 | AG68: 15.10 | AH68: 123.50 | AI68: 23.05 | AJ68: 6.60 | AK68: 17.18 | AL68: 2,560 | AM68: 0.7 | AN68: 1.95 | AO68: (8.6) | AP68: 11.0 | AQ68: 39.2 | AR68: =INDEX(Historical!$C$7:$C$1447,MATCH(B68,Historical!$B$7:$B$1454,0))*IF(AH68="n/a",1.03,IF(AH68<0,1.01,IF(AH68>10,1.1,(1+AH68/100)))) -> 0.68 | AS68: 0.74 | AT68: 0.82 | AU68: 0.90 | AV68: 0.99 | AW68: 4.13 | AX68: 8.2 | AY68: 1.44 | AZ68: 27.4 | BA68: -15.3 | BB68: 10.3 | BC68: -0.1 | BE68: 1970 | BF68: =#VALUE! ->  | BG68: 4
A69: Helmerich & Payne Inc. | B69: HP | C69: Energy | D69: Energy Equipment & Services | E69: 46 | F69: 43 | G69: - | H69: - | I69: 54.20 | J69: 5.24 | K69: 0.7100 | L69: 4 | M69: 2.84 | N69: C01 | O69: 0.7000 | P69: 2018-08-16 | Q69: 2018-08-31 | R69: 1.43 | S69: =IF(INDEX(Historical!$D$7:$D$1447,MATCH(B69,Historical!$B$7:$B$1454,0))=0,"n/a",(INDEX(Historical!$C$7:$C$1447,MATCH(B69,Historical!$B$7:$B$1454,0))/INDEX(Historical!$D$7:$D$1447,MATCH(B69,Historical!$B$7:$B$1454,0))-1)*100) -> 0.7 | T69: =IF(INDEX(Historical!$F$7:$F$1447,MATCH(B69,Historical!$B$7:$B$1454,0))=0,"n/a",((INDEX(Historical!$C$7:$C$1447,MATCH(B69,Historical!$B$7:$B$1454,0))/INDEX(Historical!$F$7:$F$1447,MATCH(B69,Historical!$B$7:$B$1454,0)))^(1/3)-1)*100) -> 0.8 | U69: =IF(INDEX(Historical!$H$7:$H$1447,MATCH(B69,Historical!$B$7:$B$1454,0))=0,"n/a",((INDEX(Historical!$C$7:$C$1447,MATCH(B69,Historical!$B$7:$B$1454,0))/INDEX(Historical!$H$7:$H$1447,MATCH(B69,Historical!$B$7:$B$1454,0)))^(1/5)-1)*100) -> 16.8 | V69: =IF(INDEX(Historical!$O$7:$O$1447,MATCH(B69,Historical!$B$7:$B$1454,0))=0,"n/a",((INDEX(Historical!$C$7:$C$1447,MATCH(B69,Historical!$B$7:$B$1454,0))/INDEX(Historical!$O$7:$O$1447,MATCH(B69,Historical!$B$7:$B$1454,0)))^(1/10)-1)*100) -> 31.0 | W69: 0.541 | X69: n/a | Z69: n/a | AA69: n/a | AB69: 9 | AC69: -0.02 | AD69: n/a | AE69: 2.25 | AF69: 1.37 | AG69: n/a | AH69: 89.70 | AI69: 41.53 | AJ69: -15.10 | AK69: n/a | AL69: 5,990 | AM69: 1.2 | AN69: 0.11 | AO69: n/a | AP69: 22.0 | AQ69: n/a | AR69: =INDEX(Historical!$C$7:$C$1447,MATCH(B69,Historical!$B$7:$B$1454,0))*IF(AH69="n/a",1.03,IF(AH69<0,1.01,IF(AH69>10,1.1,(1+AH69/100)))) -> 3.10 | AS69: 3.41 | AT69: 3.51 | AU69: 3.62 | AV69: 3.73 | AW69: 17.38 | AX69: 32.1 | AY69: 1.51 | AZ69: 21.6 | BA69: -27.1 | BB69: 1.8 | BC69: -12.1 | BE69: 1973 | BF69: =#VALUE! ->  | BG69: n/a
A70: Hormel Foods Corp. | B70: HRL | C70: Consumer Staples | D70: Food Products | E70: 53 | F70: 17 | G70: N | H70: N | I70: 43.36 | J70: 1.94 | K70: 0.2100 | L70: 4 | M70: 0.84 | N70: B15 | O70: 0.1875 | P70: 2019-01-11 | Q70: 2019-02-15 | R70: 12.00 | S70: =IF(INDEX(Historical!$D$7:$D$1447,MATCH(B70,Historical!$B$7:$B$1454,0))=0,"n/a",(INDEX(Historical!$C$7:$C$1447,MATCH(B70,Historical!$B$7:$B$1454,0))/INDEX(Historical!$D$7:$D$1447,MATCH(B70,Historical!$B$7:$B$1454,0))-1)*100) -> 10.3 | T70: =IF(INDEX(Historical!$F$7:$F$1447,MATCH(B70,Historical!$B$7:$B$1454,0))=0,"n/a",((INDEX(Historical!$C$7:$C$1447,MATCH(B70,Historical!$B$7:$B$1454,0))/INDEX(Historical!$F$7:$F$1447,MATCH(B70,Historical!$B$7:$B$1454,0)))^(1/3)-1)*100) -> 14.5 | U70: =IF(INDEX(Historical!$H$7:$H$1447,MATCH(B70,Historical!$B$7:$B$1454,0))=0,"n/a",((INDEX(Historical!$C$7:$C$1447,MATCH(B70,Historical!$B$7:$B$1454,0))/INDEX(Historical!$H$7:$H$1447,MATCH(B70,Historical!$B$7:$B$1454,0)))^(1/5)-1)*100) -> 17.1 | V70: =IF(INDEX(Historical!$O$7:$O$1447,MATCH(B70,Historical!$B$7:$B$1454,0))=0,"n/a",((INDEX(Historical!$C$7:$C$1447,MATCH(B70,Historical!$B$7:$B$1454,0))/INDEX(Historical!$O$7:$O$1447,MATCH(B70,Historical!$B$7:$B$1454,0)))^(1/10)-1)*100) -> 15.0 | W70: 1.141 | X70: 1.417 | Z70: 48.55 | AA70: 25.06 | AB70: 10 | AC70: 1.73 | AD70: 5.02 | AE70: 2.38 | AF70: 4.13 | AG70: 18.10 | AH70: 10.00 | AI70: 6.37 | AJ70: 12.10 | AK70: 5.00 | AL70: 22,680 | AM70: 0.2 | AN70: 0.00 | AO70: (6.0) | AP70: 19.1 | AQ70: 114.5 | AR70: =INDEX(Historical!$C$7:$C$1447,MATCH(B70,Historical!$B$7:$B$1454,0))*IF(AH70="n/a",1.03,IF(AH70<0,1.01,IF(AH70>10,1.1,(1+AH70/100)))) -> 0.83 | AS70: 0.88 | AT70: 0.92 | AU70: 0.97 | AV70: 1.02 | AW70: 4.61 | AX70: 10.6 | AY70: 0.16 | AZ70: 35.5 | BA70: -6.3 | BB70: 1.8 | BC70: 7.7 | BE70: 1967 | BF70: =#VALUE! ->  | BG70: 12.2
A71: Illinois Tool Works | B71: ITW | C71: Industrials | D71: Machinery | E71: 44 | F71: 54 | G71: N | H71: N | I71: 144.08 | J71: =(M71/I71)*100 -> 2.78 | K71: 1.0000 | L71: 4 | M71: =K71*L71 -> 4.00 | N71: A10 | O71: 0.7800 | P71: 2018-09-27 | Q71: 2018-10-09 | R71: =(K71-O71)/O71*100 -> 28.21 | S71: =IF(INDEX(Historical!$D$7:$D$1447,MATCH(B71,Historical!$B$7:$B$1454,0))=0,"n/a",(INDEX(Historical!$C$7:$C$1447,MATCH(B71,Historical!$B$7:$B$1454,0))/INDEX(Historical!$D$7:$D$1447,MATCH(B71,Historical!$B$7:$B$1454,0))-1)*100) -> 22.3 | T71: =IF(INDEX(Historical!$F$7:$F$1447,MATCH(B71,Historical!$B$7:$B$1454,0))=0,"n/a",((INDEX(Historical!$C$7:$C$1447,MATCH(B71,Historical!$B$7:$B$1454,0))/INDEX(Historical!$F$7:$F$1447,MATCH(B71,Historical!$B$7:$B$1454,0)))^(1/3)-1)*100) -> 18.5 | U71: =IF(INDEX(Historical!$H$7:$H$1447,MATCH(B71,Historical!$B$7:$B$1454,0))=0,"n/a",((INDEX(Historical!$C$7:$C$1447,MATCH(B71,Historical!$B$7:$B$1454,0))/INDEX(Historical!$H$7:$H$1447,MATCH(B71,Historical!$B$7:$B$1454,0)))^(1/5)-1)*100) -> 16.4 | V71: =IF(INDEX(Historical!$O$7:$O$1447,MATCH(B71,Historical!$B$7:$B$1454,0))=0,"n/a",((INDEX(Historical!$C$7:$C$1447,MATCH(B71,Historical!$B$7:$B$1454,0))/INDEX(Historical!$O$7:$O$1447,MATCH(B71,Historical!$B$7:$B$1454,0)))^(1/10)-1)*100) -> 11.3 | W71: =IF(OR(U71<=0,U71="n/a",V71<=0,V71="n/a"),"n/a",U71/V71) -> 1.462 | X71: =IF(OR(AJ71<=0,AJ71="n/a",U71<=0,U71="n/a"),"n/a",U71/AJ71) -> 1.034 | Z71: =IF(OR(AC71<0.01,AC71="n/a"),"n/a",M71/AC71*100) -> 52.63 | AA71: =IF(OR(AC71<0.01,AC71="n/a"),"n/a",I71/AC71) -> 18.96 | AB71: 12 | AC71: 7.60 | AD71: 4.41 | AE71: 3.17 | AF71: 14.61 | AG71: 69.60 | AH71: 12.40 | AI71: 6.85 | AJ71: 15.90 | AK71: 4.30 | AL71: 46,750 | AM71: 0.1 | AN71: 2.27 | AO71: =IF(U71="n/a","n/a",IF(AA71<0,"n/a",IF(AA71="n/a","n/a",J71+U71-AA71))) -> 0.3 | AP71: =IF(U71="n/a","n/a",J71+U71) -> 19.2 | AQ71: =IF(OR(AC71<0.01,AF71="n/a"),"n/a",(I71/SQRT(22.5*AC71*(I71/AF71))-1)*100) -> 250.9 | AR71: =INDEX(Historical!$C$7:$C$1447,MATCH(B71,Historical!$B$7:$B$1454,0))*IF(AH71="n/a",1.03,IF(AH71<0,1.01,IF(AH71>10,1.1,(1+AH71/100)))) -> 3.67 | AS71: =IF($AI71="n/a",1.03*AR71,IF($AI71<0,1.01*AR71,IF($AI71>10,1.1*AR71,(1+$AI71/100)*AR71))) -> 3.93 | AT71: 4.09 | AU71: 4.27 | AV71: 4.45 | AW71: =SUM(AR71:AV71) -> 20.42 | AX71: =AW71/I71*100 -> 14.2 | AY71: 1.22 | AZ71: 22.4 | BA71: -16.2 | BB71: 8.2 | BC71: 4.6 | BE71: 1975 | BF71: =#VALUE! ->  | BG71: 16.6
A72: Jack Henry & Associates | B72: JKHY | C72: Information Technology | D72: IT Services | E72: 29 | F72: 95 | G72: N | H72: - | I72: 132.63 | J72: 1.21 | K72: 0.4000 | L72: 4 | M72: 1.60 | N72: C16 | O72: 0.3700 | P72: 2019-02-28 | Q72: 2019-03-18 | R72: 8.11 | S72: =IF(INDEX(Historical!$D$7:$D$1447,MATCH(B72,Historical!$B$7:$B$1454,0))=0,"n/a",(INDEX(Historical!$C$7:$C$1447,MATCH(B72,Historical!$B$7:$B$1454,0))/INDEX(Historical!$D$7:$D$1447,MATCH(B72,Historical!$B$7:$B$1454,0))-1)*100) -> 19.4 | T72: =IF(INDEX(Historical!$F$7:$F$1447,MATCH(B72,Historical!$B$7:$B$1454,0))=0,"n/a",((INDEX(Historical!$C$7:$C$1447,MATCH(B72,Historical!$B$7:$B$1454,0))/INDEX(Historical!$F$7:$F$1447,MATCH(B72,Historical!$B$7:$B$1454,0)))^(1/3)-1)*100) -> 14.0 | U72: =IF(INDEX(Historical!$H$7:$H$1447,MATCH(B72,Historical!$B$7:$B$1454,0))=0,"n/a",((INDEX(Historical!$C$7:$C$1447,MATCH(B72,Historical!$B$7:$B$1454,0))/INDEX(Historical!$H$7:$H$1447,MATCH(B72,Historical!$B$7:$B$1454,0)))^(1/5)-1)*100) -> 15.2 | V72: =IF(INDEX(Historical!$O$7:$O$1447,MATCH(B72,Historical!$B$7:$B$1454,0))=0,"n/a",((INDEX(Historical!$C$7:$C$1447,MATCH(B72,Historical!$B$7:$B$1454,0))/INDEX(Historical!$O$7:$O$1447,MATCH(B72,Historical!$B$7:$B$1454,0)))^(1/10)-1)*100) -> 17.3 | W72: 0.877 | X72: 1.320 | Y72: FY Streak | Z72: 43.13 | AA72: 35.75 | AB72: 6 | AC72: 3.71 | AD72: 3.25 | AE72: 6.43 | AF72: 7.36 | AG72: 23.30 | AH72: 6.00 | AI72: 13.53 | AJ72: 11.50 | AK72: 11.00 | AL72: 10,160 | AM72: 0.8 | AN72: 0.00 | AO72: (19.4) | AP72: 16.4 | AQ72: 242.0 | AR72: =INDEX(Historical!$C$7:$C$1447,MATCH(B72,Historical!$B$7:$B$1454,0))*IF(AH72="n/a",1.03,IF(AH72<0,1.01,IF(AH72>10,1.1,(1+AH72/100)))) -> 1.57 | AS72: 1.73 | AT72: 1.90 | AU72: 2.09 | AV72: 2.30 | AW72: 9.58 | AX72: 7.2 | AY72: 0.87 | AZ72: 14.5 | BA72: -19.0 | BB72: 2.3 | BC72: -4.4 | BE72: 1991 | BF72: =#VALUE! ->  | BG72: 15.6
A73: John Wiley & Sons Inc. | B73: JW-A | C73: Communication Services | D73: Media | E73: 25 | F73: 121 | G73: - | H73: - | I73: 51.89 | J73: 2.54 | K73: 0.3300 | L73: 4 | M73: 1.32 | N73: A19 | O73: 0.3200 | P73: 2018-07-02 | Q73: 2018-07-18 | R73: 3.13 | S73: =IF(INDEX(Historical!$D$7:$D$1447,MATCH(B73,Historical!$B$7:$B$1454,0))=0,"n/a",(INDEX(Historical!$C$7:$C$1447,MATCH(B73,Historical!$B$7:$B$1454,0))/INDEX(Historical!$D$7:$D$1447,MATCH(B73,Historical!$B$7:$B$1454,0))-1)*100) -> 3.2 | T73: =IF(INDEX(Historical!$F$7:$F$1447,MATCH(B73,Historical!$B$7:$B$1454,0))=0,"n/a",((INDEX(Historical!$C$7:$C$1447,MATCH(B73,Historical!$B$7:$B$1454,0))/INDEX(Historical!$F$7:$F$1447,MATCH(B73,Historical!$B$7:$B$1454,0)))^(1/3)-1)*100) -> 3.3 | U73: =IF(INDEX(Historical!$H$7:$H$1447,MATCH(B73,Historical!$B$7:$B$1454,0))=0,"n/a",((INDEX(Historical!$C$7:$C$1447,MATCH(B73,Historical!$B$7:$B$1454,0))/INDEX(Historical!$H$7:$H$1447,MATCH(B73,Historical!$B$7:$B$1454,0)))^(1/5)-1)*100) -> 5.8 | V73: =IF(INDEX(Historical!$O$7:$O$1447,MATCH(B73,Historical!$B$7:$B$1454,0))=0,"n/a",((INDEX(Historical!$C$7:$C$1447,MATCH(B73,Historical!$B$7:$B$1454,0))/INDEX(Historical!$O$7:$O$1447,MATCH(B73,Historical!$B$7:$B$1454,0)))^(1/10)-1)*100) -> 10.5 | W73: 0.555 | X73: 0.855 | Y73: Also Class B | Z73: 39.64 | AA73: 15.58 | AB73: 4 | AC73: 3.33 | AD73: 1.04 | AE73: 1.64 | AF73: 2.55 | AG73: 16.40 | AH73: 70.00 | AI73: 7.53 | AJ73: 6.80 | AK73: 15.00 | AL73: 2,940 | AM73: 0.2 | AN73: 0.46 | AO73: (7.2) | AP73: 8.4 | AQ73: 32.9 | AR73: =INDEX(Historical!$C$7:$C$1447,MATCH(B73,Historical!$B$7:$B$1454,0))*IF(AH73="n/a",1.03,IF(AH73<0,1.01,IF(AH73>10,1.1,(1+AH73/100)))) -> 1.43 | AS73: 1.54 | AT73: 1.69 | AU73: 1.86 | AV73: 2.05 | AW73: 8.57 | AX73: 16.5 | AY73: 1.05 | AZ73: 16.2 | BA73: -27.7 | BB73: 3.2 | BC73: -10.9 | BE73: 1994 | BF73: =#VALUE! ->  | BG73: 6.9
A74: Johnson & Johnson | B74: JNJ | C74: Health Care | D74: Pharmaceuticals | E74: 56 | F74: 11 | G74: N | H74: N | I74: 136.64 | J74: 2.63 | K74: 0.9000 | L74: 4 | M74: 3.60 | N74: C12 | O74: 0.8400 | P74: 2018-05-28 | Q74: 2018-06-12 | R74: 7.14 | S74: =IF(INDEX(Historical!$D$7:$D$1447,MATCH(B74,Historical!$B$7:$B$1454,0))=0,"n/a",(INDEX(Historical!$C$7:$C$1447,MATCH(B74,Historical!$B$7:$B$1454,0))/INDEX(Historical!$D$7:$D$1447,MATCH(B74,Historical!$B$7:$B$1454,0))-1)*100) -> 6.6 | T74: =IF(INDEX(Historical!$F$7:$F$1447,MATCH(B74,Historical!$B$7:$B$1454,0))=0,"n/a",((INDEX(Historical!$C$7:$C$1447,MATCH(B74,Historical!$B$7:$B$1454,0))/INDEX(Historical!$F$7:$F$1447,MATCH(B74,Historical!$B$7:$B$1454,0)))^(1/3)-1)*100) -> 6.3 | U74: =IF(INDEX(Historical!$H$7:$H$1447,MATCH(B74,Historical!$B$7:$B$1454,0))=0,"n/a",((INDEX(Historical!$C$7:$C$1447,MATCH(B74,Historical!$B$7:$B$1454,0))/INDEX(Historical!$H$7:$H$1447,MATCH(B74,Historical!$B$7:$B$1454,0)))^(1/5)-1)*100) -> 6.4 | V74: =IF(INDEX(Historical!$O$7:$O$1447,MATCH(B74,Historical!$B$7:$B$1454,0))=0,"n/a",((INDEX(Historical!$C$7:$C$1447,MATCH(B74,Historical!$B$7:$B$1454,0))/INDEX(Historical!$O$7:$O$1447,MATCH(B74,Historical!$B$7:$B$1454,0)))^(1/10)-1)*100) -> 7.0 | W74: 0.918 | X74: 2.080 | Z74: 64.17 | AA74: 24.36 | AB74: 12 | AC74: 5.61 | AD74: 3.68 | AE74: 4.45 | AF74: 6.12 | AG74: 24.40 | AH74: 7.60 | AI74: 5.91 | AJ74: 3.10 | AK74: 6.61 | AL74: 363,300 | AM74: 0.1 | AN74: 0.51 | AO74: (15.3) | AP74: 9.1 | AQ74: 157.4 | AR74: =INDEX(Historical!$C$7:$C$1447,MATCH(B74,Historical!$B$7:$B$1454,0))*IF(AH74="n/a",1.03,IF(AH74<0,1.01,IF(AH74>10,1.1,(1+AH74/100)))) -> 3.81 | AS74: 4.03 | AT74: 4.30 | AU74: 4.59 | AV74: 4.89 | AW74: 21.62 | AX74: 15.8 | AY74: 0.66 | AZ74: 15.2 | BA74: -8.3 | BB74: 4.5 | BC74: 2.8 | BE74: 1963 | BF74: =#VALUE! ->  | BG74: 9.9
A75: Kimberly-Clark Corp. | B75: KMB | C75: Consumer Staples | D75: Household Products | E75: 47 | F75: 41 | G75: Y | H75: N | I75: 116.83 | J75: 3.53 | K75: 1.0300 | L75: 4 | M75: 4.12 | N75: A03 | O75: 1.0000 | P75: 2019-03-07 | Q75: 2019-04-02 | R75: 3.00 | S75: =IF(INDEX(Historical!$D$7:$D$1447,MATCH(B75,Historical!$B$7:$B$1454,0))=0,"n/a",(INDEX(Historical!$C$7:$C$1447,MATCH(B75,Historical!$B$7:$B$1454,0))/INDEX(Historical!$D$7:$D$1447,MATCH(B75,Historical!$B$7:$B$1454,0))-1)*100) -> 3.7 | T75: =IF(INDEX(Historical!$F$7:$F$1447,MATCH(B75,Historical!$B$7:$B$1454,0))=0,"n/a",((INDEX(Historical!$C$7:$C$1447,MATCH(B75,Historical!$B$7:$B$1454,0))/INDEX(Historical!$F$7:$F$1447,MATCH(B75,Historical!$B$7:$B$1454,0)))^(1/3)-1)*100) -> 4.5 | U75: =IF(INDEX(Historical!$H$7:$H$1447,MATCH(B75,Historical!$B$7:$B$1454,0))=0,"n/a",((INDEX(Historical!$C$7:$C$1447,MATCH(B75,Historical!$B$7:$B$1454,0))/INDEX(Historical!$H$7:$H$1447,MATCH(B75,Historical!$B$7:$B$1454,0)))^(1/5)-1)*100) -> 5.5 | V75: =IF(INDEX(Historical!$O$7:$O$1447,MATCH(B75,Historical!$B$7:$B$1454,0))=0,"n/a",((INDEX(Historical!$C$7:$C$1447,MATCH(B75,Historical!$B$7:$B$1454,0))/INDEX(Historical!$O$7:$O$1447,MATCH(B75,Historical!$B$7:$B$1454,0)))^(1/10)-1)*100) -> 6.2 | W75: 0.886 | X75: n/a | Z75: 94.28 | AA75: 26.73 | AB75: 12 | AC75: 4.37 | AD75: 9.24 | AE75: 2.19 | AF75: n/a | AG75: n/a | AH75: -29.40 | AI75: 5.11 | AJ75: -2.70 | AK75: 2.89 | AL75: 40,450 | AM75: 0.4 | AN75: n/a | AO75: (17.7) | AP75: 9.0 | AQ75: n/a | AR75: =INDEX(Historical!$C$7:$C$1447,MATCH(B75,Historical!$B$7:$B$1454,0))*IF(AH75="n/a",1.03,IF(AH75<0,1.01,IF(AH75>10,1.1,(1+AH75/100)))) -> 4.01 | AS75: 4.21 | AT75: 4.34 | AU75: 4.46 | AV75: 4.59 | AW75: 21.61 | AX75: 18.5 | AY75: 0.63 | AZ75: 20.3 | BA75: -3.0 | BB75: 2.3 | BC75: 5.6 | BE75: 1973 | BF75: =#VALUE! ->  | BG75: 9.6
A76: Lancaster Colony Corp. | B76: LANC | C76: Consumer Staples | D76: Food Products | E76: 56 | F76: 13 | G76: N | H76: N | I76: 156.77 | J76: 1.66 | K76: 0.6500 | L76: 4 | M76: 2.60 | N76: C29 | O76: 0.6000 | P76: 2018-12-06 | Q76: 2018-12-28 | R76: 8.33 | S76: =IF(INDEX(Historical!$D$7:$D$1447,MATCH(B76,Historical!$B$7:$B$1454,0))=0,"n/a",(INDEX(Historical!$C$7:$C$1447,MATCH(B76,Historical!$B$7:$B$1454,0))/INDEX(Historical!$D$7:$D$1447,MATCH(B76,Historical!$B$7:$B$1454,0))-1)*100) -> 8.9 | T76: =IF(INDEX(Historical!$F$7:$F$1447,MATCH(B76,Historical!$B$7:$B$1454,0))=0,"n/a",((INDEX(Historical!$C$7:$C$1447,MATCH(B76,Historical!$B$7:$B$1454,0))/INDEX(Historical!$F$7:$F$1447,MATCH(B76,Historical!$B$7:$B$1454,0)))^(1/3)-1)*100) -> 9.2 | U76: =IF(INDEX(Historical!$H$7:$H$1447,MATCH(B76,Historical!$B$7:$B$1454,0))=0,"n/a",((INDEX(Historical!$C$7:$C$1447,MATCH(B76,Historical!$B$7:$B$1454,0))/INDEX(Historical!$H$7:$H$1447,MATCH(B76,Historical!$B$7:$B$1454,0)))^(1/5)-1)*100) -> 8.6 | V76: =IF(INDEX(Historical!$O$7:$O$1447,MATCH(B76,Historical!$B$7:$B$1454,0))=0,"n/a",((INDEX(Historical!$C$7:$C$1447,MATCH(B76,Historical!$B$7:$B$1454,0))/INDEX(Historical!$O$7:$O$1447,MATCH(B76,Historical!$B$7:$B$1454,0)))^(1/10)-1)*100) -> 8.1 | W76: 1.066 | X76: 2.270 | Z76: 48.96 | AA76: 29.52 | AB76: 6 | AC76: 5.31 | AD76: 9.85 | AE76: 3.45 | AF76: 6.10 | AG76: 22.00 | AH76: 8.90 | AI76: 7.51 | AJ76: 3.80 | AK76: 3.00 | AL76: 4,380 | AM76: 2.2 | AN76: 0.00 | AO76: (19.2) | AP76: 10.3 | AQ76: 182.9 | AR76: =INDEX(Historical!$C$7:$C$1447,MATCH(B76,Historical!$B$7:$B$1454,0))*IF(AH76="n/a",1.03,IF(AH76<0,1.01,IF(AH76>10,1.1,(1+AH76/100)))) -> 2.67 | AS76: 2.87 | AT76: 2.95 | AU76: 3.04 | AV76: 3.13 | AW76: 14.67 | AX76: 9.4 | AY76: 0.33 | AZ76: 35.4 | BA76: -19.4 | BB76: -6.5 | BC76: 0.8 | BE76: 1964 | BF76: =#VALUE! ->  | BG76: 17.7
A77: Leggett & Platt Inc. | B77: LEG | C77: Consumer Discretionary | D77: Household Durables | E77: 47 | F77: 35 | G77: - | H77: - | I77: 45.42 | J77: 3.35 | K77: 0.3800 | L77: 4 | M77: 1.52 | N77: A14 | O77: 0.3600 | P77: 2018-06-14 | Q77: 2018-07-13 | R77: 5.56 | S77: =IF(INDEX(Historical!$D$7:$D$1447,MATCH(B77,Historical!$B$7:$B$1454,0))=0,"n/a",(INDEX(Historical!$C$7:$C$1447,MATCH(B77,Historical!$B$7:$B$1454,0))/INDEX(Historical!$D$7:$D$1447,MATCH(B77,Historical!$B$7:$B$1454,0))-1)*100) -> 5.7 | T77: =IF(INDEX(Historical!$F$7:$F$1447,MATCH(B77,Historical!$B$7:$B$1454,0))=0,"n/a",((INDEX(Historical!$C$7:$C$1447,MATCH(B77,Historical!$B$7:$B$1454,0))/INDEX(Historical!$F$7:$F$1447,MATCH(B77,Historical!$B$7:$B$1454,0)))^(1/3)-1)*100) -> 5.8 | U77: =IF(INDEX(Historical!$H$7:$H$1447,MATCH(B77,Historical!$B$7:$B$1454,0))=0,"n/a",((INDEX(Historical!$C$7:$C$1447,MATCH(B77,Historical!$B$7:$B$1454,0))/INDEX(Historical!$H$7:$H$1447,MATCH(B77,Historical!$B$7:$B$1454,0)))^(1/5)-1)*100) -> 4.8 | V77: =IF(INDEX(Historical!$O$7:$O$1447,MATCH(B77,Historical!$B$7:$B$1454,0))=0,"n/a",((INDEX(Historical!$C$7:$C$1447,MATCH(B77,Historical!$B$7:$B$1454,0))/INDEX(Historical!$O$7:$O$1447,MATCH(B77,Historical!$B$7:$B$1454,0)))^(1/10)-1)*100) -> 4.0 | W77: 1.204 | X77: 0.491 | Z77: 67.26 | AA77: 20.10 | AB77: 12 | AC77: 2.26 | AD77: 3.86 | AE77: 1.38 | AF77: 5.21 | AG77: 24.10 | AH77: -4.40 | AI77: 11.33 | AJ77: 9.80 | AK77: 5.20 | AL77: 5,890 | AM77: 0.9 | AN77: 1.16 | AO77: (11.9) | AP77: 8.2 | AQ77: 115.7 | AR77: =INDEX(Historical!$C$7:$C$1447,MATCH(B77,Historical!$B$7:$B$1454,0))*IF(AH77="n/a",1.03,IF(AH77<0,1.01,IF(AH77>10,1.1,(1+AH77/100)))) -> 1.49 | AS77: 1.64 | AT77: 1.73 | AU77: 1.82 | AV77: 1.91 | AW77: 8.60 | AX77: 18.9 | AY77: 1.13 | AZ77: 35.7 | BA77: -4.3 | BB77: 13.4 | BC77: 8.9 | BE77: 1972 | BF77: =#VALUE! ->  | BG77: 7.8
A78: Linde Plc | B78: LIN | C78: Industrials | D78: Chemicals | E78: 26 | F78: 117 | G78: N | H78: N | I78: 173.24 | J78: 2.02 | K78: 0.8750 | L78: 4 | M78: 3.50 | N78: C15 | O78: 0.8250 | P78: 2019-03-07 | Q78: 2019-03-22 | R78: 6.06 | S78: =IF(INDEX(Historical!$D$7:$D$1447,MATCH(B78,Historical!$B$7:$B$1454,0))=0,"n/a",(INDEX(Historical!$C$7:$C$1447,MATCH(B78,Historical!$B$7:$B$1454,0))/INDEX(Historical!$D$7:$D$1447,MATCH(B78,Historical!$B$7:$B$1454,0))-1)*100) -> 4.8 | T78: =IF(INDEX(Historical!$F$7:$F$1447,MATCH(B78,Historical!$B$7:$B$1454,0))=0,"n/a",((INDEX(Historical!$C$7:$C$1447,MATCH(B78,Historical!$B$7:$B$1454,0))/INDEX(Historical!$F$7:$F$1447,MATCH(B78,Historical!$B$7:$B$1454,0)))^(1/3)-1)*100) -> 4.9 | U78: =IF(INDEX(Historical!$H$7:$H$1447,MATCH(B78,Historical!$B$7:$B$1454,0))=0,"n/a",((INDEX(Historical!$C$7:$C$1447,MATCH(B78,Historical!$B$7:$B$1454,0))/INDEX(Historical!$H$7:$H$1447,MATCH(B78,Historical!$B$7:$B$1454,0)))^(1/5)-1)*100) -> 6.6 | V78: =IF(INDEX(Historical!$O$7:$O$1447,MATCH(B78,Historical!$B$7:$B$1454,0))=0,"n/a",((INDEX(Historical!$C$7:$C$1447,MATCH(B78,Historical!$B$7:$B$1454,0))/INDEX(Historical!$O$7:$O$1447,MATCH(B78,Historical!$B$7:$B$1454,0)))^(1/10)-1)*100) -> 8.2 | W78: 0.802 | X78: 21.921 | Z78: 55.64 | AA78: 27.54 | AB78: 12 | AC78: 6.29 | AD78: 2.50 | AE78: 7.84 | AF78: 8.01 | AG78: 23.30 | AH78: 8.90 | AI78: 16.22 | AJ78: 0.30 | AK78: 11.00 | AL78: 94,310 | AM78: 0.1 | AN78: 1.33 | AO78: (18.9) | AP78: 8.6 | AQ78: 213.1 | AR78: =INDEX(Historical!$C$7:$C$1447,MATCH(B78,Historical!$B$7:$B$1454,0))*IF(AH78="n/a",1.03,IF(AH78<0,1.01,IF(AH78>10,1.1,(1+AH78/100)))) -> 3.59 | AS78: 3.95 | AT78: 4.35 | AU78: 4.78 | AV78: 5.26 | AW78: 21.94 | AX78: 12.7 | AY78: n/a | AZ78: 18.7 | BA78: -1.1 | BB78: 7.5 | BC78: 8.0 | BE78: 1994 | BF78: =#VALUE! ->  | BG78: 7.1
A79: Lowe's Companies | B79: LOW | C79: Consumer Discretionary | D79: Specialty Retail | E79: 56 | F79: 12 | G79: N | H79: Y | I79: 105.09 | J79: 1.83 | K79: 0.4800 | L79: 4 | M79: 1.92 | N79: B09 | O79: 0.4100 | P79: 2018-07-24 | Q79: 2018-08-08 | R79: 17.07 | S79: =IF(INDEX(Historical!$D$7:$D$1447,MATCH(B79,Historical!$B$7:$B$1454,0))=0,"n/a",(INDEX(Historical!$C$7:$C$1447,MATCH(B79,Historical!$B$7:$B$1454,0))/INDEX(Historical!$D$7:$D$1447,MATCH(B79,Historical!$B$7:$B$1454,0))-1)*100) -> 17.1 | T79: =IF(INDEX(Historical!$F$7:$F$1447,MATCH(B79,Historical!$B$7:$B$1454,0))=0,"n/a",((INDEX(Historical!$C$7:$C$1447,MATCH(B79,Historical!$B$7:$B$1454,0))/INDEX(Historical!$F$7:$F$1447,MATCH(B79,Historical!$B$7:$B$1454,0)))^(1/3)-1)*100) -> 20.4 | U79: =IF(INDEX(Historical!$H$7:$H$1447,MATCH(B79,Historical!$B$7:$B$1454,0))=0,"n/a",((INDEX(Historical!$C$7:$C$1447,MATCH(B79,Historical!$B$7:$B$1454,0))/INDEX(Historical!$H$7:$H$1447,MATCH(B79,Historical!$B$7:$B$1454,0)))^(1/5)-1)*100) -> 21.2 | V79: =IF(INDEX(Historical!$O$7:$O$1447,MATCH(B79,Historical!$B$7:$B$1454,0))=0,"n/a",((INDEX(Historical!$C$7:$C$1447,MATCH(B79,Historical!$B$7:$B$1454,0))/INDEX(Historical!$O$7:$O$1447,MATCH(B79,Historical!$B$7:$B$1454,0)))^(1/10)-1)*100) -> 18.4 | W79: 1.156 | X79: 1.088 | Z79: 42.48 | AA79: 23.25 | AB79: 1 | AC79: 4.52 | AD79: 1.44 | AE79: 1.19 | AF79: 15.71 | AG79: 64.60 | AH79: 18.40 | AI79: 18.18 | AJ79: 19.50 | AK79: 16.08 | AL79: 84,700 | AM79: 0.2 | AN79: 2.89 | AO79: (0.2) | AP79: 23.0 | AQ79: 302.9 | AR79: =INDEX(Historical!$C$7:$C$1447,MATCH(B79,Historical!$B$7:$B$1454,0))*IF(AH79="n/a",1.03,IF(AH79<0,1.01,IF(AH79>10,1.1,(1+AH79/100)))) -> 1.96 | AS79: 2.15 | AT79: 2.37 | AU79: 2.61 | AV79: 2.87 | AW79: 11.95 | AX79: 11.4 | AY79: 1.26 | AZ79: 29.5 | BA79: -10.7 | BB79: 9.4 | BC79: 6.3 | BE79: 1963 | BF79: =#VALUE! ->  | BG79: 10
A80: McCormick & Co. | B80: MKC | C80: Consumer Staples | D80: Food Products | E80: 33 | F80: 83 | G80: N | H80: N | I80: 135.98 | J80: 1.68 | K80: 0.5700 | L80: 4 | M80: 2.28 | N80: A16 | O80: 0.5200 | P80: 2018-12-28 | Q80: 2019-01-14 | R80: 9.62 | S80: =IF(INDEX(Historical!$D$7:$D$1447,MATCH(B80,Historical!$B$7:$B$1454,0))=0,"n/a",(INDEX(Historical!$C$7:$C$1447,MATCH(B80,Historical!$B$7:$B$1454,0))/INDEX(Historical!$D$7:$D$1447,MATCH(B80,Historical!$B$7:$B$1454,0))-1)*100) -> 10.6 | T80: =IF(INDEX(Historical!$F$7:$F$1447,MATCH(B80,Historical!$B$7:$B$1454,0))=0,"n/a",((INDEX(Historical!$C$7:$C$1447,MATCH(B80,Historical!$B$7:$B$1454,0))/INDEX(Historical!$F$7:$F$1447,MATCH(B80,Historical!$B$7:$B$1454,0)))^(1/3)-1)*100) -> 9.1 | U80: =IF(INDEX(Historical!$H$7:$H$1447,MATCH(B80,Historical!$B$7:$B$1454,0))=0,"n/a",((INDEX(Historical!$C$7:$C$1447,MATCH(B80,Historical!$B$7:$B$1454,0))/INDEX(Historical!$H$7:$H$1447,MATCH(B80,Historical!$B$7:$B$1454,0)))^(1/5)-1)*100) -> 8.9 | V80: =IF(INDEX(Historical!$O$7:$O$1447,MATCH(B80,Historical!$B$7:$B$1454,0))=0,"n/a",((INDEX(Historical!$C$7:$C$1447,MATCH(B80,Historical!$B$7:$B$1454,0))/INDEX(Historical!$O$7:$O$1447,MATCH(B80,Historical!$B$7:$B$1454,0)))^(1/10)-1)*100) -> 9.0 | W80: 0.987 | X80: 0.861 | Y80: Also MKCV | Z80: 48.10 | AA80: 28.69 | AB80: 11 | AC80: 4.74 | AD80: 3.11 | AE80: 3.27 | AF80: 5.65 | AG80: 30.20 | AH80: 27.60 | AI80: 7.58 | AJ80: 10.30 | AK80: 9.23 | AL80: 17,680 | AM80: 0.1 | AN80: 1.48 | AO80: (18.1) | AP80: 10.5 | AQ80: 168.4 | AR80: =INDEX(Historical!$C$7:$C$1447,MATCH(B80,Historical!$B$7:$B$1454,0))*IF(AH80="n/a",1.03,IF(AH80<0,1.01,IF(AH80>10,1.1,(1+AH80/100)))) -> 2.29 | AS80: 2.46 | AT80: 2.69 | AU80: 2.94 | AV80: 3.21 | AW80: 13.58 | AX80: 10.0 | AY80: 0.23 | AZ80: 36.6 | BA80: -12.8 | BB80: 1.6 | BC80: 6.2 | BE80: 1987 | BF80: =#VALUE! ->  | BG80: 9
A81: McDonald's Corp. | B81: MCD | C81: Consumer Discretionary | D81: Hotels, Restaurants & Leisure | E81: 43 | F81: 60 | G81: N | H81: Y | I81: 183.84 | J81: 2.52 | K81: 1.1600 | L81: 4 | M81: 4.64 | N81: C15 | O81: 1.0100 | P81: 2018-11-30 | Q81: 2018-12-17 | R81: 14.85 | S81: =IF(INDEX(Historical!$D$7:$D$1447,MATCH(B81,Historical!$B$7:$B$1454,0))=0,"n/a",(INDEX(Historical!$C$7:$C$1447,MATCH(B81,Historical!$B$7:$B$1454,0))/INDEX(Historical!$D$7:$D$1447,MATCH(B81,Historical!$B$7:$B$1454,0))-1)*100) -> 9.4 | T81: =IF(INDEX(Historical!$F$7:$F$1447,MATCH(B81,Historical!$B$7:$B$1454,0))=0,"n/a",((INDEX(Historical!$C$7:$C$1447,MATCH(B81,Historical!$B$7:$B$1454,0))/INDEX(Historical!$F$7:$F$1447,MATCH(B81,Historical!$B$7:$B$1454,0)))^(1/3)-1)*100) -> 6.8 | U81: =IF(INDEX(Historical!$H$7:$H$1447,MATCH(B81,Historical!$B$7:$B$1454,0))=0,"n/a",((INDEX(Historical!$C$7:$C$1447,MATCH(B81,Historical!$B$7:$B$1454,0))/INDEX(Historical!$H$7:$H$1447,MATCH(B81,Historical!$B$7:$B$1454,0)))^(1/5)-1)*100) -> 6.1 | V81: =IF(INDEX(Historical!$O$7:$O$1447,MATCH(B81,Historical!$B$7:$B$1454,0))=0,"n/a",((INDEX(Historical!$C$7:$C$1447,MATCH(B81,Historical!$B$7:$B$1454,0))/INDEX(Historical!$O$7:$O$1447,MATCH(B81,Historical!$B$7:$B$1454,0)))^(1/10)-1)*100) -> 9.9 | W81: 0.611 | X81: 0.980 | Z81: 60.73 | AA81: 24.06 | AB81: 12 | AC81: 7.64 | AD81: 3.67 | AE81: 6.76 | AF81: n/a | AG81: -105.70 | AH81: 32.80 | AI81: 8.11 | AJ81: 6.20 | AK81: 6.55 | AL81: 142,070 | AM81: 0.1 | AN81: n/a | AO81: (15.5) | AP81: 8.6 | AQ81: n/a | AR81: =INDEX(Historical!$C$7:$C$1447,MATCH(B81,Historical!$B$7:$B$1454,0))*IF(AH81="n/a",1.03,IF(AH81<0,1.01,IF(AH81>10,1.1,(1+AH81/100)))) -> 4.61 | AS81: 4.98 | AT81: 5.31 | AU81: 5.66 | AV81: 6.03 | AW81: 26.59 | AX81: 14.5 | AY81: 0.52 | AZ81: 25.2 | BA81: -3.7 | BB81: 2.6 | BC81: 8.2 | BE81: 1976 | BF81: =#VALUE! ->  | BG81: 16.2
A82: McGrath Rentcorp | B82: MGRC | C82: Industrials | D82: Commercial Services & Supplies | E82: 26 | F82: 106 | G82: - | H82: - | I82: 59.84 | J82: 2.27 | K82: 0.3400 | L82: 4 | M82: 1.36 | N82: A30 | O82: 0.2600 | P82: 2018-04-13 | Q82: 2018-04-30 | R82: 30.77 | S82: =IF(INDEX(Historical!$D$7:$D$1447,MATCH(B82,Historical!$B$7:$B$1454,0))=0,"n/a",(INDEX(Historical!$C$7:$C$1447,MATCH(B82,Historical!$B$7:$B$1454,0))/INDEX(Historical!$D$7:$D$1447,MATCH(B82,Historical!$B$7:$B$1454,0))-1)*100) -> 23.7 | T82: =IF(INDEX(Historical!$F$7:$F$1447,MATCH(B82,Historical!$B$7:$B$1454,0))=0,"n/a",((INDEX(Historical!$C$7:$C$1447,MATCH(B82,Historical!$B$7:$B$1454,0))/INDEX(Historical!$F$7:$F$1447,MATCH(B82,Historical!$B$7:$B$1454,0)))^(1/3)-1)*100) -> 8.8 | U82: =IF(INDEX(Historical!$H$7:$H$1447,MATCH(B82,Historical!$B$7:$B$1454,0))=0,"n/a",((INDEX(Historical!$C$7:$C$1447,MATCH(B82,Historical!$B$7:$B$1454,0))/INDEX(Historical!$H$7:$H$1447,MATCH(B82,Historical!$B$7:$B$1454,0)))^(1/5)-1)*100) -> 6.0 | V82: =IF(INDEX(Historical!$O$7:$O$1447,MATCH(B82,Historical!$B$7:$B$1454,0))=0,"n/a",((INDEX(Historical!$C$7:$C$1447,MATCH(B82,Historical!$B$7:$B$1454,0))/INDEX(Historical!$O$7:$O$1447,MATCH(B82,Historical!$B$7:$B$1454,0)))^(1/10)-1)*100) -> 5.1 | W82: 1.188 | X82: 1.724 | Z82: 47.39 | AA82: 20.85 | AB82: 12 | AC82: 2.87 | AD82: 2.09 | AE82: 2.97 | AF82: 2.61 | AG82: 32.20 | AH82: 32.80 | AI82: 7.61 | AJ82: 3.50 | AK82: 10.00 | AL82: 1,450 | AM82: 0.1 | AN82: 0.56 | AO82: (12.5) | AP82: 8.3 | AQ82: 55.5 | AR82: =INDEX(Historical!$C$7:$C$1447,MATCH(B82,Historical!$B$7:$B$1454,0))*IF(AH82="n/a",1.03,IF(AH82<0,1.01,IF(AH82>10,1.1,(1+AH82/100)))) -> 1.41 | AS82: 1.52 | AT82: 1.67 | AU82: 1.83 | AV82: 2.02 | AW82: 8.44 | AX82: 14.1 | AY82: 0.64 | AZ82: 30.5 | BA82: -13.0 | BB82: 17.6 | BC82: 7.3 | BE82: 1993 | BF82: =#VALUE! ->  | BG82: 14.8
A83: MDU Resources | B83: MDU | C83: Utilities | D83: Multi-Utilities | E83: 28 | F83: 97 | G83: N | H83: N | I83: 26.42 | J83: 3.07 | K83: 0.2025 | L83: 4 | M83: 0.81 | N83: A01 | O83: 0.1975 | P83: 2018-12-12 | Q83: 2019-01-01 | R83: 2.53 | S83: =IF(INDEX(Historical!$D$7:$D$1447,MATCH(B83,Historical!$B$7:$B$1454,0))=0,"n/a",(INDEX(Historical!$C$7:$C$1447,MATCH(B83,Historical!$B$7:$B$1454,0))/INDEX(Historical!$D$7:$D$1447,MATCH(B83,Historical!$B$7:$B$1454,0))-1)*100) -> 2.6 | T83: =IF(INDEX(Historical!$F$7:$F$1447,MATCH(B83,Historical!$B$7:$B$1454,0))=0,"n/a",((INDEX(Historical!$C$7:$C$1447,MATCH(B83,Historical!$B$7:$B$1454,0))/INDEX(Historical!$F$7:$F$1447,MATCH(B83,Historical!$B$7:$B$1454,0)))^(1/3)-1)*100) -> 2.7 | U83: =IF(INDEX(Historical!$H$7:$H$1447,MATCH(B83,Historical!$B$7:$B$1454,0))=0,"n/a",((INDEX(Historical!$C$7:$C$1447,MATCH(B83,Historical!$B$7:$B$1454,0))/INDEX(Historical!$H$7:$H$1447,MATCH(B83,Historical!$B$7:$B$1454,0)))^(1/5)-1)*100) -> 2.7 | V83: =IF(INDEX(Historical!$O$7:$O$1447,MATCH(B83,Historical!$B$7:$B$1454,0))=0,"n/a",((INDEX(Historical!$C$7:$C$1447,MATCH(B83,Historical!$B$7:$B$1454,0))/INDEX(Historical!$O$7:$O$1447,MATCH(B83,Historical!$B$7:$B$1454,0)))^(1/10)-1)*100) -> 3.0 | W83: 0.926 | X83: 0.035 | Z83: 59.12 | AA83: 19.28 | AB83: 12 | AC83: 1.37 | AD83: 2.75 | AE83: 1.13 | AF83: 2.05 | AG83: 11.70 | AH83: 5.30 | AI83: 5.52 | AJ83: 77.70 | AK83: 7.00 | AL83: 5,140 | AM83: 0.6 | AN83: 0.76 | AO83: (13.5) | AP83: 5.8 | AQ83: 32.6 | AR83: =INDEX(Historical!$C$7:$C$1447,MATCH(B83,Historical!$B$7:$B$1454,0))*IF(AH83="n/a",1.03,IF(AH83<0,1.01,IF(AH83>10,1.1,(1+AH83/100)))) -> 0.83 | AS83: 0.88 | AT83: 0.94 | AU83: 1.00 | AV83: 1.08 | AW83: 4.73 | AX83: 17.9 | AY83: 0.71 | AZ83: 16.2 | BA83: -10.8 | BB83: 5.3 | BC83: -1.4 | BE83: 1992 | BF83: =#VALUE! ->  | BG83: 4.4
A84: Medtronic plc | B84: MDT | C84: Health Care | D84: Health Care Equipment & Supplies | E84: 41 | F84: 64 | G84: Y | H84: Y | I84: 90.50 | J84: 2.21 | K84: 0.5000 | L84: 4 | M84: 2.00 | N84: A26 | O84: 0.4600 | P84: 2018-07-05 | Q84: 2018-07-25 | R84: 8.70 | S84: =IF(INDEX(Historical!$D$7:$D$1447,MATCH(B84,Historical!$B$7:$B$1454,0))=0,"n/a",(INDEX(Historical!$C$7:$C$1447,MATCH(B84,Historical!$B$7:$B$1454,0))/INDEX(Historical!$D$7:$D$1447,MATCH(B84,Historical!$B$7:$B$1454,0))-1)*100) -> 7.9 | T84: =IF(INDEX(Historical!$F$7:$F$1447,MATCH(B84,Historical!$B$7:$B$1454,0))=0,"n/a",((INDEX(Historical!$C$7:$C$1447,MATCH(B84,Historical!$B$7:$B$1454,0))/INDEX(Historical!$F$7:$F$1447,MATCH(B84,Historical!$B$7:$B$1454,0)))^(1/3)-1)*100) -> 11.9 | U84: =IF(INDEX(Historical!$H$7:$H$1447,MATCH(B84,Historical!$B$7:$B$1454,0))=0,"n/a",((INDEX(Historical!$C$7:$C$1447,MATCH(B84,Historical!$B$7:$B$1454,0))/INDEX(Historical!$H$7:$H$1447,MATCH(B84,Historical!$B$7:$B$1454,0)))^(1/5)-1)*100) -> 12.2 | V84: =IF(INDEX(Historical!$O$7:$O$1447,MATCH(B84,Historical!$B$7:$B$1454,0))=0,"n/a",((INDEX(Historical!$C$7:$C$1447,MATCH(B84,Historical!$B$7:$B$1454,0))/INDEX(Historical!$O$7:$O$1447,MATCH(B84,Historical!$B$7:$B$1454,0)))^(1/10)-1)*100) -> 11.9 | W84: 1.027 | X84: 3.209 | Y84: ADR-Ireland,US$ | Z84: 57.97 | AA84: 26.23 | AB84: 4 | AC84: 3.45 | AD84: 3.33 | AE84: 4.02 | AF84: 2.46 | AG84: n/a | AH84: 40.40 | AI84: 5.73 | AJ84: 3.80 | AK84: 7.88 | AL84: 122,100 | AM84: 0.1 | AN84: 0.50 | AO84: (11.8) | AP84: 14.4 | AQ84: 69.4 | AR84: =INDEX(Historical!$C$7:$C$1447,MATCH(B84,Historical!$B$7:$B$1454,0))*IF(AH84="n/a",1.03,IF(AH84<0,1.01,IF(AH84>10,1.1,(1+AH84/100)))) -> 2.11 | AS84: 2.23 | AT84: 2.41 | AU84: 2.60 | AV84: 2.80 | AW84: 12.16 | AX84: 13.4 | AY84: 0.84 | AZ84: 18.4 | BA84: -9.6 | BB84: 2.1 | BC84: -0.4 | BE84: 1978 | BF84: =#VALUE! ->  | BG84: n/a
A85: Mercury General Corp. | B85: MCY | C85: Financials | D85: Insurance | E85: 32 | F85: 88 | G85: - | H85: - | I85: 52.97 | J85: 4.74 | K85: 0.6275 | L85: 4 | M85: 2.51 | N85: C28 | O85: 0.6250 | P85: 2018-12-12 | Q85: 2018-12-27 | R85: 0.40 | S85: =IF(INDEX(Historical!$D$7:$D$1447,MATCH(B85,Historical!$B$7:$B$1454,0))=0,"n/a",(INDEX(Historical!$C$7:$C$1447,MATCH(B85,Historical!$B$7:$B$1454,0))/INDEX(Historical!$D$7:$D$1447,MATCH(B85,Historical!$B$7:$B$1454,0))-1)*100) -> 0.4 | T85: =IF(INDEX(Historical!$F$7:$F$1447,MATCH(B85,Historical!$B$7:$B$1454,0))=0,"n/a",((INDEX(Historical!$C$7:$C$1447,MATCH(B85,Historical!$B$7:$B$1454,0))/INDEX(Historical!$F$7:$F$1447,MATCH(B85,Historical!$B$7:$B$1454,0)))^(1/3)-1)*100) -> 0.4 | U85: =IF(INDEX(Historical!$H$7:$H$1447,MATCH(B85,Historical!$B$7:$B$1454,0))=0,"n/a",((INDEX(Historical!$C$7:$C$1447,MATCH(B85,Historical!$B$7:$B$1454,0))/INDEX(Historical!$H$7:$H$1447,MATCH(B85,Historical!$B$7:$B$1454,0)))^(1/5)-1)*100) -> 0.4 | V85: =IF(INDEX(Historical!$O$7:$O$1447,MATCH(B85,Historical!$B$7:$B$1454,0))=0,"n/a",((INDEX(Historical!$C$7:$C$1447,MATCH(B85,Historical!$B$7:$B$1454,0))/INDEX(Historical!$O$7:$O$1447,MATCH(B85,Historical!$B$7:$B$1454,0)))^(1/10)-1)*100) -> 0.8 | W85: 0.532 | X85: n/a | Z85: n/a | AA85: n/a | AB85: 12 | AC85: -0.10 | AD85: n/a | AE85: 0.86 | AF85: 1.81 | AG85: -0.30 | AH85: -104.30 | AI85: 10.39 | AJ85: -15.40 | AK85: 37.90 | AL85: 2,900 | AM85: 50.7 | AN85: 0.23 | AO85: n/a | AP85: 5.1 | AQ85: n/a | AR85: =INDEX(Historical!$C$7:$C$1447,MATCH(B85,Historical!$B$7:$B$1454,0))*IF(AH85="n/a",1.03,IF(AH85<0,1.01,IF(AH85>10,1.1,(1+AH85/100)))) -> 2.53 | AS85: 2.78 | AT85: 3.06 | AU85: 3.36 | AV85: 3.70 | AW85: 15.43 | AX85: 29.1 | AY85: 0.29 | AZ85: 21.9 | BA85: -14.3 | BB85: 1.5 | BC85: 3.2 | BE85: 1988 | BF85: =#VALUE! ->  | BG85: -0.1
A86: Meredith Corp. | B86: MDP | C86: Communication Services | D86: Media | E86: 26 | F86: 115 | G86: - | H86: - | I86: 57.27 | J86: 4.02 | K86: 0.5750 | L86: 4 | M86: 2.30 | N86: C15 | O86: 0.5450 | P86: 2019-02-27 | Q86: 2019-03-15 | R86: 5.50 | S86: =IF(INDEX(Historical!$D$7:$D$1447,MATCH(B86,Historical!$B$7:$B$1454,0))=0,"n/a",(INDEX(Historical!$C$7:$C$1447,MATCH(B86,Historical!$B$7:$B$1454,0))/INDEX(Historical!$D$7:$D$1447,MATCH(B86,Historical!$B$7:$B$1454,0))-1)*100) -> 4.8 | T86: =IF(INDEX(Historical!$F$7:$F$1447,MATCH(B86,Historical!$B$7:$B$1454,0))=0,"n/a",((INDEX(Historical!$C$7:$C$1447,MATCH(B86,Historical!$B$7:$B$1454,0))/INDEX(Historical!$F$7:$F$1447,MATCH(B86,Historical!$B$7:$B$1454,0)))^(1/3)-1)*100) -> 6.0 | U86: =IF(INDEX(Historical!$H$7:$H$1447,MATCH(B86,Historical!$B$7:$B$1454,0))=0,"n/a",((INDEX(Historical!$C$7:$C$1447,MATCH(B86,Historical!$B$7:$B$1454,0))/INDEX(Historical!$H$7:$H$1447,MATCH(B86,Historical!$B$7:$B$1454,0)))^(1/5)-1)*100) -> 6.0 | V86: =IF(INDEX(Historical!$O$7:$O$1447,MATCH(B86,Historical!$B$7:$B$1454,0))=0,"n/a",((INDEX(Historical!$C$7:$C$1447,MATCH(B86,Historical!$B$7:$B$1454,0))/INDEX(Historical!$O$7:$O$1447,MATCH(B86,Historical!$B$7:$B$1454,0)))^(1/10)-1)*100) -> 9.7 | W86: 0.614 | X86: n/a | Z86: n/a | AA86: n/a | AB86: 6 | AC86: -1.08 | AD86: n/a | AE86: 0.85 | AF86: 2.46 | AG86: -11.90 | AH86: -127.90 | AI86: 100.46 | AJ86: -19.40 | AK86: 26.80 | AL86: 2,590 | AM86: 0.4 | AN86: 2.88 | AO86: n/a | AP86: 10.0 | AQ86: n/a | AR86: =INDEX(Historical!$C$7:$C$1447,MATCH(B86,Historical!$B$7:$B$1454,0))*IF(AH86="n/a",1.03,IF(AH86<0,1.01,IF(AH86>10,1.1,(1+AH86/100)))) -> 2.20 | AS86: 2.42 | AT86: 2.66 | AU86: 2.93 | AV86: 3.22 | AW86: 13.44 | AX86: 23.5 | AY86: 1.14 | AZ86: 21.1 | BA86: -8.2 | BB86: 6.5 | BC86: 8.0 | BE86: 1994 | BF86: =#VALUE! ->  | BG86: -2
A87: MGE Energy Inc. | B87: MGEE | C87: Utilities | D87: Electric Utilities | E87: 43 | F87: 59 | G87: N | H87: N | I87: 63.92 | J87: 2.11 | K87: 0.3375 | L87: 4 | M87: 1.35 | N87: C15 | O87: 0.3225 | P87: 2018-08-30 | Q87: 2018-09-15 | R87: 4.65 | S87: =IF(INDEX(Historical!$D$7:$D$1447,MATCH(B87,Historical!$B$7:$B$1454,0))=0,"n/a",(INDEX(Historical!$C$7:$C$1447,MATCH(B87,Historical!$B$7:$B$1454,0))/INDEX(Historical!$D$7:$D$1447,MATCH(B87,Historical!$B$7:$B$1454,0))-1)*100) -> 4.8 | T87: =IF(INDEX(Historical!$F$7:$F$1447,MATCH(B87,Historical!$B$7:$B$1454,0))=0,"n/a",((INDEX(Historical!$C$7:$C$1447,MATCH(B87,Historical!$B$7:$B$1454,0))/INDEX(Historical!$F$7:$F$1447,MATCH(B87,Historical!$B$7:$B$1454,0)))^(1/3)-1)*100) -> 4.6 | U87: =IF(INDEX(Historical!$H$7:$H$1447,MATCH(B87,Historical!$B$7:$B$1454,0))=0,"n/a",((INDEX(Historical!$C$7:$C$1447,MATCH(B87,Historical!$B$7:$B$1454,0))/INDEX(Historical!$H$7:$H$1447,MATCH(B87,Historical!$B$7:$B$1454,0)))^(1/5)-1)*100) -> 4.3 | V87: =IF(INDEX(Historical!$O$7:$O$1447,MATCH(B87,Historical!$B$7:$B$1454,0))=0,"n/a",((INDEX(Historical!$C$7:$C$1447,MATCH(B87,Historical!$B$7:$B$1454,0))/INDEX(Historical!$O$7:$O$1447,MATCH(B87,Historical!$B$7:$B$1454,0)))^(1/10)-1)*100) -> 3.3 | W87: 1.305 | X87: n/a | Z87: 56.96 | AA87: 26.97 | AB87: 12 | AC87: 2.37 | AD87: 6.73 | AE87: 3.96 | AF87: 2.71 | AG87: n/a | AH87: n/a | AI87: n/a | AJ87: n/a | AK87: 4.00 | AL87: 2,220 | AM87: 0.2 | AN87: 0.63 | AO87: (20.6) | AP87: 6.4 | AQ87: 80.2 | AR87: =INDEX(Historical!$C$7:$C$1447,MATCH(B87,Historical!$B$7:$B$1454,0))*IF(AH87="n/a",1.03,IF(AH87<0,1.01,IF(AH87>10,1.1,(1+AH87/100)))) -> 1.36 | AS87: 1.40 | AT87: =IF($AK87="n/a",1.03*AS87,IF($AK87<0,1.01*AS87,IF($AK87>10,1.1*AS87,(1+$AK87/100)*AS87))) -> 1.46 | AU87: 1.51 | AV87: 1.58 | AW87: 7.31 | AX87: 11.4 | AY87: 0.39 | AZ87: 25.2 | BA87: -7.3 | BB87: 1.7 | BC87: 1.4 | BE87: 1976 | BF87: =#VALUE! ->  | BG87: n/a
A88: Middlesex Water Co. | B88: MSEX | C88: Utilities | D88: Water Utilities | E88: 46 | F88: 44 | G88: N | H88: N | I88: 58.87 | J88: 1.63 | K88: 0.2400 | L88: 4 | M88: 0.96 | N88: C01 | O88: 0.2238 | P88: 2018-11-14 | Q88: 2018-12-03 | R88: 7.26 | S88: =IF(INDEX(Historical!$D$7:$D$1447,MATCH(B88,Historical!$B$7:$B$1454,0))=0,"n/a",(INDEX(Historical!$C$7:$C$1447,MATCH(B88,Historical!$B$7:$B$1454,0))/INDEX(Historical!$D$7:$D$1447,MATCH(B88,Historical!$B$7:$B$1454,0))-1)*100) -> 6.3 | T88: =IF(INDEX(Historical!$F$7:$F$1447,MATCH(B88,Historical!$B$7:$B$1454,0))=0,"n/a",((INDEX(Historical!$C$7:$C$1447,MATCH(B88,Historical!$B$7:$B$1454,0))/INDEX(Historical!$F$7:$F$1447,MATCH(B88,Historical!$B$7:$B$1454,0)))^(1/3)-1)*100) -> 5.5 | U88: =IF(INDEX(Historical!$H$7:$H$1447,MATCH(B88,Historical!$B$7:$B$1454,0))=0,"n/a",((INDEX(Historical!$C$7:$C$1447,MATCH(B88,Historical!$B$7:$B$1454,0))/INDEX(Historical!$H$7:$H$1447,MATCH(B88,Historical!$B$7:$B$1454,0)))^(1/5)-1)*100) -> 3.9 | V88: =IF(INDEX(Historical!$O$7:$O$1447,MATCH(B88,Historical!$B$7:$B$1454,0))=0,"n/a",((INDEX(Historical!$C$7:$C$1447,MATCH(B88,Historical!$B$7:$B$1454,0))/INDEX(Historical!$O$7:$O$1447,MATCH(B88,Historical!$B$7:$B$1454,0)))^(1/10)-1)*100) -> 2.6 | W88: 1.481 | X88: 0.449 | Z88: 52.75 | AA88: 32.35 | AB88: 12 | AC88: 1.82 | AD88: 11.96 | AE88: 6.94 | AF88: 3.94 | AG88: 13.00 | AH88: -2.70 | AI88: 4.59 | AJ88: 8.70 | AK88: 2.70 | AL88: 946.04 | AM88: 1.3 | AN88: 0.80 | AO88: (26.8) | AP88: 5.5 | AQ88: 138.0 | AR88: =INDEX(Historical!$C$7:$C$1447,MATCH(B88,Historical!$B$7:$B$1454,0))*IF(AH88="n/a",1.03,IF(AH88<0,1.01,IF(AH88>10,1.1,(1+AH88/100)))) -> 0.92 | AS88: 0.96 | AT88: 0.99 | AU88: 1.02 | AV88: 1.04 | AW88: 4.93 | AX88: 8.4 | AY88: 0.42 | AZ88: 73.2 | BA88: -2.4 | BB88: 7.1 | BC88: 22.2 | BE88: 1974 | BF88: =#VALUE! ->  | BG88: 4.3
A89: MSA Safety Inc. | B89: MSA | C89: Industrials | D89: Commercial Services & Supplies | E89: 47 | F89: 34 | G89: - | H89: - | I89: 103.39 | J89: 1.47 | K89: 0.3800 | L89: 4 | M89: 1.52 | N89: C10 | O89: 0.3500 | P89: 2018-05-18 | Q89: 2018-06-10 | R89: 8.57 | S89: =IF(INDEX(Historical!$D$7:$D$1447,MATCH(B89,Historical!$B$7:$B$1454,0))=0,"n/a",(INDEX(Historical!$C$7:$C$1447,MATCH(B89,Historical!$B$7:$B$1454,0))/INDEX(Historical!$D$7:$D$1447,MATCH(B89,Historical!$B$7:$B$1454,0))-1)*100) -> 8.0 | T89: =IF(INDEX(Historical!$F$7:$F$1447,MATCH(B89,Historical!$B$7:$B$1454,0))=0,"n/a",((INDEX(Historical!$C$7:$C$1447,MATCH(B89,Historical!$B$7:$B$1454,0))/INDEX(Historical!$F$7:$F$1447,MATCH(B89,Historical!$B$7:$B$1454,0)))^(1/3)-1)*100) -> 5.5 | U89: =IF(INDEX(Historical!$H$7:$H$1447,MATCH(B89,Historical!$B$7:$B$1454,0))=0,"n/a",((INDEX(Historical!$C$7:$C$1447,MATCH(B89,Historical!$B$7:$B$1454,0))/INDEX(Historical!$H$7:$H$1447,MATCH(B89,Historical!$B$7:$B$1454,0)))^(1/5)-1)*100) -> 4.8 | V89: =IF(INDEX(Historical!$O$7:$O$1447,MATCH(B89,Historical!$B$7:$B$1454,0))=0,"n/a",((INDEX(Historical!$C$7:$C$1447,MATCH(B89,Historical!$B$7:$B$1454,0))/INDEX(Historical!$O$7:$O$1447,MATCH(B89,Historical!$B$7:$B$1454,0)))^(1/10)-1)*100) -> 4.7 | W89: 1.013 | X89: n/a | Z89: 70.70 | AA89: 48.09 | AB89: 12 | AC89: 2.15 | AD89: 2.67 | AE89: 2.98 | AF89: 6.10 | AG89: 10.30 | AH89: -51.20 | AI89: 8.75 | AJ89: -12.60 | AK89: 18.00 | AL89: 4,010 | AM89: 1.5 | AN89: 0.60 | AO89: (41.8) | AP89: 6.2 | AQ89: 261.1 | AR89: =INDEX(Historical!$C$7:$C$1447,MATCH(B89,Historical!$B$7:$B$1454,0))*IF(AH89="n/a",1.03,IF(AH89<0,1.01,IF(AH89>10,1.1,(1+AH89/100)))) -> 1.50 | AS89: 1.64 | AT89: 1.80 | AU89: 1.98 | AV89: 2.18 | AW89: 9.10 | AX89: 8.8 | AY89: 1.31 | AZ89: 29.6 | BA89: -6.7 | BB89: 4.8 | BC89: 3.6 | BE89: 1972 | BF89: =#VALUE! ->  | BG89: 3.9
A90: NACCO Industries | B90: NC | C90: Energy | D90: Oil, Gas & Consumable Fuels | E90: 33 | F90: 80 | G90: - | H90: - | I90: 36.57 | J90: 1.80 | K90: 0.1650 | L90: 4 | M90: 0.66 | N90: C15 | O90: 0.0859 | P90: 2017-11-30 | Q90: 2017-12-15 | R90: 92.01 | S90: =IF(INDEX(Historical!$D$7:$D$1447,MATCH(B90,Historical!$B$7:$B$1454,0))=0,"n/a",(INDEX(Historical!$C$7:$C$1447,MATCH(B90,Historical!$B$7:$B$1454,0))/INDEX(Historical!$D$7:$D$1447,MATCH(B90,Historical!$B$7:$B$1454,0))-1)*100) -> 56.7 | T90: =IF(INDEX(Historical!$F$7:$F$1447,MATCH(B90,Historical!$B$7:$B$1454,0))=0,"n/a",((INDEX(Historical!$C$7:$C$1447,MATCH(B90,Historical!$B$7:$B$1454,0))/INDEX(Historical!$F$7:$F$1447,MATCH(B90,Historical!$B$7:$B$1454,0)))^(1/3)-1)*100) -> 26.1 | U90: =IF(INDEX(Historical!$H$7:$H$1447,MATCH(B90,Historical!$B$7:$B$1454,0))=0,"n/a",((INDEX(Historical!$C$7:$C$1447,MATCH(B90,Historical!$B$7:$B$1454,0))/INDEX(Historical!$H$7:$H$1447,MATCH(B90,Historical!$B$7:$B$1454,0)))^(1/5)-1)*100) -> 15.9 | V90: =IF(INDEX(Historical!$O$7:$O$1447,MATCH(B90,Historical!$B$7:$B$1454,0))=0,"n/a",((INDEX(Historical!$C$7:$C$1447,MATCH(B90,Historical!$B$7:$B$1454,0))/INDEX(Historical!$O$7:$O$1447,MATCH(B90,Historical!$B$7:$B$1454,0)))^(1/10)-1)*100) -> 12.4 | W90: 1.286 | X90: n/a | Y90: 2018 = Year 33 | Z90: 15.10 | AA90: 8.37 | AB90: 12 | AC90: 4.37 | AD90: n/a | AE90: 2.08 | AF90: 1.06 | AG90: 14.80 | AH90: 754.60 | AI90: n/a | AJ90: -6.00 | AK90: n/a | AL90: 255 | AM90: 3.4 | AN90: 0.07 | AO90: 9.4 | AP90: 17.7 | AQ90: (37.2) | AR90: =INDEX(Historical!$C$7:$C$1447,MATCH(B90,Historical!$B$7:$B$1454,0))*IF(AH90="n/a",1.03,IF(AH90<0,1.01,IF(AH90>10,1.1,(1+AH90/100)))) -> 0.73 | AS90: 0.75 | AT90: 0.77 | AU90: 0.79 | AV90: 0.82 | AW90: 3.85 | AX90: 10.5 | AY90: 0.61 | AZ90: 27.1 | BA90: -15.0 | BB90: 4.3 | BC90: 6.5 | BE90: 1987 | BF90: =#VALUE! ->  | BG90: 9.1
A91: National Fuel Gas | B91: NFG | C91: Utilities | D91: Gas Utilities | E91: 48 | F91: 31 | G91: N | H91: N | I91: 60.19 | J91: 2.82 | K91: 0.4250 | L91: 4 | M91: 1.70 | N91: A14 | O91: 0.4150 | P91: 2018-06-28 | Q91: 2018-07-13 | R91: 2.41 | S91: =IF(INDEX(Historical!$D$7:$D$1447,MATCH(B91,Historical!$B$7:$B$1454,0))=0,"n/a",(INDEX(Historical!$C$7:$C$1447,MATCH(B91,Historical!$B$7:$B$1454,0))/INDEX(Historical!$D$7:$D$1447,MATCH(B91,Historical!$B$7:$B$1454,0))-1)*100) -> 2.4 | T91: =IF(INDEX(Historical!$F$7:$F$1447,MATCH(B91,Historical!$B$7:$B$1454,0))=0,"n/a",((INDEX(Historical!$C$7:$C$1447,MATCH(B91,Historical!$B$7:$B$1454,0))/INDEX(Historical!$F$7:$F$1447,MATCH(B91,Historical!$B$7:$B$1454,0)))^(1/3)-1)*100) -> 2.5 | U91: =IF(INDEX(Historical!$H$7:$H$1447,MATCH(B91,Historical!$B$7:$B$1454,0))=0,"n/a",((INDEX(Historical!$C$7:$C$1447,MATCH(B91,Historical!$B$7:$B$1454,0))/INDEX(Historical!$H$7:$H$1447,MATCH(B91,Historical!$B$7:$B$1454,0)))^(1/5)-1)*100) -> 2.6 | V91: =IF(INDEX(Historical!$O$7:$O$1447,MATCH(B91,Historical!$B$7:$B$1454,0))=0,"n/a",((INDEX(Historical!$C$7:$C$1447,MATCH(B91,Historical!$B$7:$B$1454,0))/INDEX(Historical!$O$7:$O$1447,MATCH(B91,Historical!$B$7:$B$1454,0)))^(1/10)-1)*100) -> 2.8 | W91: 0.905 | X91: 1.605 | Z91: 49.42 | AA91: 17.50 | AB91: 9 | AC91: 3.44 | AD91: 2.06 | AE91: 3.08 | AF91: 2.53 | AG91: 15.10 | AH91: 1.10 | AI91: -1.21 | AJ91: 1.60 | AK91: 8.50 | AL91: 5,130 | AM91: 1.6 | AN91: 1.04 | AO91: (12.1) | AP91: 5.4 | AQ91: 40.3 | AR91: =INDEX(Historical!$C$7:$C$1447,MATCH(B91,Historical!$B$7:$B$1454,0))*IF(AH91="n/a",1.03,IF(AH91<0,1.01,IF(AH91>10,1.1,(1+AH91/100)))) -> 1.70 | AS91: 1.72 | AT91: 1.86 | AU91: 2.02 | AV91: 2.19 | AW91: 9.49 | AX91: 15.8 | AY91: 0.90 | AZ91: 24.3 | BA91: -0.9 | BB91: 7.7 | BC91: 9.8 | BE91: 1971 | BF91: =#VALUE! ->  | BG91: 4.9
A92: National Retail Properties | B92: NNN | C92: Real Estate | D92: Equity Real Estate Investment Trusts (REITs) | E92: 29 | F92: 93 | G92: N | H92: N | I92: 52.10 | J92: 3.84 | K92: 0.5000 | L92: 4 | M92: 2.00 | N92: B15 | O92: 0.4750 | P92: 2018-07-30 | Q92: 2018-08-15 | R92: 5.26 | S92: =IF(INDEX(Historical!$D$7:$D$1447,MATCH(B92,Historical!$B$7:$B$1454,0))=0,"n/a",(INDEX(Historical!$C$7:$C$1447,MATCH(B92,Historical!$B$7:$B$1454,0))/INDEX(Historical!$D$7:$D$1447,MATCH(B92,Historical!$B$7:$B$1454,0))-1)*100) -> 4.8 | T92: =IF(INDEX(Historical!$F$7:$F$1447,MATCH(B92,Historical!$B$7:$B$1454,0))=0,"n/a",((INDEX(Historical!$C$7:$C$1447,MATCH(B92,Historical!$B$7:$B$1454,0))/INDEX(Historical!$F$7:$F$1447,MATCH(B92,Historical!$B$7:$B$1454,0)))^(1/3)-1)*100) -> 4.5 | U92: =IF(INDEX(Historical!$H$7:$H$1447,MATCH(B92,Historical!$B$7:$B$1454,0))=0,"n/a",((INDEX(Historical!$C$7:$C$1447,MATCH(B92,Historical!$B$7:$B$1454,0))/INDEX(Historical!$H$7:$H$1447,MATCH(B92,Historical!$B$7:$B$1454,0)))^(1/5)-1)*100) -> 4.0 | V92: =IF(INDEX(Historical!$O$7:$O$1447,MATCH(B92,Historical!$B$7:$B$1454,0))=0,"n/a",((INDEX(Historical!$C$7:$C$1447,MATCH(B92,Historical!$B$7:$B$1454,0))/INDEX(Historical!$O$7:$O$1447,MATCH(B92,Historical!$B$7:$B$1454,0)))^(1/10)-1)*100) -> 2.8 | W92: 1.443 | X92: 0.425 | Z92: 121.95 | AA92: 31.77 | AB92: 12 | AC92: 1.64 | AD92: 3.17 | AE92: 13.48 | AF92: 2.36 | AG92: 7.60 | AH92: 13.70 | AI92: 3.23 | AJ92: 9.50 | AK92: 10.00 | AL92: 8,400 | AM92: 0.8 | AN92: 0.81 | AO92: (23.9) | AP92: 7.9 | AQ92: 82.5 | AR92: =INDEX(Historical!$C$7:$C$1447,MATCH(B92,Historical!$B$7:$B$1454,0))*IF(AH92="n/a",1.03,IF(AH92<0,1.01,IF(AH92>10,1.1,(1+AH92/100)))) -> 2.15 | AS92: 2.21 | AT92: 2.44 | AU92: 2.68 | AV92: 2.95 | AW92: 12.42 | AX92: 23.8 | AY92: 0.26 | AZ92: 41.0 | BA92: -4.5 | BB92: 3.2 | BC92: 12.2 | BE92: 1990 | BF92: =#VALUE! ->  | BG92: 3.7
A93: NextEra Energy Inc. | B93: NEE | C93: Utilities | D93: Electric Utilities | E93: 25 | F93: 132 | G93: N | H93: N | I93: 187.72 | J93: 2.66 | K93: 1.2500 | L93: 4 | M93: 5.00 | N93: C15 | O93: 1.1100 | P93: 2019-02-27 | Q93: 2019-03-15 | R93: 12.61 | S93: =IF(INDEX(Historical!$D$7:$D$1447,MATCH(B93,Historical!$B$7:$B$1454,0))=0,"n/a",(INDEX(Historical!$C$7:$C$1447,MATCH(B93,Historical!$B$7:$B$1454,0))/INDEX(Historical!$D$7:$D$1447,MATCH(B93,Historical!$B$7:$B$1454,0))-1)*100) -> 13.0 | T93: =IF(INDEX(Historical!$F$7:$F$1447,MATCH(B93,Historical!$B$7:$B$1454,0))=0,"n/a",((INDEX(Historical!$C$7:$C$1447,MATCH(B93,Historical!$B$7:$B$1454,0))/INDEX(Historical!$F$7:$F$1447,MATCH(B93,Historical!$B$7:$B$1454,0)))^(1/3)-1)*100) -> 13.0 | U93: =IF(INDEX(Historical!$H$7:$H$1447,MATCH(B93,Historical!$B$7:$B$1454,0))=0,"n/a",((INDEX(Historical!$C$7:$C$1447,MATCH(B93,Historical!$B$7:$B$1454,0))/INDEX(Historical!$H$7:$H$1447,MATCH(B93,Historical!$B$7:$B$1454,0)))^(1/5)-1)*100) -> 11.0 | V93: =IF(INDEX(Historical!$O$7:$O$1447,MATCH(B93,Historical!$B$7:$B$1454,0))=0,"n/a",((INDEX(Historical!$C$7:$C$1447,MATCH(B93,Historical!$B$7:$B$1454,0))/INDEX(Historical!$O$7:$O$1447,MATCH(B93,Historical!$B$7:$B$1454,0)))^(1/10)-1)*100) -> 9.6 | W93: 1.145 | X93: 0.406 | Z93: 38.31 | AA93: 14.38 | AB93: 12 | AC93: 13.05 | AD93: 1.93 | AE93: 5.36 | AF93: 2.63 | AG93: 19.80 | AH93: 75.60 | AI93: 7.92 | AJ93: 27.00 | AK93: 7.46 | AL93: 89,670 | AM93: 0.2 | AN93: 1.10 | AO93: (0.8) | AP93: 13.6 | AQ93: 29.7 | AR93: =INDEX(Historical!$C$7:$C$1447,MATCH(B93,Historical!$B$7:$B$1454,0))*IF(AH93="n/a",1.03,IF(AH93<0,1.01,IF(AH93>10,1.1,(1+AH93/100)))) -> 4.88 | AS93: 5.27 | AT93: 5.66 | AU93: 6.09 | AV93: 6.54 | AW93: 28.45 | AX93: 15.2 | AY93: 0.28 | AZ93: 24.0 | BA93: -0.9 | BB93: 5.7 | BC93: 9.3 | BE93: 1995 | BF93: =#VALUE! ->  | BG93: 6.8
A94: Nordson Corp. | B94: NDSN | C94: Industrials | D94: Machinery | E94: 55 | F94: 16 | G94: N | H94: N | I94: 135.76 | J94: 1.03 | K94: 0.3500 | L94: 4 | M94: 1.40 | N94: C05 | O94: 0.3000 | P94: 2018-08-20 | Q94: 2018-09-04 | R94: 16.67 | S94: =IF(INDEX(Historical!$D$7:$D$1447,MATCH(B94,Historical!$B$7:$B$1454,0))=0,"n/a",(INDEX(Historical!$C$7:$C$1447,MATCH(B94,Historical!$B$7:$B$1454,0))/INDEX(Historical!$D$7:$D$1447,MATCH(B94,Historical!$B$7:$B$1454,0))-1)*100) -> 9.6 | T94: =IF(INDEX(Historical!$F$7:$F$1447,MATCH(B94,Historical!$B$7:$B$1454,0))=0,"n/a",((INDEX(Historical!$C$7:$C$1447,MATCH(B94,Historical!$B$7:$B$1454,0))/INDEX(Historical!$F$7:$F$1447,MATCH(B94,Historical!$B$7:$B$1454,0)))^(1/3)-1)*100) -> 11.6 | U94: =IF(INDEX(Historical!$H$7:$H$1447,MATCH(B94,Historical!$B$7:$B$1454,0))=0,"n/a",((INDEX(Historical!$C$7:$C$1447,MATCH(B94,Historical!$B$7:$B$1454,0))/INDEX(Historical!$H$7:$H$1447,MATCH(B94,Historical!$B$7:$B$1454,0)))^(1/5)-1)*100) -> 14.7 | V94: =IF(INDEX(Historical!$O$7:$O$1447,MATCH(B94,Historical!$B$7:$B$1454,0))=0,"n/a",((INDEX(Historical!$C$7:$C$1447,MATCH(B94,Historical!$B$7:$B$1454,0))/INDEX(Historical!$O$7:$O$1447,MATCH(B94,Historical!$B$7:$B$1454,0)))^(1/10)-1)*100) -> 13.1 | W94: 1.121 | X94: 1.214 | Z94: 25.59 | AA94: 24.82 | AB94: 10 | AC94: 5.47 | AD94: 2.58 | AE94: 3.49 | AF94: 5.43 | AG94: 26.80 | AH94: 18.80 | AI94: 12.03 | AJ94: 12.10 | AK94: 9.60 | AL94: 7,690 | AM94: 1.2 | AN94: 0.92 | AO94: (9.1) | AP94: 15.7 | AQ94: 144.7 | AR94: =INDEX(Historical!$C$7:$C$1447,MATCH(B94,Historical!$B$7:$B$1454,0))*IF(AH94="n/a",1.03,IF(AH94<0,1.01,IF(AH94>10,1.1,(1+AH94/100)))) -> 1.38 | AS94: 1.51 | AT94: 1.66 | AU94: 1.82 | AV94: 1.99 | AW94: 8.35 | AX94: 6.2 | AY94: 1.12 | AZ94: 23.2 | BA94: -7.6 | BB94: 7.5 | BC94: 4.9 | BE94: 1964 | BF94: =#VALUE! ->  | BG94: 10.5
A95: Northwest Natural Gas | B95: NWN | C95: Utilities | D95: Gas Utilities | E95: 63 | F95: 3 | G95: N | H95: N | I95: 64.22 | J95: 2.96 | K95: 0.4750 | L95: 4 | M95: 1.90 | N95: B15 | O95: 0.4725 | P95: 2018-10-30 | Q95: 2018-11-15 | R95: 0.53 | S95: =IF(INDEX(Historical!$D$7:$D$1447,MATCH(B95,Historical!$B$7:$B$1454,0))=0,"n/a",(INDEX(Historical!$C$7:$C$1447,MATCH(B95,Historical!$B$7:$B$1454,0))/INDEX(Historical!$D$7:$D$1447,MATCH(B95,Historical!$B$7:$B$1454,0))-1)*100) -> 0.5 | T95: =IF(INDEX(Historical!$F$7:$F$1447,MATCH(B95,Historical!$B$7:$B$1454,0))=0,"n/a",((INDEX(Historical!$C$7:$C$1447,MATCH(B95,Historical!$B$7:$B$1454,0))/INDEX(Historical!$F$7:$F$1447,MATCH(B95,Historical!$B$7:$B$1454,0)))^(1/3)-1)*100) -> 0.7 | U95: =IF(INDEX(Historical!$H$7:$H$1447,MATCH(B95,Historical!$B$7:$B$1454,0))=0,"n/a",((INDEX(Historical!$C$7:$C$1447,MATCH(B95,Historical!$B$7:$B$1454,0))/INDEX(Historical!$H$7:$H$1447,MATCH(B95,Historical!$B$7:$B$1454,0)))^(1/5)-1)*100) -> 0.7 | V95: =IF(INDEX(Historical!$O$7:$O$1447,MATCH(B95,Historical!$B$7:$B$1454,0))=0,"n/a",((INDEX(Historical!$C$7:$C$1447,MATCH(B95,Historical!$B$7:$B$1454,0))/INDEX(Historical!$O$7:$O$1447,MATCH(B95,Historical!$B$7:$B$1454,0)))^(1/10)-1)*100) -> 2.2 | W95: 0.329 | X95: n/a | Z95: n/a | AA95: n/a | AB95: 12 | AC95: -1.33 | AD95: n/a | AE95: 2.57 | AF95: 2.51 | AG95: -8.20 | AH95: -156.30 | AI95: 11.30 | AJ95: -20.60 | AK95: 4.00 | AL95: 1,850 | AM95: 0.3 | AN95: 1.23 | AO95: n/a | AP95: 3.7 | AQ95: n/a | AR95: =INDEX(Historical!$C$7:$C$1447,MATCH(B95,Historical!$B$7:$B$1454,0))*IF(AH95="n/a",1.03,IF(AH95<0,1.01,IF(AH95>10,1.1,(1+AH95/100)))) -> 1.91 | AS95: 2.10 | AT95: 2.19 | AU95: 2.27 | AV95: 2.37 | AW95: 10.84 | AX95: 16.9 | AY95: 0.40 | AZ95: 24.7 | BA95: -10.6 | BB95: 4.3 | BC95: 0.2 | BE95: 1957 | BF95: =#VALUE! ->  | BG95: -2
A96: Nucor Corp. | B96: NUE | C96: Materials | D96: Metals & Mining | E96: 46 | F96: 47 | G96: N | H96: N | I96: 60.57 | J96: 2.64 | K96: 0.4000 | L96: 4 | M96: 1.60 | N96: B09 | O96: 0.3800 | P96: 2018-12-28 | Q96: 2019-02-11 | R96: 5.26 | S96: =IF(INDEX(Historical!$D$7:$D$1447,MATCH(B96,Historical!$B$7:$B$1454,0))=0,"n/a",(INDEX(Historical!$C$7:$C$1447,MATCH(B96,Historical!$B$7:$B$1454,0))/INDEX(Historical!$D$7:$D$1447,MATCH(B96,Historical!$B$7:$B$1454,0))-1)*100) -> 0.7 | T96: =IF(INDEX(Historical!$F$7:$F$1447,MATCH(B96,Historical!$B$7:$B$1454,0))=0,"n/a",((INDEX(Historical!$C$7:$C$1447,MATCH(B96,Historical!$B$7:$B$1454,0))/INDEX(Historical!$F$7:$F$1447,MATCH(B96,Historical!$B$7:$B$1454,0)))^(1/3)-1)*100) -> 0.7 | U96: =IF(INDEX(Historical!$H$7:$H$1447,MATCH(B96,Historical!$B$7:$B$1454,0))=0,"n/a",((INDEX(Historical!$C$7:$C$1447,MATCH(B96,Historical!$B$7:$B$1454,0))/INDEX(Historical!$H$7:$H$1447,MATCH(B96,Historical!$B$7:$B$1454,0)))^(1/5)-1)*100) -> 0.7 | V96: =IF(INDEX(Historical!$O$7:$O$1447,MATCH(B96,Historical!$B$7:$B$1454,0))=0,"n/a",((INDEX(Historical!$C$7:$C$1447,MATCH(B96,Historical!$B$7:$B$1454,0))/INDEX(Historical!$O$7:$O$1447,MATCH(B96,Historical!$B$7:$B$1454,0)))^(1/10)-1)*100) -> 1.5 | W96: 0.448 | X96: 0.038 | Z96: 32.00 | AA96: 12.11 | AB96: 12 | AC96: 5.00 | AD96: 1.13 | AE96: 0.81 | AF96: 1.95 | AG96: 19.20 | AH96: 43.10 | AI96: -7.40 | AJ96: 17.60 | AK96: 10.69 | AL96: 18,470 | AM96: 0.2 | AN96: 0.44 | AO96: (8.8) | AP96: 3.3 | AQ96: 2.5 | AR96: =INDEX(Historical!$C$7:$C$1447,MATCH(B96,Historical!$B$7:$B$1454,0))*IF(AH96="n/a",1.03,IF(AH96<0,1.01,IF(AH96>10,1.1,(1+AH96/100)))) -> 1.67 | AS96: 1.69 | AT96: 1.86 | AU96: 2.04 | AV96: 2.25 | AW96: 9.51 | AX96: 15.7 | AY96: 1.55 | AZ96: 21.7 | BA96: -13.2 | BB96: 5.6 | BC96: -1.7 | BE96: 1974 | BF96: =#VALUE! ->  | BG96: 10.5
A97: Old Republic International | B97: ORI | C97: Financials | D97: Insurance | E97: 38 | F97: 69 | G97: N | H97: Y | I97: 20.86 | J97: 3.84 | K97: 0.2000 | L97: 4 | M97: 0.80 | N97: C15 | O97: 0.1950 | P97: 2019-03-04 | Q97: 2019-03-15 | R97: 2.56 | S97: =IF(INDEX(Historical!$D$7:$D$1447,MATCH(B97,Historical!$B$7:$B$1454,0))=0,"n/a",(INDEX(Historical!$C$7:$C$1447,MATCH(B97,Historical!$B$7:$B$1454,0))/INDEX(Historical!$D$7:$D$1447,MATCH(B97,Historical!$B$7:$B$1454,0))-1)*100) -> 2.6 | T97: =IF(INDEX(Historical!$F$7:$F$1447,MATCH(B97,Historical!$B$7:$B$1454,0))=0,"n/a",((INDEX(Historical!$C$7:$C$1447,MATCH(B97,Historical!$B$7:$B$1454,0))/INDEX(Historical!$F$7:$F$1447,MATCH(B97,Historical!$B$7:$B$1454,0)))^(1/3)-1)*100) -> 1.8 | U97: =IF(INDEX(Historical!$H$7:$H$1447,MATCH(B97,Historical!$B$7:$B$1454,0))=0,"n/a",((INDEX(Historical!$C$7:$C$1447,MATCH(B97,Historical!$B$7:$B$1454,0))/INDEX(Historical!$H$7:$H$1447,MATCH(B97,Historical!$B$7:$B$1454,0)))^(1/5)-1)*100) -> 1.6 | V97: =IF(INDEX(Historical!$O$7:$O$1447,MATCH(B97,Historical!$B$7:$B$1454,0))=0,"n/a",((INDEX(Historical!$C$7:$C$1447,MATCH(B97,Historical!$B$7:$B$1454,0))/INDEX(Historical!$O$7:$O$1447,MATCH(B97,Historical!$B$7:$B$1454,0)))^(1/10)-1)*100) -> 1.5 | W97: 1.054 | X97: 0.028 | Z97: 65.04 | AA97: 16.96 | AB97: 12 | AC97: 1.23 | AD97: 1.69 | AE97: 1.00 | AF97: 1.17 | AG97: 10.80 | AH97: 32.20 | AI97: 2.62 | AJ97: 57.70 | AK97: 10.00 | AL97: 6,300 | AM97: 0.4 | AN97: 0.18 | AO97: (11.5) | AP97: 5.4 | AQ97: (6.1) | AR97: =INDEX(Historical!$C$7:$C$1447,MATCH(B97,Historical!$B$7:$B$1454,0))*IF(AH97="n/a",1.03,IF(AH97<0,1.01,IF(AH97>10,1.1,(1+AH97/100)))) -> 0.86 | AS97: 0.88 | AT97: 0.97 | AU97: 1.07 | AV97: 1.17 | AW97: 4.94 | AX97: 23.7 | AY97: 0.95 | AZ97: 7.1 | BA97: -9.5 | BB97: 0.5 | BC97: -1.8 | BE97: 1982 | BF97: =#VALUE! ->  | BG97: 2.8
A98: Parker-Hannifin Corp. | B98: PH | C98: Industrials | D98: Machinery | E98: 62 | F98: 6 | G98: N | H98: N | I98: 176.16 | J98: 1.73 | K98: 0.7600 | L98: 4 | M98: 3.04 | N98: C10 | O98: 0.6600 | P98: 2018-05-09 | Q98: 2018-06-10 | R98: 15.15 | S98: =IF(INDEX(Historical!$D$7:$D$1447,MATCH(B98,Historical!$B$7:$B$1454,0))=0,"n/a",(INDEX(Historical!$C$7:$C$1447,MATCH(B98,Historical!$B$7:$B$1454,0))/INDEX(Historical!$D$7:$D$1447,MATCH(B98,Historical!$B$7:$B$1454,0))-1)*100) -> 11.4 | T98: =IF(INDEX(Historical!$F$7:$F$1447,MATCH(B98,Historical!$B$7:$B$1454,0))=0,"n/a",((INDEX(Historical!$C$7:$C$1447,MATCH(B98,Historical!$B$7:$B$1454,0))/INDEX(Historical!$F$7:$F$1447,MATCH(B98,Historical!$B$7:$B$1454,0)))^(1/3)-1)*100) -> 5.3 | U98: =IF(INDEX(Historical!$H$7:$H$1447,MATCH(B98,Historical!$B$7:$B$1454,0))=0,"n/a",((INDEX(Historical!$C$7:$C$1447,MATCH(B98,Historical!$B$7:$B$1454,0))/INDEX(Historical!$H$7:$H$1447,MATCH(B98,Historical!$B$7:$B$1454,0)))^(1/5)-1)*100) -> 10.6 | V98: =IF(INDEX(Historical!$O$7:$O$1447,MATCH(B98,Historical!$B$7:$B$1454,0))=0,"n/a",((INDEX(Historical!$C$7:$C$1447,MATCH(B98,Historical!$B$7:$B$1454,0))/INDEX(Historical!$O$7:$O$1447,MATCH(B98,Historical!$B$7:$B$1454,0)))^(1/10)-1)*100) -> 12.3 | W98: 0.857 | X98: 0.943 | Y98: FY Streak | Z98: 28.20 | AA98: 16.34 | AB98: 6 | AC98: 10.78 | AD98: 1.74 | AE98: 1.58 | AF98: 3.95 | AG98: 23.80 | AH98: 46.30 | AI98: 6.97 | AJ98: 11.20 | AK98: 9.37 | AL98: 22,960 | AM98: 0.2 | AN98: 0.94 | AO98: (4.1) | AP98: 12.3 | AQ98: 69.4 | AR98: =INDEX(Historical!$C$7:$C$1447,MATCH(B98,Historical!$B$7:$B$1454,0))*IF(AH98="n/a",1.03,IF(AH98<0,1.01,IF(AH98>10,1.1,(1+AH98/100)))) -> 3.23 | AS98: 3.46 | AT98: 3.78 | AU98: 4.14 | AV98: 4.53 | AW98: 19.14 | AX98: 10.9 | AY98: 1.46 | AZ98: 25.1 | BA98: -8.8 | BB98: 10.3 | BC98: 5.7 | BE98: 1957 | BF98: =#VALUE! ->  | BG98: 9
A99: Pentair Ltd. | B99: PNR | C99: Industrials | D99: Machinery | E99: 43 | F99: 61 | G99: N | H99: N | I99: 42.54 | J99: 1.69 | K99: 0.1800 | L99: 4 | M99: 0.72 | N99: B09 | O99: 0.1750 | P99: 2019-01-24 | Q99: 2019-02-08 | R99: 2.86 | S99: =IF(INDEX(Historical!$D$7:$D$1447,MATCH(B99,Historical!$B$7:$B$1454,0))=0,"n/a",(INDEX(Historical!$C$7:$C$1447,MATCH(B99,Historical!$B$7:$B$1454,0))/INDEX(Historical!$D$7:$D$1447,MATCH(B99,Historical!$B$7:$B$1454,0))-1)*100) -> (23.9) | T99: =IF(INDEX(Historical!$F$7:$F$1447,MATCH(B99,Historical!$B$7:$B$1454,0))=0,"n/a",((INDEX(Historical!$C$7:$C$1447,MATCH(B99,Historical!$B$7:$B$1454,0))/INDEX(Historical!$F$7:$F$1447,MATCH(B99,Historical!$B$7:$B$1454,0)))^(1/3)-1)*100) -> (6.4) | U99: =IF(INDEX(Historical!$H$7:$H$1447,MATCH(B99,Historical!$B$7:$B$1454,0))=0,"n/a",((INDEX(Historical!$C$7:$C$1447,MATCH(B99,Historical!$B$7:$B$1454,0))/INDEX(Historical!$H$7:$H$1447,MATCH(B99,Historical!$B$7:$B$1454,0)))^(1/5)-1)*100) -> 1.8 | V99: =IF(INDEX(Historical!$O$7:$O$1447,MATCH(B99,Historical!$B$7:$B$1454,0))=0,"n/a",((INDEX(Historical!$C$7:$C$1447,MATCH(B99,Historical!$B$7:$B$1454,0))/INDEX(Historical!$O$7:$O$1447,MATCH(B99,Historical!$B$7:$B$1454,0)))^(1/10)-1)*100) -> 4.4 | W99: 0.407 | X99: n/a | Z99: 33.80 | AA99: 19.97 | AB99: 12 | AC99: 2.13 | AD99: n/a | AE99: 2.48 | AF99: 4.00 | AG99: 13.50 | AH99: 103.90 | AI99: 8.60 | AJ99: -4.70 | AK99: n/a | AL99: 7,350 | AM99: 0.2 | AN99: 0.00 | AO99: (16.5) | AP99: 3.5 | AQ99: 88.4 | AR99: =INDEX(Historical!$C$7:$C$1447,MATCH(B99,Historical!$B$7:$B$1454,0))*IF(AH99="n/a",1.03,IF(AH99<0,1.01,IF(AH99>10,1.1,(1+AH99/100)))) -> 1.16 | AS99: 1.25 | AT99: 1.29 | AU99: 1.33 | AV99: 1.37 | AW99: 6.40 | AX99: 15.1 | AY99: 1.24 | AZ99: 20.5 | BA99: -13.3 | BB99: 5.8 | BC99: 1.0 | BE99: 1977 | BF99: =#VALUE! ->  | BG99: 6.7
A100: People's United Financial | B100: PBCT | C100: Financials | D100: Banks | E100: 26 | F100: 107 | G100: N | H100: Y | I100: 17.76 | J100: 3.94 | K100: 0.1750 | L100: 4 | M100: 0.70 | N100: B15 | O100: 0.1725 | P100: 2018-04-30 | Q100: 2018-05-15 | R100: 1.45 | S100: =IF(INDEX(Historical!$D$7:$D$1447,MATCH(B100,Historical!$B$7:$B$1454,0))=0,"n/a",(INDEX(Historical!$C$7:$C$1447,MATCH(B100,Historical!$B$7:$B$1454,0))/INDEX(Historical!$D$7:$D$1447,MATCH(B100,Historical!$B$7:$B$1454,0))-1)*100) -> 1.5 | T100: =IF(INDEX(Historical!$F$7:$F$1447,MATCH(B100,Historical!$B$7:$B$1454,0))=0,"n/a",((INDEX(Historical!$C$7:$C$1447,MATCH(B100,Historical!$B$7:$B$1454,0))/INDEX(Historical!$F$7:$F$1447,MATCH(B100,Historical!$B$7:$B$1454,0)))^(1/3)-1)*100) -> 1.7 | U100: =IF(INDEX(Historical!$H$7:$H$1447,MATCH(B100,Historical!$B$7:$B$1454,0))=0,"n/a",((INDEX(Historical!$C$7:$C$1447,MATCH(B100,Historical!$B$7:$B$1454,0))/INDEX(Historical!$H$7:$H$1447,MATCH(B100,Historical!$B$7:$B$1454,0)))^(1/5)-1)*100) -> 1.5 | V100: =IF(INDEX(Historical!$O$7:$O$1447,MATCH(B100,Historical!$B$7:$B$1454,0))=0,"n/a",((INDEX(Historical!$C$7:$C$1447,MATCH(B100,Historical!$B$7:$B$1454,0))/INDEX(Historical!$O$7:$O$1447,MATCH(B100,Historical!$B$7:$B$1454,0)))^(1/10)-1)*100) -> 1.8 | W100: 0.831 | X100: 0.263 | Z100: 56.00 | AA100: 14.21 | AB100: 12 | AC100: 1.25 | AD100: 1.03 | AE100: 4.30 | AF100: 1.06 | AG100: 7.10 | AH100: 3.40 | AI100: 7.67 | AJ100: 5.70 | AK100: 13.73 | AL100: 6,690 | AM100: 0.1 | AN100: 0.16 | AO100: (8.8) | AP100: 5.4 | AQ100: (18.2) | AR100: =INDEX(Historical!$C$7:$C$1447,MATCH(B100,Historical!$B$7:$B$1454,0))*IF(AH100="n/a",1.03,IF(AH100<0,1.01,IF(AH100>10,1.1,(1+AH100/100)))) -> 0.72 | AS100: 0.78 | AT100: 0.85 | AU100: 0.94 | AV100: 1.03 | AW100: 4.33 | AX100: 24.4 | AY100: 1.16 | AZ100: 30.0 | BA100: -12.3 | BB100: 10.9 | BC100: 3.1 | BE100: 1993 | BF100: =#VALUE! ->  | BG100: 0.9
A101: PepsiCo Inc. | B101: PEP | C101: Consumer Staples | D101: Beverages | E101: 46 | F101: 42 | G101: Y | H101: Y | I101: 115.64 | J101: 3.21 | K101: 0.9275 | L101: 4 | M101: 3.71 | N101: C30 | O101: 0.8050 | P101: 2018-06-01 | Q101: 2018-06-30 | R101: 15.22 | S101: =IF(INDEX(Historical!$D$7:$D$1447,MATCH(B101,Historical!$B$7:$B$1454,0))=0,"n/a",(INDEX(Historical!$C$7:$C$1447,MATCH(B101,Historical!$B$7:$B$1454,0))/INDEX(Historical!$D$7:$D$1447,MATCH(B101,Historical!$B$7:$B$1454,0))-1)*100) -> 11.2 | T101: =IF(INDEX(Historical!$F$7:$F$1447,MATCH(B101,Historical!$B$7:$B$1454,0))=0,"n/a",((INDEX(Historical!$C$7:$C$1447,MATCH(B101,Historical!$B$7:$B$1454,0))/INDEX(Historical!$F$7:$F$1447,MATCH(B101,Historical!$B$7:$B$1454,0)))^(1/3)-1)*100) -> 8.5 | U101: =IF(INDEX(Historical!$H$7:$H$1447,MATCH(B101,Historical!$B$7:$B$1454,0))=0,"n/a",((INDEX(Historical!$C$7:$C$1447,MATCH(B101,Historical!$B$7:$B$1454,0))/INDEX(Historical!$H$7:$H$1447,MATCH(B101,Historical!$B$7:$B$1454,0)))^(1/5)-1)*100) -> 9.4 | V101: =IF(INDEX(Historical!$O$7:$O$1447,MATCH(B101,Historical!$B$7:$B$1454,0))=0,"n/a",((INDEX(Historical!$C$7:$C$1447,MATCH(B101,Historical!$B$7:$B$1454,0))/INDEX(Historical!$O$7:$O$1447,MATCH(B101,Historical!$B$7:$B$1454,0)))^(1/10)-1)*100) -> 8.0 | W101: 1.172 | X101: 0.619 | Y101: Est Dates | Z101: 42.26 | AA101: 13.17 | AB101: 12 | AC101: 8.78 | AD101: 2.72 | AE101: 2.52 | AF101: 11.23 | AG101: 109.30 | AH101: 71.30 | AI101: 7.15 | AJ101: 15.20 | AK101: 4.84 | AL101: 162,940 | AM101: 0.1 | AN101: 2.23 | AO101: (0.6) | AP101: 12.6 | AQ101: 156.4 | AR101: =INDEX(Historical!$C$7:$C$1447,MATCH(B101,Historical!$B$7:$B$1454,0))*IF(AH101="n/a",1.03,IF(AH101<0,1.01,IF(AH101>10,1.1,(1+AH101/100)))) -> 3.81 | AS101: 4.08 | AT101: 4.28 | AU101: 4.49 | AV101: 4.71 | AW101: 21.37 | AX101: 18.5 | AY101: 0.66 | AZ101: 20.5 | BA101: -5.2 | BB101: 3.8 | BC101: 4.2 | BE101: 1973 | BF101: =#VALUE! ->  | BG101: 16
A102: PPG Industries Inc. | B102: PPG | C102: Materials | D102: Chemicals | E102: 47 | F102: 37 | G102: N | H102: Y | I102: 111.97 | J102: 1.71 | K102: 0.4800 | L102: 4 | M102: 1.92 | N102: C12 | O102: 0.4500 | P102: 2018-08-09 | Q102: 2018-09-12 | R102: 6.67 | S102: =IF(INDEX(Historical!$D$7:$D$1447,MATCH(B102,Historical!$B$7:$B$1454,0))=0,"n/a",(INDEX(Historical!$C$7:$C$1447,MATCH(B102,Historical!$B$7:$B$1454,0))/INDEX(Historical!$D$7:$D$1447,MATCH(B102,Historical!$B$7:$B$1454,0))-1)*100) -> 9.4 | T102: =IF(INDEX(Historical!$F$7:$F$1447,MATCH(B102,Historical!$B$7:$B$1454,0))=0,"n/a",((INDEX(Historical!$C$7:$C$1447,MATCH(B102,Historical!$B$7:$B$1454,0))/INDEX(Historical!$F$7:$F$1447,MATCH(B102,Historical!$B$7:$B$1454,0)))^(1/3)-1)*100) -> 9.5 | U102: =IF(INDEX(Historical!$H$7:$H$1447,MATCH(B102,Historical!$B$7:$B$1454,0))=0,"n/a",((INDEX(Historical!$C$7:$C$1447,MATCH(B102,Historical!$B$7:$B$1454,0))/INDEX(Historical!$H$7:$H$1447,MATCH(B102,Historical!$B$7:$B$1454,0)))^(1/5)-1)*100) -> 9.0 | V102: =IF(INDEX(Historical!$O$7:$O$1447,MATCH(B102,Historical!$B$7:$B$1454,0))=0,"n/a",((INDEX(Historical!$C$7:$C$1447,MATCH(B102,Historical!$B$7:$B$1454,0))/INDEX(Historical!$O$7:$O$1447,MATCH(B102,Historical!$B$7:$B$1454,0)))^(1/10)-1)*100) -> 5.9 | W102: 1.513 | X102: 0.707 | Z102: 35.96 | AA102: 20.97 | AB102: 12 | AC102: 5.34 | AD102: 2.42 | AE102: 1.73 | AF102: 5.76 | AG102: 26.80 | AH102: -8.40 | AI102: 10.57 | AJ102: 12.70 | AK102: 8.68 | AL102: 26,540 | AM102: 0.1 | AN102: 1.08 | AO102: (10.3) | AP102: 10.7 | AQ102: 131.7 | AR102: =INDEX(Historical!$C$7:$C$1447,MATCH(B102,Historical!$B$7:$B$1454,0))*IF(AH102="n/a",1.03,IF(AH102<0,1.01,IF(AH102>10,1.1,(1+AH102/100)))) -> 1.88 | AS102: 2.07 | AT102: 2.25 | AU102: 2.44 | AV102: 2.65 | AW102: 11.28 | AX102: 10.1 | AY102: 1.18 | AZ102: 18.7 | BA102: -5.6 | BB102: 7.9 | BC102: 6.0 | BE102: 1972 | BF102: =#VALUE! ->  | BG102: 7.9
A103: Procter & Gamble Co. | B103: PG | C103: Consumer Staples | D103: Household Products | E103: 62 | F103: 5 | G103: N | H103: Y | I103: 98.55 | J103: =(M103/I103)*100 -> 2.91 | K103: 0.7172 | L103: 4 | M103: =K103*L103 -> 2.87 | N103: B15 | O103: 0.6896 | P103: 2018-04-19 | Q103: 2018-05-15 | R103: =(K103-O103)/O103*100 -> 4.00 | S103: =IF(INDEX(Historical!$D$7:$D$1447,MATCH(B103,Historical!$B$7:$B$1454,0))=0,"n/a",(INDEX(Historical!$C$7:$C$1447,MATCH(B103,Historical!$B$7:$B$1454,0))/INDEX(Historical!$D$7:$D$1447,MATCH(B103,Historical!$B$7:$B$1454,0))-1)*100) -> 3.8 | T103: =IF(INDEX(Historical!$F$7:$F$1447,MATCH(B103,Historical!$B$7:$B$1454,0))=0,"n/a",((INDEX(Historical!$C$7:$C$1447,MATCH(B103,Historical!$B$7:$B$1454,0))/INDEX(Historical!$F$7:$F$1447,MATCH(B103,Historical!$B$7:$B$1454,0)))^(1/3)-1)*100) -> 2.6 | U103: =IF(INDEX(Historical!$H$7:$H$1447,MATCH(B103,Historical!$B$7:$B$1454,0))=0,"n/a",((INDEX(Historical!$C$7:$C$1447,MATCH(B103,Historical!$B$7:$B$1454,0))/INDEX(Historical!$H$7:$H$1447,MATCH(B103,Historical!$B$7:$B$1454,0)))^(1/5)-1)*100) -> 3.7 | V103: =IF(INDEX(Historical!$O$7:$O$1447,MATCH(B103,Historical!$B$7:$B$1454,0))=0,"n/a",((INDEX(Historical!$C$7:$C$1447,MATCH(B103,Historical!$B$7:$B$1454,0))/INDEX(Historical!$O$7:$O$1447,MATCH(B103,Historical!$B$7:$B$1454,0)))^(1/10)-1)*100) -> 6.2 | W103: =IF(OR(U103<=0,U103="n/a",V103<=0,V103="n/a"),"n/a",U103/V103) -> 0.596 | X103: =IF(OR(AJ103<=0,AJ103="n/a",U103<=0,U103="n/a"),"n/a",U103/AJ103) -> 2.483 | Z103: =IF(OR(AC103<0.01,AC103="n/a"),"n/a",M103/AC103*100) -> 69.80 | AA103: =IF(OR(AC103<0.01,AC103="n/a"),"n/a",I103/AC103) -> 23.98 | AB103: 6 | AC103: 4.11 | AD103: 3.71 | AE103: 3.68 | AF103: 4.64 | AG103: 20.10 | AH103: 5.60 | AI103: 7.07 | AJ103: 1.50 | AK103: 6.45 | AL103: 246,350 | AM103: 0.1 | AN103: 0.63 | AO103: =IF(U103="n/a","n/a",IF(AA103<0,"n/a",IF(AA103="n/a","n/a",J103+U103-AA103))) -> (17.3) | AP103: =IF(U103="n/a","n/a",J103+U103) -> 6.6 | AQ103: =IF(OR(AC103<0.01,AF103="n/a"),"n/a",(I103/SQRT(22.5*AC103*(I103/AF103))-1)*100) -> 122.4 | AR103: =INDEX(Historical!$C$7:$C$1447,MATCH(B103,Historical!$B$7:$B$1454,0))*IF(AH103="n/a",1.03,IF(AH103<0,1.01,IF(AH103>10,1.1,(1+AH103/100)))) -> 3.00 | AS103: =IF($AI103="n/a",1.03*AR103,IF($AI103<0,1.01*AR103,IF($AI103>10,1.1*AR103,(1+$AI103/100)*AR103))) -> 3.21 | AT103: 3.42 | AU103: 3.64 | AV103: 3.87 | AW103: =SUM(AR103:AV103) -> 17.15 | AX103: =AW103/I103*100 -> 17.4 | AY103: 0.37 | AZ103: 39.3 | BA103: -1.9 | BB103: 4.3 | BC103: 15.0 | BE103: 1957 | BF103: =#VALUE! ->  | BG103: 8.7
A104: PSB Holdings Inc. | B104: PSBQ | C104: Financials | D104: Banks | E104: 26 | F104: 113 | G104: - | H104: - | I104: 23.00 | J104: 1.57 | K104: 0.1800 | L104: 2 | M104: 0.36 | N104: JaJl | O104: 0.1767 | P104: 2019-01-10 | Q104: 2019-01-31 | R104: 1.87 | S104: =IF(INDEX(Historical!$D$7:$D$1447,MATCH(B104,Historical!$B$7:$B$1454,0))=0,"n/a",(INDEX(Historical!$C$7:$C$1447,MATCH(B104,Historical!$B$7:$B$1454,0))/INDEX(Historical!$D$7:$D$1447,MATCH(B104,Historical!$B$7:$B$1454,0))-1)*100) -> 5.2 | T104: =IF(INDEX(Historical!$F$7:$F$1447,MATCH(B104,Historical!$B$7:$B$1454,0))=0,"n/a",((INDEX(Historical!$C$7:$C$1447,MATCH(B104,Historical!$B$7:$B$1454,0))/INDEX(Historical!$F$7:$F$1447,MATCH(B104,Historical!$B$7:$B$1454,0)))^(1/3)-1)*100) -> 7.2 | U104: =IF(INDEX(Historical!$H$7:$H$1447,MATCH(B104,Historical!$B$7:$B$1454,0))=0,"n/a",((INDEX(Historical!$C$7:$C$1447,MATCH(B104,Historical!$B$7:$B$1454,0))/INDEX(Historical!$H$7:$H$1447,MATCH(B104,Historical!$B$7:$B$1454,0)))^(1/5)-1)*100) -> 5.6 | V104: =IF(INDEX(Historical!$O$7:$O$1447,MATCH(B104,Historical!$B$7:$B$1454,0))=0,"n/a",((INDEX(Historical!$C$7:$C$1447,MATCH(B104,Historical!$B$7:$B$1454,0))/INDEX(Historical!$O$7:$O$1447,MATCH(B104,Historical!$B$7:$B$1454,0)))^(1/10)-1)*100) -> 5.2 | W104: 1.070 | X104: n/a | Y104: Adj Split | Z104: n/a | AA104: n/a | AB104: 12 | AC104: n/a | AD104: n/a | AE104: n/a | AF104: n/a | AG104: n/a | AH104: n/a | AI104: n/a | AJ104: n/a | AK104: n/a | AL104: n/a | AM104: n/a | AN104: n/a | AO104: n/a | AP104: 7.1 | AQ104: n/a | AR104: =INDEX(Historical!$C$7:$C$1447,MATCH(B104,Historical!$B$7:$B$1454,0))*IF(AH104="n/a",1.03,IF(AH104<0,1.01,IF(AH104>10,1.1,(1+AH104/100)))) -> 0.35 | AS104: 0.36 | AT104: 0.37 | AU104: 0.38 | AV104: 0.39 | AW104: 1.84 | AX104: 8.0 | AY104: n/a | AZ104: n/a | BA104: n/a | BB104: n/a | BC104: n/a | BD104: OTC | BE104: 1994 | BF104: =#VALUE! ->  | BG104: n/a
A105: Realty Income Corp. | B105: O | C105: Real Estate | D105: Equity Real Estate Investment Trusts (REITs) | E105: 27 | F105: 105 | G105: Y | H105: Y | I105: 69.16 | J105: 3.91 | K105: 0.2255 | L105: 12 | M105: 2.71 | N105: Mo | O105: 0.2210 | P105: 2019-01-31 | Q105: 2019-02-15 | R105: 2.04 | S105: =IF(INDEX(Historical!$D$7:$D$1447,MATCH(B105,Historical!$B$7:$B$1454,0))=0,"n/a",(INDEX(Historical!$C$7:$C$1447,MATCH(B105,Historical!$B$7:$B$1454,0))/INDEX(Historical!$D$7:$D$1447,MATCH(B105,Historical!$B$7:$B$1454,0))-1)*100) -> 3.8 | T105: =IF(INDEX(Historical!$F$7:$F$1447,MATCH(B105,Historical!$B$7:$B$1454,0))=0,"n/a",((INDEX(Historical!$C$7:$C$1447,MATCH(B105,Historical!$B$7:$B$1454,0))/INDEX(Historical!$F$7:$F$1447,MATCH(B105,Historical!$B$7:$B$1454,0)))^(1/3)-1)*100) -> 5.0 | U105: =IF(INDEX(Historical!$H$7:$H$1447,MATCH(B105,Historical!$B$7:$B$1454,0))=0,"n/a",((INDEX(Historical!$C$7:$C$1447,MATCH(B105,Historical!$B$7:$B$1454,0))/INDEX(Historical!$H$7:$H$1447,MATCH(B105,Historical!$B$7:$B$1454,0)))^(1/5)-1)*100) -> 4.1 | V105: =IF(INDEX(Historical!$O$7:$O$1447,MATCH(B105,Historical!$B$7:$B$1454,0))=0,"n/a",((INDEX(Historical!$C$7:$C$1447,MATCH(B105,Historical!$B$7:$B$1454,0))/INDEX(Historical!$O$7:$O$1447,MATCH(B105,Historical!$B$7:$B$1454,0)))^(1/10)-1)*100) -> 4.5 | W105: 0.929 | X105: 0.487 | Z105: 214.76 | AA105: 54.89 | AB105: 12 | AC105: 1.26 | AD105: 7.07 | AE105: 15.33 | AF105: 2.62 | AG105: 4.40 | AH105: -2.50 | AI105: 1.81 | AJ105: 8.50 | AK105: 7.80 | AL105: 20,360 | AM105: 0.1 | AN105: 0.88 | AO105: (46.8) | AP105: 8.1 | AQ105: 152.8 | AR105: =INDEX(Historical!$C$7:$C$1447,MATCH(B105,Historical!$B$7:$B$1454,0))*IF(AH105="n/a",1.03,IF(AH105<0,1.01,IF(AH105>10,1.1,(1+AH105/100)))) -> 2.66 | AS105: 2.70 | AT105: 2.92 | AU105: 3.14 | AV105: 3.39 | AW105: 14.81 | AX105: 21.4 | AY105: 0.19 | AZ105: 41.7 | BA105: -1.9 | BB105: 4.6 | BC105: 16.0 | BE105: 1994 | BF105: =#VALUE! ->  | BG105: 2.3
A106: RLI Corp. | B106: RLI | C106: Financials | D106: Insurance | E106: 43 | F106: 57 | G106: N | H106: N | I106: 70.52 | J106: 1.25 | K106: 0.2200 | L106: 4 | M106: 0.88 | N106: C20 | O106: 0.2100 | P106: 2018-05-30 | Q106: 2018-06-20 | R106: 4.76 | S106: =IF(INDEX(Historical!$D$7:$D$1447,MATCH(B106,Historical!$B$7:$B$1454,0))=0,"n/a",(INDEX(Historical!$C$7:$C$1447,MATCH(B106,Historical!$B$7:$B$1454,0))/INDEX(Historical!$D$7:$D$1447,MATCH(B106,Historical!$B$7:$B$1454,0))-1)*100) -> 4.8 | T106: =IF(INDEX(Historical!$F$7:$F$1447,MATCH(B106,Historical!$B$7:$B$1454,0))=0,"n/a",((INDEX(Historical!$C$7:$C$1447,MATCH(B106,Historical!$B$7:$B$1454,0))/INDEX(Historical!$F$7:$F$1447,MATCH(B106,Historical!$B$7:$B$1454,0)))^(1/3)-1)*100) -> 5.1 | U106: =IF(INDEX(Historical!$H$7:$H$1447,MATCH(B106,Historical!$B$7:$B$1454,0))=0,"n/a",((INDEX(Historical!$C$7:$C$1447,MATCH(B106,Historical!$B$7:$B$1454,0))/INDEX(Historical!$H$7:$H$1447,MATCH(B106,Historical!$B$7:$B$1454,0)))^(1/5)-1)*100) -> 5.4 | V106: =IF(INDEX(Historical!$O$7:$O$1447,MATCH(B106,Historical!$B$7:$B$1454,0))=0,"n/a",((INDEX(Historical!$C$7:$C$1447,MATCH(B106,Historical!$B$7:$B$1454,0))/INDEX(Historical!$O$7:$O$1447,MATCH(B106,Historical!$B$7:$B$1454,0)))^(1/10)-1)*100) -> 6.1 | W106: 0.875 | X106: n/a | Z106: 61.54 | AA106: 49.31 | AB106: 12 | AC106: 1.43 | AD106: 5.04 | AE106: 3.85 | AF106: 3.59 | AG106: 12.30 | AH106: -37.30 | AI106: 1.27 | AJ106: -7.50 | AK106: 9.80 | AL106: 3,150 | AM106: 3.1 | AN106: 0.17 | AO106: (42.7) | AP106: 6.6 | AQ106: 180.5 | AR106: =INDEX(Historical!$C$7:$C$1447,MATCH(B106,Historical!$B$7:$B$1454,0))*IF(AH106="n/a",1.03,IF(AH106<0,1.01,IF(AH106>10,1.1,(1+AH106/100)))) -> 0.88 | AS106: 0.89 | AT106: 0.98 | AU106: 1.07 | AV106: 1.18 | AW106: 5.00 | AX106: 7.1 | AY106: 0.93 | AZ106: 18.8 | BA106: -10.7 | BB106: 3.3 | BC106: -0.6 | BE106: 1976 | BF106: =#VALUE! ->  | BG106: 3.5
A107: Roper Technologies Inc. | B107: ROP | C107: Industrials | D107: Industrial Conglomerates | E107: 26 | F107: 112 | G107: - | H107: - | I107: 323.65 | J107: 0.57 | K107: 0.4625 | L107: 4 | M107: 1.85 | N107: A23 | O107: 0.4125 | P107: 2019-01-08 | Q107: 2019-01-23 | R107: 12.12 | S107: =IF(INDEX(Historical!$D$7:$D$1447,MATCH(B107,Historical!$B$7:$B$1454,0))=0,"n/a",(INDEX(Historical!$C$7:$C$1447,MATCH(B107,Historical!$B$7:$B$1454,0))/INDEX(Historical!$D$7:$D$1447,MATCH(B107,Historical!$B$7:$B$1454,0))-1)*100) -> 17.9 | T107: =IF(INDEX(Historical!$F$7:$F$1447,MATCH(B107,Historical!$B$7:$B$1454,0))=0,"n/a",((INDEX(Historical!$C$7:$C$1447,MATCH(B107,Historical!$B$7:$B$1454,0))/INDEX(Historical!$F$7:$F$1447,MATCH(B107,Historical!$B$7:$B$1454,0)))^(1/3)-1)*100) -> 18.2 | U107: =IF(INDEX(Historical!$H$7:$H$1447,MATCH(B107,Historical!$B$7:$B$1454,0))=0,"n/a",((INDEX(Historical!$C$7:$C$1447,MATCH(B107,Historical!$B$7:$B$1454,0))/INDEX(Historical!$H$7:$H$1447,MATCH(B107,Historical!$B$7:$B$1454,0)))^(1/5)-1)*100) -> 20.1 | V107: =IF(INDEX(Historical!$O$7:$O$1447,MATCH(B107,Historical!$B$7:$B$1454,0))=0,"n/a",((INDEX(Historical!$C$7:$C$1447,MATCH(B107,Historical!$B$7:$B$1454,0))/INDEX(Historical!$O$7:$O$1447,MATCH(B107,Historical!$B$7:$B$1454,0)))^(1/10)-1)*100) -> 19.0 | W107: 1.059 | X107: 2.366 | Z107: 20.20 | AA107: 35.33 | AB107: 12 | AC107: 9.16 | AD107: 11.40 | AE107: 6.40 | AF107: 4.43 | AG107: 14.90 | AH107: 13.70 | AI107: 5.36 | AJ107: 8.50 | AK107: 3.10 | AL107: 33,220 | AM107: 1.9 | AN107: 0.69 | AO107: (14.6) | AP107: 20.7 | AQ107: 163.8 | AR107: =INDEX(Historical!$C$7:$C$1447,MATCH(B107,Historical!$B$7:$B$1454,0))*IF(AH107="n/a",1.03,IF(AH107<0,1.01,IF(AH107>10,1.1,(1+AH107/100)))) -> 1.82 | AS107: 1.91 | AT107: =IF($AK107="n/a",1.03*AS107,IF($AK107<0,1.01*AS107,IF($AK107>10,1.1*AS107,(1+$AK107/100)*AS107))) -> 1.97 | AU107: 2.03 | AV107: 2.10 | AW107: 9.83 | AX107: 3.0 | AY107: 1.19 | AZ107: 31.8 | BA107: -0.2 | BB107: 13.9 | BC107: 12.6 | BE107: 1994 | BF107: =#VALUE! ->  | BG107: 7.3
A108: RPM International Inc. | B108: RPM | C108: Materials | D108: Chemicals | E108: 45 | F108: 50 | G108: N | H108: N | I108: 57.87 | J108: 2.42 | K108: 0.3500 | L108: 4 | M108: 1.40 | N108: A31 | O108: 0.3200 | P108: 2018-10-15 | Q108: 2018-10-31 | R108: 9.37 | S108: =IF(INDEX(Historical!$D$7:$D$1447,MATCH(B108,Historical!$B$7:$B$1454,0))=0,"n/a",(INDEX(Historical!$C$7:$C$1447,MATCH(B108,Historical!$B$7:$B$1454,0))/INDEX(Historical!$D$7:$D$1447,MATCH(B108,Historical!$B$7:$B$1454,0))-1)*100) -> 7.4 | T108: =IF(INDEX(Historical!$F$7:$F$1447,MATCH(B108,Historical!$B$7:$B$1454,0))=0,"n/a",((INDEX(Historical!$C$7:$C$1447,MATCH(B108,Historical!$B$7:$B$1454,0))/INDEX(Historical!$F$7:$F$1447,MATCH(B108,Historical!$B$7:$B$1454,0)))^(1/3)-1)*100) -> 7.5 | U108: =IF(INDEX(Historical!$H$7:$H$1447,MATCH(B108,Historical!$B$7:$B$1454,0))=0,"n/a",((INDEX(Historical!$C$7:$C$1447,MATCH(B108,Historical!$B$7:$B$1454,0))/INDEX(Historical!$H$7:$H$1447,MATCH(B108,Historical!$B$7:$B$1454,0)))^(1/5)-1)*100) -> 7.4 | V108: =IF(INDEX(Historical!$O$7:$O$1447,MATCH(B108,Historical!$B$7:$B$1454,0))=0,"n/a",((INDEX(Historical!$C$7:$C$1447,MATCH(B108,Historical!$B$7:$B$1454,0))/INDEX(Historical!$O$7:$O$1447,MATCH(B108,Historical!$B$7:$B$1454,0)))^(1/10)-1)*100) -> 5.5 | W108: 1.363 | X108: 0.266 | Z108: 72.16 | AA108: 29.83 | AB108: 5 | AC108: 1.94 | AD108: 2.95 | AE108: 1.38 | AF108: 4.95 | AG108: 15.20 | AH108: 87.30 | AI108: 33.07 | AJ108: 28.00 | AK108: 10.10 | AL108: 7,570 | AM108: 0.2 | AN108: 1.55 | AO108: (20.0) | AP108: 9.9 | AQ108: 156.2 | AR108: =INDEX(Historical!$C$7:$C$1447,MATCH(B108,Historical!$B$7:$B$1454,0))*IF(AH108="n/a",1.03,IF(AH108<0,1.01,IF(AH108>10,1.1,(1+AH108/100)))) -> 1.44 | AS108: 1.59 | AT108: 1.74 | AU108: 1.92 | AV108: 2.11 | AW108: 8.80 | AX108: 15.2 | AY108: 1.18 | AZ108: 24.8 | BA108: -15.1 | BB108: 1.8 | BC108: -2.8 | BE108: 1975 | BF108: =#VALUE! ->  | BG108: 4.7
A109: S&P Global Inc. | B109: SPGI | C109: Financials | D109: Capital Markets | E109: 46 | F109: 48 | G109: N | H109: N | I109: 200.37 | J109: 1.14 | K109: 0.5700 | L109: 4 | M109: 2.28 | N109: C12 | O109: 0.5000 | P109: 2019-02-25 | Q109: 2019-03-12 | R109: 14.00 | S109: =IF(INDEX(Historical!$D$7:$D$1447,MATCH(B109,Historical!$B$7:$B$1454,0))=0,"n/a",(INDEX(Historical!$C$7:$C$1447,MATCH(B109,Historical!$B$7:$B$1454,0))/INDEX(Historical!$D$7:$D$1447,MATCH(B109,Historical!$B$7:$B$1454,0))-1)*100) -> 22.0 | T109: =IF(INDEX(Historical!$F$7:$F$1447,MATCH(B109,Historical!$B$7:$B$1454,0))=0,"n/a",((INDEX(Historical!$C$7:$C$1447,MATCH(B109,Historical!$B$7:$B$1454,0))/INDEX(Historical!$F$7:$F$1447,MATCH(B109,Historical!$B$7:$B$1454,0)))^(1/3)-1)*100) -> 14.9 | U109: =IF(INDEX(Historical!$H$7:$H$1447,MATCH(B109,Historical!$B$7:$B$1454,0))=0,"n/a",((INDEX(Historical!$C$7:$C$1447,MATCH(B109,Historical!$B$7:$B$1454,0))/INDEX(Historical!$H$7:$H$1447,MATCH(B109,Historical!$B$7:$B$1454,0)))^(1/5)-1)*100) -> 12.3 | V109: =IF(INDEX(Historical!$O$7:$O$1447,MATCH(B109,Historical!$B$7:$B$1454,0))=0,"n/a",((INDEX(Historical!$C$7:$C$1447,MATCH(B109,Historical!$B$7:$B$1454,0))/INDEX(Historical!$O$7:$O$1447,MATCH(B109,Historical!$B$7:$B$1454,0)))^(1/10)-1)*100) -> 8.6 | W109: 1.437 | X109: 0.546 | Z109: 29.50 | AA109: 25.92 | AB109: 12 | AC109: 7.73 | AD109: 2.79 | AE109: 7.96 | AF109: 79.51 | AG109: 368.90 | AH109: 21.70 | AI109: 10.17 | AJ109: 22.50 | AK109: 9.30 | AL109: 49,850 | AM109: 0.1 | AN109: 5.83 | AO109: (12.5) | AP109: 13.4 | AQ109: 857.1 | AR109: =INDEX(Historical!$C$7:$C$1447,MATCH(B109,Historical!$B$7:$B$1454,0))*IF(AH109="n/a",1.03,IF(AH109<0,1.01,IF(AH109>10,1.1,(1+AH109/100)))) -> 2.20 | AS109: 2.42 | AT109: 2.65 | AU109: 2.89 | AV109: 3.16 | AW109: 13.32 | AX109: 6.6 | AY109: 1.15 | AZ109: 27.9 | BA109: -7.8 | BB109: 9.1 | BC109: 3.4 | BE109: 1974 | BF109: =#VALUE! ->  | BG109: 21.4
A110: SEI Investments Company | B110: SEIC | C110: Financials | D110: Capital Markets | E110: 28 | F110: 98 | G110: - | H110: - | I110: 52.75 | J110: 1.25 | K110: 0.3300 | L110: 2 | M110: 0.66 | N110: JaJu | O110: 0.3000 | P110: 2018-12-26 | Q110: 2019-01-08 | R110: 10.00 | S110: =IF(INDEX(Historical!$D$7:$D$1447,MATCH(B110,Historical!$B$7:$B$1454,0))=0,"n/a",(INDEX(Historical!$C$7:$C$1447,MATCH(B110,Historical!$B$7:$B$1454,0))/INDEX(Historical!$D$7:$D$1447,MATCH(B110,Historical!$B$7:$B$1454,0))-1)*100) -> 3.4 | T110: =IF(INDEX(Historical!$F$7:$F$1447,MATCH(B110,Historical!$B$7:$B$1454,0))=0,"n/a",((INDEX(Historical!$C$7:$C$1447,MATCH(B110,Historical!$B$7:$B$1454,0))/INDEX(Historical!$F$7:$F$1447,MATCH(B110,Historical!$B$7:$B$1454,0)))^(1/3)-1)*100) -> 7.7 | U110: =IF(INDEX(Historical!$H$7:$H$1447,MATCH(B110,Historical!$B$7:$B$1454,0))=0,"n/a",((INDEX(Historical!$C$7:$C$1447,MATCH(B110,Historical!$B$7:$B$1454,0))/INDEX(Historical!$H$7:$H$1447,MATCH(B110,Historical!$B$7:$B$1454,0)))^(1/5)-1)*100) -> 11.4 | V110: =IF(INDEX(Historical!$O$7:$O$1447,MATCH(B110,Historical!$B$7:$B$1454,0))=0,"n/a",((INDEX(Historical!$C$7:$C$1447,MATCH(B110,Historical!$B$7:$B$1454,0))/INDEX(Historical!$O$7:$O$1447,MATCH(B110,Historical!$B$7:$B$1454,0)))^(1/10)-1)*100) -> 14.9 | W110: 0.765 | X110: 0.734 | Z110: 20.56 | AA110: 16.43 | AB110: 12 | AC110: 3.21 | AD110: 1.37 | AE110: 4.96 | AF110: 5.06 | AG110: 30.80 | AH110: 19.00 | AI110: 13.53 | AJ110: 15.50 | AK110: 12.00 | AL110: 8,050 | AM110: 7.0 | AN110: 0.00 | AO110: (3.8) | AP110: 12.6 | AQ110: 92.2 | AR110: =INDEX(Historical!$C$7:$C$1447,MATCH(B110,Historical!$B$7:$B$1454,0))*IF(AH110="n/a",1.03,IF(AH110<0,1.01,IF(AH110>10,1.1,(1+AH110/100)))) -> 0.66 | AS110: 0.73 | AT110: 0.80 | AU110: 0.88 | AV110: 0.97 | AW110: 4.03 | AX110: 7.6 | AY110: 1.26 | AZ110: 24.8 | BA110: -32.7 | BB110: 8.9 | BC110: -7.6 | BE110: 1992 | BF110: =#VALUE! ->  | BG110: 25.6
A111: Sherwin-Williams Co. | B111: SHW | C111: Materials | D111: Chemicals | E111: 41 | F111: 65 | G111: N | H111: N | I111: 433.20 | J111: 1.04 | K111: 1.1300 | L111: 4 | M111: 4.52 | N111: C09 | O111: 0.8600 | P111: 2019-02-22 | Q111: 2019-03-08 | R111: 31.40 | S111: =IF(INDEX(Historical!$D$7:$D$1447,MATCH(B111,Historical!$B$7:$B$1454,0))=0,"n/a",(INDEX(Historical!$C$7:$C$1447,MATCH(B111,Historical!$B$7:$B$1454,0))/INDEX(Historical!$D$7:$D$1447,MATCH(B111,Historical!$B$7:$B$1454,0))-1)*100) -> 1.2 | T111: =IF(INDEX(Historical!$F$7:$F$1447,MATCH(B111,Historical!$B$7:$B$1454,0))=0,"n/a",((INDEX(Historical!$C$7:$C$1447,MATCH(B111,Historical!$B$7:$B$1454,0))/INDEX(Historical!$F$7:$F$1447,MATCH(B111,Historical!$B$7:$B$1454,0)))^(1/3)-1)*100) -> 8.7 | U111: =IF(INDEX(Historical!$H$7:$H$1447,MATCH(B111,Historical!$B$7:$B$1454,0))=0,"n/a",((INDEX(Historical!$C$7:$C$1447,MATCH(B111,Historical!$B$7:$B$1454,0))/INDEX(Historical!$H$7:$H$1447,MATCH(B111,Historical!$B$7:$B$1454,0)))^(1/5)-1)*100) -> 11.5 | V111: =IF(INDEX(Historical!$O$7:$O$1447,MATCH(B111,Historical!$B$7:$B$1454,0))=0,"n/a",((INDEX(Historical!$C$7:$C$1447,MATCH(B111,Historical!$B$7:$B$1454,0))/INDEX(Historical!$O$7:$O$1447,MATCH(B111,Historical!$B$7:$B$1454,0)))^(1/10)-1)*100) -> 9.4 | W111: 1.218 | X111: 0.712 | Z111: 39.37 | AA111: 37.74 | AB111: 12 | AC111: 11.48 | AD111: 2.50 | AE111: 2.31 | AF111: 10.15 | AG111: 49.50 | AH111: 6.00 | AI111: 14.41 | AJ111: 16.10 | AK111: 15.10 | AL111: 40,540 | AM111: 0.2 | AN111: 2.43 | AO111: (25.2) | AP111: 12.5 | AQ111: 312.6 | AR111: =INDEX(Historical!$C$7:$C$1447,MATCH(B111,Historical!$B$7:$B$1454,0))*IF(AH111="n/a",1.03,IF(AH111<0,1.01,IF(AH111>10,1.1,(1+AH111/100)))) -> 3.65 | AS111: 4.01 | AT111: 4.41 | AU111: 4.85 | AV111: 5.34 | AW111: 22.26 | AX111: 5.1 | AY111: 1.27 | AZ111: 21.9 | BA111: -9.7 | BB111: 6.9 | BC111: 4.1 | BE111: 1979 | BF111: =#VALUE! ->  | BG111: 9.3
A112: SJW Corp. | B112: SJW | C112: Utilities | D112: Water Utilities | E112: 52 | F112: 21 | G112: N | H112: N | I112: 61.17 | J112: 1.96 | K112: 0.3000 | L112: 4 | M112: 1.20 | N112: C01 | O112: 0.2800 | P112: 2019-02-08 | Q112: 2019-03-01 | R112: 7.14 | S112: =IF(INDEX(Historical!$D$7:$D$1447,MATCH(B112,Historical!$B$7:$B$1454,0))=0,"n/a",(INDEX(Historical!$C$7:$C$1447,MATCH(B112,Historical!$B$7:$B$1454,0))/INDEX(Historical!$D$7:$D$1447,MATCH(B112,Historical!$B$7:$B$1454,0))-1)*100) -> 28.7 | T112: =IF(INDEX(Historical!$F$7:$F$1447,MATCH(B112,Historical!$B$7:$B$1454,0))=0,"n/a",((INDEX(Historical!$C$7:$C$1447,MATCH(B112,Historical!$B$7:$B$1454,0))/INDEX(Historical!$F$7:$F$1447,MATCH(B112,Historical!$B$7:$B$1454,0)))^(1/3)-1)*100) -> 12.8 | U112: =IF(INDEX(Historical!$H$7:$H$1447,MATCH(B112,Historical!$B$7:$B$1454,0))=0,"n/a",((INDEX(Historical!$C$7:$C$1447,MATCH(B112,Historical!$B$7:$B$1454,0))/INDEX(Historical!$H$7:$H$1447,MATCH(B112,Historical!$B$7:$B$1454,0)))^(1/5)-1)*100) -> 8.9 | V112: =IF(INDEX(Historical!$O$7:$O$1447,MATCH(B112,Historical!$B$7:$B$1454,0))=0,"n/a",((INDEX(Historical!$C$7:$C$1447,MATCH(B112,Historical!$B$7:$B$1454,0))/INDEX(Historical!$O$7:$O$1447,MATCH(B112,Historical!$B$7:$B$1454,0)))^(1/10)-1)*100) -> 5.7 | W112: 1.571 | X112: 0.488 | Z112: 56.87 | AA112: 28.99 | AB112: 12 | AC112: 2.11 | AD112: 2.07 | AE112: 4.17 | AF112: 2.66 | AG112: 11.00 | AH112: 7.10 | AI112: 6.99 | AJ112: 18.30 | AK112: 14.00 | AL112: 1,660 | AM112: 0.4 | AN112: 1.07 | AO112: (18.1) | AP112: 10.9 | AQ112: 85.1 | AR112: =INDEX(Historical!$C$7:$C$1447,MATCH(B112,Historical!$B$7:$B$1454,0))*IF(AH112="n/a",1.03,IF(AH112<0,1.01,IF(AH112>10,1.1,(1+AH112/100)))) -> 1.20 | AS112: 1.28 | AT112: 1.41 | AU112: 1.55 | AV112: 1.71 | AW112: 7.16 | AX112: 11.7 | AY112: 0.07 | AZ112: 19.3 | BA112: -10.6 | BB112: 5.4 | BC112: 0.4 | BE112: 1968 | BF112: =#VALUE! ->  | BG112: 3.4
A113: Sonoco Products Co. | B113: SON | C113: Materials | D113: Containers & Packaging | E113: 36 | F113: 73 | G113: N | H113: N | I113: 57.89 | J113: 2.83 | K113: 0.4100 | L113: 4 | M113: 1.64 | N113: C08 | O113: 0.3900 | P113: 2018-05-10 | Q113: 2018-06-08 | R113: 5.13 | S113: =IF(INDEX(Historical!$D$7:$D$1447,MATCH(B113,Historical!$B$7:$B$1454,0))=0,"n/a",(INDEX(Historical!$C$7:$C$1447,MATCH(B113,Historical!$B$7:$B$1454,0))/INDEX(Historical!$D$7:$D$1447,MATCH(B113,Historical!$B$7:$B$1454,0))-1)*100) -> 5.2 | T113: =IF(INDEX(Historical!$F$7:$F$1447,MATCH(B113,Historical!$B$7:$B$1454,0))=0,"n/a",((INDEX(Historical!$C$7:$C$1447,MATCH(B113,Historical!$B$7:$B$1454,0))/INDEX(Historical!$F$7:$F$1447,MATCH(B113,Historical!$B$7:$B$1454,0)))^(1/3)-1)*100) -> 5.7 | U113: =IF(INDEX(Historical!$H$7:$H$1447,MATCH(B113,Historical!$B$7:$B$1454,0))=0,"n/a",((INDEX(Historical!$C$7:$C$1447,MATCH(B113,Historical!$B$7:$B$1454,0))/INDEX(Historical!$H$7:$H$1447,MATCH(B113,Historical!$B$7:$B$1454,0)))^(1/5)-1)*100) -> 5.7 | V113: =IF(INDEX(Historical!$O$7:$O$1447,MATCH(B113,Historical!$B$7:$B$1454,0))=0,"n/a",((INDEX(Historical!$C$7:$C$1447,MATCH(B113,Historical!$B$7:$B$1454,0))/INDEX(Historical!$O$7:$O$1447,MATCH(B113,Historical!$B$7:$B$1454,0)))^(1/10)-1)*100) -> 4.2 | W113: 1.337 | X113: n/a | Z113: 52.90 | AA113: 18.67 | AB113: 12 | AC113: 3.10 | AD113: 3.26 | AE113: 1.07 | AF113: 3.22 | AG113: 13.70 | AH113: -56.30 | AI113: 4.97 | AJ113: -8.40 | AK113: 5.73 | AL113: 5,780 | AM113: 1.0 | AN113: 0.77 | AO113: (10.2) | AP113: 8.5 | AQ113: 63.5 | AR113: =INDEX(Historical!$C$7:$C$1447,MATCH(B113,Historical!$B$7:$B$1454,0))*IF(AH113="n/a",1.03,IF(AH113<0,1.01,IF(AH113>10,1.1,(1+AH113/100)))) -> 1.64 | AS113: 1.72 | AT113: 1.82 | AU113: 1.92 | AV113: 2.03 | AW113: 9.12 | AX113: 15.8 | AY113: 1.00 | AZ113: 24.4 | BA113: -6.3 | BB113: 3.9 | BC113: 5.4 | BE113: 1983 | BF113: =#VALUE! ->  | BG113: 5.2
A114: Stanley Black & Decker | B114: SWK | C114: Industrials | D114: Machinery | E114: 51 | F114: 23 | G114: Y | H114: Y | I114: 132.43 | J114: 1.99 | K114: 0.6600 | L114: 4 | M114: 2.64 | N114: C19 | O114: 0.6300 | P114: 2018-09-06 | Q114: 2018-09-18 | R114: 4.76 | S114: =IF(INDEX(Historical!$D$7:$D$1447,MATCH(B114,Historical!$B$7:$B$1454,0))=0,"n/a",(INDEX(Historical!$C$7:$C$1447,MATCH(B114,Historical!$B$7:$B$1454,0))/INDEX(Historical!$D$7:$D$1447,MATCH(B114,Historical!$B$7:$B$1454,0))-1)*100) -> 6.6 | T114: =IF(INDEX(Historical!$F$7:$F$1447,MATCH(B114,Historical!$B$7:$B$1454,0))=0,"n/a",((INDEX(Historical!$C$7:$C$1447,MATCH(B114,Historical!$B$7:$B$1454,0))/INDEX(Historical!$F$7:$F$1447,MATCH(B114,Historical!$B$7:$B$1454,0)))^(1/3)-1)*100) -> 6.4 | U114: =IF(INDEX(Historical!$H$7:$H$1447,MATCH(B114,Historical!$B$7:$B$1454,0))=0,"n/a",((INDEX(Historical!$C$7:$C$1447,MATCH(B114,Historical!$B$7:$B$1454,0))/INDEX(Historical!$H$7:$H$1447,MATCH(B114,Historical!$B$7:$B$1454,0)))^(1/5)-1)*100) -> 5.4 | V114: =IF(INDEX(Historical!$O$7:$O$1447,MATCH(B114,Historical!$B$7:$B$1454,0))=0,"n/a",((INDEX(Historical!$C$7:$C$1447,MATCH(B114,Historical!$B$7:$B$1454,0))/INDEX(Historical!$O$7:$O$1447,MATCH(B114,Historical!$B$7:$B$1454,0)))^(1/10)-1)*100) -> 7.4 | W114: 0.732 | X114: 0.223 | Z114: 60.27 | AA114: 30.24 | AB114: 12 | AC114: 4.38 | AD114: 3.64 | AE114: 1.42 | AF114: 2.67 | AG114: 13.60 | AH114: 25.80 | AI114: 9.67 | AJ114: 24.40 | AK114: 8.31 | AL114: 19,810 | AM114: 0.3 | AN114: 0.58 | AO114: (22.8) | AP114: 7.4 | AQ114: 89.4 | AR114: =INDEX(Historical!$C$7:$C$1447,MATCH(B114,Historical!$B$7:$B$1454,0))*IF(AH114="n/a",1.03,IF(AH114<0,1.01,IF(AH114>10,1.1,(1+AH114/100)))) -> 2.84 | AS114: 3.11 | AT114: 3.37 | AU114: 3.65 | AV114: 3.95 | AW114: 16.93 | AX114: 12.8 | AY114: 1.26 | AZ114: 24.5 | BA114: -18.7 | BB114: 4.7 | BC114: -1.2 | BE114: 1968 | BF114: =#VALUE! ->  | BG114: 5.1
A115: Stepan Company | B115: SCL | C115: Materials | D115: Chemicals | E115: 51 | F115: 25 | G115: - | H115: - | I115: 94.10 | J115: 1.06 | K115: 0.2500 | L115: 4 | M115: 1.00 | N115: C15 | O115: 0.2250 | P115: 2018-11-29 | Q115: 2018-12-14 | R115: 11.11 | S115: =IF(INDEX(Historical!$D$7:$D$1447,MATCH(B115,Historical!$B$7:$B$1454,0))=0,"n/a",(INDEX(Historical!$C$7:$C$1447,MATCH(B115,Historical!$B$7:$B$1454,0))/INDEX(Historical!$D$7:$D$1447,MATCH(B115,Historical!$B$7:$B$1454,0))-1)*100) -> 10.1 | T115: =IF(INDEX(Historical!$F$7:$F$1447,MATCH(B115,Historical!$B$7:$B$1454,0))=0,"n/a",((INDEX(Historical!$C$7:$C$1447,MATCH(B115,Historical!$B$7:$B$1454,0))/INDEX(Historical!$F$7:$F$1447,MATCH(B115,Historical!$B$7:$B$1454,0)))^(1/3)-1)*100) -> 8.2 | U115: =IF(INDEX(Historical!$H$7:$H$1447,MATCH(B115,Historical!$B$7:$B$1454,0))=0,"n/a",((INDEX(Historical!$C$7:$C$1447,MATCH(B115,Historical!$B$7:$B$1454,0))/INDEX(Historical!$H$7:$H$1447,MATCH(B115,Historical!$B$7:$B$1454,0)))^(1/5)-1)*100) -> 7.3 | V115: =IF(INDEX(Historical!$O$7:$O$1447,MATCH(B115,Historical!$B$7:$B$1454,0))=0,"n/a",((INDEX(Historical!$C$7:$C$1447,MATCH(B115,Historical!$B$7:$B$1454,0))/INDEX(Historical!$O$7:$O$1447,MATCH(B115,Historical!$B$7:$B$1454,0)))^(1/10)-1)*100) -> 8.1 | W115: 0.904 | X115: 1.329 | Z115: 22.83 | AA115: 21.48 | AB115: 12 | AC115: 4.38 | AD115: 4.88 | AE115: 1.06 | AF115: 2.78 | AG115: 12.50 | AH115: 22.00 | AI115: 16.37 | AJ115: 5.50 | AK115: 4.40 | AL115: 2,120 | AM115: 2.2 | AN115: 0.37 | AO115: (13.1) | AP115: 8.4 | AQ115: 62.9 | AR115: =INDEX(Historical!$C$7:$C$1447,MATCH(B115,Historical!$B$7:$B$1454,0))*IF(AH115="n/a",1.03,IF(AH115<0,1.01,IF(AH115>10,1.1,(1+AH115/100)))) -> 1.02 | AS115: 1.12 | AT115: 1.17 | AU115: 1.22 | AV115: 1.27 | AW115: 5.80 | AX115: 6.2 | AY115: 1.28 | AZ115: 38.2 | BA115: -1.3 | BB115: 14.1 | BC115: 14.3 | BE115: 1969 | BF115: =#VALUE! ->  | BG115: 6.5
A116: Stryker Corp. | B116: SYK | C116: Health Care | D116: Health Care Equipment & Supplies | E116: 26 | F116: 114 | G116: - | H116: - | I116: 188.51 | J116: 1.10 | K116: 0.5200 | L116: 4 | M116: 2.08 | N116: A31 | O116: 0.4700 | P116: 2018-12-28 | Q116: 2019-01-31 | R116: 10.64 | S116: =IF(INDEX(Historical!$D$7:$D$1447,MATCH(B116,Historical!$B$7:$B$1454,0))=0,"n/a",(INDEX(Historical!$C$7:$C$1447,MATCH(B116,Historical!$B$7:$B$1454,0))/INDEX(Historical!$D$7:$D$1447,MATCH(B116,Historical!$B$7:$B$1454,0))-1)*100) -> 10.6 | T116: =IF(INDEX(Historical!$F$7:$F$1447,MATCH(B116,Historical!$B$7:$B$1454,0))=0,"n/a",((INDEX(Historical!$C$7:$C$1447,MATCH(B116,Historical!$B$7:$B$1454,0))/INDEX(Historical!$F$7:$F$1447,MATCH(B116,Historical!$B$7:$B$1454,0)))^(1/3)-1)*100) -> 10.9 | U116: =IF(INDEX(Historical!$H$7:$H$1447,MATCH(B116,Historical!$B$7:$B$1454,0))=0,"n/a",((INDEX(Historical!$C$7:$C$1447,MATCH(B116,Historical!$B$7:$B$1454,0))/INDEX(Historical!$H$7:$H$1447,MATCH(B116,Historical!$B$7:$B$1454,0)))^(1/5)-1)*100) -> 12.1 | V116: =IF(INDEX(Historical!$O$7:$O$1447,MATCH(B116,Historical!$B$7:$B$1454,0))=0,"n/a",((INDEX(Historical!$C$7:$C$1447,MATCH(B116,Historical!$B$7:$B$1454,0))/INDEX(Historical!$O$7:$O$1447,MATCH(B116,Historical!$B$7:$B$1454,0)))^(1/10)-1)*100) -> 19.0 | W116: 0.639 | X116: 0.820 | Z116: 39.69 | AA116: 35.98 | AB116: 12 | AC116: 5.24 | AD116: 3.41 | AE116: 5.14 | AF116: 6.02 | AG116: 35.30 | AH116: 7.60 | AI116: 10.01 | AJ116: 14.80 | AK116: 10.54 | AL116: 69,840 | AM116: 0.1 | AN116: 0.84 | AO116: (22.7) | AP116: 13.2 | AQ116: 210.2 | AR116: =INDEX(Historical!$C$7:$C$1447,MATCH(B116,Historical!$B$7:$B$1454,0))*IF(AH116="n/a",1.03,IF(AH116<0,1.01,IF(AH116>10,1.1,(1+AH116/100)))) -> 2.02 | AS116: 2.23 | AT116: 2.45 | AU116: 2.69 | AV116: 2.96 | AW116: 12.35 | AX116: 6.6 | AY116: 0.89 | AZ116: 30.2 | BA116: -0.6 | BB116: 11.6 | BC116: 10.7 | BE116: 1994 | BF116: =#VALUE! ->  | BG116: 15.3
A117: Sysco Corp. | B117: SYY | C117: Consumer Staples | D117: Food & Staples Retailing | E117: 49 | F117: 30 | G117: N | H117: Y | I117: 67.55 | J117: 2.31 | K117: 0.3900 | L117: 4 | M117: 1.56 | N117: A26 | O117: 0.3600 | P117: 2019-01-03 | Q117: 2019-01-25 | R117: 8.33 | S117: =IF(INDEX(Historical!$D$7:$D$1447,MATCH(B117,Historical!$B$7:$B$1454,0))=0,"n/a",(INDEX(Historical!$C$7:$C$1447,MATCH(B117,Historical!$B$7:$B$1454,0))/INDEX(Historical!$D$7:$D$1447,MATCH(B117,Historical!$B$7:$B$1454,0))-1)*100) -> 9.1 | T117: =IF(INDEX(Historical!$F$7:$F$1447,MATCH(B117,Historical!$B$7:$B$1454,0))=0,"n/a",((INDEX(Historical!$C$7:$C$1447,MATCH(B117,Historical!$B$7:$B$1454,0))/INDEX(Historical!$F$7:$F$1447,MATCH(B117,Historical!$B$7:$B$1454,0)))^(1/3)-1)*100) -> 6.3 | U117: =IF(INDEX(Historical!$H$7:$H$1447,MATCH(B117,Historical!$B$7:$B$1454,0))=0,"n/a",((INDEX(Historical!$C$7:$C$1447,MATCH(B117,Historical!$B$7:$B$1454,0))/INDEX(Historical!$H$7:$H$1447,MATCH(B117,Historical!$B$7:$B$1454,0)))^(1/5)-1)*100) -> 5.2 | V117: =IF(INDEX(Historical!$O$7:$O$1447,MATCH(B117,Historical!$B$7:$B$1454,0))=0,"n/a",((INDEX(Historical!$C$7:$C$1447,MATCH(B117,Historical!$B$7:$B$1454,0))/INDEX(Historical!$O$7:$O$1447,MATCH(B117,Historical!$B$7:$B$1454,0)))^(1/10)-1)*100) -> 5.0 | W117: 1.021 | X117: 0.573 | Z117: 55.12 | AA117: 23.87 | AB117: 6 | AC117: 2.83 | AD117: 2.44 | AE117: 0.58 | AF117: 16.12 | AG117: 61.10 | AH117: 23.70 | AI117: 10.84 | AJ117: 9.00 | AK117: 9.79 | AL117: 34,640 | AM117: 0.2 | AN117: 4.07 | AO117: (16.4) | AP117: 7.5 | AQ117: 313.5 | AR117: =INDEX(Historical!$C$7:$C$1447,MATCH(B117,Historical!$B$7:$B$1454,0))*IF(AH117="n/a",1.03,IF(AH117<0,1.01,IF(AH117>10,1.1,(1+AH117/100)))) -> 1.58 | AS117: 1.74 | AT117: 1.91 | AU117: 2.10 | AV117: 2.31 | AW117: 9.65 | AX117: 14.3 | AY117: 0.54 | AZ117: 16.2 | BA117: -11.1 | BB117: 5.6 | BC117: -0.6 | BE117: 1971 | BF117: =#VALUE! ->  | BG117: 8
A118: T. Rowe Price Group | B118: TROW | C118: Financials | D118: Capital Markets | E118: 33 | F118: 84 | G118: - | H118: - | I118: 100.43 | J118: 3.03 | K118: 0.7600 | L118: 4 | M118: 3.04 | N118: C30 | O118: 0.7000 | P118: 2019-03-14 | Q118: 2019-03-29 | R118: 8.57 | S118: =IF(INDEX(Historical!$D$7:$D$1447,MATCH(B118,Historical!$B$7:$B$1454,0))=0,"n/a",(INDEX(Historical!$C$7:$C$1447,MATCH(B118,Historical!$B$7:$B$1454,0))/INDEX(Historical!$D$7:$D$1447,MATCH(B118,Historical!$B$7:$B$1454,0))-1)*100) -> 22.8 | T118: =IF(INDEX(Historical!$F$7:$F$1447,MATCH(B118,Historical!$B$7:$B$1454,0))=0,"n/a",((INDEX(Historical!$C$7:$C$1447,MATCH(B118,Historical!$B$7:$B$1454,0))/INDEX(Historical!$F$7:$F$1447,MATCH(B118,Historical!$B$7:$B$1454,0)))^(1/3)-1)*100) -> 10.4 | U118: =IF(INDEX(Historical!$H$7:$H$1447,MATCH(B118,Historical!$B$7:$B$1454,0))=0,"n/a",((INDEX(Historical!$C$7:$C$1447,MATCH(B118,Historical!$B$7:$B$1454,0))/INDEX(Historical!$H$7:$H$1447,MATCH(B118,Historical!$B$7:$B$1454,0)))^(1/5)-1)*100) -> 13.0 | V118: =IF(INDEX(Historical!$O$7:$O$1447,MATCH(B118,Historical!$B$7:$B$1454,0))=0,"n/a",((INDEX(Historical!$C$7:$C$1447,MATCH(B118,Historical!$B$7:$B$1454,0))/INDEX(Historical!$O$7:$O$1447,MATCH(B118,Historical!$B$7:$B$1454,0)))^(1/10)-1)*100) -> 11.3 | W118: 1.150 | X118: 0.956 | Z118: 41.25 | AA118: 13.63 | AB118: 12 | AC118: 7.37 | AD118: 3.43 | AE118: 4.37 | AF118: 3.93 | AG118: 29.20 | AH118: 17.90 | AI118: 6.96 | AJ118: 13.60 | AK118: 3.97 | AL118: 23,500 | AM118: 2.1 | AN118: 0.00 | AO118: 2.4 | AP118: 16.0 | AQ118: 54.3 | AR118: =INDEX(Historical!$C$7:$C$1447,MATCH(B118,Historical!$B$7:$B$1454,0))*IF(AH118="n/a",1.03,IF(AH118<0,1.01,IF(AH118>10,1.1,(1+AH118/100)))) -> 3.08 | AS118: 3.29 | AT118: 3.43 | AU118: 3.56 | AV118: 3.70 | AW118: 17.06 | AX118: 17.0 | AY118: 1.05 | AZ118: 18.7 | BA118: -21.2 | BB118: 7.5 | BC118: -5.9 | BE118: 1987 | BF118: =#VALUE! ->  | BG118: 22.8
A119: Tanger Factory Outlet Centers | B119: SKT | C119: Real Estate | D119: Equity Real Estate Investment Trusts (REITs) | E119: 26 | F119: 118 | G119: N | H119: N | I119: 21.59 | J119: 6.58 | K119: 0.3550 | L119: 4 | M119: 1.42 | N119: B15 | O119: 0.3500 | P119: 2019-04-29 | Q119: 2019-05-15 | R119: 1.43 | S119: =IF(INDEX(Historical!$D$7:$D$1447,MATCH(B119,Historical!$B$7:$B$1454,0))=0,"n/a",(INDEX(Historical!$C$7:$C$1447,MATCH(B119,Historical!$B$7:$B$1454,0))/INDEX(Historical!$D$7:$D$1447,MATCH(B119,Historical!$B$7:$B$1454,0))-1)*100) -> 3.0 | T119: =IF(INDEX(Historical!$F$7:$F$1447,MATCH(B119,Historical!$B$7:$B$1454,0))=0,"n/a",((INDEX(Historical!$C$7:$C$1447,MATCH(B119,Historical!$B$7:$B$1454,0))/INDEX(Historical!$F$7:$F$1447,MATCH(B119,Historical!$B$7:$B$1454,0)))^(1/3)-1)*100) -> 8.3 | U119: =IF(INDEX(Historical!$H$7:$H$1447,MATCH(B119,Historical!$B$7:$B$1454,0))=0,"n/a",((INDEX(Historical!$C$7:$C$1447,MATCH(B119,Historical!$B$7:$B$1454,0))/INDEX(Historical!$H$7:$H$1447,MATCH(B119,Historical!$B$7:$B$1454,0)))^(1/5)-1)*100) -> 9.5 | V119: =IF(INDEX(Historical!$O$7:$O$1447,MATCH(B119,Historical!$B$7:$B$1454,0))=0,"n/a",((INDEX(Historical!$C$7:$C$1447,MATCH(B119,Historical!$B$7:$B$1454,0))/INDEX(Historical!$O$7:$O$1447,MATCH(B119,Historical!$B$7:$B$1454,0)))^(1/10)-1)*100) -> 6.4 | W119: 1.487 | X119: n/a | Z119: 315.56 | AA119: 47.98 | AB119: 12 | AC119: 0.45 | AD119: 7.10 | AE119: 4.05 | AF119: 4.36 | AG119: 8.10 | AH119: -35.60 | AI119: 1.97 | AJ119: -16.60 | AK119: 6.70 | AL119: 2,000 | AM119: 2.2 | AN119: 3.57 | AO119: (31.9) | AP119: 16.1 | AQ119: 204.9 | AR119: =INDEX(Historical!$C$7:$C$1447,MATCH(B119,Historical!$B$7:$B$1454,0))*IF(AH119="n/a",1.03,IF(AH119<0,1.01,IF(AH119>10,1.1,(1+AH119/100)))) -> 1.41 | AS119: 1.43 | AT119: 1.53 | AU119: 1.63 | AV119: 1.74 | AW119: 7.75 | AX119: 35.9 | AY119: 0.77 | AZ119: 9.3 | BA119: -13.3 | BB119: -1.1 | BC119: -4.8 | BE119: 1994 | BF119: =#VALUE! ->  | BG119: 1.7
A120: Target Corp. | B120: TGT | C120: Consumer Discretionary | D120: Multiline Retail | E120: 51 | F120: 22 | G120: Y | H120: Y | I120: 72.64 | J120: 3.52 | K120: 0.6400 | L120: 4 | M120: 2.56 | N120: C10 | O120: 0.6200 | P120: 2018-08-14 | Q120: 2018-09-10 | R120: 3.23 | S120: =IF(INDEX(Historical!$D$7:$D$1447,MATCH(B120,Historical!$B$7:$B$1454,0))=0,"n/a",(INDEX(Historical!$C$7:$C$1447,MATCH(B120,Historical!$B$7:$B$1454,0))/INDEX(Historical!$D$7:$D$1447,MATCH(B120,Historical!$B$7:$B$1454,0))-1)*100) -> 3.3 | T120: =IF(INDEX(Historical!$F$7:$F$1447,MATCH(B120,Historical!$B$7:$B$1454,0))=0,"n/a",((INDEX(Historical!$C$7:$C$1447,MATCH(B120,Historical!$B$7:$B$1454,0))/INDEX(Historical!$F$7:$F$1447,MATCH(B120,Historical!$B$7:$B$1454,0)))^(1/3)-1)*100) -> 5.3 | U120: =IF(INDEX(Historical!$H$7:$H$1447,MATCH(B120,Historical!$B$7:$B$1454,0))=0,"n/a",((INDEX(Historical!$C$7:$C$1447,MATCH(B120,Historical!$B$7:$B$1454,0))/INDEX(Historical!$H$7:$H$1447,MATCH(B120,Historical!$B$7:$B$1454,0)))^(1/5)-1)*100) -> 9.8 | V120: =IF(INDEX(Historical!$O$7:$O$1447,MATCH(B120,Historical!$B$7:$B$1454,0))=0,"n/a",((INDEX(Historical!$C$7:$C$1447,MATCH(B120,Historical!$B$7:$B$1454,0))/INDEX(Historical!$O$7:$O$1447,MATCH(B120,Historical!$B$7:$B$1454,0)))^(1/10)-1)*100) -> 15.4 | W120: 0.634 | X120: n/a | Z120: 49.14 | AA120: 13.94 | AB120: 1 | AC120: 5.21 | AD120: 1.74 | AE120: 0.51 | AF120: 3.45 | AG120: 28.80 | AH120: 0.70 | AI120: 4.08 | AJ120: -1.60 | AK120: 8.00 | AL120: 38,200 | AM120: 0.1 | AN120: 1.05 | AO120: (0.6) | AP120: 13.3 | AQ120: 46.2 | AR120: =INDEX(Historical!$C$7:$C$1447,MATCH(B120,Historical!$B$7:$B$1454,0))*IF(AH120="n/a",1.03,IF(AH120<0,1.01,IF(AH120>10,1.1,(1+AH120/100)))) -> 2.54 | AS120: 2.64 | AT120: 2.85 | AU120: 3.08 | AV120: 3.33 | AW120: 14.44 | AX120: 19.9 | AY120: 0.65 | AZ120: 20.8 | BA120: -19.6 | BB120: 4.8 | BC120: -6.2 | BE120: 1968 | BF120: =#VALUE! ->  | BG120: 8
A121: Telephone & Data Sys. | B121: TDS | C121: Communication Services | D121: Wireless Telecommunication Services | E121: 45 | F121: 52 | G121: N | H121: N | I121: 32.05 | J121: 2.06 | K121: 0.1650 | L121: 4 | M121: 0.66 | N121: C29 | O121: 0.1600 | P121: 2019-03-14 | Q121: 2019-03-29 | R121: 3.13 | S121: =IF(INDEX(Historical!$D$7:$D$1447,MATCH(B121,Historical!$B$7:$B$1454,0))=0,"n/a",(INDEX(Historical!$C$7:$C$1447,MATCH(B121,Historical!$B$7:$B$1454,0))/INDEX(Historical!$D$7:$D$1447,MATCH(B121,Historical!$B$7:$B$1454,0))-1)*100) -> 3.2 | T121: =IF(INDEX(Historical!$F$7:$F$1447,MATCH(B121,Historical!$B$7:$B$1454,0))=0,"n/a",((INDEX(Historical!$C$7:$C$1447,MATCH(B121,Historical!$B$7:$B$1454,0))/INDEX(Historical!$F$7:$F$1447,MATCH(B121,Historical!$B$7:$B$1454,0)))^(1/3)-1)*100) -> 4.3 | U121: =IF(INDEX(Historical!$H$7:$H$1447,MATCH(B121,Historical!$B$7:$B$1454,0))=0,"n/a",((INDEX(Historical!$C$7:$C$1447,MATCH(B121,Historical!$B$7:$B$1454,0))/INDEX(Historical!$H$7:$H$1447,MATCH(B121,Historical!$B$7:$B$1454,0)))^(1/5)-1)*100) -> 4.6 | V121: =IF(INDEX(Historical!$O$7:$O$1447,MATCH(B121,Historical!$B$7:$B$1454,0))=0,"n/a",((INDEX(Historical!$C$7:$C$1447,MATCH(B121,Historical!$B$7:$B$1454,0))/INDEX(Historical!$O$7:$O$1447,MATCH(B121,Historical!$B$7:$B$1454,0)))^(1/10)-1)*100) -> 4.6 | W121: 1.020 | X121: n/a | Z121: 95.65 | AA121: 46.45 | AB121: 12 | AC121: 0.69 | AD121: n/a | AE121: 0.75 | AF121: 0.79 | AG121: n/a | AH121: 118.90 | AI121: -0.73 | AJ121: -19.21 | AK121: n/a | AL121: 3,790 | AM121: 0.4 | AN121: 0.53 | AO121: (39.7) | AP121: 6.7 | AQ121: 27.7 | AR121: =INDEX(Historical!$C$7:$C$1447,MATCH(B121,Historical!$B$7:$B$1454,0))*IF(AH121="n/a",1.03,IF(AH121<0,1.01,IF(AH121>10,1.1,(1+AH121/100)))) -> 0.70 | AS121: 0.71 | AT121: 0.73 | AU121: 0.75 | AV121: 0.78 | AW121: 3.68 | AX121: 11.5 | AY121: 1.07 | AZ121: 33.6 | BA121: -14.1 | BB121: -7.9 | BC121: 3.5 | BE121: 1975 | BF121: =#VALUE! ->  | BG121: n/a
A122: Tennant Company | B122: TNC | C122: Industrials | D122: Machinery | E122: 47 | F122: 39 | G122: N | H122: N | I122: 63.20 | J122: 1.39 | K122: 0.2200 | L122: 4 | M122: 0.88 | N122: C15 | O122: 0.2100 | P122: 2018-11-29 | Q122: 2018-12-14 | R122: 4.76 | S122: =IF(INDEX(Historical!$D$7:$D$1447,MATCH(B122,Historical!$B$7:$B$1454,0))=0,"n/a",(INDEX(Historical!$C$7:$C$1447,MATCH(B122,Historical!$B$7:$B$1454,0))/INDEX(Historical!$D$7:$D$1447,MATCH(B122,Historical!$B$7:$B$1454,0))-1)*100) -> 1.2 | T122: =IF(INDEX(Historical!$F$7:$F$1447,MATCH(B122,Historical!$B$7:$B$1454,0))=0,"n/a",((INDEX(Historical!$C$7:$C$1447,MATCH(B122,Historical!$B$7:$B$1454,0))/INDEX(Historical!$F$7:$F$1447,MATCH(B122,Historical!$B$7:$B$1454,0)))^(1/3)-1)*100) -> 2.0 | U122: =IF(INDEX(Historical!$H$7:$H$1447,MATCH(B122,Historical!$B$7:$B$1454,0))=0,"n/a",((INDEX(Historical!$C$7:$C$1447,MATCH(B122,Historical!$B$7:$B$1454,0))/INDEX(Historical!$H$7:$H$1447,MATCH(B122,Historical!$B$7:$B$1454,0)))^(1/5)-1)*100) -> 3.4 | V122: =IF(INDEX(Historical!$O$7:$O$1447,MATCH(B122,Historical!$B$7:$B$1454,0))=0,"n/a",((INDEX(Historical!$C$7:$C$1447,MATCH(B122,Historical!$B$7:$B$1454,0))/INDEX(Historical!$O$7:$O$1447,MATCH(B122,Historical!$B$7:$B$1454,0)))^(1/10)-1)*100) -> 5.0 | W122: 0.670 | X122: n/a | Z122: 48.35 | AA122: 34.73 | AB122: 12 | AC122: 1.82 | AD122: 2.32 | AE122: 1.01 | AF122: 3.70 | AG122: 5.40 | AH122: -108.30 | AI122: 16.74 | AJ122: -16.00 | AK122: 15.00 | AL122: 1,140 | AM122: 0.3 | AN122: 1.13 | AO122: (30.0) | AP122: 4.8 | AQ122: 139.0 | AR122: =INDEX(Historical!$C$7:$C$1447,MATCH(B122,Historical!$B$7:$B$1454,0))*IF(AH122="n/a",1.03,IF(AH122<0,1.01,IF(AH122>10,1.1,(1+AH122/100)))) -> 0.86 | AS122: 0.94 | AT122: 1.04 | AU122: 1.14 | AV122: 1.26 | AW122: 5.24 | AX122: 8.3 | AY122: 1.15 | AZ122: 29.1 | BA122: -26.5 | BB122: 10.5 | BC122: -8.0 | BE122: 1973 | BF122: =#VALUE! ->  | BG122: 1.7
A123: Thomson Reuters Corp. | B123: TRI | C123: Financials | D123: Capital Markets | E123: 26 | F123: 116 | G123: - | H123: - | I123: 54.41 | J123: 2.65 | K123: 0.3600 | L123: 4 | M123: 1.44 | N123: C15 | O123: 0.3500 | P123: 2019-03-07 | Q123: 2019-03-20 | R123: 2.86 | S123: =IF(INDEX(Historical!$D$7:$D$1447,MATCH(B123,Historical!$B$7:$B$1454,0))=0,"n/a",(INDEX(Historical!$C$7:$C$1447,MATCH(B123,Historical!$B$7:$B$1454,0))/INDEX(Historical!$D$7:$D$1447,MATCH(B123,Historical!$B$7:$B$1454,0))-1)*100) -> 0.4 | T123: =IF(INDEX(Historical!$F$7:$F$1447,MATCH(B123,Historical!$B$7:$B$1454,0))=0,"n/a",((INDEX(Historical!$C$7:$C$1447,MATCH(B123,Historical!$B$7:$B$1454,0))/INDEX(Historical!$F$7:$F$1447,MATCH(B123,Historical!$B$7:$B$1454,0)))^(1/3)-1)*100) -> 1.1 | U123: =IF(INDEX(Historical!$H$7:$H$1447,MATCH(B123,Historical!$B$7:$B$1454,0))=0,"n/a",((INDEX(Historical!$C$7:$C$1447,MATCH(B123,Historical!$B$7:$B$1454,0))/INDEX(Historical!$H$7:$H$1447,MATCH(B123,Historical!$B$7:$B$1454,0)))^(1/5)-1)*100) -> 1.3 | V123: =IF(INDEX(Historical!$O$7:$O$1447,MATCH(B123,Historical!$B$7:$B$1454,0))=0,"n/a",((INDEX(Historical!$C$7:$C$1447,MATCH(B123,Historical!$B$7:$B$1454,0))/INDEX(Historical!$O$7:$O$1447,MATCH(B123,Historical!$B$7:$B$1454,0)))^(1/10)-1)*100) -> 2.5 | W123: 0.506 | X123: n/a | Y123: Canada,US$ | Z123: 177.78 | AA123: 67.17 | AB123: 12 | AC123: 0.81 | AD123: 2.05 | AE123: 3.91 | AF123: 2.90 | AG123: 9.10 | AH123: 13.20 | AI123: 97.21 | AJ123: -8.70 | AK123: 32.67 | AL123: 27,110 | AM123: 55.0 | AN123: 0.59 | AO123: (63.3) | AP123: 3.9 | AQ123: 194.2 | AR123: =INDEX(Historical!$C$7:$C$1447,MATCH(B123,Historical!$B$7:$B$1454,0))*IF(AH123="n/a",1.03,IF(AH123<0,1.01,IF(AH123>10,1.1,(1+AH123/100)))) -> 1.52 | AS123: 1.68 | AT123: 1.84 | AU123: 2.03 | AV123: 2.23 | AW123: 9.30 | AX123: 17.1 | AY123: 0.59 | AZ123: 49.8 | BA123: -1.9 | BB123: 7.4 | BC123: 19.8 | BE123: 1995 | BF123: =#VALUE! ->  | BG123: 4.2
A124: Tompkins Financial Corp. | B124: TMP | C124: Financials | D124: Banks | E124: 32 | F124: 87 | G124: N | H124: N | I124: 80.41 | J124: 2.49 | K124: 0.5000 | L124: 4 | M124: 2.00 | N124: B15 | O124: 0.4800 | P124: 2018-11-05 | Q124: 2018-11-15 | R124: 4.17 | S124: =IF(INDEX(Historical!$D$7:$D$1447,MATCH(B124,Historical!$B$7:$B$1454,0))=0,"n/a",(INDEX(Historical!$C$7:$C$1447,MATCH(B124,Historical!$B$7:$B$1454,0))/INDEX(Historical!$D$7:$D$1447,MATCH(B124,Historical!$B$7:$B$1454,0))-1)*100) -> 6.6 | T124: =IF(INDEX(Historical!$F$7:$F$1447,MATCH(B124,Historical!$B$7:$B$1454,0))=0,"n/a",((INDEX(Historical!$C$7:$C$1447,MATCH(B124,Historical!$B$7:$B$1454,0))/INDEX(Historical!$F$7:$F$1447,MATCH(B124,Historical!$B$7:$B$1454,0)))^(1/3)-1)*100) -> 4.5 | U124: =IF(INDEX(Historical!$H$7:$H$1447,MATCH(B124,Historical!$B$7:$B$1454,0))=0,"n/a",((INDEX(Historical!$C$7:$C$1447,MATCH(B124,Historical!$B$7:$B$1454,0))/INDEX(Historical!$H$7:$H$1447,MATCH(B124,Historical!$B$7:$B$1454,0)))^(1/5)-1)*100) -> 4.7 | V124: =IF(INDEX(Historical!$O$7:$O$1447,MATCH(B124,Historical!$B$7:$B$1454,0))=0,"n/a",((INDEX(Historical!$C$7:$C$1447,MATCH(B124,Historical!$B$7:$B$1454,0))/INDEX(Historical!$O$7:$O$1447,MATCH(B124,Historical!$B$7:$B$1454,0)))^(1/10)-1)*100) -> 4.9 | W124: 0.960 | X124: 0.372 | Z124: 39.60 | AA124: 15.92 | AB124: 12 | AC124: 5.05 | AD124: 1.99 | AE124: 5.15 | AF124: 2.02 | AG124: 10.50 | AH124: 12.90 | AI124: 3.68 | AJ124: 12.70 | AK124: 8.00 | AL124: 1,230 | AM124: 1.4 | AN124: 1.68 | AO124: (8.7) | AP124: 7.2 | AQ124: 19.6 | AR124: =INDEX(Historical!$C$7:$C$1447,MATCH(B124,Historical!$B$7:$B$1454,0))*IF(AH124="n/a",1.03,IF(AH124<0,1.01,IF(AH124>10,1.1,(1+AH124/100)))) -> 2.13 | AS124: 2.21 | AT124: 2.39 | AU124: 2.58 | AV124: 2.79 | AW124: 12.10 | AX124: 15.1 | AY124: 0.79 | AZ124: 16.5 | BA124: -12.6 | BB124: 5.0 | BC124: -1.4 | BE124: 1987 | BF124: =#VALUE! ->  | BG124: 0.9
A125: Tootsie Roll Industries | B125: TR | C125: Consumer Staples | D125: Food Products | E125: 52 | F125: 18 | G125: - | H125: - | I125: 37.19 | J125: 0.97 | K125: 0.0900 | L125: 4 | M125: 0.36 | N125: C27 | O125: 0.0874 | P125: 2018-03-05 | Q125: 2018-03-27 | R125: 3.00 | S125: =IF(INDEX(Historical!$D$7:$D$1447,MATCH(B125,Historical!$B$7:$B$1454,0))=0,"n/a",(INDEX(Historical!$C$7:$C$1447,MATCH(B125,Historical!$B$7:$B$1454,0))/INDEX(Historical!$D$7:$D$1447,MATCH(B125,Historical!$B$7:$B$1454,0))-1)*100) -> 2.3 | T125: =IF(INDEX(Historical!$F$7:$F$1447,MATCH(B125,Historical!$B$7:$B$1454,0))=0,"n/a",((INDEX(Historical!$C$7:$C$1447,MATCH(B125,Historical!$B$7:$B$1454,0))/INDEX(Historical!$F$7:$F$1447,MATCH(B125,Historical!$B$7:$B$1454,0)))^(1/3)-1)*100) -> 5.2 | U125: =IF(INDEX(Historical!$H$7:$H$1447,MATCH(B125,Historical!$B$7:$B$1454,0))=0,"n/a",((INDEX(Historical!$C$7:$C$1447,MATCH(B125,Historical!$B$7:$B$1454,0))/INDEX(Historical!$H$7:$H$1447,MATCH(B125,Historical!$B$7:$B$1454,0)))^(1/5)-1)*100) -> 6.1 | V125: =IF(INDEX(Historical!$O$7:$O$1447,MATCH(B125,Historical!$B$7:$B$1454,0))=0,"n/a",((INDEX(Historical!$C$7:$C$1447,MATCH(B125,Historical!$B$7:$B$1454,0))/INDEX(Historical!$O$7:$O$1447,MATCH(B125,Historical!$B$7:$B$1454,0)))^(1/10)-1)*100) -> 4.5 | W125: 1.366 | X125: 1.322 | Y125: Adj/Stock Div | Z125: 40.91 | AA125: 42.26 | AB125: 12 | AC125: 0.88 | AD125: 4.71 | AE125: 4.43 | AF125: 3.20 | AG125: 10.50 | AH125: -9.00 | AI125: n/a | AJ125: 4.60 | AK125: 9.00 | AL125: 2,290 | AM125: 56.7 | AN125: 0.01 | AO125: (35.2) | AP125: 7.0 | AQ125: 145.2 | AR125: =INDEX(Historical!$C$7:$C$1447,MATCH(B125,Historical!$B$7:$B$1454,0))*IF(AH125="n/a",1.03,IF(AH125<0,1.01,IF(AH125>10,1.1,(1+AH125/100)))) -> 0.36 | AS125: 0.37 | AT125: 0.41 | AU125: 0.44 | AV125: 0.48 | AW125: 2.06 | AX125: 5.5 | AY125: 0.37 | AZ125: 35.5 | BA125: -2.5 | BB125: 8.4 | BC125: 18.5 | BE125: 1967 | BF125: =#VALUE! ->  | BG125: 8.2
A126: UGI Corp. | B126: UGI | C126: Utilities | D126: Gas Utilities | E126: 31 | F126: 91 | G126: N | H126: N | I126: 54.90 | J126: 1.89 | K126: 0.2600 | L126: 4 | M126: 1.04 | N126: A01 | O126: 0.2500 | P126: 2018-06-14 | Q126: 2018-07-01 | R126: 4.00 | S126: =IF(INDEX(Historical!$D$7:$D$1447,MATCH(B126,Historical!$B$7:$B$1454,0))=0,"n/a",(INDEX(Historical!$C$7:$C$1447,MATCH(B126,Historical!$B$7:$B$1454,0))/INDEX(Historical!$D$7:$D$1447,MATCH(B126,Historical!$B$7:$B$1454,0))-1)*100) -> 4.6 | T126: =IF(INDEX(Historical!$F$7:$F$1447,MATCH(B126,Historical!$B$7:$B$1454,0))=0,"n/a",((INDEX(Historical!$C$7:$C$1447,MATCH(B126,Historical!$B$7:$B$1454,0))/INDEX(Historical!$F$7:$F$1447,MATCH(B126,Historical!$B$7:$B$1454,0)))^(1/3)-1)*100) -> 4.7 | U126: =IF(INDEX(Historical!$H$7:$H$1447,MATCH(B126,Historical!$B$7:$B$1454,0))=0,"n/a",((INDEX(Historical!$C$7:$C$1447,MATCH(B126,Historical!$B$7:$B$1454,0))/INDEX(Historical!$H$7:$H$1447,MATCH(B126,Historical!$B$7:$B$1454,0)))^(1/5)-1)*100) -> 6.7 | V126: =IF(INDEX(Historical!$O$7:$O$1447,MATCH(B126,Historical!$B$7:$B$1454,0))=0,"n/a",((INDEX(Historical!$C$7:$C$1447,MATCH(B126,Historical!$B$7:$B$1454,0))/INDEX(Historical!$O$7:$O$1447,MATCH(B126,Historical!$B$7:$B$1454,0)))^(1/10)-1)*100) -> 7.3 | W126: 0.919 | X126: 0.474 | Z126: 44.07 | AA126: 23.26 | AB126: 9 | AC126: 2.36 | AD126: 2.91 | AE126: 1.24 | AF126: 2.61 | AG126: 11.20 | AH126: 26.70 | AI126: 12.62 | AJ126: 14.20 | AK126: 8.00 | AL126: 9,580 | AM126: 0.5 | AN126: 1.32 | AO126: (14.6) | AP126: 8.6 | AQ126: 64.3 | AR126: =INDEX(Historical!$C$7:$C$1447,MATCH(B126,Historical!$B$7:$B$1454,0))*IF(AH126="n/a",1.03,IF(AH126<0,1.01,IF(AH126>10,1.1,(1+AH126/100)))) -> 1.12 | AS126: 1.23 | AT126: 1.33 | AU126: 1.44 | AV126: 1.55 | AW126: 6.68 | AX126: 12.2 | AY126: 0.64 | AZ126: 28.5 | BA126: -7.4 | BB126: 0.9 | BC126: 1.9 | BE126: 1988 | BF126: =#VALUE! ->  | BG126: 3.4
A127: UMB Financial Corp. | B127: UMBF | C127: Financials | D127: Banks | E127: 27 | F127: 102 | G127: N | H127: N | I127: 68.81 | J127: 1.74 | K127: 0.3000 | L127: 4 | M127: 1.20 | N127: A02 | O127: 0.2900 | P127: 2018-12-07 | Q127: 2019-01-02 | R127: 3.45 | S127: =IF(INDEX(Historical!$D$7:$D$1447,MATCH(B127,Historical!$B$7:$B$1454,0))=0,"n/a",(INDEX(Historical!$C$7:$C$1447,MATCH(B127,Historical!$B$7:$B$1454,0))/INDEX(Historical!$D$7:$D$1447,MATCH(B127,Historical!$B$7:$B$1454,0))-1)*100) -> 12.3 | T127: =IF(INDEX(Historical!$F$7:$F$1447,MATCH(B127,Historical!$B$7:$B$1454,0))=0,"n/a",((INDEX(Historical!$C$7:$C$1447,MATCH(B127,Historical!$B$7:$B$1454,0))/INDEX(Historical!$F$7:$F$1447,MATCH(B127,Historical!$B$7:$B$1454,0)))^(1/3)-1)*100) -> 6.8 | U127: =IF(INDEX(Historical!$H$7:$H$1447,MATCH(B127,Historical!$B$7:$B$1454,0))=0,"n/a",((INDEX(Historical!$C$7:$C$1447,MATCH(B127,Historical!$B$7:$B$1454,0))/INDEX(Historical!$H$7:$H$1447,MATCH(B127,Historical!$B$7:$B$1454,0)))^(1/5)-1)*100) -> 5.9 | V127: =IF(INDEX(Historical!$O$7:$O$1447,MATCH(B127,Historical!$B$7:$B$1454,0))=0,"n/a",((INDEX(Historical!$C$7:$C$1447,MATCH(B127,Historical!$B$7:$B$1454,0))/INDEX(Historical!$O$7:$O$1447,MATCH(B127,Historical!$B$7:$B$1454,0)))^(1/10)-1)*100) -> 6.2 | W127: 0.957 | X127: 1.473 | Z127: 30.53 | AA127: 17.51 | AB127: 12 | AC127: 3.93 | AD127: 1.70 | AE127: 4.69 | AF127: 1.54 | AG127: 12.40 | AH127: 19.70 | AI127: 4.89 | AJ127: 4.00 | AK127: 10.30 | AL127: 3,440 | AM127: 0.9 | AN127: 0.04 | AO127: (9.9) | AP127: 7.6 | AQ127: 9.5 | AR127: =INDEX(Historical!$C$7:$C$1447,MATCH(B127,Historical!$B$7:$B$1454,0))*IF(AH127="n/a",1.03,IF(AH127<0,1.01,IF(AH127>10,1.1,(1+AH127/100)))) -> 1.26 | AS127: 1.32 | AT127: =IF($AK127="n/a",1.03*AS127,IF($AK127<0,1.01*AS127,IF($AK127>10,1.1*AS127,(1+$AK127/100)*AS127))) -> 1.45 | AU127: 1.60 | AV127: 1.76 | AW127: 7.39 | AX127: 10.7 | AY127: 0.87 | AZ127: 20.7 | BA127: -16.2 | BB127: 6.0 | BC127: -2.7 | BE127: 1993 | BF127: =#VALUE! ->  | BG127: 1.3
A128: United Bankshares Inc. | B128: UBSI | C128: Financials | D128: Banks | E128: 44 | F128: 53 | G128: N | H128: N | I128: 38.39 | J128: 3.54 | K128: 0.3400 | L128: 4 | M128: 1.36 | N128: A02 | O128: 0.3300 | P128: 2017-12-07 | Q128: 2018-01-02 | R128: 3.03 | S128: =IF(INDEX(Historical!$D$7:$D$1447,MATCH(B128,Historical!$B$7:$B$1454,0))=0,"n/a",(INDEX(Historical!$C$7:$C$1447,MATCH(B128,Historical!$B$7:$B$1454,0))/INDEX(Historical!$D$7:$D$1447,MATCH(B128,Historical!$B$7:$B$1454,0))-1)*100) -> 3.0 | T128: =IF(INDEX(Historical!$F$7:$F$1447,MATCH(B128,Historical!$B$7:$B$1454,0))=0,"n/a",((INDEX(Historical!$C$7:$C$1447,MATCH(B128,Historical!$B$7:$B$1454,0))/INDEX(Historical!$F$7:$F$1447,MATCH(B128,Historical!$B$7:$B$1454,0)))^(1/3)-1)*100) -> 2.0 | U128: =IF(INDEX(Historical!$H$7:$H$1447,MATCH(B128,Historical!$B$7:$B$1454,0))=0,"n/a",((INDEX(Historical!$C$7:$C$1447,MATCH(B128,Historical!$B$7:$B$1454,0))/INDEX(Historical!$H$7:$H$1447,MATCH(B128,Historical!$B$7:$B$1454,0)))^(1/5)-1)*100) -> 1.7 | V128: =IF(INDEX(Historical!$O$7:$O$1447,MATCH(B128,Historical!$B$7:$B$1454,0))=0,"n/a",((INDEX(Historical!$C$7:$C$1447,MATCH(B128,Historical!$B$7:$B$1454,0))/INDEX(Historical!$O$7:$O$1447,MATCH(B128,Historical!$B$7:$B$1454,0)))^(1/10)-1)*100) -> 1.6 | W128: 1.061 | X128: 0.532 | Y128: Rec Date Streak | Z128: 55.28 | AA128: 15.61 | AB128: 12 | AC128: 2.46 | AD128: 1.95 | AE128: 5.49 | AF128: 1.22 | AG128: 6.20 | AH128: -3.40 | AI128: 2.90 | AJ128: 3.20 | AK128: 8.00 | AL128: 3,940 | AM128: 0.9 | AN128: 0.07 | AO128: (10.4) | AP128: 5.2 | AQ128: (8.0) | AR128: =INDEX(Historical!$C$7:$C$1447,MATCH(B128,Historical!$B$7:$B$1454,0))*IF(AH128="n/a",1.03,IF(AH128<0,1.01,IF(AH128>10,1.1,(1+AH128/100)))) -> 1.37 | AS128: 1.41 | AT128: 1.53 | AU128: 1.65 | AV128: 1.78 | AW128: 7.74 | AX128: 20.2 | AY128: 1.29 | AZ128: 31.8 | BA128: -3.9 | BB128: 11.4 | BC128: 6.8 | BE128: 1975 | BF128: =#VALUE! ->  | BG128: 1.1
A129: United Technologies | B129: UTX | C129: Industrials | D129: Aerospace & Defense | E129: 25 | F129: 129 | G129: Y | H129: Y | I129: 125.67 | J129: 2.34 | K129: 0.7350 | L129: 4 | M129: 2.94 | N129: C10 | O129: 0.7000 | P129: 2018-11-15 | Q129: 2018-12-10 | R129: 5.00 | S129: =IF(INDEX(Historical!$D$7:$D$1447,MATCH(B129,Historical!$B$7:$B$1454,0))=0,"n/a",(INDEX(Historical!$C$7:$C$1447,MATCH(B129,Historical!$B$7:$B$1454,0))/INDEX(Historical!$D$7:$D$1447,MATCH(B129,Historical!$B$7:$B$1454,0))-1)*100) -> 4.2 | T129: =IF(INDEX(Historical!$F$7:$F$1447,MATCH(B129,Historical!$B$7:$B$1454,0))=0,"n/a",((INDEX(Historical!$C$7:$C$1447,MATCH(B129,Historical!$B$7:$B$1454,0))/INDEX(Historical!$F$7:$F$1447,MATCH(B129,Historical!$B$7:$B$1454,0)))^(1/3)-1)*100) -> 3.5 | U129: =IF(INDEX(Historical!$H$7:$H$1447,MATCH(B129,Historical!$B$7:$B$1454,0))=0,"n/a",((INDEX(Historical!$C$7:$C$1447,MATCH(B129,Historical!$B$7:$B$1454,0))/INDEX(Historical!$H$7:$H$1447,MATCH(B129,Historical!$B$7:$B$1454,0)))^(1/5)-1)*100) -> 5.3 | V129: =IF(INDEX(Historical!$O$7:$O$1447,MATCH(B129,Historical!$B$7:$B$1454,0))=0,"n/a",((INDEX(Historical!$C$7:$C$1447,MATCH(B129,Historical!$B$7:$B$1454,0))/INDEX(Historical!$O$7:$O$1447,MATCH(B129,Historical!$B$7:$B$1454,0)))^(1/10)-1)*100) -> 7.7 | W129: 0.678 | X129: 1.010 | Z129: 39.52 | AA129: 16.89 | AB129: 12 | AC129: 7.44 | AD129: 2.00 | AE129: 1.61 | AF129: 2.71 | AG129: 15.90 | AH129: 13.20 | AI129: 9.77 | AJ129: 5.20 | AK129: 8.45 | AL129: 107,070 | AM129: 0.1 | AN129: 1.18 | AO129: (9.3) | AP129: 7.6 | AQ129: 42.6 | AR129: =INDEX(Historical!$C$7:$C$1447,MATCH(B129,Historical!$B$7:$B$1454,0))*IF(AH129="n/a",1.03,IF(AH129<0,1.01,IF(AH129>10,1.1,(1+AH129/100)))) -> 3.12 | AS129: 3.42 | AT129: 3.71 | AU129: 4.03 | AV129: 4.37 | AW129: 18.65 | AX129: 14.8 | AY129: 1.19 | AZ129: 25.1 | BA129: -12.8 | BB129: 8.4 | BC129: -0.5 | BE129: 1995 | BF129: =#VALUE! ->  | BG129: 4.7
A130: Universal Corp. | B130: UVV | C130: Consumer Staples | D130: Tobacco | E130: 47 | F130: 36 | G130: N | H130: N | I130: 59.34 | J130: 5.06 | K130: 0.7500 | L130: 4 | M130: 3.00 | N130: B05 | O130: 0.5500 | P130: 2018-07-06 | Q130: 2018-08-06 | R130: 36.36 | S130: =IF(INDEX(Historical!$D$7:$D$1447,MATCH(B130,Historical!$B$7:$B$1454,0))=0,"n/a",(INDEX(Historical!$C$7:$C$1447,MATCH(B130,Historical!$B$7:$B$1454,0))/INDEX(Historical!$D$7:$D$1447,MATCH(B130,Historical!$B$7:$B$1454,0))-1)*100) -> 20.4 | T130: =IF(INDEX(Historical!$F$7:$F$1447,MATCH(B130,Historical!$B$7:$B$1454,0))=0,"n/a",((INDEX(Historical!$C$7:$C$1447,MATCH(B130,Historical!$B$7:$B$1454,0))/INDEX(Historical!$F$7:$F$1447,MATCH(B130,Historical!$B$7:$B$1454,0)))^(1/3)-1)*100) -> 7.7 | U130: =IF(INDEX(Historical!$H$7:$H$1447,MATCH(B130,Historical!$B$7:$B$1454,0))=0,"n/a",((INDEX(Historical!$C$7:$C$1447,MATCH(B130,Historical!$B$7:$B$1454,0))/INDEX(Historical!$H$7:$H$1447,MATCH(B130,Historical!$B$7:$B$1454,0)))^(1/5)-1)*100) -> 5.4 | V130: =IF(INDEX(Historical!$O$7:$O$1447,MATCH(B130,Historical!$B$7:$B$1454,0))=0,"n/a",((INDEX(Historical!$C$7:$C$1447,MATCH(B130,Historical!$B$7:$B$1454,0))/INDEX(Historical!$O$7:$O$1447,MATCH(B130,Historical!$B$7:$B$1454,0)))^(1/10)-1)*100) -> 3.7 | W130: 1.438 | X130: n/a | Z130: 69.28 | AA130: 13.70 | AB130: 3 | AC130: 4.33 | AD130: n/a | AE130: 0.68 | AF130: 1.11 | AG130: 7.70 | AH130: 351.30 | AI130: n/a | AJ130: -3.20 | AK130: n/a | AL130: 1,470 | AM130: 1.2 | AN130: 0.37 | AO130: (3.3) | AP130: 10.4 | AQ130: (17.8) | AR130: =INDEX(Historical!$C$7:$C$1447,MATCH(B130,Historical!$B$7:$B$1454,0))*IF(AH130="n/a",1.03,IF(AH130<0,1.01,IF(AH130>10,1.1,(1+AH130/100)))) -> 2.86 | AS130: 2.95 | AT130: 3.03 | AU130: 3.13 | AV130: 3.22 | AW130: 15.18 | AX130: 25.6 | AY130: 0.84 | AZ130: 28.7 | BA130: -22.9 | BB130: 5.1 | BC130: -4.3 | BE130: 1972 | BF130: =#VALUE! ->  | BG130: 4.7
A131: Universal Health Realty Trust | B131: UHT | C131: Real Estate | D131: Equity Real Estate Investment Trusts (REITs) | E131: 33 | F131: 82 | G131: N | H131: N | I131: 74.47 | J131: 3.63 | K131: 0.6750 | L131: 4 | M131: 2.70 | N131: C29 | O131: 0.6700 | P131: 2018-12-18 | Q131: 2018-12-31 | R131: 0.75 | S131: =IF(INDEX(Historical!$D$7:$D$1447,MATCH(B131,Historical!$B$7:$B$1454,0))=0,"n/a",(INDEX(Historical!$C$7:$C$1447,MATCH(B131,Historical!$B$7:$B$1454,0))/INDEX(Historical!$D$7:$D$1447,MATCH(B131,Historical!$B$7:$B$1454,0))-1)*100) -> 1.3 | T131: =IF(INDEX(Historical!$F$7:$F$1447,MATCH(B131,Historical!$B$7:$B$1454,0))=0,"n/a",((INDEX(Historical!$C$7:$C$1447,MATCH(B131,Historical!$B$7:$B$1454,0))/INDEX(Historical!$F$7:$F$1447,MATCH(B131,Historical!$B$7:$B$1454,0)))^(1/3)-1)*100) -> 1.5 | U131: =IF(INDEX(Historical!$H$7:$H$1447,MATCH(B131,Historical!$B$7:$B$1454,0))=0,"n/a",((INDEX(Historical!$C$7:$C$1447,MATCH(B131,Historical!$B$7:$B$1454,0))/INDEX(Historical!$H$7:$H$1447,MATCH(B131,Historical!$B$7:$B$1454,0)))^(1/5)-1)*100) -> 1.5 | V131: =IF(INDEX(Historical!$O$7:$O$1447,MATCH(B131,Historical!$B$7:$B$1454,0))=0,"n/a",((INDEX(Historical!$C$7:$C$1447,MATCH(B131,Historical!$B$7:$B$1454,0))/INDEX(Historical!$O$7:$O$1447,MATCH(B131,Historical!$B$7:$B$1454,0)))^(1/10)-1)*100) -> 1.4 | W131: 1.085 | X131: 0.088 | Z131: 143.62 | AA131: 39.61 | AB131: 12 | AC131: 1.88 | AD131: n/a | AE131: 13.53 | AF131: 5.02 | AG131: 12.40 | AH131: 161.90 | AI131: n/a | AJ131: 16.80 | AK131: n/a | AL131: 1,020 | AM131: 7.5 | AN131: 1.28 | AO131: (34.5) | AP131: 5.1 | AQ131: 197.3 | AR131: =INDEX(Historical!$C$7:$C$1447,MATCH(B131,Historical!$B$7:$B$1454,0))*IF(AH131="n/a",1.03,IF(AH131<0,1.01,IF(AH131>10,1.1,(1+AH131/100)))) -> 2.95 | AS131: 3.04 | AT131: 3.13 | AU131: 3.22 | AV131: 3.32 | AW131: 15.65 | AX131: 21.0 | AY131: 0.89 | AZ131: 40.5 | BA131: -3.3 | BB131: 9.4 | BC131: 9.4 | BE131: 1986 | BF131: =#VALUE! ->  | BG131: 5.3
A132: Urstadt Biddle Properties | B132: UBA | C132: Real Estate | D132: Equity Real Estate Investment Trusts (REITs) | E132: 25 | F132: 130 | G132: N | H132: - | I132: 20.92 | J132: 5.26 | K132: 0.2750 | L132: 4 | M132: 1.10 | N132: A19 | O132: 0.2700 | P132: 2019-01-03 | Q132: 2019-01-18 | R132: 1.85 | S132: =IF(INDEX(Historical!$D$7:$D$1447,MATCH(B132,Historical!$B$7:$B$1454,0))=0,"n/a",(INDEX(Historical!$C$7:$C$1447,MATCH(B132,Historical!$B$7:$B$1454,0))/INDEX(Historical!$D$7:$D$1447,MATCH(B132,Historical!$B$7:$B$1454,0))-1)*100) -> 1.9 | T132: =IF(INDEX(Historical!$F$7:$F$1447,MATCH(B132,Historical!$B$7:$B$1454,0))=0,"n/a",((INDEX(Historical!$C$7:$C$1447,MATCH(B132,Historical!$B$7:$B$1454,0))/INDEX(Historical!$F$7:$F$1447,MATCH(B132,Historical!$B$7:$B$1454,0)))^(1/3)-1)*100) -> 1.9 | U132: =IF(INDEX(Historical!$H$7:$H$1447,MATCH(B132,Historical!$B$7:$B$1454,0))=0,"n/a",((INDEX(Historical!$C$7:$C$1447,MATCH(B132,Historical!$B$7:$B$1454,0))/INDEX(Historical!$H$7:$H$1447,MATCH(B132,Historical!$B$7:$B$1454,0)))^(1/5)-1)*100) -> 1.6 | V132: =IF(INDEX(Historical!$O$7:$O$1447,MATCH(B132,Historical!$B$7:$B$1454,0))=0,"n/a",((INDEX(Historical!$C$7:$C$1447,MATCH(B132,Historical!$B$7:$B$1454,0))/INDEX(Historical!$O$7:$O$1447,MATCH(B132,Historical!$B$7:$B$1454,0)))^(1/10)-1)*100) -> 1.3 | W132: 1.202 | X132: 0.089 | Y132: also UBP@90% | Z132: 169.23 | AA132: 32.18 | AB132: 10 | AC132: 0.65 | AD132: 4.00 | AE132: 5.77 | AF132: 2.01 | AG132: 6.40 | AH132: -25.80 | AI132: 6.25 | AJ132: 17.40 | AK132: 8.00 | AL132: 781 | AM132: 1.5 | AN132: 0.82 | AO132: (25.4) | AP132: 6.8 | AQ132: 69.6 | AR132: =INDEX(Historical!$C$7:$C$1447,MATCH(B132,Historical!$B$7:$B$1454,0))*IF(AH132="n/a",1.03,IF(AH132<0,1.01,IF(AH132>10,1.1,(1+AH132/100)))) -> 1.09 | AS132: 1.16 | AT132: 1.25 | AU132: 1.35 | AV132: 1.46 | AW132: 6.31 | AX132: 30.2 | AY132: 0.56 | AZ132: 19.9 | BA132: -9.7 | BB132: 1.4 | BC132: -1.3 | BE132: 1995 | BF132: =#VALUE! ->  | BG132: 2.5
A133: VF Corp. | B133: VFC | C133: Consumer Discretionary | D133: Textiles, Apparel & Luxury Goods | E133: 46 | F133: 46 | G133: Y | H133: Y | I133: 87.36 | J133: 2.34 | K133: 0.5100 | L133: 4 | M133: 2.04 | N133: C18 | O133: 0.4600 | P133: 2018-12-07 | Q133: 2018-12-20 | R133: 10.87 | S133: =IF(INDEX(Historical!$D$7:$D$1447,MATCH(B133,Historical!$B$7:$B$1454,0))=0,"n/a",(INDEX(Historical!$C$7:$C$1447,MATCH(B133,Historical!$B$7:$B$1454,0))/INDEX(Historical!$D$7:$D$1447,MATCH(B133,Historical!$B$7:$B$1454,0))-1)*100) -> 9.9 | T133: =IF(INDEX(Historical!$F$7:$F$1447,MATCH(B133,Historical!$B$7:$B$1454,0))=0,"n/a",((INDEX(Historical!$C$7:$C$1447,MATCH(B133,Historical!$B$7:$B$1454,0))/INDEX(Historical!$F$7:$F$1447,MATCH(B133,Historical!$B$7:$B$1454,0)))^(1/3)-1)*100) -> 12.4 | U133: =IF(INDEX(Historical!$H$7:$H$1447,MATCH(B133,Historical!$B$7:$B$1454,0))=0,"n/a",((INDEX(Historical!$C$7:$C$1447,MATCH(B133,Historical!$B$7:$B$1454,0))/INDEX(Historical!$H$7:$H$1447,MATCH(B133,Historical!$B$7:$B$1454,0)))^(1/5)-1)*100) -> 15.6 | V133: =IF(INDEX(Historical!$O$7:$O$1447,MATCH(B133,Historical!$B$7:$B$1454,0))=0,"n/a",((INDEX(Historical!$C$7:$C$1447,MATCH(B133,Historical!$B$7:$B$1454,0))/INDEX(Historical!$O$7:$O$1447,MATCH(B133,Historical!$B$7:$B$1454,0)))^(1/10)-1)*100) -> 12.5 | W133: 1.250 | X133: n/a | Z133: 57.95 | AA133: 24.82 | AB133: 12 | AC133: 3.52 | AD133: 1.86 | AE133: 2.52 | AF133: 8.03 | AG133: 34.80 | AH133: -78.30 | AI133: 13.11 | AJ133: -25.10 | AK133: 13.39 | AL133: 34,530 | AM133: 0.2 | AN133: 0.66 | AO133: (6.9) | AP133: 17.9 | AQ133: 197.6 | AR133: =INDEX(Historical!$C$7:$C$1447,MATCH(B133,Historical!$B$7:$B$1454,0))*IF(AH133="n/a",1.03,IF(AH133<0,1.01,IF(AH133>10,1.1,(1+AH133/100)))) -> 1.91 | AS133: 2.10 | AT133: 2.31 | AU133: 2.54 | AV133: 2.79 | AW133: 11.65 | AX133: 13.3 | AY133: 1.16 | AZ133: 30.1 | BA133: -9.9 | BB133: 10.5 | BC133: 3.6 | BE133: 1974 | BF133: =#VALUE! ->  | BG133: 13.2
A134: W.W. Grainger Inc. | B134: GWW | C134: Industrials | D134: Trading Companies & Distributors | E134: 47 | F134: 33 | G134: - | H134: - | I134: 304.77 | J134: 1.78 | K134: 1.3600 | L134: 4 | M134: 5.44 | N134: C01 | O134: 1.2800 | P134: 2018-05-11 | Q134: 2018-06-01 | R134: 6.25 | S134: =IF(INDEX(Historical!$D$7:$D$1447,MATCH(B134,Historical!$B$7:$B$1454,0))=0,"n/a",(INDEX(Historical!$C$7:$C$1447,MATCH(B134,Historical!$B$7:$B$1454,0))/INDEX(Historical!$D$7:$D$1447,MATCH(B134,Historical!$B$7:$B$1454,0))-1)*100) -> 5.9 | T134: =IF(INDEX(Historical!$F$7:$F$1447,MATCH(B134,Historical!$B$7:$B$1454,0))=0,"n/a",((INDEX(Historical!$C$7:$C$1447,MATCH(B134,Historical!$B$7:$B$1454,0))/INDEX(Historical!$F$7:$F$1447,MATCH(B134,Historical!$B$7:$B$1454,0)))^(1/3)-1)*100) -> 5.3 | U134: =IF(INDEX(Historical!$H$7:$H$1447,MATCH(B134,Historical!$B$7:$B$1454,0))=0,"n/a",((INDEX(Historical!$C$7:$C$1447,MATCH(B134,Historical!$B$7:$B$1454,0))/INDEX(Historical!$H$7:$H$1447,MATCH(B134,Historical!$B$7:$B$1454,0)))^(1/5)-1)*100) -> 8.3 | V134: =IF(INDEX(Historical!$O$7:$O$1447,MATCH(B134,Historical!$B$7:$B$1454,0))=0,"n/a",((INDEX(Historical!$C$7:$C$1447,MATCH(B134,Historical!$B$7:$B$1454,0))/INDEX(Historical!$O$7:$O$1447,MATCH(B134,Historical!$B$7:$B$1454,0)))^(1/10)-1)*100) -> 13.2 | W134: 0.632 | X134: 9.274 | Z134: 39.68 | AA134: 22.23 | AB134: 12 | AC134: 13.71 | AD134: 1.62 | AE134: 1.50 | AF134: 8.86 | AG134: 46.30 | AH134: 1.00 | AI134: 10.17 | AJ134: 0.90 | AK134: 13.70 | AL134: 16,880 | AM134: 1.6 | AN134: 1.15 | AO134: (12.1) | AP134: 10.1 | AQ134: 195.9 | AR134: =INDEX(Historical!$C$7:$C$1447,MATCH(B134,Historical!$B$7:$B$1454,0))*IF(AH134="n/a",1.03,IF(AH134<0,1.01,IF(AH134>10,1.1,(1+AH134/100)))) -> 5.41 | AS134: 5.95 | AT134: 6.55 | AU134: 7.21 | AV134: 7.93 | AW134: 33.05 | AX134: 10.8 | AY134: 1.01 | AZ134: 22.5 | BA134: -18.1 | BB134: 4.0 | BC134: -3.0 | BE134: 1972 | BF134: =#VALUE! ->  | BG134: 14.3
A135: Walgreens Boots Alliance Inc. | B135: WBA | C135: Consumer Staples | D135: Food & Staples Retailing | E135: 43 | F135: 58 | G135: N | H135: Y | I135: 71.19 | J135: =(M135/I135)*100 -> 2.47 | K135: 0.4400 | L135: 4 | M135: =K135*L135 -> 1.76 | N135: C12 | O135: 0.4000 | P135: 2018-08-17 | Q135: 2018-09-12 | R135: 10.00 | S135: =IF(INDEX(Historical!$D$7:$D$1447,MATCH(B135,Historical!$B$7:$B$1454,0))=0,"n/a",(INDEX(Historical!$C$7:$C$1447,MATCH(B135,Historical!$B$7:$B$1454,0))/INDEX(Historical!$D$7:$D$1447,MATCH(B135,Historical!$B$7:$B$1454,0))-1)*100) -> 8.4 | T135: =IF(INDEX(Historical!$F$7:$F$1447,MATCH(B135,Historical!$B$7:$B$1454,0))=0,"n/a",((INDEX(Historical!$C$7:$C$1447,MATCH(B135,Historical!$B$7:$B$1454,0))/INDEX(Historical!$F$7:$F$1447,MATCH(B135,Historical!$B$7:$B$1454,0)))^(1/3)-1)*100) -> 6.4 | U135: =IF(INDEX(Historical!$H$7:$H$1447,MATCH(B135,Historical!$B$7:$B$1454,0))=0,"n/a",((INDEX(Historical!$C$7:$C$1447,MATCH(B135,Historical!$B$7:$B$1454,0))/INDEX(Historical!$H$7:$H$1447,MATCH(B135,Historical!$B$7:$B$1454,0)))^(1/5)-1)*100) -> 7.3 | V135: =IF(INDEX(Historical!$O$7:$O$1447,MATCH(B135,Historical!$B$7:$B$1454,0))=0,"n/a",((INDEX(Historical!$C$7:$C$1447,MATCH(B135,Historical!$B$7:$B$1454,0))/INDEX(Historical!$O$7:$O$1447,MATCH(B135,Historical!$B$7:$B$1454,0)))^(1/10)-1)*100) -> 15.0 | W135: =IF(OR(U135<=0,U135="n/a",V135<=0,V135="n/a"),"n/a",U135/V135) -> 0.488 | X135: 0.563 | Z135: 33.21 | AA135: 13.43 | AB135: 8 | AC135: 5.30 | AD135: 1.33 | AE135: 0.50 | AF135: 2.64 | AG135: 20.00 | AH135: 30.20 | AI135: 8.17 | AJ135: 13.00 | AK135: 10.12 | AL135: 67,200 | AM135: 0.2 | AN135: 0.62 | AO135: (3.6) | AP135: 9.8 | AQ135: 25.5 | AR135: =INDEX(Historical!$C$7:$C$1447,MATCH(B135,Historical!$B$7:$B$1454,0))*IF(AH135="n/a",1.03,IF(AH135<0,1.01,IF(AH135>10,1.1,(1+AH135/100)))) -> 1.85 | AS135: =IF($AI135="n/a",1.03*AR135,IF($AI135<0,1.01*AR135,IF($AI135>10,1.1*AR135,(1+$AI135/100)*AR135))) -> 2.00 | AT135: 2.20 | AU135: 2.42 | AV135: 2.66 | AW135: =SUM(AR135:AV135) -> 11.13 | AX135: =AW135/I135*100 -> 15.6 | AY135: 0.87 | AZ135: 20.5 | BA135: -17.5 | BB135: -0.1 | BC135: 0.3 | BE135: 1976 | BF135: =#VALUE! ->  | BG135: 7.6
A136: Wal-Mart Inc. | B136: WMT | C136: Consumer Staples | D136: Food & Staples Retailing | E136: 46 | F136: 49 | G136: N | H136: Y | I136: 98.99 | J136: =(M136/I136)*100 -> 2.14 | K136: 0.5300 | L136: 4 | M136: =K136*L136 -> 2.12 | N136: A02 | O136: 0.5200 | P136: 2019-03-14 | Q136: 2019-04-01 | R136: 1.92 | S136: =IF(INDEX(Historical!$D$7:$D$1447,MATCH(B136,Historical!$B$7:$B$1454,0))=0,"n/a",(INDEX(Historical!$C$7:$C$1447,MATCH(B136,Historical!$B$7:$B$1454,0))/INDEX(Historical!$D$7:$D$1447,MATCH(B136,Historical!$B$7:$B$1454,0))-1)*100) -> 2.0 | T136: =IF(INDEX(Historical!$F$7:$F$1447,MATCH(B136,Historical!$B$7:$B$1454,0))=0,"n/a",((INDEX(Historical!$C$7:$C$1447,MATCH(B136,Historical!$B$7:$B$1454,0))/INDEX(Historical!$F$7:$F$1447,MATCH(B136,Historical!$B$7:$B$1454,0)))^(1/3)-1)*100) -> 2.0 | U136: =IF(INDEX(Historical!$H$7:$H$1447,MATCH(B136,Historical!$B$7:$B$1454,0))=0,"n/a",((INDEX(Historical!$C$7:$C$1447,MATCH(B136,Historical!$B$7:$B$1454,0))/INDEX(Historical!$H$7:$H$1447,MATCH(B136,Historical!$B$7:$B$1454,0)))^(1/5)-1)*100) -> 2.7 | V136: =IF(INDEX(Historical!$O$7:$O$1447,MATCH(B136,Historical!$B$7:$B$1454,0))=0,"n/a",((INDEX(Historical!$C$7:$C$1447,MATCH(B136,Historical!$B$7:$B$1454,0))/INDEX(Historical!$O$7:$O$1447,MATCH(B136,Historical!$B$7:$B$1454,0)))^(1/10)-1)*100) -> 8.3 | W136: =IF(OR(U136<=0,U136="n/a",V136<=0,V136="n/a"),"n/a",U136/V136) -> 0.331 | X136: n/a | Z136: 94.22 | AA136: 44.00 | AB136: 1 | AC136: 2.25 | AD136: 12.47 | AE136: 0.56 | AF136: 4.02 | AG136: 7.00 | AH136: -26.80 | AI136: 5.04 | AJ136: -8.50 | AK136: 3.53 | AL136: 287,130 | AM136: 0.9 | AN136: 0.80 | AO136: (39.1) | AP136: 4.9 | AQ136: 180.4 | AR136: =INDEX(Historical!$C$7:$C$1447,MATCH(B136,Historical!$B$7:$B$1454,0))*IF(AH136="n/a",1.03,IF(AH136<0,1.01,IF(AH136>10,1.1,(1+AH136/100)))) -> 2.09 | AS136: =IF($AI136="n/a",1.03*AR136,IF($AI136<0,1.01*AR136,IF($AI136>10,1.1*AR136,(1+$AI136/100)*AR136))) -> 2.20 | AT136: 2.27 | AU136: 2.35 | AV136: 2.44 | AW136: =SUM(AR136:AV136) -> 11.35 | AX136: =AW136/I136*100 -> 11.5 | AY136: 0.36 | AZ136: 21.0 | BA136: -6.8 | BB136: 3.9 | BC136: 6.7 | BE136: 1974 | BF136: =#VALUE! ->  | BG136: 2.5
A137: West Pharmaceutical Services | B137: WST | C137: Health Care | D137: Health Care Equipment & Supplies | E137: 25 | F137: 127 | G137: N | H137: N | I137: 104.75 | J137: =(M137/I137)*100 -> 0.57 | K137: 0.1500 | L137: 4 | M137: =K137*L137 -> 0.60 | N137: B01 | O137: 0.1400 | P137: 2018-10-23 | Q137: 2018-11-07 | R137: 7.14 | S137: =IF(INDEX(Historical!$D$7:$D$1447,MATCH(B137,Historical!$B$7:$B$1454,0))=0,"n/a",(INDEX(Historical!$C$7:$C$1447,MATCH(B137,Historical!$B$7:$B$1454,0))/INDEX(Historical!$D$7:$D$1447,MATCH(B137,Historical!$B$7:$B$1454,0))-1)*100) -> 7.5 | T137: =IF(INDEX(Historical!$F$7:$F$1447,MATCH(B137,Historical!$B$7:$B$1454,0))=0,"n/a",((INDEX(Historical!$C$7:$C$1447,MATCH(B137,Historical!$B$7:$B$1454,0))/INDEX(Historical!$F$7:$F$1447,MATCH(B137,Historical!$B$7:$B$1454,0)))^(1/3)-1)*100) -> 8.2 | U137: =IF(INDEX(Historical!$H$7:$H$1447,MATCH(B137,Historical!$B$7:$B$1454,0))=0,"n/a",((INDEX(Historical!$C$7:$C$1447,MATCH(B137,Historical!$B$7:$B$1454,0))/INDEX(Historical!$H$7:$H$1447,MATCH(B137,Historical!$B$7:$B$1454,0)))^(1/5)-1)*100) -> 8.2 | V137: =IF(INDEX(Historical!$O$7:$O$1447,MATCH(B137,Historical!$B$7:$B$1454,0))=0,"n/a",((INDEX(Historical!$C$7:$C$1447,MATCH(B137,Historical!$B$7:$B$1454,0))/INDEX(Historical!$O$7:$O$1447,MATCH(B137,Historical!$B$7:$B$1454,0)))^(1/10)-1)*100) -> 7.2 | W137: =IF(OR(U137<=0,U137="n/a",V137<=0,V137="n/a"),"n/a",U137/V137) -> 1.137 | X137: 0.378 | Z137: 21.66 | AA137: 37.82 | AB137: 12 | AC137: 2.77 | AD137: 4.16 | AE137: 4.50 | AF137: 5.73 | AG137: 11.60 | AH137: 60.30 | AI137: 16.07 | AJ137: 21.60 | AK137: 9.10 | AL137: 7,730 | AM137: 0.1 | AN137: 0.00 | AO137: (29.1) | AP137: 8.7 | AQ137: 210.3 | AR137: =INDEX(Historical!$C$7:$C$1447,MATCH(B137,Historical!$B$7:$B$1454,0))*IF(AH137="n/a",1.03,IF(AH137<0,1.01,IF(AH137>10,1.1,(1+AH137/100)))) -> 0.63 | AS137: =IF($AI137="n/a",1.03*AR137,IF($AI137<0,1.01*AR137,IF($AI137>10,1.1*AR137,(1+$AI137/100)*AR137))) -> 0.69 | AT137: 0.75 | AU137: 0.82 | AV137: 0.90 | AW137: =SUM(AR137:AV137) -> 3.79 | AX137: =AW137/I137*100 -> 3.6 | AY137: 1.25 | AZ137: 26.6 | BA137: -16.3 | BB137: 2.5 | BC137: -1.5 | BE137: 1994 | BF137: =#VALUE! ->  | BG137: 8
A138: Westamerica Bancorp | B138: WABC | C138: Financials | D138: Banks | E138: 27 | F138: 100 | G138: N | H138: Y | I138: 64.28 | J138: =(M138/I138)*100 -> 2.49 | K138: 0.4000 | L138: 4 | M138: =K138*L138 -> 1.60 | N138: B17 | O138: 0.3900 | P138: 2017-11-03 | Q138: 2017-11-17 | R138: 2.56 | S138: =IF(INDEX(Historical!$D$7:$D$1447,MATCH(B138,Historical!$B$7:$B$1454,0))=0,"n/a",(INDEX(Historical!$C$7:$C$1447,MATCH(B138,Historical!$B$7:$B$1454,0))/INDEX(Historical!$D$7:$D$1447,MATCH(B138,Historical!$B$7:$B$1454,0))-1)*100) -> 1.9 | T138: =IF(INDEX(Historical!$F$7:$F$1447,MATCH(B138,Historical!$B$7:$B$1454,0))=0,"n/a",((INDEX(Historical!$C$7:$C$1447,MATCH(B138,Historical!$B$7:$B$1454,0))/INDEX(Historical!$F$7:$F$1447,MATCH(B138,Historical!$B$7:$B$1454,0)))^(1/3)-1)*100) -> 1.5 | U138: =IF(INDEX(Historical!$H$7:$H$1447,MATCH(B138,Historical!$B$7:$B$1454,0))=0,"n/a",((INDEX(Historical!$C$7:$C$1447,MATCH(B138,Historical!$B$7:$B$1454,0))/INDEX(Historical!$H$7:$H$1447,MATCH(B138,Historical!$B$7:$B$1454,0)))^(1/5)-1)*100) -> 1.4 | V138: =IF(INDEX(Historical!$O$7:$O$1447,MATCH(B138,Historical!$B$7:$B$1454,0))=0,"n/a",((INDEX(Historical!$C$7:$C$1447,MATCH(B138,Historical!$B$7:$B$1454,0))/INDEX(Historical!$O$7:$O$1447,MATCH(B138,Historical!$B$7:$B$1454,0)))^(1/10)-1)*100) -> 1.4 | W138: =IF(OR(U138<=0,U138="n/a",V138<=0,V138="n/a"),"n/a",U138/V138) -> 1.013 | X138: n/a | Y138: 2018 = Year 27 | Z138: 59.93 | AA138: 24.07 | AB138: 12 | AC138: 2.67 | AD138: 8.02 | AE138: 11.25 | AF138: 2.90 | AG138: 9.30 | AH138: 3.00 | AI138: 4.63 | AJ138: -4.20 | AK138: 3.00 | AL138: 1,710 | AM138: 0.3 | AN138: 0.00 | AO138: (20.2) | AP138: 3.9 | AQ138: 76.2 | AR138: =INDEX(Historical!$C$7:$C$1447,MATCH(B138,Historical!$B$7:$B$1454,0))*IF(AH138="n/a",1.03,IF(AH138<0,1.01,IF(AH138>10,1.1,(1+AH138/100)))) -> 1.65 | AS138: =IF($AI138="n/a",1.03*AR138,IF($AI138<0,1.01*AR138,IF($AI138>10,1.1*AR138,(1+$AI138/100)*AR138))) -> 1.72 | AT138: 1.78 | AU138: 1.83 | AV138: 1.88 | AW138: =SUM(AR138:AV138) -> 8.86 | AX138: =AW138/I138*100 -> 13.8 | AY138: 1.01 | AZ138: 23.5 | BA138: -1.7 | BB138: 6.4 | BC138: 6.8 | BE138: 1993 | BF138: =#VALUE! ->  | BG138: 1
A139: Weyco Group Inc. | B139: WEYS | C139: Consumer Discretionary | D139: Distributors | E139: 37 | F139: 70 | G139: - | H139: - | I139: 30.32 | J139: =(M139/I139)*100 -> 3.03 | K139: 0.2300 | L139: 4 | M139: =K139*L139 -> 0.92 | N139: C30 | O139: 0.2200 | P139: 2018-05-24 | Q139: 2018-06-29 | R139: 4.55 | S139: =IF(INDEX(Historical!$D$7:$D$1447,MATCH(B139,Historical!$B$7:$B$1454,0))=0,"n/a",(INDEX(Historical!$C$7:$C$1447,MATCH(B139,Historical!$B$7:$B$1454,0))/INDEX(Historical!$D$7:$D$1447,MATCH(B139,Historical!$B$7:$B$1454,0))-1)*100) -> 3.4 | T139: =IF(INDEX(Historical!$F$7:$F$1447,MATCH(B139,Historical!$B$7:$B$1454,0))=0,"n/a",((INDEX(Historical!$C$7:$C$1447,MATCH(B139,Historical!$B$7:$B$1454,0))/INDEX(Historical!$F$7:$F$1447,MATCH(B139,Historical!$B$7:$B$1454,0)))^(1/3)-1)*100) -> 4.4 | U139: =IF(INDEX(Historical!$H$7:$H$1447,MATCH(B139,Historical!$B$7:$B$1454,0))=0,"n/a",((INDEX(Historical!$C$7:$C$1447,MATCH(B139,Historical!$B$7:$B$1454,0))/INDEX(Historical!$H$7:$H$1447,MATCH(B139,Historical!$B$7:$B$1454,0)))^(1/5)-1)*100) -> 5.2 | V139: =IF(INDEX(Historical!$O$7:$O$1447,MATCH(B139,Historical!$B$7:$B$1454,0))=0,"n/a",((INDEX(Historical!$C$7:$C$1447,MATCH(B139,Historical!$B$7:$B$1454,0))/INDEX(Historical!$O$7:$O$1447,MATCH(B139,Historical!$B$7:$B$1454,0)))^(1/10)-1)*100) -> 6.1 | W139: =IF(OR(U139<=0,U139="n/a",V139<=0,V139="n/a"),"n/a",U139/V139) -> 0.851 | X139: n/a | Z139: 54.12 | AA139: 17.84 | AB139: 12 | AC139: 1.70 | AD139: n/a | AE139: 1.05 | AF139: 1.51 | AG139: 9.50 | AH139: -6.70 | AI139: n/a | AJ139: -3.40 | AK139: n/a | AL139: 302.29 | AM139: 11.7 | AN139: 0.04 | AO139: (9.6) | AP139: 8.2 | AQ139: 9.4 | AR139: =INDEX(Historical!$C$7:$C$1447,MATCH(B139,Historical!$B$7:$B$1454,0))*IF(AH139="n/a",1.03,IF(AH139<0,1.01,IF(AH139>10,1.1,(1+AH139/100)))) -> 0.91 | AS139: =IF($AI139="n/a",1.03*AR139,IF($AI139<0,1.01*AR139,IF($AI139>10,1.1*AR139,(1+$AI139/100)*AR139))) -> 0.94 | AT139: 0.96 | AU139: 0.99 | AV139: 1.02 | AW139: =SUM(AR139:AV139) -> 4.83 | AX139: =AW139/I139*100 -> 15.9 | AY139: 0.49 | AZ139: 13.6 | BA139: -24.1 | BB139: 6.1 | BC139: -8.4 | BE139: 1982 | BF139: =#VALUE! ->  | BG139: 7.4
A141: Averages for All | B141: =COUNTA(B7:B139) -> 133 | E141: =AVERAGE(E7:E139) -> 39.4 | I141: =AVERAGE(I7:I139) -> 94.60 | J141: =AVERAGE(J7:J139) -> 2.45 | K141: =AVERAGE(K7:K139) -> 0.5582 | M141: =AVERAGE(M7:M139) -> 2.06 | O141: =AVERAGE(O7:O139) -> 0.5175 | R141: =AVERAGE(R7:R139) -> 8.61 | S141: 8.1 | T141: 6.8 | U141: 7.5 | V141: 7.5 | W141: 1.015 | X141: 1.389 | Z141: =AVERAGE(Z7:Z139) -> 56.98 | AA141: =AVERAGE(AA7:AA139) -> 25.01 | AC141: =AVERAGE(AC7:AC139) -> 4.05 | AD141: 3.38 | AE141: 3.67 | AF141: 4.98 | AG141: 15.81 | AH141: 31.06 | AI141: 10.13 | AJ141: 6.59 | AK141: 9.58 | AL141: 36,016 | AM141: 2.81 | AN141: 0.86 | AO141: -14.96 | AP141: 9.90 | AQ141: 114.05 | AR141: 2.07 | AS141: 2.21 | AT141: 2.37 | AU141: 2.54 | AV141: 2.73 | AW141: 11.92 | AX141: 14.20 | AY141: 0.83 | AZ141: 26.01 | BA141: -9.92 | BB141: 6.11 | BC141: 3.92 | BE141: =AVERAGE(BE7:BE139) -> 1980 | BF141: =AVERAGE(BF7:BF139) ->  | BG141: =AVERAGE(BG7:BG139) -> 7.31
A142: Champions | B142: =COUNTIF($E$7:$E$139,">=25") -> 133 | E142: =AVERAGEIF($E$7:$E$139,">=25") -> 39.4 | I142: =AVERAGEIF($E$7:$E$139,">=25",I7:I139) -> 94.6 | J142: =AVERAGEIF($E$7:$E$139,">=25",J7:J139) -> 2.45 | K142: =AVERAGEIF($E$7:$E$139,">=25",K7:K139) -> 0.5582 | M142: =AVERAGEIF($E$7:$E$139,">=25",M7:M139) -> 2.06 | O142: =AVERAGEIF($E$7:$E$139,">=25",O7:O139) -> 0.5175 | R142: =AVERAGEIF($E$7:$E$139,">=25",R7:R139) -> 8.61 | S142: 8.09 | T142: 6.83 | U142: 7.46 | V142: 7.47 | W142: 1.015 | X142: 1.389 | Z142: =AVERAGEIF($E$7:$E$139,">=25",Z7:Z139) -> 56.98 | AA142: =AVERAGEIF($E$7:$E$139,">=25",AA7:AA139) -> 25.01 | AC142: =AVERAGEIF($E$7:$E$139,">=25",AC7:AC139) -> 4.05 | AD142: 3.38 | AE142: 3.67 | AF142: 4.98 | AG142: 15.81 | AH142: 31.06 | AI142: 10.13 | AJ142: 6.59 | AK142: 9.58 | AL142: 36,016 | AM142: 2.81 | AN142: 0.86 | AO142: -14.96 | AP142: 9.90 | AQ142: 114.05 | AR142: 2.07 | AS142: 2.21 | AT142: 2.37 | AU142: 2.54 | AV142: 2.73 | AW142: 11.92 | AX142: 14.20 | AY142: 0.83 | AZ142: 26.01 | BA142: -9.92 | BB142: 6.11 | BC142: 3.92 | BE142: =AVERAGEIF($E$7:$E$139,">=25",BE7:BE139) -> 1980 | BF142: =AVERAGEIF($E$7:$E$139,">=25",BF7:BF139) ->  | BG142: =AVERAGEIF($E$7:$E$139,">=25",BG7:BG139) -> 7.31
A143: Contenders | B143: =COUNTIFS($E$7:$E$139,"<25",$E$7:$E$139,">=10") -> 0 | E143: =AVERAGEIFS($E$7:$E$139,$E$7:$E$139,"<25",$E$7:$E$139,">=10") ->  | I143: =AVERAGEIFS(I7:I139,$E$7:$E$139,"<25",$E$7:$E$139,">=10") ->  | J143: =AVERAGEIFS(J7:J139,$E$7:$E$139,"<25",$E$7:$E$139,">=10") ->  | K143: =AVERAGEIFS(K7:K139,$E$7:$E$139,"<25",$E$7:$E$139,">=10") ->  | M143: =AVERAGEIFS(M7:M139,$E$7:$E$139,"<25",$E$7:$E$139,">=10") ->  | O143: =AVERAGEIFS(O7:O139,$E$7:$E$139,"<25",$E$7:$E$139,">=10") ->  | R143: =AVERAGEIFS(R7:R139,$E$7:$E$139,"<25",$E$7:$E$139,">=10") ->  | Z143: =AVERAGEIFS(Z7:Z139,$E$7:$E$139,"<25",$E$7:$E$139,">=10") ->  | AA143: =AVERAGEIFS(AA7:AA139,$E$7:$E$139,"<25",$E$7:$E$139,">=10") ->  | AC143: =AVERAGEIFS(AC7:AC139,$E$7:$E$139,"<25",$E$7:$E$139,">=10") ->  | BE143: =AVERAGEIFS(BE7:BE139,$E$7:$E$139,"<25",$E$7:$E$139,">=10") ->  | BF143: =AVERAGEIFS(BF7:BF139,$E$7:$E$139,"<25",$E$7:$E$139,">=10") ->  | BG143: =AVERAGEIFS(BG7:BG139,$E$7:$E$139,"<25",$E$7:$E$139,">=10") -> 
A144: Challengers | B144: =COUNTIF($E$7:$E$139,"<10") -> 0 | E144: =AVERAGEIF($E$7:$E$139,"<10") ->  | I144: =AVERAGEIF($E$7:$E$139,"<10",I7:I139) ->  | J144: =AVERAGEIF($E$7:$E$139,"<10",J7:J139) ->  | K144: =AVERAGEIF($E$7:$E$139,"<10",K7:K139) ->  | M144: =AVERAGEIF($E$7:$E$139,"<10",M7:M139) ->  | O144: =AVERAGEIF($E$7:$E$139,"<10",O7:O139) ->  | R144: =AVERAGEIF($E$7:$E$139,"<10",R7:R139) ->  | Z144: =AVERAGEIF($E$7:$E$139,"<10",Z7:Z139) ->  | AA144: =AVERAGEIF($E$7:$E$139,"<10",AA7:AA139) ->  | AC144: =AVERAGEIF($E$7:$E$139,"<10",AC7:AC139) ->  | BE144: =AVERAGEIF($E$7:$E$139,"<10",BE7:BE139) ->  | BF144: =AVERAGEIF($E$7:$E$139,"<10",BF7:BF139) ->  | BG144: =AVERAGEIF($E$7:$E$139,"<10",BG7:BG139) -> 
A146: Averages by Sector
A147: Communication Services | B147: =COUNTIF($C$7:$C$139,"="&$A147) -> 4 | E147: =AVERAGEIFS($E$7:$E$139,$C$7:$C$139,"="&$A147) -> 32.8 | I147: =AVERAGEIFS(I$7:I$139,$C$7:$C$139,"="&$A147) -> 43.1 | J147: 3.79 | K147: 0.3950 | M147: =AVERAGEIFS(M$7:M$139,$C$7:$C$139,"="&$A147) -> 1.58 | O147: =AVERAGEIFS(O$7:O$139,$C$7:$C$139,"="&$A147) -> 0.3813 | R147: =AVERAGEIFS(R$7:R$139,$C$7:$C$139,"="&$A147) -> 3.44 | S147: 3.31 | T147: 3.92 | U147: 4.64 | V147: 6.76 | W147: 0.783 | X147: 0.855 | Z147: =AVERAGEIFS(Z$7:Z$139,$C$7:$C$139,"="&$A147) -> 68.79 | AA147: 24.29 | AC147: =AVERAGEIFS(AC$7:AC$139,$C$7:$C$139,"="&$A147) -> 1.45 | AD147: 1.65 | AE147: 1.14 | AF147: 1.76 | AG147: 5.20 | AH147: 38.18 | AI147: 27.24 | AJ147: -8.85 | AK147: 15.54 | AL147: 59,148 | AM147: =AVERAGEIFS(AM$7:AM$139,$C$7:$C$139,"="&$A147) -> 0.27 | AN147: 1.21 | AO147: -16.38 | AP147: 8.44 | AQ147: 12.53 | AR147: 1.63 | AS147: 1.73 | AT147: 1.86 | AU147: 2.00 | AV147: 2.16 | AW147: =AVERAGEIFS(AW$7:AW$139,$C$7:$C$139,"="&$A147) -> 9.38 | AX147: 22.36 | AY147: 0.96 | AZ147: 21.73 | BA147: -16.91 | BB147: 1.34 | BC147: -0.19 | BE147: =AVERAGEIFS(BE$7:BE$139,$C$7:$C$139,"="&$A147) -> 1987 | BG147: 2.90
A148: Consumer Discretionary | B148: 7 | E148: 49.0 | I148: 90.5 | J148: 2.77 | K148: 0.5946 | M148: 2.38 | O148: 0.5429 | R148: 8.86 | S148: 7.79 | T148: 8.65 | U148: 9.76 | V148: 10.37 | W148: 0.944 | X148: 1.430 | Z148: 55.30 | AA148: 20.54 | AC148: 4.34 | AD148: 2.84 | AE148: 2.04 | AF148: 6.39 | AG148: 10.74 | AH148: -5.57 | AI148: 9.98 | AJ148: 1.03 | AK148: 8.94 | AL148: 45,932 | AM148: 1.95 | AN148: 1.10 | AO148: -8.01 | AP148: 12.54 | AQ148: 128.16 | AR148: 2.33 | AS148: 2.50 | AT148: 2.67 | AU148: 2.85 | AV148: 3.05 | AW148: 13.40 | AX148: 15.48 | AY148: 0.90 | AZ148: 25.93 | BA148: -10.76 | BB148: 7.99 | BC148: 3.35 | BE148: 1970 | BG148: 9.70
A149: Consumer Staples | B149: 17 | E149: 47.9 | I149: 83.2 | J149: 2.77 | K149: 0.5530 | M149: 2.21 | O149: 0.5025 | R149: 9.26 | S149: 8.33 | T149: 6.83 | U149: 7.53 | V149: 8.23 | W149: 0.946 | X149: 1.228 | Z149: 61.44 | AA149: 24.94 | AC149: 3.73 | AD149: 5.21 | AE149: 2.86 | AF149: 8.07 | AG149: -9.74 | AH149: 31.06 | AI149: 7.05 | AJ149: 5.16 | AK149: 5.28 | AL149: 76,814 | AM149: 3.95 | AN149: 1.28 | AO149: -14.63 | AP149: 10.31 | AQ149: 174.04 | AR149: 2.23 | AS149: 2.37 | AT149: 2.50 | AU149: 2.63 | AV149: 2.77 | AW149: 12.49 | AX149: 15.62 | AY149: 0.53 | AZ149: 24.48 | BA149: -11.28 | BB149: 2.69 | BC149: 3.11 | BE149: 1972 | BG149: 11.14
A150: Energy | B150: 4 | E150: 36.8 | I150: 72.3 | J150: 3.79 | K150: 0.7213 | M150: 2.89 | O150: 0.6690 | R150: 26.54 | S150: 16.66 | T150: 8.08 | U150: 10.27 | V150: 14.21 | W150: 0.760 | Z150: 47.91 | AA150: 13.33 | AC150: 4.25 | AD150: 0.73 | AE150: 1.74 | AF150: 1.42 | AG150: 11.30 | AH150: 226.30 | AI150: 28.33 | AJ150: -15.78 | AK150: 27.77 | AL150: 142,949 | AM150: 1.19 | AN150: 0.16 | AO150: -1.91 | AP150: 14.06 | AQ150: -7.87 | AR150: 2.98 | AS150: 3.26 | AT150: 3.51 | AU150: 3.79 | AV150: 4.09 | AW150: 17.64 | AX150: 23.29 | AY150: 1.01 | AZ150: 22.58 | BA150: -15.09 | BB150: 4.87 | BC150: -1.36 | BE150: 1983 | BG150: 6.60
A151: Financials | B151: 33 | E151: 33.4 | I151: 82.4 | J151: 2.48 | K151: 0.5957 | M151: 1.81 | O151: 0.5680 | R151: 7.39 | S151: 8.26 | T151: 5.86 | U151: 5.82 | V151: 5.45 | W151: 1.026 | X151: 0.962 | Z151: 49.63 | AA151: 21.51 | AC151: 3.40 | AD151: 2.80 | AE151: 4.62 | AF151: 5.21 | AG151: 27.16 | AH151: 6.69 | AI151: 9.10 | AJ151: 7.81 | AK151: 10.03 | AL151: 11,127 | AM151: 6.96 | AN151: 0.43 | AO151: -12.67 | AP151: 8.30 | AQ151: 76.35 | AR151: 1.82 | AS151: 1.91 | AT151: 2.03 | AU151: 2.16 | AV151: 2.31 | AW151: 10.23 | AX151: 14.09 | AY151: 0.91 | AZ151: 23.82 | BA151: -12.12 | BB151: 6.79 | BC151: 1.90 | BE151: 1986 | BG151: 5.37
A152: Health Care | B152: 5 | E152: 39.0 | I152: 153.8 | J152: 1.55 | K152: 0.5680 | M152: 2.27 | O152: 0.5320 | R152: 7.26 | S152: 7.07 | T152: 8.86 | U152: 9.44 | V152: 11.06 | W152: 0.906 | X152: 1.622 | Z152: 49.51 | AA152: 35.22 | AC152: 4.38 | AD152: 3.80 | AE152: 4.41 | AF152: 4.69 | AG152: 18.88 | AH152: 16.28 | AI152: 10.08 | AJ152: 7.00 | AK152: 9.16 | AL152: 125,980 | AM152: 0.12 | AN152: 0.57 | AO152: -24.22 | AP152: 11.00 | AQ152: 163.11 | AR152: 2.32 | AS152: 2.51 | AT152: 2.72 | AU152: 2.95 | AV152: 3.20 | AW152: 13.71 | AX152: 9.38 | AY152: 0.97 | AZ152: 21.94 | BA152: -8.25 | BB152: 5.29 | BC152: 2.95 | BE152: 1980 | BG152: 8.73
A153: Industrials | B153: 25 | E153: 41.2 | I153: 122.5 | J153: 1.82 | K153: 0.6022 | M153: 2.16 | O153: 0.5398 | R153: 10.71 | S153: 9.11 | T153: 7.98 | U153: 9.72 | V153: 9.35 | W153: 0.982 | X153: 3.050 | Z153: 42.72 | AA153: 24.62 | AC153: 5.42 | AD153: 2.60 | AE153: 2.54 | AF153: 5.32 | AG153: 24.25 | AH153: 12.70 | AI153: 9.89 | AJ153: 5.78 | AK153: 11.70 | AL153: 28,742 | AM153: 1.33 | AN153: 0.87 | AO153: -13.08 | AP153: 11.54 | AQ153: 130.28 | AR153: 2.21 | AS153: 2.41 | AT153: 2.62 | AU153: 2.84 | AV153: 3.09 | AW153: 13.16 | AX153: 11.25 | AY153: 1.16 | AZ153: 27.54 | BA153: -11.28 | BB153: 8.45 | BC153: 4.06 | BE153: 1978 | BG153: 9.04
A154: Information Technology | B154: 4 | E154: 36.5 | I154: 100.6 | J154: 1.69 | K154: 0.4250 | M154: 1.70 | O154: 0.3750 | R154: 13.53 | S154: 15.75 | T154: 12.44 | U154: 13.54 | V154: 13.31 | W154: 1.027 | X154: 1.571 | Z154: 55.71 | AA154: 37.68 | AC154: 3.08 | AD154: 3.18 | AE154: 4.60 | AF154: 7.77 | AG154: 24.59 | AH154: 3.47 | AI154: 10.91 | AJ154: 8.57 | AK154: 14.24 | AL154: 19,848 | AM154: 3.43 | AN154: 0.26 | AO154: -22.45 | AP154: 15.23 | AQ154: 246.67 | AR154: 1.56 | AS154: 1.68 | AT154: 1.83 | AU154: 1.98 | AV154: 2.16 | AW154: 9.21 | AX154: 9.18 | AY154: 0.70 | AZ154: 32.80 | BA154: -6.10 | BB154: 7.72 | BC154: 8.26 | BE154: 1983 | BG154: 11.44
A155: Materials | B155: 11 | E155: 40.0 | I155: 124.6 | J155: 1.85 | K155: 0.4959 | M155: 1.98 | O155: 0.4468 | R155: 9.04 | S155: 6.36 | T155: 6.60 | U155: 7.44 | V155: 7.07 | W155: 1.045 | X155: 0.895 | Z155: 43.28 | AA155: 24.88 | AC155: 4.71 | AD155: 2.70 | AE155: 1.86 | AF155: 4.48 | AG155: 20.06 | AH155: 88.03 | AI155: 12.52 | AJ155: 10.05 | AK155: 10.36 | AL155: 18,503 | AM155: 0.55 | AN155: 1.08 | AO155: -15.59 | AP155: 9.29 | AQ155: 120.43 | AR155: 1.92 | AS155: 2.09 | AT155: 2.28 | AU155: 2.48 | AV155: 2.71 | AW155: 11.48 | AX155: 11.01 | AY155: 1.12 | AZ155: 25.34 | BA155: -7.10 | BB155: 7.69 | BC155: 5.84 | BE155: 1980 | BG155: 6.99
A156: Real Estate | B156: 7 | E156: 30.9 | I156: 93.1 | J156: 4.15 | K156: 0.7144 | M156: 3.12 | O156: 0.6923 | R156: 2.59 | S156: 3.40 | T156: 4.97 | U156: 5.16 | V156: 3.93 | W156: 1.267 | X156: 0.421 | Z156: 176.06 | AA156: 42.59 | AC156: 2.11 | AD156: 5.66 | AE156: 10.87 | AF156: 3.40 | AG156: 8.00 | AH156: 15.16 | AI156: 4.84 | AJ156: 8.16 | AK156: 7.85 | AL156: 8,690 | AM156: 1.86 | AN156: 1.39 | AO156: -33.28 | AP156: 9.31 | AQ156: 150.61 | AR156: 3.12 | AS156: 3.30 | AT156: 3.53 | AU156: 3.79 | AV156: 4.06 | AW156: 17.79 | AX156: 23.67 | AY156: 0.53 | AZ156: 28.59 | BA156: -5.16 | BB156: 4.15 | BC156: 7.21 | BE156: 1989 | BG156: 3.19
A157: Utilities | B157: 16 | E157: 42.6 | I157: 68.4 | J157: 2.34 | K157: 0.4066 | M157: 1.63 | O157: 0.3831 | R157: 5.37 | S157: 6.71 | T157: 5.60 | U157: 5.08 | V157: 4.41 | W157: 1.173 | X157: 0.763 | Z157: 46.44 | AA157: 21.71 | AC157: 4.40 | AD157: 4.03 | AE157: 4.09 | AF157: 2.74 | AG157: 10.22 | AH157: 46.35 | AI157: 7.34 | AJ157: 16.11 | AK157: 6.22 | AL157: 10,657 | AM157: 0.81 | AN157: 1.04 | AO157: -14.03 | AP157: 7.43 | AQ157: 60.46 | AR157: 1.65 | AS157: 1.75 | AT157: 1.86 | AU157: 1.97 | AV157: 2.08 | AW157: 9.31 | AX157: 13.47 | AY157: 0.35 | AZ157: 29.94 | BA157: -4.57 | BB157: 5.22 | BC157: 7.11 | BE157: 1977 | BG157: 3.38

Sheet Contenders
A1: Contenders | C1: End-of-month update at: | J1: Dividend Information | Z1: Fundamental Data | AC1: Numbers in Blue directly from Finviz | AO1: Special | AR1: Dividend Growth Model | AY1: Technical Data | BD1: Other
A2: (and American Depository Receipts) | C2: http://dripinvesting.org/Tools/Tools.asp | J2: DEG=Dividend to Earnings Growth; A/D=Acceleration/Deceleration; DGR=Dividend Growth Rate | Z2: EPS=Earnings Per Share; P/E=Price/Earnings Per Share; TTM=Trailing Twelve Months; FYE=Fiscal Year End; MRQ=Most Recent Quarter; ROE = Return on Equity | AO2: (see Notes tab) | AR2: (based on Earnings Estimates, if available) | AY2: MMA=Moving Market Average
A3: As of 2/28/19 | J3: Dates in Red (right-aligned) indicate last increase more than a year ago (Ex-Div Date) | Q3: Dates in Green (centered) indicate increase (by Ex-Div. Date) expected in next 2 months | AR3: Past Performance is No Guarantee of Future Results
J4: Numbers in Gray last updated 1/31/2019 | Z4: Disclaimer: Although all figures are thought to be correct, no guarantee is expressed or implied. | AR4: Last updated 1/31/2019 | AW4: 5-year Total | AZ4: Current Price as % from:
A5: Company | B5: Ticker | E5: No. | F5: CCC | G5: DRIP Fees | I5: 2019-02-28 | J5: Div. | K5: Current | L5: Payouts/ | N5: Qtly | O5: Previous | P5: Last Increased on: | R5: MR% | S5: DGR | T5: DGR | U5: DGR | V5: DGR | W5: 5/10 | X5: Past 5yr | Y5: &=MultiIncThisYr | Z5: EPS% | AA5: TTM | AB5: FYE | AC5: TTM | AE5: TTM | AF5: MRQ | AG5: TTM | AH5: TTM | AI5: NY | AJ5: Past 5yr | AK5: Est-5yr | AL5: MktCap | AM5: Inside | AN5: Debt/ | AO5: Tweed | AP5: Chowder | AQ5: +/-% vs. | AR5: Estimated Dividends to be Paid in Year: | AW5: Est. Payback | AY5: 5-yr | AZ5: 52-wk | BA5: 52-wk | BB5: 50-day | BC5: 200-day | BE5: Streak | BF5: Recessions | BG5: TTM
A6: Name | B6: Symbol | C6: Sector | D6: Industry | E6: Yrs | F6: Seq | G6: DR | H6: SP | I6: Price | J6: Yield | K6: Dividend | L6: Year | M6: Annualized | N6: Sch | O6: Payout | P6: Ex-Div | Q6: Pay | R6: Inc. | S6: 1-yr | T6: 3-yr | U6: 5-yr | V6: 10-yr | W6: A/D* | X6: DEG | Y6: Notes | Z6: Payout | AA6: P/E | AB6: Month | AC6: EPS | AD6: PEG | AE6: P/Sales | AF6: P/Book | AG6: ROE | AH6: Growth | AI6: Growth | AJ6: Growth | AK6: Growth | AL6: ($Mil) | AM6: Own. | AN6: Equity | AO6: Factor | AP6: Rule | AQ6: Graham | AR6: 2019 | AS6: 2020 | AT6: 2021 | AU6: 2022 | AV6: 2023 | AW6: $ | AX6: % | AY6: Beta | AZ6: Low | BA6: High | BB6: MMA | BC6: MMA | BD6: OTC | BE6: Began | BF6: Survived | BG6: ROA
A7: Aaron's Inc. | B7: AAN | C7: Consumer Discretionary | D7: Specialty Retail | E7: 16 | F7: 221 | G7: - | H7: - | I7: 54.29 | J7: =(M7/I7)*100 -> 0.26 | K7: 0.0350 | L7: 4 | M7: =K7*L7 -> 0.14 | N7: A03 | O7: 0.0300 | P7: 2018-12-19 | Q7: 2019-01-07 | R7: =(K7-O7)/O7*100 -> 16.67 | S7: =IF(INDEX(Historical!$D$7:$D$1447,MATCH(B7,Historical!$B$7:$B$1454,0))=0,"n/a",(INDEX(Historical!$C$7:$C$1447,MATCH(B7,Historical!$B$7:$B$1454,0))/INDEX(Historical!$D$7:$D$1447,MATCH(B7,Historical!$B$7:$B$1454,0))-1)*100) -> 9.1 | T7: =IF(INDEX(Historical!$F$7:$F$1447,MATCH(B7,Historical!$B$7:$B$1454,0))=0,"n/a",((INDEX(Historical!$C$7:$C$1447,MATCH(B7,Historical!$B$7:$B$1454,0))/INDEX(Historical!$F$7:$F$1447,MATCH(B7,Historical!$B$7:$B$1454,0)))^(1/3)-1)*100) -> 8.5 | U7: =IF(INDEX(Historical!$H$7:$H$1447,MATCH(B7,Historical!$B$7:$B$1454,0))=0,"n/a",((INDEX(Historical!$C$7:$C$1447,MATCH(B7,Historical!$B$7:$B$1454,0))/INDEX(Historical!$H$7:$H$1447,MATCH(B7,Historical!$B$7:$B$1454,0)))^(1/5)-1)*100) -> 12.0 | V7: =IF(INDEX(Historical!$O$7:$O$1447,MATCH(B7,Historical!$B$7:$B$1454,0))=0,"n/a",((INDEX(Historical!$C$7:$C$1447,MATCH(B7,Historical!$B$7:$B$1454,0))/INDEX(Historical!$O$7:$O$1447,MATCH(B7,Historical!$B$7:$B$1454,0)))^(1/10)-1)*100) -> 10.9 | W7: =IF(OR(U7<=0,U7="n/a",V7<=0,V7="n/a"),"n/a",U7/V7) -> 1.104 | X7: =IF(OR(AJ7<=0,AJ7="n/a",U7<=0,U7="n/a"),"n/a",U7/AJ7) -> 1.011 | Z7: =IF(OR(AC7<0.01,AC7="n/a"),"n/a",M7/AC7*100) -> 5.04 | AA7: =IF(OR(AC7<0.01,AC7="n/a"),"n/a",I7/AC7) -> 19.53 | AB7: 12 | AC7: 2.78 | AD7: 1.63 | AE7: 0.94 | AF7: 2.10 | AG7: 11.20 | AH7: 28.50 | AI7: 16.14 | AJ7: 11.90 | AK7: 12.00 | AL7: 3,600 | AM7: 1.1 | AN7: 0.24 | AO7: =IF(U7="n/a","n/a",IF(AA7<0,"n/a",IF(AA7="n/a","n/a",J7+U7-AA7))) -> (7.2) | AP7: =IF(U7="n/a","n/a",J7+U7) -> 12.3 | AQ7: =IF(OR(AC7<0.01,AF7="n/a"),"n/a",(I7/SQRT(22.5*AC7*(I7/AF7))-1)*100) -> 35.0 | AR7: =INDEX(Historical!$C$7:$C$1447,MATCH(B7,Historical!$B$7:$B$1454,0))*IF(AH7="n/a",1.03,IF(AH7<0,1.01,IF(AH7>10,1.1,(1+AH7/100)))) -> 0.13 | AS7: =IF($AI7="n/a",1.03*AR7,IF($AI7<0,1.01*AR7,IF($AI7>10,1.1*AR7,(1+$AI7/100)*AR7))) -> 0.15 | AT7: =IF($AK7="n/a",1.03*AS7,IF($AK7<0,1.01*AS7,IF($AK7>10,1.1*AS7,(1+$AK7/100)*AS7))) -> 0.16 | AU7: 0.18 | AV7: 0.19 | AW7: =SUM(AR7:AV7) -> 0.81 | AX7: =AW7/I7*100 -> 1.5 | AY7: 0.47 | AZ7: 40.0 | BA7: -3.1 | BB7: 13.8 | BC7: 15.2 | BE7: 2004 | BF7: =#VALUE! ->  | BG7: 7.2
A8: Accenture plc | B8: ACN | C8: Information Technology | D8: IT Services | E8: 14 | F8: 274 | G8: - | H8: - | I8: 161.38 | J8: 1.81 | K8: 1.4600 | L8: 2 | M8: 2.92 | N8: MyNv | O8: 1.3300 | P8: 2018-10-17 | Q8: 2018-11-15 | R8: 9.77 | S8: =IF(INDEX(Historical!$D$7:$D$1447,MATCH(B8,Historical!$B$7:$B$1454,0))=0,"n/a",(INDEX(Historical!$C$7:$C$1447,MATCH(B8,Historical!$B$7:$B$1454,0))/INDEX(Historical!$D$7:$D$1447,MATCH(B8,Historical!$B$7:$B$1454,0))-1)*100) -> 4.9 | T8: =IF(INDEX(Historical!$F$7:$F$1447,MATCH(B8,Historical!$B$7:$B$1454,0))=0,"n/a",((INDEX(Historical!$C$7:$C$1447,MATCH(B8,Historical!$B$7:$B$1454,0))/INDEX(Historical!$F$7:$F$1447,MATCH(B8,Historical!$B$7:$B$1454,0)))^(1/3)-1)*100) -> 9.6 | U8: =IF(INDEX(Historical!$H$7:$H$1447,MATCH(B8,Historical!$B$7:$B$1454,0))=0,"n/a",((INDEX(Historical!$C$7:$C$1447,MATCH(B8,Historical!$B$7:$B$1454,0))/INDEX(Historical!$H$7:$H$1447,MATCH(B8,Historical!$B$7:$B$1454,0)))^(1/5)-1)*100) -> 9.9 | V8: =IF(INDEX(Historical!$O$7:$O$1447,MATCH(B8,Historical!$B$7:$B$1454,0))=0,"n/a",((INDEX(Historical!$C$7:$C$1447,MATCH(B8,Historical!$B$7:$B$1454,0))/INDEX(Historical!$O$7:$O$1447,MATCH(B8,Historical!$B$7:$B$1454,0)))^(1/10)-1)*100) -> 18.8 | W8: 0.528 | X8: 1.651 | Y8: Ireland,US$ | Z8: 43.07 | AA8: 23.80 | AB8: 8 | AC8: 6.78 | AD8: 2.74 | AE8: 2.41 | AF8: 8.13 | AG8: 39.60 | AH8: 21.50 | AI8: 9.00 | AJ8: 6.00 | AK8: 8.69 | AL8: 101,620 | AM8: 0.2 | AN8: 0.00 | AO8: (12.1) | AP8: 11.7 | AQ8: 193.3 | AR8: =INDEX(Historical!$C$7:$C$1447,MATCH(B8,Historical!$B$7:$B$1454,0))*IF(AH8="n/a",1.03,IF(AH8<0,1.01,IF(AH8>10,1.1,(1+AH8/100)))) -> 3.07 | AS8: 3.35 | AT8: 3.64 | AU8: 3.95 | AV8: 4.30 | AW8: 18.30 | AX8: 11.3 | AY8: 1.10 | AZ8: 21.7 | BA8: -8.1 | BB8: 7.2 | BC8: 1.0 | BE8: 2006 | BF8: =#VALUE! ->  | BG8: 17.3
A9: Acme United Corp. | B9: ACU | C9: Industrials | D9: Commercial Services & Supplies | E9: 16 | F9: 222 | G9: - | H9: - | I9: 17.15 | J9: 2.80 | K9: 0.1200 | L9: 4 | M9: 0.48 | N9: B03 | O9: 0.1100 | P9: 2019-01-07 | Q9: 2019-01-29 | R9: 9.09 | S9: =IF(INDEX(Historical!$D$7:$D$1447,MATCH(B9,Historical!$B$7:$B$1454,0))=0,"n/a",(INDEX(Historical!$C$7:$C$1447,MATCH(B9,Historical!$B$7:$B$1454,0))/INDEX(Historical!$D$7:$D$1447,MATCH(B9,Historical!$B$7:$B$1454,0))-1)*100) -> 4.8 | T9: =IF(INDEX(Historical!$F$7:$F$1447,MATCH(B9,Historical!$B$7:$B$1454,0))=0,"n/a",((INDEX(Historical!$C$7:$C$1447,MATCH(B9,Historical!$B$7:$B$1454,0))/INDEX(Historical!$F$7:$F$1447,MATCH(B9,Historical!$B$7:$B$1454,0)))^(1/3)-1)*100) -> 6.9 | U9: =IF(INDEX(Historical!$H$7:$H$1447,MATCH(B9,Historical!$B$7:$B$1454,0))=0,"n/a",((INDEX(Historical!$C$7:$C$1447,MATCH(B9,Historical!$B$7:$B$1454,0))/INDEX(Historical!$H$7:$H$1447,MATCH(B9,Historical!$B$7:$B$1454,0)))^(1/5)-1)*100) -> 8.0 | V9: =IF(INDEX(Historical!$O$7:$O$1447,MATCH(B9,Historical!$B$7:$B$1454,0))=0,"n/a",((INDEX(Historical!$C$7:$C$1447,MATCH(B9,Historical!$B$7:$B$1454,0))/INDEX(Historical!$O$7:$O$1447,MATCH(B9,Historical!$B$7:$B$1454,0)))^(1/10)-1)*100) -> 10.0 | W9: 0.798 | X9: 1.694 | Z9: 37.50 | AA9: 13.40 | AB9: 12 | AC9: 1.28 | AD9: 1.34 | AE9: 0.43 | AF9: 1.10 | AG9: 6.50 | AH9: -13.00 | AI9: 12.31 | AJ9: 4.70 | AK9: 10.00 | AL9: 58 | AM9: 9.5 | AN9: 0.00 | AO9: (2.6) | AP9: 10.8 | AQ9: (19.1) | AR9: =INDEX(Historical!$C$7:$C$1447,MATCH(B9,Historical!$B$7:$B$1454,0))*IF(AH9="n/a",1.03,IF(AH9<0,1.01,IF(AH9>10,1.1,(1+AH9/100)))) -> 0.44 | AS9: 0.49 | AT9: 0.54 | AU9: 0.59 | AV9: 0.65 | AW9: 2.71 | AX9: 15.8 | AY9: 1.16 | AZ9: 27.0 | BA9: -27.9 | BB9: 9.0 | BC9: -10.0 | BE9: 2005 | BF9: =#VALUE! ->  | BG9: 2.9
A10: Activision Blizzard Inc. | B10: ATVI | C10: Communication Services | D10: Entertainment | E10: 10 | F10: 351 | G10: - | H10: - | I10: 42.14 | J10: 0.88 | K10: 0.3700 | L10: 1 | M10: 0.37 | N10: May | O10: 0.3400 | P10: 2019-03-27 | Q10: 2019-05-09 | R10: 8.82 | S10: =IF(INDEX(Historical!$D$7:$D$1447,MATCH(B10,Historical!$B$7:$B$1454,0))=0,"n/a",(INDEX(Historical!$C$7:$C$1447,MATCH(B10,Historical!$B$7:$B$1454,0))/INDEX(Historical!$D$7:$D$1447,MATCH(B10,Historical!$B$7:$B$1454,0))-1)*100) -> 13.3 | T10: =IF(INDEX(Historical!$F$7:$F$1447,MATCH(B10,Historical!$B$7:$B$1454,0))=0,"n/a",((INDEX(Historical!$C$7:$C$1447,MATCH(B10,Historical!$B$7:$B$1454,0))/INDEX(Historical!$F$7:$F$1447,MATCH(B10,Historical!$B$7:$B$1454,0)))^(1/3)-1)*100) -> 13.9 | U10: =IF(INDEX(Historical!$H$7:$H$1447,MATCH(B10,Historical!$B$7:$B$1454,0))=0,"n/a",((INDEX(Historical!$C$7:$C$1447,MATCH(B10,Historical!$B$7:$B$1454,0))/INDEX(Historical!$H$7:$H$1447,MATCH(B10,Historical!$B$7:$B$1454,0)))^(1/5)-1)*100) -> 12.3 | V10: =IF(INDEX(Historical!$O$7:$O$1447,MATCH(B10,Historical!$B$7:$B$1454,0))=0,"n/a",((INDEX(Historical!$C$7:$C$1447,MATCH(B10,Historical!$B$7:$B$1454,0))/INDEX(Historical!$O$7:$O$1447,MATCH(B10,Historical!$B$7:$B$1454,0)))^(1/10)-1)*100) -> n/a | W10: n/a | X10: 3.630 | Z10: 15.74 | AA10: 17.93 | AB10: 12 | AC10: 2.35 | AD10: 2.45 | AE10: 4.33 | AF10: 3.02 | AG10: 5.00 | AH10: -7.00 | AI10: 17.16 | AJ10: 3.40 | AK10: 7.30 | AL10: 32,460 | AM10: 0.7 | AN10: 0.25 | AO10: (4.7) | AP10: 13.2 | AQ10: 55.1 | AR10: =INDEX(Historical!$C$7:$C$1447,MATCH(B10,Historical!$B$7:$B$1454,0))*IF(AH10="n/a",1.03,IF(AH10<0,1.01,IF(AH10>10,1.1,(1+AH10/100)))) -> 0.34 | AS10: 0.38 | AT10: 0.41 | AU10: 0.43 | AV10: 0.47 | AW10: 2.03 | AX10: 4.8 | AY10: 0.83 | AZ10: 5.8 | BA10: -50.2 | BB10: -8.2 | BC10: -34.7 | BE10: 2010 | BF10: =#VALUE! ->  | BG10: 2.8
A11: Albemarle Corp. | B11: ALB | C11: Materials | D11: Chemicals | E11: 24 | F11: 135 | G11: N | H11: N | I11: 91.29 | J11: 1.47 | K11: 0.3350 | L11: 4 | M11: 1.34 | N11: A02 | O11: 0.3200 | P11: 2018-03-14 | Q11: 2018-04-02 | R11: 4.69 | S11: =IF(INDEX(Historical!$D$7:$D$1447,MATCH(B11,Historical!$B$7:$B$1454,0))=0,"n/a",(INDEX(Historical!$C$7:$C$1447,MATCH(B11,Historical!$B$7:$B$1454,0))/INDEX(Historical!$D$7:$D$1447,MATCH(B11,Historical!$B$7:$B$1454,0))-1)*100) -> 4.7 | T11: =IF(INDEX(Historical!$F$7:$F$1447,MATCH(B11,Historical!$B$7:$B$1454,0))=0,"n/a",((INDEX(Historical!$C$7:$C$1447,MATCH(B11,Historical!$B$7:$B$1454,0))/INDEX(Historical!$F$7:$F$1447,MATCH(B11,Historical!$B$7:$B$1454,0)))^(1/3)-1)*100) -> 5.0 | U11: =IF(INDEX(Historical!$H$7:$H$1447,MATCH(B11,Historical!$B$7:$B$1454,0))=0,"n/a",((INDEX(Historical!$C$7:$C$1447,MATCH(B11,Historical!$B$7:$B$1454,0))/INDEX(Historical!$H$7:$H$1447,MATCH(B11,Historical!$B$7:$B$1454,0)))^(1/5)-1)*100) -> 6.7 | V11: =IF(INDEX(Historical!$O$7:$O$1447,MATCH(B11,Historical!$B$7:$B$1454,0))=0,"n/a",((INDEX(Historical!$C$7:$C$1447,MATCH(B11,Historical!$B$7:$B$1454,0))/INDEX(Historical!$O$7:$O$1447,MATCH(B11,Historical!$B$7:$B$1454,0)))^(1/10)-1)*100) -> 10.7 | W11: 0.623 | X11: 1.548 | Z11: 19.45 | AA11: 13.25 | AB11: 12 | AC11: 6.89 | AD11: 1.00 | AE11: 2.93 | AF11: 2.78 | AG11: 9.10 | AH11: 8.30 | AI11: 9.65 | AJ11: 4.30 | AK11: 13.29 | AL11: 9,700 | AM11: 0.3 | AN11: 0.48 | AO11: (5.1) | AP11: 8.1 | AQ11: 27.9 | AR11: =INDEX(Historical!$C$7:$C$1447,MATCH(B11,Historical!$B$7:$B$1454,0))*IF(AH11="n/a",1.03,IF(AH11<0,1.01,IF(AH11>10,1.1,(1+AH11/100)))) -> 1.43 | AS11: 1.57 | AT11: 1.73 | AU11: 1.90 | AV11: 2.09 | AW11: 8.74 | AX11: 9.6 | AY11: 1.66 | AZ11: 27.0 | BA11: -19.1 | BB11: 14.8 | BC11: -1.4 | BE11: 1995 | BF11: =#VALUE! ->  | BG11: 4.4
A12: Alliant Energy Corp. | B12: LNT | C12: Utilities | D12: Electric Utilities | E12: 16 | F12: 225 | G12: N | H12: N | I12: 45.87 | J12: 3.10 | K12: 0.3550 | L12: 4 | M12: 1.42 | N12: B15 | O12: 0.3350 | P12: 2019-01-30 | Q12: 2019-02-15 | R12: 5.97 | S12: =IF(INDEX(Historical!$D$7:$D$1447,MATCH(B12,Historical!$B$7:$B$1454,0))=0,"n/a",(INDEX(Historical!$C$7:$C$1447,MATCH(B12,Historical!$B$7:$B$1454,0))/INDEX(Historical!$D$7:$D$1447,MATCH(B12,Historical!$B$7:$B$1454,0))-1)*100) -> 6.3 | T12: =IF(INDEX(Historical!$F$7:$F$1447,MATCH(B12,Historical!$B$7:$B$1454,0))=0,"n/a",((INDEX(Historical!$C$7:$C$1447,MATCH(B12,Historical!$B$7:$B$1454,0))/INDEX(Historical!$F$7:$F$1447,MATCH(B12,Historical!$B$7:$B$1454,0)))^(1/3)-1)*100) -> 6.8 | U12: =IF(INDEX(Historical!$H$7:$H$1447,MATCH(B12,Historical!$B$7:$B$1454,0))=0,"n/a",((INDEX(Historical!$C$7:$C$1447,MATCH(B12,Historical!$B$7:$B$1454,0))/INDEX(Historical!$H$7:$H$1447,MATCH(B12,Historical!$B$7:$B$1454,0)))^(1/5)-1)*100) -> 7.3 | V12: =IF(INDEX(Historical!$O$7:$O$1447,MATCH(B12,Historical!$B$7:$B$1454,0))=0,"n/a",((INDEX(Historical!$C$7:$C$1447,MATCH(B12,Historical!$B$7:$B$1454,0))/INDEX(Historical!$O$7:$O$1447,MATCH(B12,Historical!$B$7:$B$1454,0)))^(1/10)-1)*100) -> 6.7 | W12: 1.095 | X12: 1.361 | Z12: 65.74 | AA12: 21.24 | AB12: 12 | AC12: 2.16 | AD12: 2.93 | AE12: 3.08 | AF12: 2.36 | AG12: 11.20 | AH12: 15.80 | AI12: 4.30 | AJ12: 5.40 | AK12: 7.25 | AL12: 10,820 | AM12: 0.2 | AN12: 1.29 | AO12: (10.8) | AP12: 10.4 | AQ12: 49.2 | AR12: =INDEX(Historical!$C$7:$C$1447,MATCH(B12,Historical!$B$7:$B$1454,0))*IF(AH12="n/a",1.03,IF(AH12<0,1.01,IF(AH12>10,1.1,(1+AH12/100)))) -> 1.47 | AS12: 1.54 | AT12: 1.65 | AU12: 1.77 | AV12: 1.90 | AW12: 8.33 | AX12: 18.1 | AY12: 0.32 | AZ12: 21.2 | BA12: -1.5 | BB12: 5.4 | BC12: 6.7 | BE12: 2004 | BF12: =#VALUE! ->  | BG12: 3.3
A13: American Equity Investment Life Holding Co. | B13: AEL | C13: Financials | D13: Insurance | E13: 15 | F13: 249 | G13: - | H13: - | I13: 31.65 | J13: 0.88 | K13: 0.2800 | L13: 1 | M13: 0.28 | N13: Dec | O13: 0.2600 | P13: 2018-11-27 | Q13: 2018-12-12 | R13: 7.69 | S13: =IF(INDEX(Historical!$D$7:$D$1447,MATCH(B13,Historical!$B$7:$B$1454,0))=0,"n/a",(INDEX(Historical!$C$7:$C$1447,MATCH(B13,Historical!$B$7:$B$1454,0))/INDEX(Historical!$D$7:$D$1447,MATCH(B13,Historical!$B$7:$B$1454,0))-1)*100) -> 7.7 | T13: =IF(INDEX(Historical!$F$7:$F$1447,MATCH(B13,Historical!$B$7:$B$1454,0))=0,"n/a",((INDEX(Historical!$C$7:$C$1447,MATCH(B13,Historical!$B$7:$B$1454,0))/INDEX(Historical!$F$7:$F$1447,MATCH(B13,Historical!$B$7:$B$1454,0)))^(1/3)-1)*100) -> 8.4 | U13: =IF(INDEX(Historical!$H$7:$H$1447,MATCH(B13,Historical!$B$7:$B$1454,0))=0,"n/a",((INDEX(Historical!$C$7:$C$1447,MATCH(B13,Historical!$B$7:$B$1454,0))/INDEX(Historical!$H$7:$H$1447,MATCH(B13,Historical!$B$7:$B$1454,0)))^(1/5)-1)*100) -> 9.2 | V13: =IF(INDEX(Historical!$O$7:$O$1447,MATCH(B13,Historical!$B$7:$B$1454,0))=0,"n/a",((INDEX(Historical!$C$7:$C$1447,MATCH(B13,Historical!$B$7:$B$1454,0))/INDEX(Historical!$O$7:$O$1447,MATCH(B13,Historical!$B$7:$B$1454,0)))^(1/10)-1)*100) -> 14.9 | W13: 0.621 | X13: 1.127 | Z13: 5.59 | AA13: 6.32 | AB13: 12 | AC13: 5.01 | AD13: 0.63 | AE13: 1.85 | AF13: 1.19 | AG13: n/a | AH13: 114.90 | AI13: 5.89 | AJ13: 8.20 | AK13: 10.00 | AL13: 2,850 | AM13: 3.4 | AN13: 0.31 | AO13: 3.8 | AP13: 10.1 | AQ13: (42.2) | AR13: =INDEX(Historical!$C$7:$C$1447,MATCH(B13,Historical!$B$7:$B$1454,0))*IF(AH13="n/a",1.03,IF(AH13<0,1.01,IF(AH13>10,1.1,(1+AH13/100)))) -> 0.31 | AS13: 0.33 | AT13: 0.36 | AU13: 0.39 | AV13: 0.43 | AW13: 1.82 | AX13: 5.8 | AY13: 2.31 | AZ13: 25.3 | BA13: -17.9 | BB13: 5.4 | BC13: -5.5 | BE13: 2005 | BF13: =#VALUE! ->  | BG13: n/a
A14: American Financial Group Inc. | B14: AFG | C14: Financials | D14: Insurance | E14: 13 | F14: 290 | G14: - | H14: - | I14: 99.66 | J14: 1.61 | K14: 0.4000 | L14: 4 | M14: 1.60 | N14: A25 | O14: 0.3500 | P14: 2018-10-12 | Q14: 2018-10-25 | R14: 14.29 | S14: =IF(INDEX(Historical!$D$7:$D$1447,MATCH(B14,Historical!$B$7:$B$1454,0))=0,"n/a",(INDEX(Historical!$C$7:$C$1447,MATCH(B14,Historical!$B$7:$B$1454,0))/INDEX(Historical!$D$7:$D$1447,MATCH(B14,Historical!$B$7:$B$1454,0))-1)*100) -> 12.6 | T14: =IF(INDEX(Historical!$F$7:$F$1447,MATCH(B14,Historical!$B$7:$B$1454,0))=0,"n/a",((INDEX(Historical!$C$7:$C$1447,MATCH(B14,Historical!$B$7:$B$1454,0))/INDEX(Historical!$F$7:$F$1447,MATCH(B14,Historical!$B$7:$B$1454,0)))^(1/3)-1)*100) -> 12.1 | U14: =IF(INDEX(Historical!$H$7:$H$1447,MATCH(B14,Historical!$B$7:$B$1454,0))=0,"n/a",((INDEX(Historical!$C$7:$C$1447,MATCH(B14,Historical!$B$7:$B$1454,0))/INDEX(Historical!$H$7:$H$1447,MATCH(B14,Historical!$B$7:$B$1454,0)))^(1/5)-1)*100) -> 12.5 | V14: =IF(INDEX(Historical!$O$7:$O$1447,MATCH(B14,Historical!$B$7:$B$1454,0))=0,"n/a",((INDEX(Historical!$C$7:$C$1447,MATCH(B14,Historical!$B$7:$B$1454,0))/INDEX(Historical!$O$7:$O$1447,MATCH(B14,Historical!$B$7:$B$1454,0)))^(1/10)-1)*100) -> 11.2 | W14: 1.112 | X14: 3.046 | Z14: 27.40 | AA14: 17.07 | AB14: 12 | AC14: 5.84 | AD14: 3.28 | AE14: 1.24 | AF14: 1.72 | AG14: 10.20 | AH14: -15.30 | AI14: 2.42 | AJ14: 4.10 | AK14: 5.20 | AL14: 8,850 | AM14: 0.3 | AN14: 0.25 | AO14: (3.0) | AP14: 14.1 | AQ14: 14.2 | AR14: =INDEX(Historical!$C$7:$C$1447,MATCH(B14,Historical!$B$7:$B$1454,0))*IF(AH14="n/a",1.03,IF(AH14<0,1.01,IF(AH14>10,1.1,(1+AH14/100)))) -> 1.46 | AS14: 1.50 | AT14: 1.58 | AU14: 1.66 | AV14: 1.75 | AW14: 7.95 | AX14: 8.0 | AY14: 0.88 | AZ14: 18.4 | BA14: -12.8 | BB14: 6.1 | BC14: -3.6 | BE14: 2007 | BF14: =#VALUE! ->  | BG14: 0.9
A15: American Water Works | B15: AWK | C15: Utilities | D15: Water Utilities | E15: 11 | F15: 308 | G15: Y | H15: Y | I15: 101.62 | J15: 1.79 | K15: 0.4550 | L15: 4 | M15: 1.82 | N15: C01 | O15: 0.4150 | P15: 2018-05-10 | Q15: 2018-06-01 | R15: 9.64 | S15: =IF(INDEX(Historical!$D$7:$D$1447,MATCH(B15,Historical!$B$7:$B$1454,0))=0,"n/a",(INDEX(Historical!$C$7:$C$1447,MATCH(B15,Historical!$B$7:$B$1454,0))/INDEX(Historical!$D$7:$D$1447,MATCH(B15,Historical!$B$7:$B$1454,0))-1)*100) -> 9.9 | T15: =IF(INDEX(Historical!$F$7:$F$1447,MATCH(B15,Historical!$B$7:$B$1454,0))=0,"n/a",((INDEX(Historical!$C$7:$C$1447,MATCH(B15,Historical!$B$7:$B$1454,0))/INDEX(Historical!$F$7:$F$1447,MATCH(B15,Historical!$B$7:$B$1454,0)))^(1/3)-1)*100) -> 10.2 | U15: =IF(INDEX(Historical!$H$7:$H$1447,MATCH(B15,Historical!$B$7:$B$1454,0))=0,"n/a",((INDEX(Historical!$C$7:$C$1447,MATCH(B15,Historical!$B$7:$B$1454,0))/INDEX(Historical!$H$7:$H$1447,MATCH(B15,Historical!$B$7:$B$1454,0)))^(1/5)-1)*100) -> 10.3 | V15: =IF(INDEX(Historical!$O$7:$O$1447,MATCH(B15,Historical!$B$7:$B$1454,0))=0,"n/a",((INDEX(Historical!$C$7:$C$1447,MATCH(B15,Historical!$B$7:$B$1454,0))/INDEX(Historical!$O$7:$O$1447,MATCH(B15,Historical!$B$7:$B$1454,0)))^(1/10)-1)*100) -> 16.1 | W15: 0.640 | X15: 1.120 | Z15: 56.52 | AA15: 31.56 | AB15: 12 | AC15: 3.22 | AD15: 3.85 | AE15: 5.32 | AF15: 3.12 | AG15: 9.90 | AH15: 4.50 | AI15: 7.87 | AJ15: 9.20 | AK15: 8.20 | AL15: 18,290 | AM15: 0.2 | AN15: 1.47 | AO15: (19.5) | AP15: 12.1 | AQ15: 109.2 | AR15: =INDEX(Historical!$C$7:$C$1447,MATCH(B15,Historical!$B$7:$B$1454,0))*IF(AH15="n/a",1.03,IF(AH15<0,1.01,IF(AH15>10,1.1,(1+AH15/100)))) -> 1.86 | AS15: 2.01 | AT15: 2.17 | AU15: 2.35 | AV15: 2.54 | AW15: 10.93 | AX15: 10.8 | AY15: 0.23 | AZ15: 30.7 | BA15: 0.2 | BB15: 8.2 | BC15: 13.8 | BE15: 2008 | BF15: =#VALUE! ->  | BG15: 2.8
A16: AmeriGas Partners LP | B16: APU | C16: Utilities | D16: Gas Utilities | E16: 14 | F16: 260 | G16: - | H16: - | I16: 28.37 | J16: 13.39 | K16: 0.9500 | L16: 4 | M16: 3.80 | N16: B18 | O16: 0.9400 | P16: 2017-05-08 | Q16: 2017-05-18 | R16: 1.06 | S16: =IF(INDEX(Historical!$D$7:$D$1447,MATCH(B16,Historical!$B$7:$B$1454,0))=0,"n/a",(INDEX(Historical!$C$7:$C$1447,MATCH(B16,Historical!$B$7:$B$1454,0))/INDEX(Historical!$D$7:$D$1447,MATCH(B16,Historical!$B$7:$B$1454,0))-1)*100) -> 0.3 | T16: =IF(INDEX(Historical!$F$7:$F$1447,MATCH(B16,Historical!$B$7:$B$1454,0))=0,"n/a",((INDEX(Historical!$C$7:$C$1447,MATCH(B16,Historical!$B$7:$B$1454,0))/INDEX(Historical!$F$7:$F$1447,MATCH(B16,Historical!$B$7:$B$1454,0)))^(1/3)-1)*100) -> 1.4 | U16: =IF(INDEX(Historical!$H$7:$H$1447,MATCH(B16,Historical!$B$7:$B$1454,0))=0,"n/a",((INDEX(Historical!$C$7:$C$1447,MATCH(B16,Historical!$B$7:$B$1454,0))/INDEX(Historical!$H$7:$H$1447,MATCH(B16,Historical!$B$7:$B$1454,0)))^(1/5)-1)*100) -> 2.7 | V16: =IF(INDEX(Historical!$O$7:$O$1447,MATCH(B16,Historical!$B$7:$B$1454,0))=0,"n/a",((INDEX(Historical!$C$7:$C$1447,MATCH(B16,Historical!$B$7:$B$1454,0))/INDEX(Historical!$O$7:$O$1447,MATCH(B16,Historical!$B$7:$B$1454,0)))^(1/10)-1)*100) -> 4.2 | W16: 0.659 | X16: n/a | Y16: 2018 = Year 14 | Z16: 422.22 | AA16: 31.52 | AB16: 12 | AC16: 0.90 | AD16: 1.42 | AE16: 0.93 | AF16: 5.64 | AG16: 13.60 | AH16: 22.50 | AI16: 0.33 | AJ16: -6.40 | AK16: 22.15 | AL16: 2,660 | AM16: 25.7 | AN16: 6.27 | AO16: (15.4) | AP16: 16.1 | AQ16: 181.1 | AR16: =INDEX(Historical!$C$7:$C$1447,MATCH(B16,Historical!$B$7:$B$1454,0))*IF(AH16="n/a",1.03,IF(AH16<0,1.01,IF(AH16>10,1.1,(1+AH16/100)))) -> 4.18 | AS16: 4.19 | AT16: 4.61 | AU16: 5.07 | AV16: 5.58 | AW16: 23.64 | AX16: 83.3 | AY16: 1.07 | AZ16: 24.7 | BA16: -35.2 | BB16: -0.5 | BC16: -23.1 | BE16: 2006 | BF16: =#VALUE! ->  | BG16: 2.1
A17: Ameriprise Financial Inc. | B17: AMP | C17: Financials | D17: Capital Markets | E17: 14 | F17: 263 | G17: Y | H17: Y | I17: 131.63 | J17: 2.73 | K17: 0.9000 | L17: 4 | M17: 3.60 | N17: B18 | O17: 0.8300 | P17: 2018-05-04 | Q17: 2018-05-18 | R17: 8.43 | S17: =IF(INDEX(Historical!$D$7:$D$1447,MATCH(B17,Historical!$B$7:$B$1454,0))=0,"n/a",(INDEX(Historical!$C$7:$C$1447,MATCH(B17,Historical!$B$7:$B$1454,0))/INDEX(Historical!$D$7:$D$1447,MATCH(B17,Historical!$B$7:$B$1454,0))-1)*100) -> 9.0 | T17: =IF(INDEX(Historical!$F$7:$F$1447,MATCH(B17,Historical!$B$7:$B$1454,0))=0,"n/a",((INDEX(Historical!$C$7:$C$1447,MATCH(B17,Historical!$B$7:$B$1454,0))/INDEX(Historical!$F$7:$F$1447,MATCH(B17,Historical!$B$7:$B$1454,0)))^(1/3)-1)*100) -> 10.9 | U17: =IF(INDEX(Historical!$H$7:$H$1447,MATCH(B17,Historical!$B$7:$B$1454,0))=0,"n/a",((INDEX(Historical!$C$7:$C$1447,MATCH(B17,Historical!$B$7:$B$1454,0))/INDEX(Historical!$H$7:$H$1447,MATCH(B17,Historical!$B$7:$B$1454,0)))^(1/5)-1)*100) -> 11.9 | V17: =IF(INDEX(Historical!$O$7:$O$1447,MATCH(B17,Historical!$B$7:$B$1454,0))=0,"n/a",((INDEX(Historical!$C$7:$C$1447,MATCH(B17,Historical!$B$7:$B$1454,0))/INDEX(Historical!$O$7:$O$1447,MATCH(B17,Historical!$B$7:$B$1454,0)))^(1/10)-1)*100) -> 18.3 | W17: 0.653 | X17: 0.611 | Z17: 25.35 | AA17: 9.27 | AB17: 12 | AC17: 14.20 | AD17: 0.49 | AE17: 1.47 | AF17: 3.38 | AG17: 30.20 | AH17: 44.30 | AI17: 11.70 | AJ17: 19.50 | AK17: 18.84 | AL17: 19,010 | AM17: 0.4 | AN17: 2.71 | AO17: 5.4 | AP17: 14.7 | AQ17: 18.0 | AR17: =INDEX(Historical!$C$7:$C$1447,MATCH(B17,Historical!$B$7:$B$1454,0))*IF(AH17="n/a",1.03,IF(AH17<0,1.01,IF(AH17>10,1.1,(1+AH17/100)))) -> 3.88 | AS17: 4.27 | AT17: 4.70 | AU17: 5.17 | AV17: 5.69 | AW17: 23.71 | AX17: 18.0 | AY17: 1.89 | AZ17: 37.6 | BA17: -18.5 | BB17: 11.2 | BC17: -1.3 | BE17: 2005 | BF17: =#VALUE! ->  | BG17: 1.2
A18: AmerisourceBergen Corp. | B18: ABC | C18: Health Care | D18: Health Care Providers & Services | E18: 14 | F18: 276 | G18: - | H18: - | I18: 83.30 | J18: 1.92 | K18: 0.4000 | L18: 4 | M18: 1.60 | N18: C04 | O18: 0.3800 | P18: 2018-11-16 | Q18: 2018-12-03 | R18: 5.26 | S18: =IF(INDEX(Historical!$D$7:$D$1447,MATCH(B18,Historical!$B$7:$B$1454,0))=0,"n/a",(INDEX(Historical!$C$7:$C$1447,MATCH(B18,Historical!$B$7:$B$1454,0))/INDEX(Historical!$D$7:$D$1447,MATCH(B18,Historical!$B$7:$B$1454,0))-1)*100) -> 4.4 | T18: =IF(INDEX(Historical!$F$7:$F$1447,MATCH(B18,Historical!$B$7:$B$1454,0))=0,"n/a",((INDEX(Historical!$C$7:$C$1447,MATCH(B18,Historical!$B$7:$B$1454,0))/INDEX(Historical!$F$7:$F$1447,MATCH(B18,Historical!$B$7:$B$1454,0)))^(1/3)-1)*100) -> 8.4 | U18: =IF(INDEX(Historical!$H$7:$H$1447,MATCH(B18,Historical!$B$7:$B$1454,0))=0,"n/a",((INDEX(Historical!$C$7:$C$1447,MATCH(B18,Historical!$B$7:$B$1454,0))/INDEX(Historical!$H$7:$H$1447,MATCH(B18,Historical!$B$7:$B$1454,0)))^(1/5)-1)*100) -> 12.2 | V18: =IF(INDEX(Historical!$O$7:$O$1447,MATCH(B18,Historical!$B$7:$B$1454,0))=0,"n/a",((INDEX(Historical!$C$7:$C$1447,MATCH(B18,Historical!$B$7:$B$1454,0))/INDEX(Historical!$O$7:$O$1447,MATCH(B18,Historical!$B$7:$B$1454,0)))^(1/10)-1)*100) -> 25.2 | W18: 0.485 | X18: 0.687 | Z18: 30.95 | AA18: 16.11 | AB18: 9 | AC18: 5.17 | AD18: 1.71 | AE18: 0.10 | AF18: 5.79 | AG18: 38.80 | AH18: 188.60 | AI18: 8.78 | AJ18: 17.80 | AK18: 9.44 | AL18: 17,440 | AM18: 0.2 | AN18: 1.53 | AO18: (2.0) | AP18: 14.1 | AQ18: 103.6 | AR18: =INDEX(Historical!$C$7:$C$1447,MATCH(B18,Historical!$B$7:$B$1454,0))*IF(AH18="n/a",1.03,IF(AH18<0,1.01,IF(AH18>10,1.1,(1+AH18/100)))) -> 1.69 | AS18: 1.84 | AT18: 2.02 | AU18: 2.21 | AV18: 2.42 | AW18: 10.18 | AX18: 12.2 | AY18: 1.13 | AZ18: 20.1 | BA18: -17.8 | BB18: 4.6 | BC18: -2.6 | BE18: 2006 | BF18: =#VALUE! ->  | BG18: 3.1
A19: Analog Devices Inc. | B19: ADI | C19: Information Technology | D19: Semiconductors & Semiconductor Equipment | E19: 17 | F19: 200 | G19: - | H19: - | I19: 106.96 | J19: 2.02 | K19: 0.5400 | L19: 4 | M19: 2.16 | N19: C20 | O19: 0.4800 | P19: 2019-02-28 | Q19: 2019-03-12 | R19: 12.50 | S19: =IF(INDEX(Historical!$D$7:$D$1447,MATCH(B19,Historical!$B$7:$B$1454,0))=0,"n/a",(INDEX(Historical!$C$7:$C$1447,MATCH(B19,Historical!$B$7:$B$1454,0))/INDEX(Historical!$D$7:$D$1447,MATCH(B19,Historical!$B$7:$B$1454,0))-1)*100) -> 6.7 | T19: =IF(INDEX(Historical!$F$7:$F$1447,MATCH(B19,Historical!$B$7:$B$1454,0))=0,"n/a",((INDEX(Historical!$C$7:$C$1447,MATCH(B19,Historical!$B$7:$B$1454,0))/INDEX(Historical!$F$7:$F$1447,MATCH(B19,Historical!$B$7:$B$1454,0)))^(1/3)-1)*100) -> 6.3 | U19: =IF(INDEX(Historical!$H$7:$H$1447,MATCH(B19,Historical!$B$7:$B$1454,0))=0,"n/a",((INDEX(Historical!$C$7:$C$1447,MATCH(B19,Historical!$B$7:$B$1454,0))/INDEX(Historical!$H$7:$H$1447,MATCH(B19,Historical!$B$7:$B$1454,0)))^(1/5)-1)*100) -> 7.1 | V19: =IF(INDEX(Historical!$O$7:$O$1447,MATCH(B19,Historical!$B$7:$B$1454,0))=0,"n/a",((INDEX(Historical!$C$7:$C$1447,MATCH(B19,Historical!$B$7:$B$1454,0))/INDEX(Historical!$O$7:$O$1447,MATCH(B19,Historical!$B$7:$B$1454,0)))^(1/10)-1)*100) -> 9.4 | W19: 0.757 | X19: 0.514 | Z19: 50.70 | AA19: 25.11 | AB19: 10 | AC19: 4.26 | AD19: 2.69 | AE19: 6.36 | AF19: 3.40 | AG19: n/a | AH19: 99.00 | AI19: 9.76 | AJ19: 13.90 | AK19: 9.34 | AL19: 39,270 | AM19: 0.1 | AN19: 0.54 | AO19: (15.9) | AP19: 9.2 | AQ19: 94.8 | AR19: =INDEX(Historical!$C$7:$C$1447,MATCH(B19,Historical!$B$7:$B$1454,0))*IF(AH19="n/a",1.03,IF(AH19<0,1.01,IF(AH19>10,1.1,(1+AH19/100)))) -> 2.11 | AS19: 2.32 | AT19: 2.53 | AU19: 2.77 | AV19: 3.03 | AW19: 12.77 | AX19: 11.9 | AY19: 1.24 | AZ19: 39.6 | BA19: -1.2 | BB19: 14.0 | BC19: 14.5 | BE19: 2003 | BF19: =#VALUE! ->  | BG19: n/a
A20: Andersons Inc. (The) | B20: ANDE | C20: Consumer Staples | D20: Food & Staples Retailing | E20: 17 | F20: 197 | G20: N | H20: Y | I20: 36.96 | J20: 1.84 | K20: 0.1700 | L20: 4 | M20: 0.68 | N20: A23 | O20: 0.1650 | P20: 2018-12-31 | Q20: 2019-01-23 | R20: 3.03 | S20: =IF(INDEX(Historical!$D$7:$D$1447,MATCH(B20,Historical!$B$7:$B$1454,0))=0,"n/a",(INDEX(Historical!$C$7:$C$1447,MATCH(B20,Historical!$B$7:$B$1454,0))/INDEX(Historical!$D$7:$D$1447,MATCH(B20,Historical!$B$7:$B$1454,0))-1)*100) -> 3.1 | T20: =IF(INDEX(Historical!$F$7:$F$1447,MATCH(B20,Historical!$B$7:$B$1454,0))=0,"n/a",((INDEX(Historical!$C$7:$C$1447,MATCH(B20,Historical!$B$7:$B$1454,0))/INDEX(Historical!$F$7:$F$1447,MATCH(B20,Historical!$B$7:$B$1454,0)))^(1/3)-1)*100) -> 5.6 | U20: =IF(INDEX(Historical!$H$7:$H$1447,MATCH(B20,Historical!$B$7:$B$1454,0))=0,"n/a",((INDEX(Historical!$C$7:$C$1447,MATCH(B20,Historical!$B$7:$B$1454,0))/INDEX(Historical!$H$7:$H$1447,MATCH(B20,Historical!$B$7:$B$1454,0)))^(1/5)-1)*100) -> 9.1 | V20: =IF(INDEX(Historical!$O$7:$O$1447,MATCH(B20,Historical!$B$7:$B$1454,0))=0,"n/a",((INDEX(Historical!$C$7:$C$1447,MATCH(B20,Historical!$B$7:$B$1454,0))/INDEX(Historical!$O$7:$O$1447,MATCH(B20,Historical!$B$7:$B$1454,0)))^(1/10)-1)*100) -> 11.8 | W20: 0.774 | X20: n/a | Z20: 46.58 | AA20: 25.32 | AB20: 12 | AC20: 1.46 | AD20: 3.16 | AE20: 0.34 | AF20: 1.29 | AG20: 11.30 | AH20: -368.80 | AI20: 20.12 | AJ20: -19.00 | AK20: 8.00 | AL20: 1,040 | AM20: 2.5 | AN20: 0.72 | AO20: (14.4) | AP20: 11.0 | AQ20: 20.5 | AR20: =INDEX(Historical!$C$7:$C$1447,MATCH(B20,Historical!$B$7:$B$1454,0))*IF(AH20="n/a",1.03,IF(AH20<0,1.01,IF(AH20>10,1.1,(1+AH20/100)))) -> 0.67 | AS20: 0.73 | AT20: 0.79 | AU20: 0.86 | AV20: 0.92 | AW20: 3.97 | AX20: 10.7 | AY20: 1.27 | AZ20: 33.8 | BA20: -11.4 | BB20: 10.1 | BC20: 5.5 | BE20: 2003 | BF20: =#VALUE! ->  | BG20: 4.2
A21: Applied Industrial Technologies Inc. | B21: AIT | C21: Industrials | D21: Trading Companies & Distributors | E21: 10 | F21: 335 | G21: N | H21: Y | I21: 58.14 | J21: 2.13 | K21: 0.3100 | L21: 4 | M21: 1.24 | N21: B28 | O21: 0.3000 | P21: 2019-02-14 | Q21: 2019-02-28 | R21: 3.33 | S21: =IF(INDEX(Historical!$D$7:$D$1447,MATCH(B21,Historical!$B$7:$B$1454,0))=0,"n/a",(INDEX(Historical!$C$7:$C$1447,MATCH(B21,Historical!$B$7:$B$1454,0))/INDEX(Historical!$D$7:$D$1447,MATCH(B21,Historical!$B$7:$B$1454,0))-1)*100) -> 3.4 | T21: =IF(INDEX(Historical!$F$7:$F$1447,MATCH(B21,Historical!$B$7:$B$1454,0))=0,"n/a",((INDEX(Historical!$C$7:$C$1447,MATCH(B21,Historical!$B$7:$B$1454,0))/INDEX(Historical!$F$7:$F$1447,MATCH(B21,Historical!$B$7:$B$1454,0)))^(1/3)-1)*100) -> 3.6 | U21: =IF(INDEX(Historical!$H$7:$H$1447,MATCH(B21,Historical!$B$7:$B$1454,0))=0,"n/a",((INDEX(Historical!$C$7:$C$1447,MATCH(B21,Historical!$B$7:$B$1454,0))/INDEX(Historical!$H$7:$H$1447,MATCH(B21,Historical!$B$7:$B$1454,0)))^(1/5)-1)*100) -> 5.5 | V21: =IF(INDEX(Historical!$O$7:$O$1447,MATCH(B21,Historical!$B$7:$B$1454,0))=0,"n/a",((INDEX(Historical!$C$7:$C$1447,MATCH(B21,Historical!$B$7:$B$1454,0))/INDEX(Historical!$O$7:$O$1447,MATCH(B21,Historical!$B$7:$B$1454,0)))^(1/10)-1)*100) -> 7.2 | W21: 0.760 | X21: 1.213 | Z21: 34.07 | AA21: 15.97 | AB21: 6 | AC21: 3.64 | AD21: 1.33 | AE21: 0.66 | AF21: 2.53 | AG21: 19.50 | AH21: 1.70 | AI21: 8.75 | AJ21: 4.50 | AK21: 12.00 | AL21: 2,250 | AM21: 0.6 | AN21: 1.09 | AO21: (8.4) | AP21: 7.6 | AQ21: 34.0 | AR21: =INDEX(Historical!$C$7:$C$1447,MATCH(B21,Historical!$B$7:$B$1454,0))*IF(AH21="n/a",1.03,IF(AH21<0,1.01,IF(AH21>10,1.1,(1+AH21/100)))) -> 1.22 | AS21: 1.33 | AT21: 1.46 | AU21: 1.61 | AV21: 1.77 | AW21: 7.38 | AX21: 12.7 | AY21: 1.30 | AZ21: 15.0 | BA21: -29.4 | BB21: 1.7 | BC21: -14.9 | BE21: 2010 | BF21: =#VALUE! ->  | BG21: 7.2
A22: Armanino Foods of Distinction Inc. | B22: AMNF | C22: Consumer Staples | D22: Food Products | E22: 13 | F22: 283 | G22: - | H22: - | I22: 3.28 | J22: 2.74 | K22: 0.0225 | L22: 4 | M22: 0.09 | N22: A27 | O22: 0.0200 | P22: 2018-03-29 | Q22: 2018-04-27 | R22: 12.50 | S22: =IF(INDEX(Historical!$D$7:$D$1447,MATCH(B22,Historical!$B$7:$B$1454,0))=0,"n/a",(INDEX(Historical!$C$7:$C$1447,MATCH(B22,Historical!$B$7:$B$1454,0))/INDEX(Historical!$D$7:$D$1447,MATCH(B22,Historical!$B$7:$B$1454,0))-1)*100) -> 9.4 | T22: =IF(INDEX(Historical!$F$7:$F$1447,MATCH(B22,Historical!$B$7:$B$1454,0))=0,"n/a",((INDEX(Historical!$C$7:$C$1447,MATCH(B22,Historical!$B$7:$B$1454,0))/INDEX(Historical!$F$7:$F$1447,MATCH(B22,Historical!$B$7:$B$1454,0)))^(1/3)-1)*100) -> 6.2 | U22: =IF(INDEX(Historical!$H$7:$H$1447,MATCH(B22,Historical!$B$7:$B$1454,0))=0,"n/a",((INDEX(Historical!$C$7:$C$1447,MATCH(B22,Historical!$B$7:$B$1454,0))/INDEX(Historical!$H$7:$H$1447,MATCH(B22,Historical!$B$7:$B$1454,0)))^(1/5)-1)*100) -> 11.0 | V22: =IF(INDEX(Historical!$O$7:$O$1447,MATCH(B22,Historical!$B$7:$B$1454,0))=0,"n/a",((INDEX(Historical!$C$7:$C$1447,MATCH(B22,Historical!$B$7:$B$1454,0))/INDEX(Historical!$O$7:$O$1447,MATCH(B22,Historical!$B$7:$B$1454,0)))^(1/10)-1)*100) -> 11.8 | W22: 0.932 | X22: n/a | Z22: 45.00 | AA22: 16.40 | AB22: 12 | AC22: 0.20 | AD22: n/a | AE22: 2.57 | AF22: 6.08 | AG22: 40.40 | AH22: n/a | AI22: n/a | AJ22: n/a | AK22: n/a | AL22: 107 | AM22: 9.9 | AN22: 0.18 | AO22: (2.7) | AP22: 13.7 | AQ22: 110.5 | AR22: =INDEX(Historical!$C$7:$C$1447,MATCH(B22,Historical!$B$7:$B$1454,0))*IF(AH22="n/a",1.03,IF(AH22<0,1.01,IF(AH22>10,1.1,(1+AH22/100)))) -> 0.09 | AS22: 0.09 | AT22: 0.10 | AU22: 0.10 | AV22: 0.10 | AW22: 0.48 | AX22: 14.6 | AY22: 0.16 | AZ22: 33.9 | BA22: -3.2 | BB22: 8.6 | BC22: 15.9 | BD22: OTC | BE22: 2006 | BF22: =#VALUE! ->  | BG22: 29.62
